Workbook

Sheet Control
A3: State Inventory Tool - CH4 and N2O Emissions from Mobile Combustion Module Version 2025.1
A4: This module provides default activity data, emission factors, and other relevant metrics for 1990-2022. Emissions factors are proxied for 2023-2025
A5: 1. Select those modes of transport you wish to analyze.
A6: Select any or all of the modes listed below.
A15: 2. Choose a State
A16: This is very important - it selects the correct default variables for your state.
A18: 3. Would you like to conduct optional CO2 calculations?
A19: The CO2FFC module is responsible for the main CO2 calculations from the mobile sector, but this module provides a mode-specific analysis if you wish.
A24: 4. - 11. Proceed with transportation mode-specific analysis. . .
A28: You will be led through the following series of worksheets using navigational arrows located at the top of each worksheet:
A31: 4. Highway Vehicle Worksheets
A32: 4a. Highway Vehicles - Emission Factors and VMT Worksheet
A33: 4b. Highway Vehicles - Allocating VMT by Model Year Worksheet
A34: 4c. Highway Vehicles - Allocating Control Technology by Model Year Worksheet
A35: 5. Aviation Worksheet
A36: 6. Marine Worksheet
A37: 7. Locomotive Worksheet
A38: 8. Other Non-Highway Worksheet
A39: 9. Alternative Fuel Vehicles Worksheet
A40: 10. Highway CO2 Worksheet
A41: 11. Non-Highway CO2 Worksheet
A43: 12. Review the Summary Information
A50: 13. Export the results for use in the Synthesis Tool.
A58: Constants and/or Factors Used Throughout the Module | E58: Default
A59: The default GWPs used in this module are from the IPCC Fifth Assessment Report (AR5) but can be adjusted in the cells below to reflect other sources.
A60: Methane GWP | E60: 28
A61: Nitrous Oxide GWP | E61: 265
A62: Number of Days per Year | E62: 365
A63: Gallons/Barrel | E63: 42
A64: Kilometers/Mile | E64: 1.609347228
A65: Carbon / CO2 | E65: =12/44 -> 0.2727272727
A66: Grams / Teragram (g / Tg) | E66: =10^12 -> 1000000000000

Sheet Dataframe (hidden)
A1: MMTCO2e | B1: Category | C1: 1990 | D1: 1991 | E1: 1992 | F1: 1993 | G1: 1994 | H1: 1995 | I1: 1996 | J1: 1997 | K1: 1998 | L1: 1999 | M1: 2000 | N1: 2001 | O1: 2002 | P1: 2003 | Q1: 2004 | R1: 2005 | S1: 2006 | T1: 2007 | U1: 2008 | V1: 2009 | W1: 2010 | X1: 2011 | Y1: 2012 | Z1: 2013 | AA1: 2014 | AB1: 2015 | AC1: 2016 | AD1: 2017 | AE1: 2018 | AF1: 2019 | AG1: 2020 | AH1: 2021 | AI1: 2022 | AJ1: 2023 | AK1: 2024 | AL1: 2025
A2: Gasoline Highway | B2: ="Energy - Mobile Combustion - CH4 - "&$A$2 -> Energy - Mobile Combustion - CH4 - Gasoline Highway | C2: =(Summary!C33)/1000000 -> 0 | D2: =(Summary!D33)/1000000 -> 0 | E2: =(Summary!E33)/1000000 -> 0 | F2: =(Summary!F33)/1000000 -> 0 | G2: =(Summary!G33)/1000000 -> 0 | H2: =(Summary!H33)/1000000 -> 0 | I2: =(Summary!I33)/1000000 -> 0 | J2: =(Summary!J33)/1000000 -> 0 | K2: =(Summary!K33)/1000000 -> 0 | L2: =(Summary!L33)/1000000 -> 0 | M2: =(Summary!M33)/1000000 -> 0 | N2: =(Summary!N33)/1000000 -> 0 | O2: =(Summary!O33)/1000000 -> 0 | P2: =(Summary!P33)/1000000 -> 0 | Q2: =(Summary!Q33)/1000000 -> 0 | R2: =(Summary!R33)/1000000 -> 0 | S2: =(Summary!S33)/1000000 -> 0 | T2: =(Summary!T33)/1000000 -> 0 | U2: =(Summary!U33)/1000000 -> 0 | V2: =(Summary!V33)/1000000 -> 0 | W2: =(Summary!W33)/1000000 -> 0 | X2: =(Summary!X33)/1000000 -> 0 | Y2: =(Summary!Y33)/1000000 -> 0 | Z2: =(Summary!Z33)/1000000 -> 0 | AA2: =(Summary!AA33)/1000000 -> 0 | AB2: =(Summary!AB33)/1000000 -> 0 | AC2: =(Summary!AC33)/1000000 -> 0 | AD2: =(Summary!AD33)/1000000 -> 0 | AE2: =(Summary!AE33)/1000000 -> 0 | AF2: =(Summary!AF33)/1000000 -> 0 | AG2: =(Summary!AG33)/1000000 -> 0 | AH2: =(Summary!AH33)/1000000 -> 0 | AI2: =(Summary!AI33)/1000000 -> 0 | AJ2: =(Summary!AJ33)/1000000 -> 0 | AK2: =(Summary!AK33)/1000000 -> 0 | AL2: =(Summary!AL33)/1000000 -> 0
A3: Passenger Cars | B3: ="Energy - Mobile Combustion - CH4 - "&$A$2&" - "&A3 -> Energy - Mobile Combustion - CH4 - Gasoline Highway - Passenger Cars | C3: =(Summary!C34)/1000000 -> 0 | D3: =(Summary!D34)/1000000 -> 0 | E3: =(Summary!E34)/1000000 -> 0 | F3: =(Summary!F34)/1000000 -> 0 | G3: =(Summary!G34)/1000000 -> 0 | H3: =(Summary!H34)/1000000 -> 0 | I3: =(Summary!I34)/1000000 -> 0 | J3: =(Summary!J34)/1000000 -> 0 | K3: =(Summary!K34)/1000000 -> 0 | L3: =(Summary!L34)/1000000 -> 0 | M3: =(Summary!M34)/1000000 -> 0 | N3: =(Summary!N34)/1000000 -> 0 | O3: =(Summary!O34)/1000000 -> 0 | P3: =(Summary!P34)/1000000 -> 0 | Q3: =(Summary!Q34)/1000000 -> 0 | R3: =(Summary!R34)/1000000 -> 0 | S3: =(Summary!S34)/1000000 -> 0 | T3: =(Summary!T34)/1000000 -> 0 | U3: =(Summary!U34)/1000000 -> 0 | V3: =(Summary!V34)/1000000 -> 0 | W3: =(Summary!W34)/1000000 -> 0 | X3: =(Summary!X34)/1000000 -> 0 | Y3: =(Summary!Y34)/1000000 -> 0 | Z3: =(Summary!Z34)/1000000 -> 0 | AA3: =(Summary!AA34)/1000000 -> 0 | AB3: =(Summary!AB34)/1000000 -> 0 | AC3: =(Summary!AC34)/1000000 -> 0 | AD3: =(Summary!AD34)/1000000 -> 0 | AE3: =(Summary!AE34)/1000000 -> 0 | AF3: =(Summary!AF34)/1000000 -> 0 | AG3: =(Summary!AG34)/1000000 -> 0 | AH3: =(Summary!AH34)/1000000 -> 0 | AI3: =(Summary!AI34)/1000000 -> 0 | AJ3: =(Summary!AJ34)/1000000 -> 0 | AK3: =(Summary!AK34)/1000000 -> 0 | AL3: =(Summary!AL34)/1000000 -> 0
A4: Light-Duty Trucks | B4: ="Energy - Mobile Combustion - CH4 - "&$A$2&" - "&A4 -> Energy - Mobile Combustion - CH4 - Gasoline Highway - Light-Duty Trucks | C4: =(Summary!C35)/1000000 -> 0 | D4: =(Summary!D35)/1000000 -> 0 | E4: =(Summary!E35)/1000000 -> 0 | F4: =(Summary!F35)/1000000 -> 0 | G4: =(Summary!G35)/1000000 -> 0 | H4: =(Summary!H35)/1000000 -> 0 | I4: =(Summary!I35)/1000000 -> 0 | J4: =(Summary!J35)/1000000 -> 0 | K4: =(Summary!K35)/1000000 -> 0 | L4: =(Summary!L35)/1000000 -> 0 | M4: =(Summary!M35)/1000000 -> 0 | N4: =(Summary!N35)/1000000 -> 0 | O4: =(Summary!O35)/1000000 -> 0 | P4: =(Summary!P35)/1000000 -> 0 | Q4: =(Summary!Q35)/1000000 -> 0 | R4: =(Summary!R35)/1000000 -> 0 | S4: =(Summary!S35)/1000000 -> 0 | T4: =(Summary!T35)/1000000 -> 0 | U4: =(Summary!U35)/1000000 -> 0 | V4: =(Summary!V35)/1000000 -> 0 | W4: =(Summary!W35)/1000000 -> 0 | X4: =(Summary!X35)/1000000 -> 0 | Y4: =(Summary!Y35)/1000000 -> 0 | Z4: =(Summary!Z35)/1000000 -> 0 | AA4: =(Summary!AA35)/1000000 -> 0 | AB4: =(Summary!AB35)/1000000 -> 0 | AC4: =(Summary!AC35)/1000000 -> 0 | AD4: =(Summary!AD35)/1000000 -> 0 | AE4: =(Summary!AE35)/1000000 -> 0 | AF4: =(Summary!AF35)/1000000 -> 0 | AG4: =(Summary!AG35)/1000000 -> 0 | AH4: =(Summary!AH35)/1000000 -> 0 | AI4: =(Summary!AI35)/1000000 -> 0 | AJ4: =(Summary!AJ35)/1000000 -> 0 | AK4: =(Summary!AK35)/1000000 -> 0 | AL4: =(Summary!AL35)/1000000 -> 0
A5: Heavy-Duty Vehicles | B5: ="Energy - Mobile Combustion - CH4 - "&$A$2&" - "&A5 -> Energy - Mobile Combustion - CH4 - Gasoline Highway - Heavy-Duty Vehicles | C5: =(Summary!C36)/1000000 -> 0 | D5: =(Summary!D36)/1000000 -> 0 | E5: =(Summary!E36)/1000000 -> 0 | F5: =(Summary!F36)/1000000 -> 0 | G5: =(Summary!G36)/1000000 -> 0 | H5: =(Summary!H36)/1000000 -> 0 | I5: =(Summary!I36)/1000000 -> 0 | J5: =(Summary!J36)/1000000 -> 0 | K5: =(Summary!K36)/1000000 -> 0 | L5: =(Summary!L36)/1000000 -> 0 | M5: =(Summary!M36)/1000000 -> 0 | N5: =(Summary!N36)/1000000 -> 0 | O5: =(Summary!O36)/1000000 -> 0 | P5: =(Summary!P36)/1000000 -> 0 | Q5: =(Summary!Q36)/1000000 -> 0 | R5: =(Summary!R36)/1000000 -> 0 | S5: =(Summary!S36)/1000000 -> 0 | T5: =(Summary!T36)/1000000 -> 0 | U5: =(Summary!U36)/1000000 -> 0 | V5: =(Summary!V36)/1000000 -> 0 | W5: =(Summary!W36)/1000000 -> 0 | X5: =(Summary!X36)/1000000 -> 0 | Y5: =(Summary!Y36)/1000000 -> 0 | Z5: =(Summary!Z36)/1000000 -> 0 | AA5: =(Summary!AA36)/1000000 -> 0 | AB5: =(Summary!AB36)/1000000 -> 0 | AC5: =(Summary!AC36)/1000000 -> 0 | AD5: =(Summary!AD36)/1000000 -> 0 | AE5: =(Summary!AE36)/1000000 -> 0 | AF5: =(Summary!AF36)/1000000 -> 0 | AG5: =(Summary!AG36)/1000000 -> 0 | AH5: =(Summary!AH36)/1000000 -> 0 | AI5: =(Summary!AI36)/1000000 -> 0 | AJ5: =(Summary!AJ36)/1000000 -> 0 | AK5: =(Summary!AK36)/1000000 -> 0 | AL5: =(Summary!AL36)/1000000 -> 0
A6: Motorcycles | B6: ="Energy - Mobile Combustion - CH4 - "&$A$2&" - "&A6 -> Energy - Mobile Combustion - CH4 - Gasoline Highway - Motorcycles | C6: =(Summary!C37)/1000000 -> 0 | D6: =(Summary!D37)/1000000 -> 0 | E6: =(Summary!E37)/1000000 -> 0 | F6: =(Summary!F37)/1000000 -> 0 | G6: =(Summary!G37)/1000000 -> 0 | H6: =(Summary!H37)/1000000 -> 0 | I6: =(Summary!I37)/1000000 -> 0 | J6: =(Summary!J37)/1000000 -> 0 | K6: =(Summary!K37)/1000000 -> 0 | L6: =(Summary!L37)/1000000 -> 0 | M6: =(Summary!M37)/1000000 -> 0 | N6: =(Summary!N37)/1000000 -> 0 | O6: =(Summary!O37)/1000000 -> 0 | P6: =(Summary!P37)/1000000 -> 0 | Q6: =(Summary!Q37)/1000000 -> 0 | R6: =(Summary!R37)/1000000 -> 0 | S6: =(Summary!S37)/1000000 -> 0 | T6: =(Summary!T37)/1000000 -> 0 | U6: =(Summary!U37)/1000000 -> 0 | V6: =(Summary!V37)/1000000 -> 0 | W6: =(Summary!W37)/1000000 -> 0 | X6: =(Summary!X37)/1000000 -> 0 | Y6: =(Summary!Y37)/1000000 -> 0 | Z6: =(Summary!Z37)/1000000 -> 0 | AA6: =(Summary!AA37)/1000000 -> 0 | AB6: =(Summary!AB37)/1000000 -> 0 | AC6: =(Summary!AC37)/1000000 -> 0 | AD6: =(Summary!AD37)/1000000 -> 0 | AE6: =(Summary!AE37)/1000000 -> 0 | AF6: =(Summary!AF37)/1000000 -> 0 | AG6: =(Summary!AG37)/1000000 -> 0 | AH6: =(Summary!AH37)/1000000 -> 0 | AI6: =(Summary!AI37)/1000000 -> 0 | AJ6: =(Summary!AJ37)/1000000 -> 0 | AK6: =(Summary!AK37)/1000000 -> 0 | AL6: =(Summary!AL37)/1000000 -> 0
A7: Diesel Highway | B7: ="Energy - Mobile Combustion - CH4 - "&$A$7 -> Energy - Mobile Combustion - CH4 - Diesel Highway | C7: =(Summary!C38)/1000000 -> 0 | D7: =(Summary!D38)/1000000 -> 0 | E7: =(Summary!E38)/1000000 -> 0 | F7: =(Summary!F38)/1000000 -> 0 | G7: =(Summary!G38)/1000000 -> 0 | H7: =(Summary!H38)/1000000 -> 0 | I7: =(Summary!I38)/1000000 -> 0 | J7: =(Summary!J38)/1000000 -> 0 | K7: =(Summary!K38)/1000000 -> 0 | L7: =(Summary!L38)/1000000 -> 0 | M7: =(Summary!M38)/1000000 -> 0 | N7: =(Summary!N38)/1000000 -> 0 | O7: =(Summary!O38)/1000000 -> 0 | P7: =(Summary!P38)/1000000 -> 0 | Q7: =(Summary!Q38)/1000000 -> 0 | R7: =(Summary!R38)/1000000 -> 0 | S7: =(Summary!S38)/1000000 -> 0 | T7: =(Summary!T38)/1000000 -> 0 | U7: =(Summary!U38)/1000000 -> 0 | V7: =(Summary!V38)/1000000 -> 0 | W7: =(Summary!W38)/1000000 -> 0 | X7: =(Summary!X38)/1000000 -> 0 | Y7: =(Summary!Y38)/1000000 -> 0 | Z7: =(Summary!Z38)/1000000 -> 0 | AA7: =(Summary!AA38)/1000000 -> 0 | AB7: =(Summary!AB38)/1000000 -> 0 | AC7: =(Summary!AC38)/1000000 -> 0 | AD7: =(Summary!AD38)/1000000 -> 0 | AE7: =(Summary!AE38)/1000000 -> 0 | AF7: =(Summary!AF38)/1000000 -> 0 | AG7: =(Summary!AG38)/1000000 -> 0 | AH7: =(Summary!AH38)/1000000 -> 0 | AI7: =(Summary!AI38)/1000000 -> 0 | AJ7: =(Summary!AJ38)/1000000 -> 0 | AK7: =(Summary!AK38)/1000000 -> 0 | AL7: =(Summary!AL38)/1000000 -> 0
A8: Passenger Cars | B8: ="Energy - Mobile Combustion - CH4 - "&$A$7&" - "&A8 -> Energy - Mobile Combustion - CH4 - Diesel Highway - Passenger Cars | C8: =(Summary!C39)/1000000 -> 0 | D8: =(Summary!D39)/1000000 -> 0 | E8: =(Summary!E39)/1000000 -> 0 | F8: =(Summary!F39)/1000000 -> 0 | G8: =(Summary!G39)/1000000 -> 0 | H8: =(Summary!H39)/1000000 -> 0 | I8: =(Summary!I39)/1000000 -> 0 | J8: =(Summary!J39)/1000000 -> 0 | K8: =(Summary!K39)/1000000 -> 0 | L8: =(Summary!L39)/1000000 -> 0 | M8: =(Summary!M39)/1000000 -> 0 | N8: =(Summary!N39)/1000000 -> 0 | O8: =(Summary!O39)/1000000 -> 0 | P8: =(Summary!P39)/1000000 -> 0 | Q8: =(Summary!Q39)/1000000 -> 0 | R8: =(Summary!R39)/1000000 -> 0 | S8: =(Summary!S39)/1000000 -> 0 | T8: =(Summary!T39)/1000000 -> 0 | U8: =(Summary!U39)/1000000 -> 0 | V8: =(Summary!V39)/1000000 -> 0 | W8: =(Summary!W39)/1000000 -> 0 | X8: =(Summary!X39)/1000000 -> 0 | Y8: =(Summary!Y39)/1000000 -> 0 | Z8: =(Summary!Z39)/1000000 -> 0 | AA8: =(Summary!AA39)/1000000 -> 0 | AB8: =(Summary!AB39)/1000000 -> 0 | AC8: =(Summary!AC39)/1000000 -> 0 | AD8: =(Summary!AD39)/1000000 -> 0 | AE8: =(Summary!AE39)/1000000 -> 0 | AF8: =(Summary!AF39)/1000000 -> 0 | AG8: =(Summary!AG39)/1000000 -> 0 | AH8: =(Summary!AH39)/1000000 -> 0 | AI8: =(Summary!AI39)/1000000 -> 0 | AJ8: =(Summary!AJ39)/1000000 -> 0 | AK8: =(Summary!AK39)/1000000 -> 0 | AL8: =(Summary!AL39)/1000000 -> 0
A9: Light-Duty Trucks | B9: ="Energy - Mobile Combustion - CH4 - "&$A$7&" - "&A9 -> Energy - Mobile Combustion - CH4 - Diesel Highway - Light-Duty Trucks | C9: =(Summary!C40)/1000000 -> 0 | D9: =(Summary!D40)/1000000 -> 0 | E9: =(Summary!E40)/1000000 -> 0 | F9: =(Summary!F40)/1000000 -> 0 | G9: =(Summary!G40)/1000000 -> 0 | H9: =(Summary!H40)/1000000 -> 0 | I9: =(Summary!I40)/1000000 -> 0 | J9: =(Summary!J40)/1000000 -> 0 | K9: =(Summary!K40)/1000000 -> 0 | L9: =(Summary!L40)/1000000 -> 0 | M9: =(Summary!M40)/1000000 -> 0 | N9: =(Summary!N40)/1000000 -> 0 | O9: =(Summary!O40)/1000000 -> 0 | P9: =(Summary!P40)/1000000 -> 0 | Q9: =(Summary!Q40)/1000000 -> 0 | R9: =(Summary!R40)/1000000 -> 0 | S9: =(Summary!S40)/1000000 -> 0 | T9: =(Summary!T40)/1000000 -> 0 | U9: =(Summary!U40)/1000000 -> 0 | V9: =(Summary!V40)/1000000 -> 0 | W9: =(Summary!W40)/1000000 -> 0 | X9: =(Summary!X40)/1000000 -> 0 | Y9: =(Summary!Y40)/1000000 -> 0 | Z9: =(Summary!Z40)/1000000 -> 0 | AA9: =(Summary!AA40)/1000000 -> 0 | AB9: =(Summary!AB40)/1000000 -> 0 | AC9: =(Summary!AC40)/1000000 -> 0 | AD9: =(Summary!AD40)/1000000 -> 0 | AE9: =(Summary!AE40)/1000000 -> 0 | AF9: =(Summary!AF40)/1000000 -> 0 | AG9: =(Summary!AG40)/1000000 -> 0 | AH9: =(Summary!AH40)/1000000 -> 0 | AI9: =(Summary!AI40)/1000000 -> 0 | AJ9: =(Summary!AJ40)/1000000 -> 0 | AK9: =(Summary!AK40)/1000000 -> 0 | AL9: =(Summary!AL40)/1000000 -> 0
A10: Heavy-Duty Vehicles | B10: ="Energy - Mobile Combustion - CH4 - "&$A$7&" - "&A10 -> Energy - Mobile Combustion - CH4 - Diesel Highway - Heavy-Duty Vehicles | C10: =(Summary!C41)/1000000 -> 0 | D10: =(Summary!D41)/1000000 -> 0 | E10: =(Summary!E41)/1000000 -> 0 | F10: =(Summary!F41)/1000000 -> 0 | G10: =(Summary!G41)/1000000 -> 0 | H10: =(Summary!H41)/1000000 -> 0 | I10: =(Summary!I41)/1000000 -> 0 | J10: =(Summary!J41)/1000000 -> 0 | K10: =(Summary!K41)/1000000 -> 0 | L10: =(Summary!L41)/1000000 -> 0 | M10: =(Summary!M41)/1000000 -> 0 | N10: =(Summary!N41)/1000000 -> 0 | O10: =(Summary!O41)/1000000 -> 0 | P10: =(Summary!P41)/1000000 -> 0 | Q10: =(Summary!Q41)/1000000 -> 0 | R10: =(Summary!R41)/1000000 -> 0 | S10: =(Summary!S41)/1000000 -> 0 | T10: =(Summary!T41)/1000000 -> 0 | U10: =(Summary!U41)/1000000 -> 0 | V10: =(Summary!V41)/1000000 -> 0 | W10: =(Summary!W41)/1000000 -> 0 | X10: =(Summary!X41)/1000000 -> 0 | Y10: =(Summary!Y41)/1000000 -> 0 | Z10: =(Summary!Z41)/1000000 -> 0 | AA10: =(Summary!AA41)/1000000 -> 0 | AB10: =(Summary!AB41)/1000000 -> 0 | AC10: =(Summary!AC41)/1000000 -> 0 | AD10: =(Summary!AD41)/1000000 -> 0 | AE10: =(Summary!AE41)/1000000 -> 0 | AF10: =(Summary!AF41)/1000000 -> 0 | AG10: =(Summary!AG41)/1000000 -> 0 | AH10: =(Summary!AH41)/1000000 -> 0 | AI10: =(Summary!AI41)/1000000 -> 0 | AJ10: =(Summary!AJ41)/1000000 -> 0 | AK10: =(Summary!AK41)/1000000 -> 0 | AL10: =(Summary!AL41)/1000000 -> 0
A11: Heavy-Duty Buses | B11: ="Energy - Mobile Combustion - CH4 - "&$A$7&" - "&A11 -> Energy - Mobile Combustion - CH4 - Diesel Highway - Heavy-Duty Buses | C11: =(Summary!C42)/1000000 -> 0 | D11: =(Summary!D42)/1000000 -> 0 | E11: =(Summary!E42)/1000000 -> 0 | F11: =(Summary!F42)/1000000 -> 0 | G11: =(Summary!G42)/1000000 -> 0 | H11: =(Summary!H42)/1000000 -> 0 | I11: =(Summary!I42)/1000000 -> 0 | J11: =(Summary!J42)/1000000 -> 0 | K11: =(Summary!K42)/1000000 -> 0 | L11: =(Summary!L42)/1000000 -> 0 | M11: =(Summary!M42)/1000000 -> 0 | N11: =(Summary!N42)/1000000 -> 0 | O11: =(Summary!O42)/1000000 -> 0 | P11: =(Summary!P42)/1000000 -> 0 | Q11: =(Summary!Q42)/1000000 -> 0 | R11: =(Summary!R42)/1000000 -> 0 | S11: =(Summary!S42)/1000000 -> 0 | T11: =(Summary!T42)/1000000 -> 0 | U11: =(Summary!U42)/1000000 -> 0 | V11: =(Summary!V42)/1000000 -> 0 | W11: =(Summary!W42)/1000000 -> 0 | X11: =(Summary!X42)/1000000 -> 0 | Y11: =(Summary!Y42)/1000000 -> 0 | Z11: =(Summary!Z42)/1000000 -> 0 | AA11: =(Summary!AA42)/1000000 -> 0 | AB11: =(Summary!AB42)/1000000 -> 0 | AC11: =(Summary!AC42)/1000000 -> 0 | AD11: =(Summary!AD42)/1000000 -> 0 | AE11: =(Summary!AE42)/1000000 -> 0 | AF11: =(Summary!AF42)/1000000 -> 0 | AG11: =(Summary!AG42)/1000000 -> 0 | AH11: =(Summary!AH42)/1000000 -> 0 | AI11: =(Summary!AI42)/1000000 -> 0 | AJ11: =(Summary!AJ42)/1000000 -> 0 | AK11: =(Summary!AK42)/1000000 -> 0 | AL11: =(Summary!AL42)/1000000 -> 0
A12: Non-Highway | B12: ="Energy - Mobile Combustion - CH4 - "&$A$12 -> Energy - Mobile Combustion - CH4 - Non-Highway | C12: =(Summary!C43)/1000000 -> 0 | D12: =(Summary!D43)/1000000 -> 0 | E12: =(Summary!E43)/1000000 -> 0 | F12: =(Summary!F43)/1000000 -> 0 | G12: =(Summary!G43)/1000000 -> 0 | H12: =(Summary!H43)/1000000 -> 0 | I12: =(Summary!I43)/1000000 -> 0 | J12: =(Summary!J43)/1000000 -> 0 | K12: =(Summary!K43)/1000000 -> 0 | L12: =(Summary!L43)/1000000 -> 0 | M12: =(Summary!M43)/1000000 -> 0 | N12: =(Summary!N43)/1000000 -> 0 | O12: =(Summary!O43)/1000000 -> 0 | P12: =(Summary!P43)/1000000 -> 0 | Q12: =(Summary!Q43)/1000000 -> 0 | R12: =(Summary!R43)/1000000 -> 0 | S12: =(Summary!S43)/1000000 -> 0 | T12: =(Summary!T43)/1000000 -> 0 | U12: =(Summary!U43)/1000000 -> 0 | V12: =(Summary!V43)/1000000 -> 0 | W12: =(Summary!W43)/1000000 -> 0 | X12: =(Summary!X43)/1000000 -> 0 | Y12: =(Summary!Y43)/1000000 -> 0 | Z12: =(Summary!Z43)/1000000 -> 0 | AA12: =(Summary!AA43)/1000000 -> 0 | AB12: =(Summary!AB43)/1000000 -> 0 | AC12: =(Summary!AC43)/1000000 -> 0 | AD12: =(Summary!AD43)/1000000 -> 0 | AE12: =(Summary!AE43)/1000000 -> 0 | AF12: =(Summary!AF43)/1000000 -> 0 | AG12: =(Summary!AG43)/1000000 -> 0 | AH12: =(Summary!AH43)/1000000 -> 0 | AI12: =(Summary!AI43)/1000000 -> 0 | AJ12: =(Summary!AJ43)/1000000 -> 0 | AK12: =(Summary!AK43)/1000000 -> 0 | AL12: =(Summary!AL43)/1000000 -> 0
A13: Boats | B13: ="Energy - Mobile Combustion - CH4 - "&$A$12&" - "&A13 -> Energy - Mobile Combustion - CH4 - Non-Highway - Boats | C13: =(Summary!C44)/1000000 -> 0 | D13: =(Summary!D44)/1000000 -> 0 | E13: =(Summary!E44)/1000000 -> 0 | F13: =(Summary!F44)/1000000 -> 0 | G13: =(Summary!G44)/1000000 -> 0 | H13: =(Summary!H44)/1000000 -> 0 | I13: =(Summary!I44)/1000000 -> 0 | J13: =(Summary!J44)/1000000 -> 0 | K13: =(Summary!K44)/1000000 -> 0 | L13: =(Summary!L44)/1000000 -> 0 | M13: =(Summary!M44)/1000000 -> 0 | N13: =(Summary!N44)/1000000 -> 0 | O13: =(Summary!O44)/1000000 -> 0 | P13: =(Summary!P44)/1000000 -> 0 | Q13: =(Summary!Q44)/1000000 -> 0 | R13: =(Summary!R44)/1000000 -> 0 | S13: =(Summary!S44)/1000000 -> 0 | T13: =(Summary!T44)/1000000 -> 0 | U13: =(Summary!U44)/1000000 -> 0 | V13: =(Summary!V44)/1000000 -> 0 | W13: =(Summary!W44)/1000000 -> 0 | X13: =(Summary!X44)/1000000 -> 0 | Y13: =(Summary!Y44)/1000000 -> 0 | Z13: =(Summary!Z44)/1000000 -> 0 | AA13: =(Summary!AA44)/1000000 -> 0 | AB13: =(Summary!AB44)/1000000 -> 0 | AC13: =(Summary!AC44)/1000000 -> 0 | AD13: =(Summary!AD44)/1000000 -> 0 | AE13: =(Summary!AE44)/1000000 -> 0 | AF13: =(Summary!AF44)/1000000 -> 0 | AG13: =(Summary!AG44)/1000000 -> 0 | AH13: =(Summary!AH44)/1000000 -> 0 | AI13: =(Summary!AI44)/1000000 -> 0 | AJ13: =(Summary!AJ44)/1000000 -> 0 | AK13: =(Summary!AK44)/1000000 -> 0 | AL13: =(Summary!AL44)/1000000 -> 0
A14: Locomotives | B14: Energy - Mobile Combustion - CH4 - Non-Highway - Locomotives | C14: =(Summary!C45)/1000000 -> 0 | D14: =(Summary!D45)/1000000 -> 0 | E14: =(Summary!E45)/1000000 -> 0 | F14: =(Summary!F45)/1000000 -> 0 | G14: =(Summary!G45)/1000000 -> 0 | H14: =(Summary!H45)/1000000 -> 0 | I14: =(Summary!I45)/1000000 -> 0 | J14: =(Summary!J45)/1000000 -> 0 | K14: =(Summary!K45)/1000000 -> 0 | L14: =(Summary!L45)/1000000 -> 0 | M14: =(Summary!M45)/1000000 -> 0 | N14: =(Summary!N45)/1000000 -> 0 | O14: =(Summary!O45)/1000000 -> 0 | P14: =(Summary!P45)/1000000 -> 0 | Q14: =(Summary!Q45)/1000000 -> 0 | R14: =(Summary!R45)/1000000 -> 0 | S14: =(Summary!S45)/1000000 -> 0 | T14: =(Summary!T45)/1000000 -> 0 | U14: =(Summary!U45)/1000000 -> 0 | V14: =(Summary!V45)/1000000 -> 0 | W14: =(Summary!W45)/1000000 -> 0 | X14: =(Summary!X45)/1000000 -> 0 | Y14: =(Summary!Y45)/1000000 -> 0 | Z14: =(Summary!Z45)/1000000 -> 0 | AA14: =(Summary!AA45)/1000000 -> 0 | AB14: =(Summary!AB45)/1000000 -> 0 | AC14: =(Summary!AC45)/1000000 -> 0 | AD14: =(Summary!AD45)/1000000 -> 0 | AE14: =(Summary!AE45)/1000000 -> 0 | AF14: =(Summary!AF45)/1000000 -> 0 | AG14: =(Summary!AG45)/1000000 -> 0 | AH14: =(Summary!AH45)/1000000 -> 0 | AI14: =(Summary!AI45)/1000000 -> 0 | AJ14: =(Summary!AJ45)/1000000 -> 0 | AK14: =(Summary!AK45)/1000000 -> 0 | AL14: =(Summary!AL45)/1000000 -> 0
A15: Farm Equipment | B15: Energy - Mobile Combustion - CH4 - Non-Highway - Farm Equipment | C15: =(Summary!C46)/1000000 -> 0 | D15: =(Summary!D46)/1000000 -> 0 | E15: =(Summary!E46)/1000000 -> 0 | F15: =(Summary!F46)/1000000 -> 0 | G15: =(Summary!G46)/1000000 -> 0 | H15: =(Summary!H46)/1000000 -> 0 | I15: =(Summary!I46)/1000000 -> 0 | J15: =(Summary!J46)/1000000 -> 0 | K15: =(Summary!K46)/1000000 -> 0 | L15: =(Summary!L46)/1000000 -> 0 | M15: =(Summary!M46)/1000000 -> 0 | N15: =(Summary!N46)/1000000 -> 0 | O15: =(Summary!O46)/1000000 -> 0 | P15: =(Summary!P46)/1000000 -> 0 | Q15: =(Summary!Q46)/1000000 -> 0 | R15: =(Summary!R46)/1000000 -> 0 | S15: =(Summary!S46)/1000000 -> 0 | T15: =(Summary!T46)/1000000 -> 0 | U15: =(Summary!U46)/1000000 -> 0 | V15: =(Summary!V46)/1000000 -> 0 | W15: =(Summary!W46)/1000000 -> 0 | X15: =(Summary!X46)/1000000 -> 0 | Y15: =(Summary!Y46)/1000000 -> 0 | Z15: =(Summary!Z46)/1000000 -> 0 | AA15: =(Summary!AA46)/1000000 -> 0 | AB15: =(Summary!AB46)/1000000 -> 0 | AC15: =(Summary!AC46)/1000000 -> 0 | AD15: =(Summary!AD46)/1000000 -> 0 | AE15: =(Summary!AE46)/1000000 -> 0 | AF15: =(Summary!AF46)/1000000 -> 0 | AG15: =(Summary!AG46)/1000000 -> 0 | AH15: =(Summary!AH46)/1000000 -> 0 | AI15: =(Summary!AI46)/1000000 -> 0 | AJ15: =(Summary!AJ46)/1000000 -> 0 | AK15: =(Summary!AK46)/1000000 -> 0 | AL15: =(Summary!AL46)/1000000 -> 0
A16: Construction Equipment | B16: Energy - Mobile Combustion - CH4 - Non-Highway - Construction Equipment | C16: =(Summary!C47)/1000000 -> 0 | D16: =(Summary!D47)/1000000 -> 0 | E16: =(Summary!E47)/1000000 -> 0 | F16: =(Summary!F47)/1000000 -> 0 | G16: =(Summary!G47)/1000000 -> 0 | H16: =(Summary!H47)/1000000 -> 0 | I16: =(Summary!I47)/1000000 -> 0 | J16: =(Summary!J47)/1000000 -> 0 | K16: =(Summary!K47)/1000000 -> 0 | L16: =(Summary!L47)/1000000 -> 0 | M16: =(Summary!M47)/1000000 -> 0 | N16: =(Summary!N47)/1000000 -> 0 | O16: =(Summary!O47)/1000000 -> 0 | P16: =(Summary!P47)/1000000 -> 0 | Q16: =(Summary!Q47)/1000000 -> 0 | R16: =(Summary!R47)/1000000 -> 0 | S16: =(Summary!S47)/1000000 -> 0 | T16: =(Summary!T47)/1000000 -> 0 | U16: =(Summary!U47)/1000000 -> 0 | V16: =(Summary!V47)/1000000 -> 0 | W16: =(Summary!W47)/1000000 -> 0 | X16: =(Summary!X47)/1000000 -> 0 | Y16: =(Summary!Y47)/1000000 -> 0 | Z16: =(Summary!Z47)/1000000 -> 0 | AA16: =(Summary!AA47)/1000000 -> 0 | AB16: =(Summary!AB47)/1000000 -> 0 | AC16: =(Summary!AC47)/1000000 -> 0 | AD16: =(Summary!AD47)/1000000 -> 0 | AE16: =(Summary!AE47)/1000000 -> 0 | AF16: =(Summary!AF47)/1000000 -> 0 | AG16: =(Summary!AG47)/1000000 -> 0 | AH16: =(Summary!AH47)/1000000 -> 0 | AI16: =(Summary!AI47)/1000000 -> 0 | AJ16: =(Summary!AJ47)/1000000 -> 0 | AK16: =(Summary!AK47)/1000000 -> 0 | AL16: =(Summary!AL47)/1000000 -> 0
A17: Aircraft | B17: Energy - Mobile Combustion - CH4 - Non-Highway - Aircraft | C17: =(Summary!C48)/1000000 -> 0 | D17: =(Summary!D48)/1000000 -> 0 | E17: =(Summary!E48)/1000000 -> 0 | F17: =(Summary!F48)/1000000 -> 0 | G17: =(Summary!G48)/1000000 -> 0 | H17: =(Summary!H48)/1000000 -> 0 | I17: =(Summary!I48)/1000000 -> 0 | J17: =(Summary!J48)/1000000 -> 0 | K17: =(Summary!K48)/1000000 -> 0 | L17: =(Summary!L48)/1000000 -> 0 | M17: =(Summary!M48)/1000000 -> 0 | N17: =(Summary!N48)/1000000 -> 0 | O17: =(Summary!O48)/1000000 -> 0 | P17: =(Summary!P48)/1000000 -> 0 | Q17: =(Summary!Q48)/1000000 -> 0 | R17: =(Summary!R48)/1000000 -> 0 | S17: =(Summary!S48)/1000000 -> 0 | T17: =(Summary!T48)/1000000 -> 0 | U17: =(Summary!U48)/1000000 -> 0 | V17: =(Summary!V48)/1000000 -> 0 | W17: =(Summary!W48)/1000000 -> 0 | X17: =(Summary!X48)/1000000 -> 0 | Y17: =(Summary!Y48)/1000000 -> 0 | Z17: =(Summary!Z48)/1000000 -> 0 | AA17: =(Summary!AA48)/1000000 -> 0 | AB17: =(Summary!AB48)/1000000 -> 0 | AC17: =(Summary!AC48)/1000000 -> 0 | AD17: =(Summary!AD48)/1000000 -> 0 | AE17: =(Summary!AE48)/1000000 -> 0 | AF17: =(Summary!AF48)/1000000 -> 0 | AG17: =(Summary!AG48)/1000000 -> 0 | AH17: =(Summary!AH48)/1000000 -> 0 | AI17: =(Summary!AI48)/1000000 -> 0 | AJ17: =(Summary!AJ48)/1000000 -> 0 | AK17: =(Summary!AK48)/1000000 -> 0 | AL17: =(Summary!AL48)/1000000 -> 0
A18: Other* | B18: Energy - Mobile Combustion - CH4 - Non-Highway - Other* | C18: =(Summary!C49)/1000000 -> 0 | D18: =(Summary!D49)/1000000 -> 0 | E18: =(Summary!E49)/1000000 -> 0 | F18: =(Summary!F49)/1000000 -> 0 | G18: =(Summary!G49)/1000000 -> 0 | H18: =(Summary!H49)/1000000 -> 0 | I18: =(Summary!I49)/1000000 -> 0 | J18: =(Summary!J49)/1000000 -> 0 | K18: =(Summary!K49)/1000000 -> 0 | L18: =(Summary!L49)/1000000 -> 0 | M18: =(Summary!M49)/1000000 -> 0 | N18: =(Summary!N49)/1000000 -> 0 | O18: =(Summary!O49)/1000000 -> 0 | P18: =(Summary!P49)/1000000 -> 0 | Q18: =(Summary!Q49)/1000000 -> 0 | R18: =(Summary!R49)/1000000 -> 0 | S18: =(Summary!S49)/1000000 -> 0 | T18: =(Summary!T49)/1000000 -> 0 | U18: =(Summary!U49)/1000000 -> 0 | V18: =(Summary!V49)/1000000 -> 0 | W18: =(Summary!W49)/1000000 -> 0 | X18: =(Summary!X49)/1000000 -> 0 | Y18: =(Summary!Y49)/1000000 -> 0 | Z18: =(Summary!Z49)/1000000 -> 0 | AA18: =(Summary!AA49)/1000000 -> 0 | AB18: =(Summary!AB49)/1000000 -> 0 | AC18: =(Summary!AC49)/1000000 -> 0 | AD18: =(Summary!AD49)/1000000 -> 0 | AE18: =(Summary!AE49)/1000000 -> 0 | AF18: =(Summary!AF49)/1000000 -> 0 | AG18: =(Summary!AG49)/1000000 -> 0 | AH18: =(Summary!AH49)/1000000 -> 0 | AI18: =(Summary!AI49)/1000000 -> 0 | AJ18: =(Summary!AJ49)/1000000 -> 0 | AK18: =(Summary!AK49)/1000000 -> 0 | AL18: =(Summary!AL49)/1000000 -> 0
A19: Alternative Fuel Vehicles | B19: ="Energy - Mobile Combustion - CH4 - "&$A$19 -> Energy - Mobile Combustion - CH4 - Alternative Fuel Vehicles | C19: =(Summary!C50)/1000000 -> 0 | D19: =(Summary!D50)/1000000 -> 0 | E19: =(Summary!E50)/1000000 -> 0 | F19: =(Summary!F50)/1000000 -> 0 | G19: =(Summary!G50)/1000000 -> 0 | H19: =(Summary!H50)/1000000 -> 0 | I19: =(Summary!I50)/1000000 -> 0 | J19: =(Summary!J50)/1000000 -> 0 | K19: =(Summary!K50)/1000000 -> 0 | L19: =(Summary!L50)/1000000 -> 0 | M19: =(Summary!M50)/1000000 -> 0 | N19: =(Summary!N50)/1000000 -> 0 | O19: =(Summary!O50)/1000000 -> 0 | P19: =(Summary!P50)/1000000 -> 0 | Q19: =(Summary!Q50)/1000000 -> 0 | R19: =(Summary!R50)/1000000 -> 0 | S19: =(Summary!S50)/1000000 -> 0 | T19: =(Summary!T50)/1000000 -> 0 | U19: =(Summary!U50)/1000000 -> 0 | V19: =(Summary!V50)/1000000 -> 0 | W19: =(Summary!W50)/1000000 -> 0 | X19: =(Summary!X50)/1000000 -> 0 | Y19: =(Summary!Y50)/1000000 -> 0 | Z19: =(Summary!Z50)/1000000 -> 0 | AA19: =(Summary!AA50)/1000000 -> 0 | AB19: =(Summary!AB50)/1000000 -> 0 | AC19: =(Summary!AC50)/1000000 -> 0 | AD19: =(Summary!AD50)/1000000 -> 0 | AE19: =(Summary!AE50)/1000000 -> 0 | AF19: =(Summary!AF50)/1000000 -> 0 | AG19: =(Summary!AG50)/1000000 -> 0 | AH19: =(Summary!AH50)/1000000 -> 0 | AI19: =(Summary!AI50)/1000000 -> 0 | AJ19: =(Summary!AJ50)/1000000 -> 0 | AK19: =(Summary!AK50)/1000000 -> 0 | AL19: =(Summary!AL50)/1000000 -> 0
A20: Light Duty Vehicles | B20: ="Energy - Mobile Combustion - CH4 - "&$A$19&" - "&A20 -> Energy - Mobile Combustion - CH4 - Alternative Fuel Vehicles - Light Duty Vehicles | C20: =(Summary!C51)/1000000 -> 0 | D20: =(Summary!D51)/1000000 -> 0 | E20: =(Summary!E51)/1000000 -> 0 | F20: =(Summary!F51)/1000000 -> 0 | G20: =(Summary!G51)/1000000 -> 0 | H20: =(Summary!H51)/1000000 -> 0 | I20: =(Summary!I51)/1000000 -> 0 | J20: =(Summary!J51)/1000000 -> 0 | K20: =(Summary!K51)/1000000 -> 0 | L20: =(Summary!L51)/1000000 -> 0 | M20: =(Summary!M51)/1000000 -> 0 | N20: =(Summary!N51)/1000000 -> 0 | O20: =(Summary!O51)/1000000 -> 0 | P20: =(Summary!P51)/1000000 -> 0 | Q20: =(Summary!Q51)/1000000 -> 0 | R20: =(Summary!R51)/1000000 -> 0 | S20: =(Summary!S51)/1000000 -> 0 | T20: =(Summary!T51)/1000000 -> 0 | U20: =(Summary!U51)/1000000 -> 0 | V20: =(Summary!V51)/1000000 -> 0 | W20: =(Summary!W51)/1000000 -> 0 | X20: =(Summary!X51)/1000000 -> 0 | Y20: =(Summary!Y51)/1000000 -> 0 | Z20: =(Summary!Z51)/1000000 -> 0 | AA20: =(Summary!AA51)/1000000 -> 0 | AB20: =(Summary!AB51)/1000000 -> 0 | AC20: =(Summary!AC51)/1000000 -> 0 | AD20: =(Summary!AD51)/1000000 -> 0 | AE20: =(Summary!AE51)/1000000 -> 0 | AF20: =(Summary!AF51)/1000000 -> 0 | AG20: =(Summary!AG51)/1000000 -> 0 | AH20: =(Summary!AH51)/1000000 -> 0 | AI20: =(Summary!AI51)/1000000 -> 0 | AJ20: =(Summary!AJ51)/1000000 -> 0 | AK20: =(Summary!AK51)/1000000 -> 0 | AL20: =(Summary!AL51)/1000000 -> 0
A21: Heavy Duty Vehicles | B21: ="Energy - Mobile Combustion - CH4 - "&$A$19&" - "&A21 -> Energy - Mobile Combustion - CH4 - Alternative Fuel Vehicles - Heavy Duty Vehicles | C21: =(Summary!C52)/1000000 -> 0 | D21: =(Summary!D52)/1000000 -> 0 | E21: =(Summary!E52)/1000000 -> 0 | F21: =(Summary!F52)/1000000 -> 0 | G21: =(Summary!G52)/1000000 -> 0 | H21: =(Summary!H52)/1000000 -> 0 | I21: =(Summary!I52)/1000000 -> 0 | J21: =(Summary!J52)/1000000 -> 0 | K21: =(Summary!K52)/1000000 -> 0 | L21: =(Summary!L52)/1000000 -> 0 | M21: =(Summary!M52)/1000000 -> 0 | N21: =(Summary!N52)/1000000 -> 0 | O21: =(Summary!O52)/1000000 -> 0 | P21: =(Summary!P52)/1000000 -> 0 | Q21: =(Summary!Q52)/1000000 -> 0 | R21: =(Summary!R52)/1000000 -> 0 | S21: =(Summary!S52)/1000000 -> 0 | T21: =(Summary!T52)/1000000 -> 0 | U21: =(Summary!U52)/1000000 -> 0 | V21: =(Summary!V52)/1000000 -> 0 | W21: =(Summary!W52)/1000000 -> 0 | X21: =(Summary!X52)/1000000 -> 0 | Y21: =(Summary!Y52)/1000000 -> 0 | Z21: =(Summary!Z52)/1000000 -> 0 | AA21: =(Summary!AA52)/1000000 -> 0 | AB21: =(Summary!AB52)/1000000 -> 0 | AC21: =(Summary!AC52)/1000000 -> 0 | AD21: =(Summary!AD52)/1000000 -> 0 | AE21: =(Summary!AE52)/1000000 -> 0 | AF21: =(Summary!AF52)/1000000 -> 0 | AG21: =(Summary!AG52)/1000000 -> 0 | AH21: =(Summary!AH52)/1000000 -> 0 | AI21: =(Summary!AI52)/1000000 -> 0 | AJ21: =(Summary!AJ52)/1000000 -> 0 | AK21: =(Summary!AK52)/1000000 -> 0 | AL21: =(Summary!AL52)/1000000 -> 0
A22: Buses | B22: ="Energy - Mobile Combustion - CH4 - "&$A$19&" - "&A22 -> Energy - Mobile Combustion - CH4 - Alternative Fuel Vehicles - Buses | C22: =(Summary!C53)/1000000 -> 0 | D22: =(Summary!D53)/1000000 -> 0 | E22: =(Summary!E53)/1000000 -> 0 | F22: =(Summary!F53)/1000000 -> 0 | G22: =(Summary!G53)/1000000 -> 0 | H22: =(Summary!H53)/1000000 -> 0 | I22: =(Summary!I53)/1000000 -> 0 | J22: =(Summary!J53)/1000000 -> 0 | K22: =(Summary!K53)/1000000 -> 0 | L22: =(Summary!L53)/1000000 -> 0 | M22: =(Summary!M53)/1000000 -> 0 | N22: =(Summary!N53)/1000000 -> 0 | O22: =(Summary!O53)/1000000 -> 0 | P22: =(Summary!P53)/1000000 -> 0 | Q22: =(Summary!Q53)/1000000 -> 0 | R22: =(Summary!R53)/1000000 -> 0 | S22: =(Summary!S53)/1000000 -> 0 | T22: =(Summary!T53)/1000000 -> 0 | U22: =(Summary!U53)/1000000 -> 0 | V22: =(Summary!V53)/1000000 -> 0 | W22: =(Summary!W53)/1000000 -> 0 | X22: =(Summary!X53)/1000000 -> 0 | Y22: =(Summary!Y53)/1000000 -> 0 | Z22: =(Summary!Z53)/1000000 -> 0 | AA22: =(Summary!AA53)/1000000 -> 0 | AB22: =(Summary!AB53)/1000000 -> 0 | AC22: =(Summary!AC53)/1000000 -> 0 | AD22: =(Summary!AD53)/1000000 -> 0 | AE22: =(Summary!AE53)/1000000 -> 0 | AF22: =(Summary!AF53)/1000000 -> 0 | AG22: =(Summary!AG53)/1000000 -> 0 | AH22: =(Summary!AH53)/1000000 -> 0 | AI22: =(Summary!AI53)/1000000 -> 0 | AJ22: =(Summary!AJ53)/1000000 -> 0 | AK22: =(Summary!AK53)/1000000 -> 0 | AL22: =(Summary!AL53)/1000000 -> 0
A23: Gasoline Highway | B23: ="Energy - Mobile Combustion - N2O - "&$A$2 -> Energy - Mobile Combustion - N2O - Gasoline Highway | C23: =(Summary!C59)/1000000 -> 0 | D23: =(Summary!D59)/1000000 -> 0 | E23: =(Summary!E59)/1000000 -> 0 | F23: =(Summary!F59)/1000000 -> 0 | G23: =(Summary!G59)/1000000 -> 0 | H23: =(Summary!H59)/1000000 -> 0 | I23: =(Summary!I59)/1000000 -> 0 | J23: =(Summary!J59)/1000000 -> 0 | K23: =(Summary!K59)/1000000 -> 0 | L23: =(Summary!L59)/1000000 -> 0 | M23: =(Summary!M59)/1000000 -> 0 | N23: =(Summary!N59)/1000000 -> 0 | O23: =(Summary!O59)/1000000 -> 0 | P23: =(Summary!P59)/1000000 -> 0 | Q23: =(Summary!Q59)/1000000 -> 0 | R23: =(Summary!R59)/1000000 -> 0 | S23: =(Summary!S59)/1000000 -> 0 | T23: =(Summary!T59)/1000000 -> 0 | U23: =(Summary!U59)/1000000 -> 0 | V23: =(Summary!V59)/1000000 -> 0 | W23: =(Summary!W59)/1000000 -> 0 | X23: =(Summary!X59)/1000000 -> 0 | Y23: =(Summary!Y59)/1000000 -> 0 | Z23: =(Summary!Z59)/1000000 -> 0 | AA23: =(Summary!AA59)/1000000 -> 0 | AB23: =(Summary!AB59)/1000000 -> 0 | AC23: =(Summary!AC59)/1000000 -> 0 | AD23: =(Summary!AD59)/1000000 -> 0 | AE23: =(Summary!AE59)/1000000 -> 0 | AF23: =(Summary!AF59)/1000000 -> 0 | AG23: =(Summary!AG59)/1000000 -> 0 | AH23: =(Summary!AH59)/1000000 -> 0 | AI23: =(Summary!AI59)/1000000 -> 0 | AJ23: =(Summary!AJ59)/1000000 -> 0 | AK23: =(Summary!AK59)/1000000 -> 0 | AL23: =(Summary!AL59)/1000000 -> 0
A24: Passenger Cars | B24: ="Energy - Mobile Combustion - N2O - "&$A$2&" - "&A24 -> Energy - Mobile Combustion - N2O - Gasoline Highway - Passenger Cars | C24: =(Summary!C60)/1000000 -> 0 | D24: =(Summary!D60)/1000000 -> 0 | E24: =(Summary!E60)/1000000 -> 0 | F24: =(Summary!F60)/1000000 -> 0 | G24: =(Summary!G60)/1000000 -> 0 | H24: =(Summary!H60)/1000000 -> 0 | I24: =(Summary!I60)/1000000 -> 0 | J24: =(Summary!J60)/1000000 -> 0 | K24: =(Summary!K60)/1000000 -> 0 | L24: =(Summary!L60)/1000000 -> 0 | M24: =(Summary!M60)/1000000 -> 0 | N24: =(Summary!N60)/1000000 -> 0 | O24: =(Summary!O60)/1000000 -> 0 | P24: =(Summary!P60)/1000000 -> 0 | Q24: =(Summary!Q60)/1000000 -> 0 | R24: =(Summary!R60)/1000000 -> 0 | S24: =(Summary!S60)/1000000 -> 0 | T24: =(Summary!T60)/1000000 -> 0 | U24: =(Summary!U60)/1000000 -> 0 | V24: =(Summary!V60)/1000000 -> 0 | W24: =(Summary!W60)/1000000 -> 0 | X24: =(Summary!X60)/1000000 -> 0 | Y24: =(Summary!Y60)/1000000 -> 0 | Z24: =(Summary!Z60)/1000000 -> 0 | AA24: =(Summary!AA60)/1000000 -> 0 | AB24: =(Summary!AB60)/1000000 -> 0 | AC24: =(Summary!AC60)/1000000 -> 0 | AD24: =(Summary!AD60)/1000000 -> 0 | AE24: =(Summary!AE60)/1000000 -> 0 | AF24: =(Summary!AF60)/1000000 -> 0 | AG24: =(Summary!AG60)/1000000 -> 0 | AH24: =(Summary!AH60)/1000000 -> 0 | AI24: =(Summary!AI60)/1000000 -> 0 | AJ24: =(Summary!AJ60)/1000000 -> 0 | AK24: =(Summary!AK60)/1000000 -> 0 | AL24: =(Summary!AL60)/1000000 -> 0
A25: Light-Duty Trucks | B25: ="Energy - Mobile Combustion - N2O - "&$A$2&" - "&A25 -> Energy - Mobile Combustion - N2O - Gasoline Highway - Light-Duty Trucks | C25: =(Summary!C61)/1000000 -> 0 | D25: =(Summary!D61)/1000000 -> 0 | E25: =(Summary!E61)/1000000 -> 0 | F25: =(Summary!F61)/1000000 -> 0 | G25: =(Summary!G61)/1000000 -> 0 | H25: =(Summary!H61)/1000000 -> 0 | I25: =(Summary!I61)/1000000 -> 0 | J25: =(Summary!J61)/1000000 -> 0 | K25: =(Summary!K61)/1000000 -> 0 | L25: =(Summary!L61)/1000000 -> 0 | M25: =(Summary!M61)/1000000 -> 0 | N25: =(Summary!N61)/1000000 -> 0 | O25: =(Summary!O61)/1000000 -> 0 | P25: =(Summary!P61)/1000000 -> 0 | Q25: =(Summary!Q61)/1000000 -> 0 | R25: =(Summary!R61)/1000000 -> 0 | S25: =(Summary!S61)/1000000 -> 0 | T25: =(Summary!T61)/1000000 -> 0 | U25: =(Summary!U61)/1000000 -> 0 | V25: =(Summary!V61)/1000000 -> 0 | W25: =(Summary!W61)/1000000 -> 0 | X25: =(Summary!X61)/1000000 -> 0 | Y25: =(Summary!Y61)/1000000 -> 0 | Z25: =(Summary!Z61)/1000000 -> 0 | AA25: =(Summary!AA61)/1000000 -> 0 | AB25: =(Summary!AB61)/1000000 -> 0 | AC25: =(Summary!AC61)/1000000 -> 0 | AD25: =(Summary!AD61)/1000000 -> 0 | AE25: =(Summary!AE61)/1000000 -> 0 | AF25: =(Summary!AF61)/1000000 -> 0 | AG25: =(Summary!AG61)/1000000 -> 0 | AH25: =(Summary!AH61)/1000000 -> 0 | AI25: =(Summary!AI61)/1000000 -> 0 | AJ25: =(Summary!AJ61)/1000000 -> 0 | AK25: =(Summary!AK61)/1000000 -> 0 | AL25: =(Summary!AL61)/1000000 -> 0
A26: Heavy-Duty Vehicles | B26: ="Energy - Mobile Combustion - N2O - "&$A$2&" - "&A26 -> Energy - Mobile Combustion - N2O - Gasoline Highway - Heavy-Duty Vehicles | C26: =(Summary!C62)/1000000 -> 0 | D26: =(Summary!D62)/1000000 -> 0 | E26: =(Summary!E62)/1000000 -> 0 | F26: =(Summary!F62)/1000000 -> 0 | G26: =(Summary!G62)/1000000 -> 0 | H26: =(Summary!H62)/1000000 -> 0 | I26: =(Summary!I62)/1000000 -> 0 | J26: =(Summary!J62)/1000000 -> 0 | K26: =(Summary!K62)/1000000 -> 0 | L26: =(Summary!L62)/1000000 -> 0 | M26: =(Summary!M62)/1000000 -> 0 | N26: =(Summary!N62)/1000000 -> 0 | O26: =(Summary!O62)/1000000 -> 0 | P26: =(Summary!P62)/1000000 -> 0 | Q26: =(Summary!Q62)/1000000 -> 0 | R26: =(Summary!R62)/1000000 -> 0 | S26: =(Summary!S62)/1000000 -> 0 | T26: =(Summary!T62)/1000000 -> 0 | U26: =(Summary!U62)/1000000 -> 0 | V26: =(Summary!V62)/1000000 -> 0 | W26: =(Summary!W62)/1000000 -> 0 | X26: =(Summary!X62)/1000000 -> 0 | Y26: =(Summary!Y62)/1000000 -> 0 | Z26: =(Summary!Z62)/1000000 -> 0 | AA26: =(Summary!AA62)/1000000 -> 0 | AB26: =(Summary!AB62)/1000000 -> 0 | AC26: =(Summary!AC62)/1000000 -> 0 | AD26: =(Summary!AD62)/1000000 -> 0 | AE26: =(Summary!AE62)/1000000 -> 0 | AF26: =(Summary!AF62)/1000000 -> 0 | AG26: =(Summary!AG62)/1000000 -> 0 | AH26: =(Summary!AH62)/1000000 -> 0 | AI26: =(Summary!AI62)/1000000 -> 0 | AJ26: =(Summary!AJ62)/1000000 -> 0 | AK26: =(Summary!AK62)/1000000 -> 0 | AL26: =(Summary!AL62)/1000000 -> 0
A27: Motorcycles | B27: ="Energy - Mobile Combustion - N2O - "&$A$2&" - "&A27 -> Energy - Mobile Combustion - N2O - Gasoline Highway - Motorcycles | C27: =(Summary!C63)/1000000 -> 0 | D27: =(Summary!D63)/1000000 -> 0 | E27: =(Summary!E63)/1000000 -> 0 | F27: =(Summary!F63)/1000000 -> 0 | G27: =(Summary!G63)/1000000 -> 0 | H27: =(Summary!H63)/1000000 -> 0 | I27: =(Summary!I63)/1000000 -> 0 | J27: =(Summary!J63)/1000000 -> 0 | K27: =(Summary!K63)/1000000 -> 0 | L27: =(Summary!L63)/1000000 -> 0 | M27: =(Summary!M63)/1000000 -> 0 | N27: =(Summary!N63)/1000000 -> 0 | O27: =(Summary!O63)/1000000 -> 0 | P27: =(Summary!P63)/1000000 -> 0 | Q27: =(Summary!Q63)/1000000 -> 0 | R27: =(Summary!R63)/1000000 -> 0 | S27: =(Summary!S63)/1000000 -> 0 | T27: =(Summary!T63)/1000000 -> 0 | U27: =(Summary!U63)/1000000 -> 0 | V27: =(Summary!V63)/1000000 -> 0 | W27: =(Summary!W63)/1000000 -> 0 | X27: =(Summary!X63)/1000000 -> 0 | Y27: =(Summary!Y63)/1000000 -> 0 | Z27: =(Summary!Z63)/1000000 -> 0 | AA27: =(Summary!AA63)/1000000 -> 0 | AB27: =(Summary!AB63)/1000000 -> 0 | AC27: =(Summary!AC63)/1000000 -> 0 | AD27: =(Summary!AD63)/1000000 -> 0 | AE27: =(Summary!AE63)/1000000 -> 0 | AF27: =(Summary!AF63)/1000000 -> 0 | AG27: =(Summary!AG63)/1000000 -> 0 | AH27: =(Summary!AH63)/1000000 -> 0 | AI27: =(Summary!AI63)/1000000 -> 0 | AJ27: =(Summary!AJ63)/1000000 -> 0 | AK27: =(Summary!AK63)/1000000 -> 0 | AL27: =(Summary!AL63)/1000000 -> 0
A28: Diesel Highway | B28: ="Energy - Mobile Combustion - N2O - "&$A$7 -> Energy - Mobile Combustion - N2O - Diesel Highway | C28: =(Summary!C64)/1000000 -> 0 | D28: =(Summary!D64)/1000000 -> 0 | E28: =(Summary!E64)/1000000 -> 0 | F28: =(Summary!F64)/1000000 -> 0 | G28: =(Summary!G64)/1000000 -> 0 | H28: =(Summary!H64)/1000000 -> 0 | I28: =(Summary!I64)/1000000 -> 0 | J28: =(Summary!J64)/1000000 -> 0 | K28: =(Summary!K64)/1000000 -> 0 | L28: =(Summary!L64)/1000000 -> 0 | M28: =(Summary!M64)/1000000 -> 0 | N28: =(Summary!N64)/1000000 -> 0 | O28: =(Summary!O64)/1000000 -> 0 | P28: =(Summary!P64)/1000000 -> 0 | Q28: =(Summary!Q64)/1000000 -> 0 | R28: =(Summary!R64)/1000000 -> 0 | S28: =(Summary!S64)/1000000 -> 0 | T28: =(Summary!T64)/1000000 -> 0 | U28: =(Summary!U64)/1000000 -> 0 | V28: =(Summary!V64)/1000000 -> 0 | W28: =(Summary!W64)/1000000 -> 0 | X28: =(Summary!X64)/1000000 -> 0 | Y28: =(Summary!Y64)/1000000 -> 0 | Z28: =(Summary!Z64)/1000000 -> 0 | AA28: =(Summary!AA64)/1000000 -> 0 | AB28: =(Summary!AB64)/1000000 -> 0 | AC28: =(Summary!AC64)/1000000 -> 0 | AD28: =(Summary!AD64)/1000000 -> 0 | AE28: =(Summary!AE64)/1000000 -> 0 | AF28: =(Summary!AF64)/1000000 -> 0 | AG28: =(Summary!AG64)/1000000 -> 0 | AH28: =(Summary!AH64)/1000000 -> 0 | AI28: =(Summary!AI64)/1000000 -> 0 | AJ28: =(Summary!AJ64)/1000000 -> 0 | AK28: =(Summary!AK64)/1000000 -> 0 | AL28: =(Summary!AL64)/1000000 -> 0
A29: Passenger Cars | B29: ="Energy - Mobile Combustion - N2O - "&$A$7&" - "&A29 -> Energy - Mobile Combustion - N2O - Diesel Highway - Passenger Cars | C29: =(Summary!C65)/1000000 -> 0 | D29: =(Summary!D65)/1000000 -> 0 | E29: =(Summary!E65)/1000000 -> 0 | F29: =(Summary!F65)/1000000 -> 0 | G29: =(Summary!G65)/1000000 -> 0 | H29: =(Summary!H65)/1000000 -> 0 | I29: =(Summary!I65)/1000000 -> 0 | J29: =(Summary!J65)/1000000 -> 0 | K29: =(Summary!K65)/1000000 -> 0 | L29: =(Summary!L65)/1000000 -> 0 | M29: =(Summary!M65)/1000000 -> 0 | N29: =(Summary!N65)/1000000 -> 0 | O29: =(Summary!O65)/1000000 -> 0 | P29: =(Summary!P65)/1000000 -> 0 | Q29: =(Summary!Q65)/1000000 -> 0 | R29: =(Summary!R65)/1000000 -> 0 | S29: =(Summary!S65)/1000000 -> 0 | T29: =(Summary!T65)/1000000 -> 0 | U29: =(Summary!U65)/1000000 -> 0 | V29: =(Summary!V65)/1000000 -> 0 | W29: =(Summary!W65)/1000000 -> 0 | X29: =(Summary!X65)/1000000 -> 0 | Y29: =(Summary!Y65)/1000000 -> 0 | Z29: =(Summary!Z65)/1000000 -> 0 | AA29: =(Summary!AA65)/1000000 -> 0 | AB29: =(Summary!AB65)/1000000 -> 0 | AC29: =(Summary!AC65)/1000000 -> 0 | AD29: =(Summary!AD65)/1000000 -> 0 | AE29: =(Summary!AE65)/1000000 -> 0 | AF29: =(Summary!AF65)/1000000 -> 0 | AG29: =(Summary!AG65)/1000000 -> 0 | AH29: =(Summary!AH65)/1000000 -> 0 | AI29: =(Summary!AI65)/1000000 -> 0 | AJ29: =(Summary!AJ65)/1000000 -> 0 | AK29: =(Summary!AK65)/1000000 -> 0 | AL29: =(Summary!AL65)/1000000 -> 0
A30: Light-Duty Trucks | B30: ="Energy - Mobile Combustion - N2O - "&$A$7&" - "&A30 -> Energy - Mobile Combustion - N2O - Diesel Highway - Light-Duty Trucks | C30: =(Summary!C66)/1000000 -> 0 | D30: =(Summary!D66)/1000000 -> 0 | E30: =(Summary!E66)/1000000 -> 0 | F30: =(Summary!F66)/1000000 -> 0 | G30: =(Summary!G66)/1000000 -> 0 | H30: =(Summary!H66)/1000000 -> 0 | I30: =(Summary!I66)/1000000 -> 0 | J30: =(Summary!J66)/1000000 -> 0 | K30: =(Summary!K66)/1000000 -> 0 | L30: =(Summary!L66)/1000000 -> 0 | M30: =(Summary!M66)/1000000 -> 0 | N30: =(Summary!N66)/1000000 -> 0 | O30: =(Summary!O66)/1000000 -> 0 | P30: =(Summary!P66)/1000000 -> 0 | Q30: =(Summary!Q66)/1000000 -> 0 | R30: =(Summary!R66)/1000000 -> 0 | S30: =(Summary!S66)/1000000 -> 0 | T30: =(Summary!T66)/1000000 -> 0 | U30: =(Summary!U66)/1000000 -> 0 | V30: =(Summary!V66)/1000000 -> 0 | W30: =(Summary!W66)/1000000 -> 0 | X30: =(Summary!X66)/1000000 -> 0 | Y30: =(Summary!Y66)/1000000 -> 0 | Z30: =(Summary!Z66)/1000000 -> 0 | AA30: =(Summary!AA66)/1000000 -> 0 | AB30: =(Summary!AB66)/1000000 -> 0 | AC30: =(Summary!AC66)/1000000 -> 0 | AD30: =(Summary!AD66)/1000000 -> 0 | AE30: =(Summary!AE66)/1000000 -> 0 | AF30: =(Summary!AF66)/1000000 -> 0 | AG30: =(Summary!AG66)/1000000 -> 0 | AH30: =(Summary!AH66)/1000000 -> 0 | AI30: =(Summary!AI66)/1000000 -> 0 | AJ30: =(Summary!AJ66)/1000000 -> 0 | AK30: =(Summary!AK66)/1000000 -> 0 | AL30: =(Summary!AL66)/1000000 -> 0
A31: Heavy-Duty Vehicles | B31: ="Energy - Mobile Combustion - N2O - "&$A$7&" - "&A31 -> Energy - Mobile Combustion - N2O - Diesel Highway - Heavy-Duty Vehicles | C31: =(Summary!C67)/1000000 -> 0 | D31: =(Summary!D67)/1000000 -> 0 | E31: =(Summary!E67)/1000000 -> 0 | F31: =(Summary!F67)/1000000 -> 0 | G31: =(Summary!G67)/1000000 -> 0 | H31: =(Summary!H67)/1000000 -> 0 | I31: =(Summary!I67)/1000000 -> 0 | J31: =(Summary!J67)/1000000 -> 0 | K31: =(Summary!K67)/1000000 -> 0 | L31: =(Summary!L67)/1000000 -> 0 | M31: =(Summary!M67)/1000000 -> 0 | N31: =(Summary!N67)/1000000 -> 0 | O31: =(Summary!O67)/1000000 -> 0 | P31: =(Summary!P67)/1000000 -> 0 | Q31: =(Summary!Q67)/1000000 -> 0 | R31: =(Summary!R67)/1000000 -> 0 | S31: =(Summary!S67)/1000000 -> 0 | T31: =(Summary!T67)/1000000 -> 0 | U31: =(Summary!U67)/1000000 -> 0 | V31: =(Summary!V67)/1000000 -> 0 | W31: =(Summary!W67)/1000000 -> 0 | X31: =(Summary!X67)/1000000 -> 0 | Y31: =(Summary!Y67)/1000000 -> 0 | Z31: =(Summary!Z67)/1000000 -> 0 | AA31: =(Summary!AA67)/1000000 -> 0 | AB31: =(Summary!AB67)/1000000 -> 0 | AC31: =(Summary!AC67)/1000000 -> 0 | AD31: =(Summary!AD67)/1000000 -> 0 | AE31: =(Summary!AE67)/1000000 -> 0 | AF31: =(Summary!AF67)/1000000 -> 0 | AG31: =(Summary!AG67)/1000000 -> 0 | AH31: =(Summary!AH67)/1000000 -> 0 | AI31: =(Summary!AI67)/1000000 -> 0 | AJ31: =(Summary!AJ67)/1000000 -> 0 | AK31: =(Summary!AK67)/1000000 -> 0 | AL31: =(Summary!AL67)/1000000 -> 0
A32: Heavy-Duty Buses | B32: ="Energy - Mobile Combustion - N2O - "&$A$7&" - "&A32 -> Energy - Mobile Combustion - N2O - Diesel Highway - Heavy-Duty Buses | C32: =(Summary!C68)/1000000 -> 0 | D32: =(Summary!D68)/1000000 -> 0 | E32: =(Summary!E68)/1000000 -> 0 | F32: =(Summary!F68)/1000000 -> 0 | G32: =(Summary!G68)/1000000 -> 0 | H32: =(Summary!H68)/1000000 -> 0 | I32: =(Summary!I68)/1000000 -> 0 | J32: =(Summary!J68)/1000000 -> 0 | K32: =(Summary!K68)/1000000 -> 0 | L32: =(Summary!L68)/1000000 -> 0 | M32: =(Summary!M68)/1000000 -> 0 | N32: =(Summary!N68)/1000000 -> 0 | O32: =(Summary!O68)/1000000 -> 0 | P32: =(Summary!P68)/1000000 -> 0 | Q32: =(Summary!Q68)/1000000 -> 0 | R32: =(Summary!R68)/1000000 -> 0 | S32: =(Summary!S68)/1000000 -> 0 | T32: =(Summary!T68)/1000000 -> 0 | U32: =(Summary!U68)/1000000 -> 0 | V32: =(Summary!V68)/1000000 -> 0 | W32: =(Summary!W68)/1000000 -> 0 | X32: =(Summary!X68)/1000000 -> 0 | Y32: =(Summary!Y68)/1000000 -> 0 | Z32: =(Summary!Z68)/1000000 -> 0 | AA32: =(Summary!AA68)/1000000 -> 0 | AB32: =(Summary!AB68)/1000000 -> 0 | AC32: =(Summary!AC68)/1000000 -> 0 | AD32: =(Summary!AD68)/1000000 -> 0 | AE32: =(Summary!AE68)/1000000 -> 0 | AF32: =(Summary!AF68)/1000000 -> 0 | AG32: =(Summary!AG68)/1000000 -> 0 | AH32: =(Summary!AH68)/1000000 -> 0 | AI32: =(Summary!AI68)/1000000 -> 0 | AJ32: =(Summary!AJ68)/1000000 -> 0 | AK32: =(Summary!AK68)/1000000 -> 0 | AL32: =(Summary!AL68)/1000000 -> 0
A33: Non-Highway | B33: ="Energy - Mobile Combustion - N2O - "&$A$12 -> Energy - Mobile Combustion - N2O - Non-Highway | C33: =(Summary!C69)/1000000 -> 0 | D33: =(Summary!D69)/1000000 -> 0 | E33: =(Summary!E69)/1000000 -> 0 | F33: =(Summary!F69)/1000000 -> 0 | G33: =(Summary!G69)/1000000 -> 0 | H33: =(Summary!H69)/1000000 -> 0 | I33: =(Summary!I69)/1000000 -> 0 | J33: =(Summary!J69)/1000000 -> 0 | K33: =(Summary!K69)/1000000 -> 0 | L33: =(Summary!L69)/1000000 -> 0 | M33: =(Summary!M69)/1000000 -> 0 | N33: =(Summary!N69)/1000000 -> 0 | O33: =(Summary!O69)/1000000 -> 0 | P33: =(Summary!P69)/1000000 -> 0 | Q33: =(Summary!Q69)/1000000 -> 0 | R33: =(Summary!R69)/1000000 -> 0 | S33: =(Summary!S69)/1000000 -> 0 | T33: =(Summary!T69)/1000000 -> 0 | U33: =(Summary!U69)/1000000 -> 0 | V33: =(Summary!V69)/1000000 -> 0 | W33: =(Summary!W69)/1000000 -> 0 | X33: =(Summary!X69)/1000000 -> 0 | Y33: =(Summary!Y69)/1000000 -> 0 | Z33: =(Summary!Z69)/1000000 -> 0 | AA33: =(Summary!AA69)/1000000 -> 0 | AB33: =(Summary!AB69)/1000000 -> 0 | AC33: =(Summary!AC69)/1000000 -> 0 | AD33: =(Summary!AD69)/1000000 -> 0 | AE33: =(Summary!AE69)/1000000 -> 0 | AF33: =(Summary!AF69)/1000000 -> 0 | AG33: =(Summary!AG69)/1000000 -> 0 | AH33: =(Summary!AH69)/1000000 -> 0 | AI33: =(Summary!AI69)/1000000 -> 0 | AJ33: =(Summary!AJ69)/1000000 -> 0 | AK33: =(Summary!AK69)/1000000 -> 0 | AL33: =(Summary!AL69)/1000000 -> 0
A34: Boats | B34: ="Energy - Mobile Combustion - N2O - "&$A$12&" - "&A34 -> Energy - Mobile Combustion - N2O - Non-Highway - Boats | C34: =(Summary!C70)/1000000 -> 0 | D34: =(Summary!D70)/1000000 -> 0 | E34: =(Summary!E70)/1000000 -> 0 | F34: =(Summary!F70)/1000000 -> 0 | G34: =(Summary!G70)/1000000 -> 0 | H34: =(Summary!H70)/1000000 -> 0 | I34: =(Summary!I70)/1000000 -> 0 | J34: =(Summary!J70)/1000000 -> 0 | K34: =(Summary!K70)/1000000 -> 0 | L34: =(Summary!L70)/1000000 -> 0 | M34: =(Summary!M70)/1000000 -> 0 | N34: =(Summary!N70)/1000000 -> 0 | O34: =(Summary!O70)/1000000 -> 0 | P34: =(Summary!P70)/1000000 -> 0 | Q34: =(Summary!Q70)/1000000 -> 0 | R34: =(Summary!R70)/1000000 -> 0 | S34: =(Summary!S70)/1000000 -> 0 | T34: =(Summary!T70)/1000000 -> 0 | U34: =(Summary!U70)/1000000 -> 0 | V34: =(Summary!V70)/1000000 -> 0 | W34: =(Summary!W70)/1000000 -> 0 | X34: =(Summary!X70)/1000000 -> 0 | Y34: =(Summary!Y70)/1000000 -> 0 | Z34: =(Summary!Z70)/1000000 -> 0 | AA34: =(Summary!AA70)/1000000 -> 0 | AB34: =(Summary!AB70)/1000000 -> 0 | AC34: =(Summary!AC70)/1000000 -> 0 | AD34: =(Summary!AD70)/1000000 -> 0 | AE34: =(Summary!AE70)/1000000 -> 0 | AF34: =(Summary!AF70)/1000000 -> 0 | AG34: =(Summary!AG70)/1000000 -> 0 | AH34: =(Summary!AH70)/1000000 -> 0 | AI34: =(Summary!AI70)/1000000 -> 0 | AJ34: =(Summary!AJ70)/1000000 -> 0 | AK34: =(Summary!AK70)/1000000 -> 0 | AL34: =(Summary!AL70)/1000000 -> 0
A35: Locomotives | B35: Energy - Mobile Combustion - N2O - Non-Highway - Locomotives | C35: =(Summary!C71)/1000000 -> 0 | D35: =(Summary!D71)/1000000 -> 0 | E35: =(Summary!E71)/1000000 -> 0 | F35: =(Summary!F71)/1000000 -> 0 | G35: =(Summary!G71)/1000000 -> 0 | H35: =(Summary!H71)/1000000 -> 0 | I35: =(Summary!I71)/1000000 -> 0 | J35: =(Summary!J71)/1000000 -> 0 | K35: =(Summary!K71)/1000000 -> 0 | L35: =(Summary!L71)/1000000 -> 0 | M35: =(Summary!M71)/1000000 -> 0 | N35: =(Summary!N71)/1000000 -> 0 | O35: =(Summary!O71)/1000000 -> 0 | P35: =(Summary!P71)/1000000 -> 0 | Q35: =(Summary!Q71)/1000000 -> 0 | R35: =(Summary!R71)/1000000 -> 0 | S35: =(Summary!S71)/1000000 -> 0 | T35: =(Summary!T71)/1000000 -> 0 | U35: =(Summary!U71)/1000000 -> 0 | V35: =(Summary!V71)/1000000 -> 0 | W35: =(Summary!W71)/1000000 -> 0 | X35: =(Summary!X71)/1000000 -> 0 | Y35: =(Summary!Y71)/1000000 -> 0 | Z35: =(Summary!Z71)/1000000 -> 0 | AA35: =(Summary!AA71)/1000000 -> 0 | AB35: =(Summary!AB71)/1000000 -> 0 | AC35: =(Summary!AC71)/1000000 -> 0 | AD35: =(Summary!AD71)/1000000 -> 0 | AE35: =(Summary!AE71)/1000000 -> 0 | AF35: =(Summary!AF71)/1000000 -> 0 | AG35: =(Summary!AG71)/1000000 -> 0 | AH35: =(Summary!AH71)/1000000 -> 0 | AI35: =(Summary!AI71)/1000000 -> 0 | AJ35: =(Summary!AJ71)/1000000 -> 0 | AK35: =(Summary!AK71)/1000000 -> 0 | AL35: =(Summary!AL71)/1000000 -> 0
A36: Farm Equipment | B36: Energy - Mobile Combustion - N2O - Non-Highway - Farm Equipment | C36: =(Summary!C72)/1000000 -> 0 | D36: =(Summary!D72)/1000000 -> 0 | E36: =(Summary!E72)/1000000 -> 0 | F36: =(Summary!F72)/1000000 -> 0 | G36: =(Summary!G72)/1000000 -> 0 | H36: =(Summary!H72)/1000000 -> 0 | I36: =(Summary!I72)/1000000 -> 0 | J36: =(Summary!J72)/1000000 -> 0 | K36: =(Summary!K72)/1000000 -> 0 | L36: =(Summary!L72)/1000000 -> 0 | M36: =(Summary!M72)/1000000 -> 0 | N36: =(Summary!N72)/1000000 -> 0 | O36: =(Summary!O72)/1000000 -> 0 | P36: =(Summary!P72)/1000000 -> 0 | Q36: =(Summary!Q72)/1000000 -> 0 | R36: =(Summary!R72)/1000000 -> 0 | S36: =(Summary!S72)/1000000 -> 0 | T36: =(Summary!T72)/1000000 -> 0 | U36: =(Summary!U72)/1000000 -> 0 | V36: =(Summary!V72)/1000000 -> 0 | W36: =(Summary!W72)/1000000 -> 0 | X36: =(Summary!X72)/1000000 -> 0 | Y36: =(Summary!Y72)/1000000 -> 0 | Z36: =(Summary!Z72)/1000000 -> 0 | AA36: =(Summary!AA72)/1000000 -> 0 | AB36: =(Summary!AB72)/1000000 -> 0 | AC36: =(Summary!AC72)/1000000 -> 0 | AD36: =(Summary!AD72)/1000000 -> 0 | AE36: =(Summary!AE72)/1000000 -> 0 | AF36: =(Summary!AF72)/1000000 -> 0 | AG36: =(Summary!AG72)/1000000 -> 0 | AH36: =(Summary!AH72)/1000000 -> 0 | AI36: =(Summary!AI72)/1000000 -> 0 | AJ36: =(Summary!AJ72)/1000000 -> 0 | AK36: =(Summary!AK72)/1000000 -> 0 | AL36: =(Summary!AL72)/1000000 -> 0
A37: Construction Equipment | B37: Energy - Mobile Combustion - N2O - Non-Highway - Construction Equipment | C37: =(Summary!C73)/1000000 -> 0 | D37: =(Summary!D73)/1000000 -> 0 | E37: =(Summary!E73)/1000000 -> 0 | F37: =(Summary!F73)/1000000 -> 0 | G37: =(Summary!G73)/1000000 -> 0 | H37: =(Summary!H73)/1000000 -> 0 | I37: =(Summary!I73)/1000000 -> 0 | J37: =(Summary!J73)/1000000 -> 0 | K37: =(Summary!K73)/1000000 -> 0 | L37: =(Summary!L73)/1000000 -> 0 | M37: =(Summary!M73)/1000000 -> 0 | N37: =(Summary!N73)/1000000 -> 0 | O37: =(Summary!O73)/1000000 -> 0 | P37: =(Summary!P73)/1000000 -> 0 | Q37: =(Summary!Q73)/1000000 -> 0 | R37: =(Summary!R73)/1000000 -> 0 | S37: =(Summary!S73)/1000000 -> 0 | T37: =(Summary!T73)/1000000 -> 0 | U37: =(Summary!U73)/1000000 -> 0 | V37: =(Summary!V73)/1000000 -> 0 | W37: =(Summary!W73)/1000000 -> 0 | X37: =(Summary!X73)/1000000 -> 0 | Y37: =(Summary!Y73)/1000000 -> 0 | Z37: =(Summary!Z73)/1000000 -> 0 | AA37: =(Summary!AA73)/1000000 -> 0 | AB37: =(Summary!AB73)/1000000 -> 0 | AC37: =(Summary!AC73)/1000000 -> 0 | AD37: =(Summary!AD73)/1000000 -> 0 | AE37: =(Summary!AE73)/1000000 -> 0 | AF37: =(Summary!AF73)/1000000 -> 0 | AG37: =(Summary!AG73)/1000000 -> 0 | AH37: =(Summary!AH73)/1000000 -> 0 | AI37: =(Summary!AI73)/1000000 -> 0 | AJ37: =(Summary!AJ73)/1000000 -> 0 | AK37: =(Summary!AK73)/1000000 -> 0 | AL37: =(Summary!AL73)/1000000 -> 0
A38: Aircraft | B38: Energy - Mobile Combustion - N2O - Non-Highway - Aircraft | C38: =(Summary!C74)/1000000 -> 0 | D38: =(Summary!D74)/1000000 -> 0 | E38: =(Summary!E74)/1000000 -> 0 | F38: =(Summary!F74)/1000000 -> 0 | G38: =(Summary!G74)/1000000 -> 0 | H38: =(Summary!H74)/1000000 -> 0 | I38: =(Summary!I74)/1000000 -> 0 | J38: =(Summary!J74)/1000000 -> 0 | K38: =(Summary!K74)/1000000 -> 0 | L38: =(Summary!L74)/1000000 -> 0 | M38: =(Summary!M74)/1000000 -> 0 | N38: =(Summary!N74)/1000000 -> 0 | O38: =(Summary!O74)/1000000 -> 0 | P38: =(Summary!P74)/1000000 -> 0 | Q38: =(Summary!Q74)/1000000 -> 0 | R38: =(Summary!R74)/1000000 -> 0 | S38: =(Summary!S74)/1000000 -> 0 | T38: =(Summary!T74)/1000000 -> 0 | U38: =(Summary!U74)/1000000 -> 0 | V38: =(Summary!V74)/1000000 -> 0 | W38: =(Summary!W74)/1000000 -> 0 | X38: =(Summary!X74)/1000000 -> 0 | Y38: =(Summary!Y74)/1000000 -> 0 | Z38: =(Summary!Z74)/1000000 -> 0 | AA38: =(Summary!AA74)/1000000 -> 0 | AB38: =(Summary!AB74)/1000000 -> 0 | AC38: =(Summary!AC74)/1000000 -> 0 | AD38: =(Summary!AD74)/1000000 -> 0 | AE38: =(Summary!AE74)/1000000 -> 0 | AF38: =(Summary!AF74)/1000000 -> 0 | AG38: =(Summary!AG74)/1000000 -> 0 | AH38: =(Summary!AH74)/1000000 -> 0 | AI38: =(Summary!AI74)/1000000 -> 0 | AJ38: =(Summary!AJ74)/1000000 -> 0 | AK38: =(Summary!AK74)/1000000 -> 0 | AL38: =(Summary!AL74)/1000000 -> 0
A39: Other* | B39: Energy - Mobile Combustion - N2O - Non-Highway - Other* | C39: =(Summary!C75)/1000000 -> 0 | D39: =(Summary!D75)/1000000 -> 0 | E39: =(Summary!E75)/1000000 -> 0 | F39: =(Summary!F75)/1000000 -> 0 | G39: =(Summary!G75)/1000000 -> 0 | H39: =(Summary!H75)/1000000 -> 0 | I39: =(Summary!I75)/1000000 -> 0 | J39: =(Summary!J75)/1000000 -> 0 | K39: =(Summary!K75)/1000000 -> 0 | L39: =(Summary!L75)/1000000 -> 0 | M39: =(Summary!M75)/1000000 -> 0 | N39: =(Summary!N75)/1000000 -> 0 | O39: =(Summary!O75)/1000000 -> 0 | P39: =(Summary!P75)/1000000 -> 0 | Q39: =(Summary!Q75)/1000000 -> 0 | R39: =(Summary!R75)/1000000 -> 0 | S39: =(Summary!S75)/1000000 -> 0 | T39: =(Summary!T75)/1000000 -> 0 | U39: =(Summary!U75)/1000000 -> 0 | V39: =(Summary!V75)/1000000 -> 0 | W39: =(Summary!W75)/1000000 -> 0 | X39: =(Summary!X75)/1000000 -> 0 | Y39: =(Summary!Y75)/1000000 -> 0 | Z39: =(Summary!Z75)/1000000 -> 0 | AA39: =(Summary!AA75)/1000000 -> 0 | AB39: =(Summary!AB75)/1000000 -> 0 | AC39: =(Summary!AC75)/1000000 -> 0 | AD39: =(Summary!AD75)/1000000 -> 0 | AE39: =(Summary!AE75)/1000000 -> 0 | AF39: =(Summary!AF75)/1000000 -> 0 | AG39: =(Summary!AG75)/1000000 -> 0 | AH39: =(Summary!AH75)/1000000 -> 0 | AI39: =(Summary!AI75)/1000000 -> 0 | AJ39: =(Summary!AJ75)/1000000 -> 0 | AK39: =(Summary!AK75)/1000000 -> 0 | AL39: =(Summary!AL75)/1000000 -> 0
A40: Alternative Fuel Vehicles | B40: ="Energy - Mobile Combustion - N2O - "&$A$19 -> Energy - Mobile Combustion - N2O - Alternative Fuel Vehicles | C40: =(Summary!C76)/1000000 -> 0 | D40: =(Summary!D76)/1000000 -> 0 | E40: =(Summary!E76)/1000000 -> 0 | F40: =(Summary!F76)/1000000 -> 0 | G40: =(Summary!G76)/1000000 -> 0 | H40: =(Summary!H76)/1000000 -> 0 | I40: =(Summary!I76)/1000000 -> 0 | J40: =(Summary!J76)/1000000 -> 0 | K40: =(Summary!K76)/1000000 -> 0 | L40: =(Summary!L76)/1000000 -> 0 | M40: =(Summary!M76)/1000000 -> 0 | N40: =(Summary!N76)/1000000 -> 0 | O40: =(Summary!O76)/1000000 -> 0 | P40: =(Summary!P76)/1000000 -> 0 | Q40: =(Summary!Q76)/1000000 -> 0 | R40: =(Summary!R76)/1000000 -> 0 | S40: =(Summary!S76)/1000000 -> 0 | T40: =(Summary!T76)/1000000 -> 0 | U40: =(Summary!U76)/1000000 -> 0 | V40: =(Summary!V76)/1000000 -> 0 | W40: =(Summary!W76)/1000000 -> 0 | X40: =(Summary!X76)/1000000 -> 0 | Y40: =(Summary!Y76)/1000000 -> 0 | Z40: =(Summary!Z76)/1000000 -> 0 | AA40: =(Summary!AA76)/1000000 -> 0 | AB40: =(Summary!AB76)/1000000 -> 0 | AC40: =(Summary!AC76)/1000000 -> 0 | AD40: =(Summary!AD76)/1000000 -> 0 | AE40: =(Summary!AE76)/1000000 -> 0 | AF40: =(Summary!AF76)/1000000 -> 0 | AG40: =(Summary!AG76)/1000000 -> 0 | AH40: =(Summary!AH76)/1000000 -> 0 | AI40: =(Summary!AI76)/1000000 -> 0 | AJ40: =(Summary!AJ76)/1000000 -> 0 | AK40: =(Summary!AK76)/1000000 -> 0 | AL40: =(Summary!AL76)/1000000 -> 0
A41: Light Duty Vehicles | B41: ="Energy - Mobile Combustion - N2O - "&$A$19&" - "&A41 -> Energy - Mobile Combustion - N2O - Alternative Fuel Vehicles - Light Duty Vehicles | C41: =(Summary!C77)/1000000 -> 0 | D41: =(Summary!D77)/1000000 -> 0 | E41: =(Summary!E77)/1000000 -> 0 | F41: =(Summary!F77)/1000000 -> 0 | G41: =(Summary!G77)/1000000 -> 0 | H41: =(Summary!H77)/1000000 -> 0 | I41: =(Summary!I77)/1000000 -> 0 | J41: =(Summary!J77)/1000000 -> 0 | K41: =(Summary!K77)/1000000 -> 0 | L41: =(Summary!L77)/1000000 -> 0 | M41: =(Summary!M77)/1000000 -> 0 | N41: =(Summary!N77)/1000000 -> 0 | O41: =(Summary!O77)/1000000 -> 0 | P41: =(Summary!P77)/1000000 -> 0 | Q41: =(Summary!Q77)/1000000 -> 0 | R41: =(Summary!R77)/1000000 -> 0 | S41: =(Summary!S77)/1000000 -> 0 | T41: =(Summary!T77)/1000000 -> 0 | U41: =(Summary!U77)/1000000 -> 0 | V41: =(Summary!V77)/1000000 -> 0 | W41: =(Summary!W77)/1000000 -> 0 | X41: =(Summary!X77)/1000000 -> 0 | Y41: =(Summary!Y77)/1000000 -> 0 | Z41: =(Summary!Z77)/1000000 -> 0 | AA41: =(Summary!AA77)/1000000 -> 0 | AB41: =(Summary!AB77)/1000000 -> 0 | AC41: =(Summary!AC77)/1000000 -> 0 | AD41: =(Summary!AD77)/1000000 -> 0 | AE41: =(Summary!AE77)/1000000 -> 0 | AF41: =(Summary!AF77)/1000000 -> 0 | AG41: =(Summary!AG77)/1000000 -> 0 | AH41: =(Summary!AH77)/1000000 -> 0 | AI41: =(Summary!AI77)/1000000 -> 0 | AJ41: =(Summary!AJ77)/1000000 -> 0 | AK41: =(Summary!AK77)/1000000 -> 0 | AL41: =(Summary!AL77)/1000000 -> 0
A42: Heavy Duty Vehicles | B42: ="Energy - Mobile Combustion - N2O - "&$A$19&" - "&A42 -> Energy - Mobile Combustion - N2O - Alternative Fuel Vehicles - Heavy Duty Vehicles | C42: =(Summary!C78)/1000000 -> 0 | D42: =(Summary!D78)/1000000 -> 0 | E42: =(Summary!E78)/1000000 -> 0 | F42: =(Summary!F78)/1000000 -> 0 | G42: =(Summary!G78)/1000000 -> 0 | H42: =(Summary!H78)/1000000 -> 0 | I42: =(Summary!I78)/1000000 -> 0 | J42: =(Summary!J78)/1000000 -> 0 | K42: =(Summary!K78)/1000000 -> 0 | L42: =(Summary!L78)/1000000 -> 0 | M42: =(Summary!M78)/1000000 -> 0 | N42: =(Summary!N78)/1000000 -> 0 | O42: =(Summary!O78)/1000000 -> 0 | P42: =(Summary!P78)/1000000 -> 0 | Q42: =(Summary!Q78)/1000000 -> 0 | R42: =(Summary!R78)/1000000 -> 0 | S42: =(Summary!S78)/1000000 -> 0 | T42: =(Summary!T78)/1000000 -> 0 | U42: =(Summary!U78)/1000000 -> 0 | V42: =(Summary!V78)/1000000 -> 0 | W42: =(Summary!W78)/1000000 -> 0 | X42: =(Summary!X78)/1000000 -> 0 | Y42: =(Summary!Y78)/1000000 -> 0 | Z42: =(Summary!Z78)/1000000 -> 0 | AA42: =(Summary!AA78)/1000000 -> 0 | AB42: =(Summary!AB78)/1000000 -> 0 | AC42: =(Summary!AC78)/1000000 -> 0 | AD42: =(Summary!AD78)/1000000 -> 0 | AE42: =(Summary!AE78)/1000000 -> 0 | AF42: =(Summary!AF78)/1000000 -> 0 | AG42: =(Summary!AG78)/1000000 -> 0 | AH42: =(Summary!AH78)/1000000 -> 0 | AI42: =(Summary!AI78)/1000000 -> 0 | AJ42: =(Summary!AJ78)/1000000 -> 0 | AK42: =(Summary!AK78)/1000000 -> 0 | AL42: =(Summary!AL78)/1000000 -> 0
A43: Buses | B43: ="Energy - Mobile Combustion - N2O - "&$A$19&" - "&A43 -> Energy - Mobile Combustion - N2O - Alternative Fuel Vehicles - Buses | C43: =(Summary!C79)/1000000 -> 0 | D43: =(Summary!D79)/1000000 -> 0 | E43: =(Summary!E79)/1000000 -> 0 | F43: =(Summary!F79)/1000000 -> 0 | G43: =(Summary!G79)/1000000 -> 0 | H43: =(Summary!H79)/1000000 -> 0 | I43: =(Summary!I79)/1000000 -> 0 | J43: =(Summary!J79)/1000000 -> 0 | K43: =(Summary!K79)/1000000 -> 0 | L43: =(Summary!L79)/1000000 -> 0 | M43: =(Summary!M79)/1000000 -> 0 | N43: =(Summary!N79)/1000000 -> 0 | O43: =(Summary!O79)/1000000 -> 0 | P43: =(Summary!P79)/1000000 -> 0 | Q43: =(Summary!Q79)/1000000 -> 0 | R43: =(Summary!R79)/1000000 -> 0 | S43: =(Summary!S79)/1000000 -> 0 | T43: =(Summary!T79)/1000000 -> 0 | U43: =(Summary!U79)/1000000 -> 0 | V43: =(Summary!V79)/1000000 -> 0 | W43: =(Summary!W79)/1000000 -> 0 | X43: =(Summary!X79)/1000000 -> 0 | Y43: =(Summary!Y79)/1000000 -> 0 | Z43: =(Summary!Z79)/1000000 -> 0 | AA43: =(Summary!AA79)/1000000 -> 0 | AB43: =(Summary!AB79)/1000000 -> 0 | AC43: =(Summary!AC79)/1000000 -> 0 | AD43: =(Summary!AD79)/1000000 -> 0 | AE43: =(Summary!AE79)/1000000 -> 0 | AF43: =(Summary!AF79)/1000000 -> 0 | AG43: =(Summary!AG79)/1000000 -> 0 | AH43: =(Summary!AH79)/1000000 -> 0 | AI43: =(Summary!AI79)/1000000 -> 0 | AJ43: =(Summary!AJ79)/1000000 -> 0 | AK43: =(Summary!AK79)/1000000 -> 0 | AL43: =(Summary!AL79)/1000000 -> 0
A44: Gasoline Highway | B44: ="Energy - Mobile Combustion - CO2 - "&$A$44 -> Energy - Mobile Combustion - CO2 - Gasoline Highway | C44: =('CO2 Summary'!D9)/1000000 -> 0 | D44: =('CO2 Summary'!E9)/1000000 -> 0 | E44: =('CO2 Summary'!F9)/1000000 -> 0 | F44: =('CO2 Summary'!G9)/1000000 -> 0 | G44: =('CO2 Summary'!H9)/1000000 -> 0 | H44: =('CO2 Summary'!I9)/1000000 -> 0 | I44: =('CO2 Summary'!J9)/1000000 -> 0 | J44: =('CO2 Summary'!K9)/1000000 -> 0 | K44: =('CO2 Summary'!L9)/1000000 -> 0 | L44: =('CO2 Summary'!M9)/1000000 -> 0 | M44: =('CO2 Summary'!N9)/1000000 -> 0 | N44: =('CO2 Summary'!O9)/1000000 -> 0 | O44: =('CO2 Summary'!P9)/1000000 -> 0 | P44: =('CO2 Summary'!Q9)/1000000 -> 0 | Q44: =('CO2 Summary'!R9)/1000000 -> 0 | R44: =('CO2 Summary'!S9)/1000000 -> 0 | S44: =('CO2 Summary'!T9)/1000000 -> 0 | T44: =('CO2 Summary'!U9)/1000000 -> 0 | U44: =('CO2 Summary'!V9)/1000000 -> 0 | V44: =('CO2 Summary'!W9)/1000000 -> 0 | W44: =('CO2 Summary'!X9)/1000000 -> 0 | X44: =('CO2 Summary'!Y9)/1000000 -> 0 | Y44: =('CO2 Summary'!Z9)/1000000 -> 0 | Z44: =('CO2 Summary'!AA9)/1000000 -> 0 | AA44: =('CO2 Summary'!AB9)/1000000 -> 0 | AB44: =('CO2 Summary'!AC9)/1000000 -> 0 | AC44: =('CO2 Summary'!AD9)/1000000 -> 0 | AD44: =('CO2 Summary'!AE9)/1000000 -> 0 | AE44: =('CO2 Summary'!AF9)/1000000 -> 0 | AF44: =('CO2 Summary'!AG9)/1000000 -> 0 | AG44: =('CO2 Summary'!AH9)/1000000 -> 0 | AH44: =('CO2 Summary'!AI9)/1000000 -> 0 | AI44: =('CO2 Summary'!AJ9)/1000000 -> 0 | AJ44: =('CO2 Summary'!AK9)/1000000 -> 0 | AK44: =('CO2 Summary'!AL9)/1000000 -> 0 | AL44: =('CO2 Summary'!AM9)/1000000 -> 0
A45: Passenger Cars | B45: ="Energy - Mobile Combustion - CO2 - "&$A$44&" - "&A45 -> Energy - Mobile Combustion - CO2 - Gasoline Highway - Passenger Cars | C45: =('CO2 Summary'!D10)/1000000 -> 0 | D45: =('CO2 Summary'!E10)/1000000 -> 0 | E45: =('CO2 Summary'!F10)/1000000 -> 0 | F45: =('CO2 Summary'!G10)/1000000 -> 0 | G45: =('CO2 Summary'!H10)/1000000 -> 0 | H45: =('CO2 Summary'!I10)/1000000 -> 0 | I45: =('CO2 Summary'!J10)/1000000 -> 0 | J45: =('CO2 Summary'!K10)/1000000 -> 0 | K45: =('CO2 Summary'!L10)/1000000 -> 0 | L45: =('CO2 Summary'!M10)/1000000 -> 0 | M45: =('CO2 Summary'!N10)/1000000 -> 0 | N45: =('CO2 Summary'!O10)/1000000 -> 0 | O45: =('CO2 Summary'!P10)/1000000 -> 0 | P45: =('CO2 Summary'!Q10)/1000000 -> 0 | Q45: =('CO2 Summary'!R10)/1000000 -> 0 | R45: =('CO2 Summary'!S10)/1000000 -> 0 | S45: =('CO2 Summary'!T10)/1000000 -> 0 | T45: =('CO2 Summary'!U10)/1000000 -> 0 | U45: =('CO2 Summary'!V10)/1000000 -> 0 | V45: =('CO2 Summary'!W10)/1000000 -> 0 | W45: =('CO2 Summary'!X10)/1000000 -> 0 | X45: =('CO2 Summary'!Y10)/1000000 -> 0 | Y45: =('CO2 Summary'!Z10)/1000000 -> 0 | Z45: =('CO2 Summary'!AA10)/1000000 -> 0 | AA45: =('CO2 Summary'!AB10)/1000000 -> 0 | AB45: =('CO2 Summary'!AC10)/1000000 -> 0 | AC45: =('CO2 Summary'!AD10)/1000000 -> 0 | AD45: =('CO2 Summary'!AE10)/1000000 -> 0 | AE45: =('CO2 Summary'!AF10)/1000000 -> 0 | AF45: =('CO2 Summary'!AG10)/1000000 -> 0 | AG45: =('CO2 Summary'!AH10)/1000000 -> 0 | AH45: =('CO2 Summary'!AI10)/1000000 -> 0 | AI45: =('CO2 Summary'!AJ10)/1000000 -> 0 | AJ45: =('CO2 Summary'!AK10)/1000000 -> 0 | AK45: =('CO2 Summary'!AL10)/1000000 -> 0 | AL45: =('CO2 Summary'!AM10)/1000000 -> 0
A46: Light-Duty Trucks | B46: ="Energy - Mobile Combustion - CO2 - "&$A$44&" - "&A46 -> Energy - Mobile Combustion - CO2 - Gasoline Highway - Light-Duty Trucks | C46: =('CO2 Summary'!D11)/1000000 -> 0 | D46: =('CO2 Summary'!E11)/1000000 -> 0 | E46: =('CO2 Summary'!F11)/1000000 -> 0 | F46: =('CO2 Summary'!G11)/1000000 -> 0 | G46: =('CO2 Summary'!H11)/1000000 -> 0 | H46: =('CO2 Summary'!I11)/1000000 -> 0 | I46: =('CO2 Summary'!J11)/1000000 -> 0 | J46: =('CO2 Summary'!K11)/1000000 -> 0 | K46: =('CO2 Summary'!L11)/1000000 -> 0 | L46: =('CO2 Summary'!M11)/1000000 -> 0 | M46: =('CO2 Summary'!N11)/1000000 -> 0 | N46: =('CO2 Summary'!O11)/1000000 -> 0 | O46: =('CO2 Summary'!P11)/1000000 -> 0 | P46: =('CO2 Summary'!Q11)/1000000 -> 0 | Q46: =('CO2 Summary'!R11)/1000000 -> 0 | R46: =('CO2 Summary'!S11)/1000000 -> 0 | S46: =('CO2 Summary'!T11)/1000000 -> 0 | T46: =('CO2 Summary'!U11)/1000000 -> 0 | U46: =('CO2 Summary'!V11)/1000000 -> 0 | V46: =('CO2 Summary'!W11)/1000000 -> 0 | W46: =('CO2 Summary'!X11)/1000000 -> 0 | X46: =('CO2 Summary'!Y11)/1000000 -> 0 | Y46: =('CO2 Summary'!Z11)/1000000 -> 0 | Z46: =('CO2 Summary'!AA11)/1000000 -> 0 | AA46: =('CO2 Summary'!AB11)/1000000 -> 0 | AB46: =('CO2 Summary'!AC11)/1000000 -> 0 | AC46: =('CO2 Summary'!AD11)/1000000 -> 0 | AD46: =('CO2 Summary'!AE11)/1000000 -> 0 | AE46: =('CO2 Summary'!AF11)/1000000 -> 0 | AF46: =('CO2 Summary'!AG11)/1000000 -> 0 | AG46: =('CO2 Summary'!AH11)/1000000 -> 0 | AH46: =('CO2 Summary'!AI11)/1000000 -> 0 | AI46: =('CO2 Summary'!AJ11)/1000000 -> 0 | AJ46: =('CO2 Summary'!AK11)/1000000 -> 0 | AK46: =('CO2 Summary'!AL11)/1000000 -> 0 | AL46: =('CO2 Summary'!AM11)/1000000 -> 0
A47: Heavy-Duty Vehicles | B47: ="Energy - Mobile Combustion - CO2 - "&$A$44&" - "&A47 -> Energy - Mobile Combustion - CO2 - Gasoline Highway - Heavy-Duty Vehicles | C47: =('CO2 Summary'!D12)/1000000 -> 0 | D47: =('CO2 Summary'!E12)/1000000 -> 0 | E47: =('CO2 Summary'!F12)/1000000 -> 0 | F47: =('CO2 Summary'!G12)/1000000 -> 0 | G47: =('CO2 Summary'!H12)/1000000 -> 0 | H47: =('CO2 Summary'!I12)/1000000 -> 0 | I47: =('CO2 Summary'!J12)/1000000 -> 0 | J47: =('CO2 Summary'!K12)/1000000 -> 0 | K47: =('CO2 Summary'!L12)/1000000 -> 0 | L47: =('CO2 Summary'!M12)/1000000 -> 0 | M47: =('CO2 Summary'!N12)/1000000 -> 0 | N47: =('CO2 Summary'!O12)/1000000 -> 0 | O47: =('CO2 Summary'!P12)/1000000 -> 0 | P47: =('CO2 Summary'!Q12)/1000000 -> 0 | Q47: =('CO2 Summary'!R12)/1000000 -> 0 | R47: =('CO2 Summary'!S12)/1000000 -> 0 | S47: =('CO2 Summary'!T12)/1000000 -> 0 | T47: =('CO2 Summary'!U12)/1000000 -> 0 | U47: =('CO2 Summary'!V12)/1000000 -> 0 | V47: =('CO2 Summary'!W12)/1000000 -> 0 | W47: =('CO2 Summary'!X12)/1000000 -> 0 | X47: =('CO2 Summary'!Y12)/1000000 -> 0 | Y47: =('CO2 Summary'!Z12)/1000000 -> 0 | Z47: =('CO2 Summary'!AA12)/1000000 -> 0 | AA47: =('CO2 Summary'!AB12)/1000000 -> 0 | AB47: =('CO2 Summary'!AC12)/1000000 -> 0 | AC47: =('CO2 Summary'!AD12)/1000000 -> 0 | AD47: =('CO2 Summary'!AE12)/1000000 -> 0 | AE47: =('CO2 Summary'!AF12)/1000000 -> 0 | AF47: =('CO2 Summary'!AG12)/1000000 -> 0 | AG47: =('CO2 Summary'!AH12)/1000000 -> 0 | AH47: =('CO2 Summary'!AI12)/1000000 -> 0 | AI47: =('CO2 Summary'!AJ12)/1000000 -> 0 | AJ47: =('CO2 Summary'!AK12)/1000000 -> 0 | AK47: =('CO2 Summary'!AL12)/1000000 -> 0 | AL47: =('CO2 Summary'!AM12)/1000000 -> 0
A48: Motorcycles | B48: ="Energy - Mobile Combustion - CO2 - "&$A$44&" - "&A48 -> Energy - Mobile Combustion - CO2 - Gasoline Highway - Motorcycles | C48: =('CO2 Summary'!D13)/1000000 -> 0 | D48: =('CO2 Summary'!E13)/1000000 -> 0 | E48: =('CO2 Summary'!F13)/1000000 -> 0 | F48: =('CO2 Summary'!G13)/1000000 -> 0 | G48: =('CO2 Summary'!H13)/1000000 -> 0 | H48: =('CO2 Summary'!I13)/1000000 -> 0 | I48: =('CO2 Summary'!J13)/1000000 -> 0 | J48: =('CO2 Summary'!K13)/1000000 -> 0 | K48: =('CO2 Summary'!L13)/1000000 -> 0 | L48: =('CO2 Summary'!M13)/1000000 -> 0 | M48: =('CO2 Summary'!N13)/1000000 -> 0 | N48: =('CO2 Summary'!O13)/1000000 -> 0 | O48: =('CO2 Summary'!P13)/1000000 -> 0 | P48: =('CO2 Summary'!Q13)/1000000 -> 0 | Q48: =('CO2 Summary'!R13)/1000000 -> 0 | R48: =('CO2 Summary'!S13)/1000000 -> 0 | S48: =('CO2 Summary'!T13)/1000000 -> 0 | T48: =('CO2 Summary'!U13)/1000000 -> 0 | U48: =('CO2 Summary'!V13)/1000000 -> 0 | V48: =('CO2 Summary'!W13)/1000000 -> 0 | W48: =('CO2 Summary'!X13)/1000000 -> 0 | X48: =('CO2 Summary'!Y13)/1000000 -> 0 | Y48: =('CO2 Summary'!Z13)/1000000 -> 0 | Z48: =('CO2 Summary'!AA13)/1000000 -> 0 | AA48: =('CO2 Summary'!AB13)/1000000 -> 0 | AB48: =('CO2 Summary'!AC13)/1000000 -> 0 | AC48: =('CO2 Summary'!AD13)/1000000 -> 0 | AD48: =('CO2 Summary'!AE13)/1000000 -> 0 | AE48: =('CO2 Summary'!AF13)/1000000 -> 0 | AF48: =('CO2 Summary'!AG13)/1000000 -> 0 | AG48: =('CO2 Summary'!AH13)/1000000 -> 0 | AH48: =('CO2 Summary'!AI13)/1000000 -> 0 | AI48: =('CO2 Summary'!AJ13)/1000000 -> 0 | AJ48: =('CO2 Summary'!AK13)/1000000 -> 0 | AK48: =('CO2 Summary'!AL13)/1000000 -> 0 | AL48: =('CO2 Summary'!AM13)/1000000 -> 0
A49: Diesel Highway | B49: ="Energy - Mobile Combustion - CO2 - "&$A$49 -> Energy - Mobile Combustion - CO2 - Diesel Highway | C49: =('CO2 Summary'!D14)/1000000 -> 0 | D49: =('CO2 Summary'!E14)/1000000 -> 0 | E49: =('CO2 Summary'!F14)/1000000 -> 0 | F49: =('CO2 Summary'!G14)/1000000 -> 0 | G49: =('CO2 Summary'!H14)/1000000 -> 0 | H49: =('CO2 Summary'!I14)/1000000 -> 0 | I49: =('CO2 Summary'!J14)/1000000 -> 0 | J49: =('CO2 Summary'!K14)/1000000 -> 0 | K49: =('CO2 Summary'!L14)/1000000 -> 0 | L49: =('CO2 Summary'!M14)/1000000 -> 0 | M49: =('CO2 Summary'!N14)/1000000 -> 0 | N49: =('CO2 Summary'!O14)/1000000 -> 0 | O49: =('CO2 Summary'!P14)/1000000 -> 0 | P49: =('CO2 Summary'!Q14)/1000000 -> 0 | Q49: =('CO2 Summary'!R14)/1000000 -> 0 | R49: =('CO2 Summary'!S14)/1000000 -> 0 | S49: =('CO2 Summary'!T14)/1000000 -> 0 | T49: =('CO2 Summary'!U14)/1000000 -> 0 | U49: =('CO2 Summary'!V14)/1000000 -> 0 | V49: =('CO2 Summary'!W14)/1000000 -> 0 | W49: =('CO2 Summary'!X14)/1000000 -> 0 | X49: =('CO2 Summary'!Y14)/1000000 -> 0 | Y49: =('CO2 Summary'!Z14)/1000000 -> 0 | Z49: =('CO2 Summary'!AA14)/1000000 -> 0 | AA49: =('CO2 Summary'!AB14)/1000000 -> 0 | AB49: =('CO2 Summary'!AC14)/1000000 -> 0 | AC49: =('CO2 Summary'!AD14)/1000000 -> 0 | AD49: =('CO2 Summary'!AE14)/1000000 -> 0 | AE49: =('CO2 Summary'!AF14)/1000000 -> 0 | AF49: =('CO2 Summary'!AG14)/1000000 -> 0 | AG49: =('CO2 Summary'!AH14)/1000000 -> 0 | AH49: =('CO2 Summary'!AI14)/1000000 -> 0 | AI49: =('CO2 Summary'!AJ14)/1000000 -> 0 | AJ49: =('CO2 Summary'!AK14)/1000000 -> 0 | AK49: =('CO2 Summary'!AL14)/1000000 -> 0 | AL49: =('CO2 Summary'!AM14)/1000000 -> 0
A50: Passenger Cars | B50: ="Energy - Mobile Combustion - CO2 - "&$A$49&" - "&A50 -> Energy - Mobile Combustion - CO2 - Diesel Highway - Passenger Cars | C50: =('CO2 Summary'!D15)/1000000 -> 0 | D50: =('CO2 Summary'!E15)/1000000 -> 0 | E50: =('CO2 Summary'!F15)/1000000 -> 0 | F50: =('CO2 Summary'!G15)/1000000 -> 0 | G50: =('CO2 Summary'!H15)/1000000 -> 0 | H50: =('CO2 Summary'!I15)/1000000 -> 0 | I50: =('CO2 Summary'!J15)/1000000 -> 0 | J50: =('CO2 Summary'!K15)/1000000 -> 0 | K50: =('CO2 Summary'!L15)/1000000 -> 0 | L50: =('CO2 Summary'!M15)/1000000 -> 0 | M50: =('CO2 Summary'!N15)/1000000 -> 0 | N50: =('CO2 Summary'!O15)/1000000 -> 0 | O50: =('CO2 Summary'!P15)/1000000 -> 0 | P50: =('CO2 Summary'!Q15)/1000000 -> 0 | Q50: =('CO2 Summary'!R15)/1000000 -> 0 | R50: =('CO2 Summary'!S15)/1000000 -> 0 | S50: =('CO2 Summary'!T15)/1000000 -> 0 | T50: =('CO2 Summary'!U15)/1000000 -> 0 | U50: =('CO2 Summary'!V15)/1000000 -> 0 | V50: =('CO2 Summary'!W15)/1000000 -> 0 | W50: =('CO2 Summary'!X15)/1000000 -> 0 | X50: =('CO2 Summary'!Y15)/1000000 -> 0 | Y50: =('CO2 Summary'!Z15)/1000000 -> 0 | Z50: =('CO2 Summary'!AA15)/1000000 -> 0 | AA50: =('CO2 Summary'!AB15)/1000000 -> 0 | AB50: =('CO2 Summary'!AC15)/1000000 -> 0 | AC50: =('CO2 Summary'!AD15)/1000000 -> 0 | AD50: =('CO2 Summary'!AE15)/1000000 -> 0 | AE50: =('CO2 Summary'!AF15)/1000000 -> 0 | AF50: =('CO2 Summary'!AG15)/1000000 -> 0 | AG50: =('CO2 Summary'!AH15)/1000000 -> 0 | AH50: =('CO2 Summary'!AI15)/1000000 -> 0 | AI50: =('CO2 Summary'!AJ15)/1000000 -> 0 | AJ50: =('CO2 Summary'!AK15)/1000000 -> 0 | AK50: =('CO2 Summary'!AL15)/1000000 -> 0 | AL50: =('CO2 Summary'!AM15)/1000000 -> 0
A51: Light-Duty Trucks | B51: ="Energy - Mobile Combustion - CO2 - "&$A$49&" - "&A51 -> Energy - Mobile Combustion - CO2 - Diesel Highway - Light-Duty Trucks | C51: =('CO2 Summary'!D16)/1000000 -> 0 | D51: =('CO2 Summary'!E16)/1000000 -> 0 | E51: =('CO2 Summary'!F16)/1000000 -> 0 | F51: =('CO2 Summary'!G16)/1000000 -> 0 | G51: =('CO2 Summary'!H16)/1000000 -> 0 | H51: =('CO2 Summary'!I16)/1000000 -> 0 | I51: =('CO2 Summary'!J16)/1000000 -> 0 | J51: =('CO2 Summary'!K16)/1000000 -> 0 | K51: =('CO2 Summary'!L16)/1000000 -> 0 | L51: =('CO2 Summary'!M16)/1000000 -> 0 | M51: =('CO2 Summary'!N16)/1000000 -> 0 | N51: =('CO2 Summary'!O16)/1000000 -> 0 | O51: =('CO2 Summary'!P16)/1000000 -> 0 | P51: =('CO2 Summary'!Q16)/1000000 -> 0 | Q51: =('CO2 Summary'!R16)/1000000 -> 0 | R51: =('CO2 Summary'!S16)/1000000 -> 0 | S51: =('CO2 Summary'!T16)/1000000 -> 0 | T51: =('CO2 Summary'!U16)/1000000 -> 0 | U51: =('CO2 Summary'!V16)/1000000 -> 0 | V51: =('CO2 Summary'!W16)/1000000 -> 0 | W51: =('CO2 Summary'!X16)/1000000 -> 0 | X51: =('CO2 Summary'!Y16)/1000000 -> 0 | Y51: =('CO2 Summary'!Z16)/1000000 -> 0 | Z51: =('CO2 Summary'!AA16)/1000000 -> 0 | AA51: =('CO2 Summary'!AB16)/1000000 -> 0 | AB51: =('CO2 Summary'!AC16)/1000000 -> 0 | AC51: =('CO2 Summary'!AD16)/1000000 -> 0 | AD51: =('CO2 Summary'!AE16)/1000000 -> 0 | AE51: =('CO2 Summary'!AF16)/1000000 -> 0 | AF51: =('CO2 Summary'!AG16)/1000000 -> 0 | AG51: =('CO2 Summary'!AH16)/1000000 -> 0 | AH51: =('CO2 Summary'!AI16)/1000000 -> 0 | AI51: =('CO2 Summary'!AJ16)/1000000 -> 0 | AJ51: =('CO2 Summary'!AK16)/1000000 -> 0 | AK51: =('CO2 Summary'!AL16)/1000000 -> 0 | AL51: =('CO2 Summary'!AM16)/1000000 -> 0
A52: Heavy-Duty Vehicles | B52: ="Energy - Mobile Combustion - CO2 - "&$A$49&" - "&A52 -> Energy - Mobile Combustion - CO2 - Diesel Highway - Heavy-Duty Vehicles | C52: =('CO2 Summary'!D17)/1000000 -> 0 | D52: =('CO2 Summary'!E17)/1000000 -> 0 | E52: =('CO2 Summary'!F17)/1000000 -> 0 | F52: =('CO2 Summary'!G17)/1000000 -> 0 | G52: =('CO2 Summary'!H17)/1000000 -> 0 | H52: =('CO2 Summary'!I17)/1000000 -> 0 | I52: =('CO2 Summary'!J17)/1000000 -> 0 | J52: =('CO2 Summary'!K17)/1000000 -> 0 | K52: =('CO2 Summary'!L17)/1000000 -> 0 | L52: =('CO2 Summary'!M17)/1000000 -> 0 | M52: =('CO2 Summary'!N17)/1000000 -> 0 | N52: =('CO2 Summary'!O17)/1000000 -> 0 | O52: =('CO2 Summary'!P17)/1000000 -> 0 | P52: =('CO2 Summary'!Q17)/1000000 -> 0 | Q52: =('CO2 Summary'!R17)/1000000 -> 0 | R52: =('CO2 Summary'!S17)/1000000 -> 0 | S52: =('CO2 Summary'!T17)/1000000 -> 0 | T52: =('CO2 Summary'!U17)/1000000 -> 0 | U52: =('CO2 Summary'!V17)/1000000 -> 0 | V52: =('CO2 Summary'!W17)/1000000 -> 0 | W52: =('CO2 Summary'!X17)/1000000 -> 0 | X52: =('CO2 Summary'!Y17)/1000000 -> 0 | Y52: =('CO2 Summary'!Z17)/1000000 -> 0 | Z52: =('CO2 Summary'!AA17)/1000000 -> 0 | AA52: =('CO2 Summary'!AB17)/1000000 -> 0 | AB52: =('CO2 Summary'!AC17)/1000000 -> 0 | AC52: =('CO2 Summary'!AD17)/1000000 -> 0 | AD52: =('CO2 Summary'!AE17)/1000000 -> 0 | AE52: =('CO2 Summary'!AF17)/1000000 -> 0 | AF52: =('CO2 Summary'!AG17)/1000000 -> 0 | AG52: =('CO2 Summary'!AH17)/1000000 -> 0 | AH52: =('CO2 Summary'!AI17)/1000000 -> 0 | AI52: =('CO2 Summary'!AJ17)/1000000 -> 0 | AJ52: =('CO2 Summary'!AK17)/1000000 -> 0 | AK52: =('CO2 Summary'!AL17)/1000000 -> 0 | AL52: =('CO2 Summary'!AM17)/1000000 -> 0
A53: Heavy-Duty Buses | B53: ="Energy - Mobile Combustion - CO2 - "&$A$49&" - "&A53 -> Energy - Mobile Combustion - CO2 - Diesel Highway - Heavy-Duty Buses | C53: =('CO2 Summary'!D18)/1000000 -> 0 | D53: =('CO2 Summary'!E18)/1000000 -> 0 | E53: =('CO2 Summary'!F18)/1000000 -> 0 | F53: =('CO2 Summary'!G18)/1000000 -> 0 | G53: =('CO2 Summary'!H18)/1000000 -> 0 | H53: =('CO2 Summary'!I18)/1000000 -> 0 | I53: =('CO2 Summary'!J18)/1000000 -> 0 | J53: =('CO2 Summary'!K18)/1000000 -> 0 | K53: =('CO2 Summary'!L18)/1000000 -> 0 | L53: =('CO2 Summary'!M18)/1000000 -> 0 | M53: =('CO2 Summary'!N18)/1000000 -> 0 | N53: =('CO2 Summary'!O18)/1000000 -> 0 | O53: =('CO2 Summary'!P18)/1000000 -> 0 | P53: =('CO2 Summary'!Q18)/1000000 -> 0 | Q53: =('CO2 Summary'!R18)/1000000 -> 0 | R53: =('CO2 Summary'!S18)/1000000 -> 0 | S53: =('CO2 Summary'!T18)/1000000 -> 0 | T53: =('CO2 Summary'!U18)/1000000 -> 0 | U53: =('CO2 Summary'!V18)/1000000 -> 0 | V53: =('CO2 Summary'!W18)/1000000 -> 0 | W53: =('CO2 Summary'!X18)/1000000 -> 0 | X53: =('CO2 Summary'!Y18)/1000000 -> 0 | Y53: =('CO2 Summary'!Z18)/1000000 -> 0 | Z53: =('CO2 Summary'!AA18)/1000000 -> 0 | AA53: =('CO2 Summary'!AB18)/1000000 -> 0 | AB53: =('CO2 Summary'!AC18)/1000000 -> 0 | AC53: =('CO2 Summary'!AD18)/1000000 -> 0 | AD53: =('CO2 Summary'!AE18)/1000000 -> 0 | AE53: =('CO2 Summary'!AF18)/1000000 -> 0 | AF53: =('CO2 Summary'!AG18)/1000000 -> 0 | AG53: =('CO2 Summary'!AH18)/1000000 -> 0 | AH53: =('CO2 Summary'!AI18)/1000000 -> 0 | AI53: =('CO2 Summary'!AJ18)/1000000 -> 0 | AJ53: =('CO2 Summary'!AK18)/1000000 -> 0 | AK53: =('CO2 Summary'!AL18)/1000000 -> 0 | AL53: =('CO2 Summary'!AM18)/1000000 -> 0
A54: Non-Highway | B54: ="Energy - Mobile Combustion - CO2 - "&$A$54 -> Energy - Mobile Combustion - CO2 - Non-Highway | C54: =('CO2 Summary'!D19)/1000000 -> 0 | D54: =('CO2 Summary'!E19)/1000000 -> 0 | E54: =('CO2 Summary'!F19)/1000000 -> 0 | F54: =('CO2 Summary'!G19)/1000000 -> 0 | G54: =('CO2 Summary'!H19)/1000000 -> 0 | H54: =('CO2 Summary'!I19)/1000000 -> 0 | I54: =('CO2 Summary'!J19)/1000000 -> 0 | J54: =('CO2 Summary'!K19)/1000000 -> 0 | K54: =('CO2 Summary'!L19)/1000000 -> 0 | L54: =('CO2 Summary'!M19)/1000000 -> 0 | M54: =('CO2 Summary'!N19)/1000000 -> 0 | N54: =('CO2 Summary'!O19)/1000000 -> 0 | O54: =('CO2 Summary'!P19)/1000000 -> 0 | P54: =('CO2 Summary'!Q19)/1000000 -> 0 | Q54: =('CO2 Summary'!R19)/1000000 -> 0 | R54: =('CO2 Summary'!S19)/1000000 -> 0 | S54: =('CO2 Summary'!T19)/1000000 -> 0 | T54: =('CO2 Summary'!U19)/1000000 -> 0 | U54: =('CO2 Summary'!V19)/1000000 -> 0 | V54: =('CO2 Summary'!W19)/1000000 -> 0 | W54: =('CO2 Summary'!X19)/1000000 -> 0 | X54: =('CO2 Summary'!Y19)/1000000 -> 0 | Y54: =('CO2 Summary'!Z19)/1000000 -> 0 | Z54: =('CO2 Summary'!AA19)/1000000 -> 0 | AA54: =('CO2 Summary'!AB19)/1000000 -> 0 | AB54: =('CO2 Summary'!AC19)/1000000 -> 0 | AC54: =('CO2 Summary'!AD19)/1000000 -> 0 | AD54: =('CO2 Summary'!AE19)/1000000 -> 0 | AE54: =('CO2 Summary'!AF19)/1000000 -> 0 | AF54: =('CO2 Summary'!AG19)/1000000 -> 0 | AG54: =('CO2 Summary'!AH19)/1000000 -> 0 | AH54: =('CO2 Summary'!AI19)/1000000 -> 0 | AI54: =('CO2 Summary'!AJ19)/1000000 -> 0 | AJ54: =('CO2 Summary'!AK19)/1000000 -> 0 | AK54: =('CO2 Summary'!AL19)/1000000 -> 0 | AL54: =('CO2 Summary'!AM19)/1000000 -> 0
A55: Aviation | B55: ="Energy - Mobile Combustion - CO2 - "&$A$54&" - "&A55 -> Energy - Mobile Combustion - CO2 - Non-Highway - Aviation | C55: =('CO2 Summary'!D20)/1000000 -> 0 | D55: =('CO2 Summary'!E20)/1000000 -> 0 | E55: =('CO2 Summary'!F20)/1000000 -> 0 | F55: =('CO2 Summary'!G20)/1000000 -> 0 | G55: =('CO2 Summary'!H20)/1000000 -> 0 | H55: =('CO2 Summary'!I20)/1000000 -> 0 | I55: =('CO2 Summary'!J20)/1000000 -> 0 | J55: =('CO2 Summary'!K20)/1000000 -> 0 | K55: =('CO2 Summary'!L20)/1000000 -> 0 | L55: =('CO2 Summary'!M20)/1000000 -> 0 | M55: =('CO2 Summary'!N20)/1000000 -> 0 | N55: =('CO2 Summary'!O20)/1000000 -> 0 | O55: =('CO2 Summary'!P20)/1000000 -> 0 | P55: =('CO2 Summary'!Q20)/1000000 -> 0 | Q55: =('CO2 Summary'!R20)/1000000 -> 0 | R55: =('CO2 Summary'!S20)/1000000 -> 0 | S55: =('CO2 Summary'!T20)/1000000 -> 0 | T55: =('CO2 Summary'!U20)/1000000 -> 0 | U55: =('CO2 Summary'!V20)/1000000 -> 0 | V55: =('CO2 Summary'!W20)/1000000 -> 0 | W55: =('CO2 Summary'!X20)/1000000 -> 0 | X55: =('CO2 Summary'!Y20)/1000000 -> 0 | Y55: =('CO2 Summary'!Z20)/1000000 -> 0 | Z55: =('CO2 Summary'!AA20)/1000000 -> 0 | AA55: =('CO2 Summary'!AB20)/1000000 -> 0 | AB55: =('CO2 Summary'!AC20)/1000000 -> 0 | AC55: =('CO2 Summary'!AD20)/1000000 -> 0 | AD55: =('CO2 Summary'!AE20)/1000000 -> 0 | AE55: =('CO2 Summary'!AF20)/1000000 -> 0 | AF55: =('CO2 Summary'!AG20)/1000000 -> 0 | AG55: =('CO2 Summary'!AH20)/1000000 -> 0 | AH55: =('CO2 Summary'!AI20)/1000000 -> 0 | AI55: =('CO2 Summary'!AJ20)/1000000 -> 0 | AJ55: =('CO2 Summary'!AK20)/1000000 -> 0 | AK55: =('CO2 Summary'!AL20)/1000000 -> 0 | AL55: =('CO2 Summary'!AM20)/1000000 -> 0
A56: Boats | B56: ="Energy - Mobile Combustion - CO2 - "&$A$54&" - "&A56 -> Energy - Mobile Combustion - CO2 - Non-Highway - Boats | C56: =('CO2 Summary'!D21)/1000000 -> 0 | D56: =('CO2 Summary'!E21)/1000000 -> 0 | E56: =('CO2 Summary'!F21)/1000000 -> 0 | F56: =('CO2 Summary'!G21)/1000000 -> 0 | G56: =('CO2 Summary'!H21)/1000000 -> 0 | H56: =('CO2 Summary'!I21)/1000000 -> 0 | I56: =('CO2 Summary'!J21)/1000000 -> 0 | J56: =('CO2 Summary'!K21)/1000000 -> 0 | K56: =('CO2 Summary'!L21)/1000000 -> 0 | L56: =('CO2 Summary'!M21)/1000000 -> 0 | M56: =('CO2 Summary'!N21)/1000000 -> 0 | N56: =('CO2 Summary'!O21)/1000000 -> 0 | O56: =('CO2 Summary'!P21)/1000000 -> 0 | P56: =('CO2 Summary'!Q21)/1000000 -> 0 | Q56: =('CO2 Summary'!R21)/1000000 -> 0 | R56: =('CO2 Summary'!S21)/1000000 -> 0 | S56: =('CO2 Summary'!T21)/1000000 -> 0 | T56: =('CO2 Summary'!U21)/1000000 -> 0 | U56: =('CO2 Summary'!V21)/1000000 -> 0 | V56: =('CO2 Summary'!W21)/1000000 -> 0 | W56: =('CO2 Summary'!X21)/1000000 -> 0 | X56: =('CO2 Summary'!Y21)/1000000 -> 0 | Y56: =('CO2 Summary'!Z21)/1000000 -> 0 | Z56: =('CO2 Summary'!AA21)/1000000 -> 0 | AA56: =('CO2 Summary'!AB21)/1000000 -> 0 | AB56: =('CO2 Summary'!AC21)/1000000 -> 0 | AC56: =('CO2 Summary'!AD21)/1000000 -> 0 | AD56: =('CO2 Summary'!AE21)/1000000 -> 0 | AE56: =('CO2 Summary'!AF21)/1000000 -> 0 | AF56: =('CO2 Summary'!AG21)/1000000 -> 0 | AG56: =('CO2 Summary'!AH21)/1000000 -> 0 | AH56: =('CO2 Summary'!AI21)/1000000 -> 0 | AI56: =('CO2 Summary'!AJ21)/1000000 -> 0 | AJ56: =('CO2 Summary'!AK21)/1000000 -> 0 | AK56: =('CO2 Summary'!AL21)/1000000 -> 0 | AL56: =('CO2 Summary'!AM21)/1000000 -> 0
A57: Locomotives | B57: ="Energy - Mobile Combustion - CO2 - "&$A$54&" - "&A57 -> Energy - Mobile Combustion - CO2 - Non-Highway - Locomotives | C57: =('CO2 Summary'!D22)/1000000 -> 0 | D57: =('CO2 Summary'!E22)/1000000 -> 0 | E57: =('CO2 Summary'!F22)/1000000 -> 0 | F57: =('CO2 Summary'!G22)/1000000 -> 0 | G57: =('CO2 Summary'!H22)/1000000 -> 0 | H57: =('CO2 Summary'!I22)/1000000 -> 0 | I57: =('CO2 Summary'!J22)/1000000 -> 0 | J57: =('CO2 Summary'!K22)/1000000 -> 0 | K57: =('CO2 Summary'!L22)/1000000 -> 0 | L57: =('CO2 Summary'!M22)/1000000 -> 0 | M57: =('CO2 Summary'!N22)/1000000 -> 0 | N57: =('CO2 Summary'!O22)/1000000 -> 0 | O57: =('CO2 Summary'!P22)/1000000 -> 0 | P57: =('CO2 Summary'!Q22)/1000000 -> 0 | Q57: =('CO2 Summary'!R22)/1000000 -> 0 | R57: =('CO2 Summary'!S22)/1000000 -> 0 | S57: =('CO2 Summary'!T22)/1000000 -> 0 | T57: =('CO2 Summary'!U22)/1000000 -> 0 | U57: =('CO2 Summary'!V22)/1000000 -> 0 | V57: =('CO2 Summary'!W22)/1000000 -> 0 | W57: =('CO2 Summary'!X22)/1000000 -> 0 | X57: =('CO2 Summary'!Y22)/1000000 -> 0 | Y57: =('CO2 Summary'!Z22)/1000000 -> 0 | Z57: =('CO2 Summary'!AA22)/1000000 -> 0 | AA57: =('CO2 Summary'!AB22)/1000000 -> 0 | AB57: =('CO2 Summary'!AC22)/1000000 -> 0 | AC57: =('CO2 Summary'!AD22)/1000000 -> 0 | AD57: =('CO2 Summary'!AE22)/1000000 -> 0 | AE57: =('CO2 Summary'!AF22)/1000000 -> 0 | AF57: =('CO2 Summary'!AG22)/1000000 -> 0 | AG57: =('CO2 Summary'!AH22)/1000000 -> 0 | AH57: =('CO2 Summary'!AI22)/1000000 -> 0 | AI57: =('CO2 Summary'!AJ22)/1000000 -> 0 | AJ57: =('CO2 Summary'!AK22)/1000000 -> 0 | AK57: =('CO2 Summary'!AL22)/1000000 -> 0 | AL57: =('CO2 Summary'!AM22)/1000000 -> 0
A58: Other | B58: ="Energy - Mobile Combustion - CO2 - "&$A$54&" - "&A58 -> Energy - Mobile Combustion - CO2 - Non-Highway - Other | C58: =('CO2 Summary'!D23)/1000000 -> 0 | D58: =('CO2 Summary'!E23)/1000000 -> 0 | E58: =('CO2 Summary'!F23)/1000000 -> 0 | F58: =('CO2 Summary'!G23)/1000000 -> 0 | G58: =('CO2 Summary'!H23)/1000000 -> 0 | H58: =('CO2 Summary'!I23)/1000000 -> 0 | I58: =('CO2 Summary'!J23)/1000000 -> 0 | J58: =('CO2 Summary'!K23)/1000000 -> 0 | K58: =('CO2 Summary'!L23)/1000000 -> 0 | L58: =('CO2 Summary'!M23)/1000000 -> 0 | M58: =('CO2 Summary'!N23)/1000000 -> 0 | N58: =('CO2 Summary'!O23)/1000000 -> 0 | O58: =('CO2 Summary'!P23)/1000000 -> 0 | P58: =('CO2 Summary'!Q23)/1000000 -> 0 | Q58: =('CO2 Summary'!R23)/1000000 -> 0 | R58: =('CO2 Summary'!S23)/1000000 -> 0 | S58: =('CO2 Summary'!T23)/1000000 -> 0 | T58: =('CO2 Summary'!U23)/1000000 -> 0 | U58: =('CO2 Summary'!V23)/1000000 -> 0 | V58: =('CO2 Summary'!W23)/1000000 -> 0 | W58: =('CO2 Summary'!X23)/1000000 -> 0 | X58: =('CO2 Summary'!Y23)/1000000 -> 0 | Y58: =('CO2 Summary'!Z23)/1000000 -> 0 | Z58: =('CO2 Summary'!AA23)/1000000 -> 0 | AA58: =('CO2 Summary'!AB23)/1000000 -> 0 | AB58: =('CO2 Summary'!AC23)/1000000 -> 0 | AC58: =('CO2 Summary'!AD23)/1000000 -> 0 | AD58: =('CO2 Summary'!AE23)/1000000 -> 0 | AE58: =('CO2 Summary'!AF23)/1000000 -> 0 | AF58: =('CO2 Summary'!AG23)/1000000 -> 0 | AG58: =('CO2 Summary'!AH23)/1000000 -> 0 | AH58: =('CO2 Summary'!AI23)/1000000 -> 0 | AI58: =('CO2 Summary'!AJ23)/1000000 -> 0 | AJ58: =('CO2 Summary'!AK23)/1000000 -> 0 | AK58: =('CO2 Summary'!AL23)/1000000 -> 0 | AL58: =('CO2 Summary'!AM23)/1000000 -> 0
A59: Alternative Fuel Vehicles | B59: ="Energy - Mobile Combustion - CO2 - "&$A$59 -> Energy - Mobile Combustion - CO2 - Alternative Fuel Vehicles | C59: =('CO2 Summary'!D24)/1000000 -> 0 | D59: =('CO2 Summary'!E24)/1000000 -> 0 | E59: =('CO2 Summary'!F24)/1000000 -> 0 | F59: =('CO2 Summary'!G24)/1000000 -> 0 | G59: =('CO2 Summary'!H24)/1000000 -> 0 | H59: =('CO2 Summary'!I24)/1000000 -> 0 | I59: =('CO2 Summary'!J24)/1000000 -> 0 | J59: =('CO2 Summary'!K24)/1000000 -> 0 | K59: =('CO2 Summary'!L24)/1000000 -> 0 | L59: =('CO2 Summary'!M24)/1000000 -> 0 | M59: =('CO2 Summary'!N24)/1000000 -> 0 | N59: =('CO2 Summary'!O24)/1000000 -> 0 | O59: =('CO2 Summary'!P24)/1000000 -> 0 | P59: =('CO2 Summary'!Q24)/1000000 -> 0 | Q59: =('CO2 Summary'!R24)/1000000 -> 0 | R59: =('CO2 Summary'!S24)/1000000 -> 0 | S59: =('CO2 Summary'!T24)/1000000 -> 0 | T59: =('CO2 Summary'!U24)/1000000 -> 0 | U59: =('CO2 Summary'!V24)/1000000 -> 0 | V59: =('CO2 Summary'!W24)/1000000 -> 0 | W59: =('CO2 Summary'!X24)/1000000 -> 0 | X59: =('CO2 Summary'!Y24)/1000000 -> 0 | Y59: =('CO2 Summary'!Z24)/1000000 -> 0 | Z59: =('CO2 Summary'!AA24)/1000000 -> 0 | AA59: =('CO2 Summary'!AB24)/1000000 -> 0 | AB59: =('CO2 Summary'!AC24)/1000000 -> 0 | AC59: =('CO2 Summary'!AD24)/1000000 -> 0 | AD59: =('CO2 Summary'!AE24)/1000000 -> 0 | AE59: =('CO2 Summary'!AF24)/1000000 -> 0 | AF59: =('CO2 Summary'!AG24)/1000000 -> 0 | AG59: =('CO2 Summary'!AH24)/1000000 -> 0 | AH59: =('CO2 Summary'!AI24)/1000000 -> 0 | AI59: =('CO2 Summary'!AJ24)/1000000 -> 0 | AJ59: =('CO2 Summary'!AK24)/1000000 -> 0 | AK59: =('CO2 Summary'!AL24)/1000000 -> 0 | AL59: =('CO2 Summary'!AM24)/1000000 -> 0
A60: Light Duty Vehicles | B60: ="Energy - Mobile Combustion - CO2 - "&$A$59&" - "&A60 -> Energy - Mobile Combustion - CO2 - Alternative Fuel Vehicles - Light Duty Vehicles | C60: =('CO2 Summary'!D25)/1000000 -> 0 | D60: =('CO2 Summary'!E25)/1000000 -> 0 | E60: =('CO2 Summary'!F25)/1000000 -> 0 | F60: =('CO2 Summary'!G25)/1000000 -> 0 | G60: =('CO2 Summary'!H25)/1000000 -> 0 | H60: =('CO2 Summary'!I25)/1000000 -> 0 | I60: =('CO2 Summary'!J25)/1000000 -> 0 | J60: =('CO2 Summary'!K25)/1000000 -> 0 | K60: =('CO2 Summary'!L25)/1000000 -> 0 | L60: =('CO2 Summary'!M25)/1000000 -> 0 | M60: =('CO2 Summary'!N25)/1000000 -> 0 | N60: =('CO2 Summary'!O25)/1000000 -> 0 | O60: =('CO2 Summary'!P25)/1000000 -> 0 | P60: =('CO2 Summary'!Q25)/1000000 -> 0 | Q60: =('CO2 Summary'!R25)/1000000 -> 0 | R60: =('CO2 Summary'!S25)/1000000 -> 0 | S60: =('CO2 Summary'!T25)/1000000 -> 0 | T60: =('CO2 Summary'!U25)/1000000 -> 0 | U60: =('CO2 Summary'!V25)/1000000 -> 0 | V60: =('CO2 Summary'!W25)/1000000 -> 0 | W60: =('CO2 Summary'!X25)/1000000 -> 0 | X60: =('CO2 Summary'!Y25)/1000000 -> 0 | Y60: =('CO2 Summary'!Z25)/1000000 -> 0 | Z60: =('CO2 Summary'!AA25)/1000000 -> 0 | AA60: =('CO2 Summary'!AB25)/1000000 -> 0 | AB60: =('CO2 Summary'!AC25)/1000000 -> 0 | AC60: =('CO2 Summary'!AD25)/1000000 -> 0 | AD60: =('CO2 Summary'!AE25)/1000000 -> 0 | AE60: =('CO2 Summary'!AF25)/1000000 -> 0 | AF60: =('CO2 Summary'!AG25)/1000000 -> 0 | AG60: =('CO2 Summary'!AH25)/1000000 -> 0 | AH60: =('CO2 Summary'!AI25)/1000000 -> 0 | AI60: =('CO2 Summary'!AJ25)/1000000 -> 0 | AJ60: =('CO2 Summary'!AK25)/1000000 -> 0 | AK60: =('CO2 Summary'!AL25)/1000000 -> 0 | AL60: =('CO2 Summary'!AM25)/1000000 -> 0
A61: Heavy Duty Vehicles | B61: ="Energy - Mobile Combustion - CO2 - "&$A$59&" - "&A61 -> Energy - Mobile Combustion - CO2 - Alternative Fuel Vehicles - Heavy Duty Vehicles | C61: =('CO2 Summary'!D26)/1000000 -> 0 | D61: =('CO2 Summary'!E26)/1000000 -> 0 | E61: =('CO2 Summary'!F26)/1000000 -> 0 | F61: =('CO2 Summary'!G26)/1000000 -> 0 | G61: =('CO2 Summary'!H26)/1000000 -> 0 | H61: =('CO2 Summary'!I26)/1000000 -> 0 | I61: =('CO2 Summary'!J26)/1000000 -> 0 | J61: =('CO2 Summary'!K26)/1000000 -> 0 | K61: =('CO2 Summary'!L26)/1000000 -> 0 | L61: =('CO2 Summary'!M26)/1000000 -> 0 | M61: =('CO2 Summary'!N26)/1000000 -> 0 | N61: =('CO2 Summary'!O26)/1000000 -> 0 | O61: =('CO2 Summary'!P26)/1000000 -> 0 | P61: =('CO2 Summary'!Q26)/1000000 -> 0 | Q61: =('CO2 Summary'!R26)/1000000 -> 0 | R61: =('CO2 Summary'!S26)/1000000 -> 0 | S61: =('CO2 Summary'!T26)/1000000 -> 0 | T61: =('CO2 Summary'!U26)/1000000 -> 0 | U61: =('CO2 Summary'!V26)/1000000 -> 0 | V61: =('CO2 Summary'!W26)/1000000 -> 0 | W61: =('CO2 Summary'!X26)/1000000 -> 0 | X61: =('CO2 Summary'!Y26)/1000000 -> 0 | Y61: =('CO2 Summary'!Z26)/1000000 -> 0 | Z61: =('CO2 Summary'!AA26)/1000000 -> 0 | AA61: =('CO2 Summary'!AB26)/1000000 -> 0 | AB61: =('CO2 Summary'!AC26)/1000000 -> 0 | AC61: =('CO2 Summary'!AD26)/1000000 -> 0 | AD61: =('CO2 Summary'!AE26)/1000000 -> 0 | AE61: =('CO2 Summary'!AF26)/1000000 -> 0 | AF61: =('CO2 Summary'!AG26)/1000000 -> 0 | AG61: =('CO2 Summary'!AH26)/1000000 -> 0 | AH61: =('CO2 Summary'!AI26)/1000000 -> 0 | AI61: =('CO2 Summary'!AJ26)/1000000 -> 0 | AJ61: =('CO2 Summary'!AK26)/1000000 -> 0 | AK61: =('CO2 Summary'!AL26)/1000000 -> 0 | AL61: =('CO2 Summary'!AM26)/1000000 -> 0
A62: Buses | B62: ="Energy - Mobile Combustion - CO2 - "&$A$59&" - "&A62 -> Energy - Mobile Combustion - CO2 - Alternative Fuel Vehicles - Buses | C62: =('CO2 Summary'!D27)/1000000 -> 0 | D62: =('CO2 Summary'!E27)/1000000 -> 0 | E62: =('CO2 Summary'!F27)/1000000 -> 0 | F62: =('CO2 Summary'!G27)/1000000 -> 0 | G62: =('CO2 Summary'!H27)/1000000 -> 0 | H62: =('CO2 Summary'!I27)/1000000 -> 0 | I62: =('CO2 Summary'!J27)/1000000 -> 0 | J62: =('CO2 Summary'!K27)/1000000 -> 0 | K62: =('CO2 Summary'!L27)/1000000 -> 0 | L62: =('CO2 Summary'!M27)/1000000 -> 0 | M62: =('CO2 Summary'!N27)/1000000 -> 0 | N62: =('CO2 Summary'!O27)/1000000 -> 0 | O62: =('CO2 Summary'!P27)/1000000 -> 0 | P62: =('CO2 Summary'!Q27)/1000000 -> 0 | Q62: =('CO2 Summary'!R27)/1000000 -> 0 | R62: =('CO2 Summary'!S27)/1000000 -> 0 | S62: =('CO2 Summary'!T27)/1000000 -> 0 | T62: =('CO2 Summary'!U27)/1000000 -> 0 | U62: =('CO2 Summary'!V27)/1000000 -> 0 | V62: =('CO2 Summary'!W27)/1000000 -> 0 | W62: =('CO2 Summary'!X27)/1000000 -> 0 | X62: =('CO2 Summary'!Y27)/1000000 -> 0 | Y62: =('CO2 Summary'!Z27)/1000000 -> 0 | Z62: =('CO2 Summary'!AA27)/1000000 -> 0 | AA62: =('CO2 Summary'!AB27)/1000000 -> 0 | AB62: =('CO2 Summary'!AC27)/1000000 -> 0 | AC62: =('CO2 Summary'!AD27)/1000000 -> 0 | AD62: =('CO2 Summary'!AE27)/1000000 -> 0 | AE62: =('CO2 Summary'!AF27)/1000000 -> 0 | AF62: =('CO2 Summary'!AG27)/1000000 -> 0 | AG62: =('CO2 Summary'!AH27)/1000000 -> 0 | AH62: =('CO2 Summary'!AI27)/1000000 -> 0 | AI62: =('CO2 Summary'!AJ27)/1000000 -> 0 | AJ62: =('CO2 Summary'!AK27)/1000000 -> 0 | AK62: =('CO2 Summary'!AL27)/1000000 -> 0 | AL62: =('CO2 Summary'!AM27)/1000000 -> 0

Sheet Dataframe_Sum (hidden)
A1: MMTCO2e | B1: Category | C1: 1990 | D1: 1991 | E1: 1992 | F1: 1993 | G1: 1994 | H1: 1995 | I1: 1996 | J1: 1997 | K1: 1998 | L1: 1999 | M1: 2000 | N1: 2001 | O1: 2002 | P1: 2003 | Q1: 2004 | R1: 2005 | S1: 2006 | T1: 2007 | U1: 2008 | V1: 2009 | W1: 2010 | X1: 2011 | Y1: 2012 | Z1: 2013 | AA1: 2014 | AB1: 2015 | AC1: 2016 | AD1: 2017 | AE1: 2018 | AF1: 2019 | AG1: 2020 | AH1: 2021 | AI1: 2022 | AJ1: 2023 | AK1: 2024 | AL1: 2025
A2: Total | B2: Energy - Mobile Combustion - CH4 | C2: =(Summary!C54)/1000000 -> 0 | D2: =(Summary!D54)/1000000 -> 0 | E2: =(Summary!E54)/1000000 -> 0 | F2: =(Summary!F54)/1000000 -> 0 | G2: =(Summary!G54)/1000000 -> 0 | H2: =(Summary!H54)/1000000 -> 0 | I2: =(Summary!I54)/1000000 -> 0 | J2: =(Summary!J54)/1000000 -> 0 | K2: =(Summary!K54)/1000000 -> 0 | L2: =(Summary!L54)/1000000 -> 0 | M2: =(Summary!M54)/1000000 -> 0 | N2: =(Summary!N54)/1000000 -> 0 | O2: =(Summary!O54)/1000000 -> 0 | P2: =(Summary!P54)/1000000 -> 0 | Q2: =(Summary!Q54)/1000000 -> 0 | R2: =(Summary!R54)/1000000 -> 0 | S2: =(Summary!S54)/1000000 -> 0 | T2: =(Summary!T54)/1000000 -> 0 | U2: =(Summary!U54)/1000000 -> 0 | V2: =(Summary!V54)/1000000 -> 0 | W2: =(Summary!W54)/1000000 -> 0 | X2: =(Summary!X54)/1000000 -> 0 | Y2: =(Summary!Y54)/1000000 -> 0 | Z2: =(Summary!Z54)/1000000 -> 0 | AA2: =(Summary!AA54)/1000000 -> 0 | AB2: =(Summary!AB54)/1000000 -> 0 | AC2: =(Summary!AC54)/1000000 -> 0 | AD2: =(Summary!AD54)/1000000 -> 0 | AE2: =(Summary!AE54)/1000000 -> 0 | AF2: =(Summary!AF54)/1000000 -> 0 | AG2: =(Summary!AG54)/1000000 -> 0 | AH2: =(Summary!AH54)/1000000 -> 0 | AI2: =(Summary!AI54)/1000000 -> 0 | AJ2: =(Summary!AJ54)/1000000 -> 0 | AK2: =(Summary!AK54)/1000000 -> 0 | AL2: =(Summary!AL54)/1000000 -> 0
A3: Total | B3: Energy - Mobile Combustion - N2O | C3: =(Summary!C80)/1000000 -> 0 | D3: =(Summary!D80)/1000000 -> 0 | E3: =(Summary!E80)/1000000 -> 0 | F3: =(Summary!F80)/1000000 -> 0 | G3: =(Summary!G80)/1000000 -> 0 | H3: =(Summary!H80)/1000000 -> 0 | I3: =(Summary!I80)/1000000 -> 0 | J3: =(Summary!J80)/1000000 -> 0 | K3: =(Summary!K80)/1000000 -> 0 | L3: =(Summary!L80)/1000000 -> 0 | M3: =(Summary!M80)/1000000 -> 0 | N3: =(Summary!N80)/1000000 -> 0 | O3: =(Summary!O80)/1000000 -> 0 | P3: =(Summary!P80)/1000000 -> 0 | Q3: =(Summary!Q80)/1000000 -> 0 | R3: =(Summary!R80)/1000000 -> 0 | S3: =(Summary!S80)/1000000 -> 0 | T3: =(Summary!T80)/1000000 -> 0 | U3: =(Summary!U80)/1000000 -> 0 | V3: =(Summary!V80)/1000000 -> 0 | W3: =(Summary!W80)/1000000 -> 0 | X3: =(Summary!X80)/1000000 -> 0 | Y3: =(Summary!Y80)/1000000 -> 0 | Z3: =(Summary!Z80)/1000000 -> 0 | AA3: =(Summary!AA80)/1000000 -> 0 | AB3: =(Summary!AB80)/1000000 -> 0 | AC3: =(Summary!AC80)/1000000 -> 0 | AD3: =(Summary!AD80)/1000000 -> 0 | AE3: =(Summary!AE80)/1000000 -> 0 | AF3: =(Summary!AF80)/1000000 -> 0 | AG3: =(Summary!AG80)/1000000 -> 0 | AH3: =(Summary!AH80)/1000000 -> 0 | AI3: =(Summary!AI80)/1000000 -> 0 | AJ3: =(Summary!AJ80)/1000000 -> 0 | AK3: =(Summary!AK80)/1000000 -> 0 | AL3: =(Summary!AL80)/1000000 -> 0
A4: Total | B4: Energy - Mobile Combustion - CO2 | C4: =('CO2 Summary'!D28)/1000000 -> 0 | D4: =('CO2 Summary'!E28)/1000000 -> 0 | E4: =('CO2 Summary'!F28)/1000000 -> 0 | F4: =('CO2 Summary'!G28)/1000000 -> 0 | G4: =('CO2 Summary'!H28)/1000000 -> 0 | H4: =('CO2 Summary'!I28)/1000000 -> 0 | I4: =('CO2 Summary'!J28)/1000000 -> 0 | J4: =('CO2 Summary'!K28)/1000000 -> 0 | K4: =('CO2 Summary'!L28)/1000000 -> 0 | L4: =('CO2 Summary'!M28)/1000000 -> 0 | M4: =('CO2 Summary'!N28)/1000000 -> 0 | N4: =('CO2 Summary'!O28)/1000000 -> 0 | O4: =('CO2 Summary'!P28)/1000000 -> 0 | P4: =('CO2 Summary'!Q28)/1000000 -> 0 | Q4: =('CO2 Summary'!R28)/1000000 -> 0 | R4: =('CO2 Summary'!S28)/1000000 -> 0 | S4: =('CO2 Summary'!T28)/1000000 -> 0 | T4: =('CO2 Summary'!U28)/1000000 -> 0 | U4: =('CO2 Summary'!V28)/1000000 -> 0 | V4: =('CO2 Summary'!W28)/1000000 -> 0 | W4: =('CO2 Summary'!X28)/1000000 -> 0 | X4: =('CO2 Summary'!Y28)/1000000 -> 0 | Y4: =('CO2 Summary'!Z28)/1000000 -> 0 | Z4: =('CO2 Summary'!AA28)/1000000 -> 0 | AA4: =('CO2 Summary'!AB28)/1000000 -> 0 | AB4: =('CO2 Summary'!AC28)/1000000 -> 0 | AC4: =('CO2 Summary'!AD28)/1000000 -> 0 | AD4: =('CO2 Summary'!AE28)/1000000 -> 0 | AE4: =('CO2 Summary'!AF28)/1000000 -> 0 | AF4: =('CO2 Summary'!AG28)/1000000 -> 0 | AG4: =('CO2 Summary'!AH28)/1000000 -> 0 | AH4: =('CO2 Summary'!AI28)/1000000 -> 0 | AI4: =('CO2 Summary'!AJ28)/1000000 -> 0 | AJ4: =('CO2 Summary'!AK28)/1000000 -> 0 | AK4: =('CO2 Summary'!AL28)/1000000 -> 0 | AL4: =('CO2 Summary'!AM28)/1000000 -> 0
A5: Total | B5: Energy - Mobile Combustion | C5: =SUM(C2:C4) -> 0 | D5: =SUM(D2:D4) -> 0 | E5: 0 | F5: 0 | G5: 0 | H5: 0 | I5: 0 | J5: 0 | K5: 0 | L5: 0 | M5: 0 | N5: 0 | O5: 0 | P5: 0 | Q5: 0 | R5: 0 | S5: 0 | T5: 0 | U5: 0 | V5: 0 | W5: 0 | X5: 0 | Y5: 0 | Z5: 0 | AA5: 0 | AB5: 0 | AC5: 0 | AD5: 0 | AE5: 0 | AF5: 0 | AG5: 0 | AH5: =SUM(AH2:AH4) -> 0 | AI5: =SUM(AI2:AI4) -> 0 | AJ5: =SUM(AJ2:AJ4) -> 0 | AK5: =SUM(AK2:AK4) -> 0 | AL5: =SUM(AL2:AL4) -> 0

Sheet Highway1
A1: 4a. Highway Vehicles - Emission Factors and VMT
A4: 1. Verify the Emission Factors that are used to calculate CH4 and N2O emissions from Highway Vehicles. | K4: Click for Code Help
A6: N2O Emission Factors (g/mile traveled) | AO6: N2O Emission Factors (g/mile traveled) | AQ6: 2 | AR6: 3 | AS6: 4 | AT6: 5 | AU6: 6 | AV6: 7 | AW6: 8 | AX6: 9 | AY6: 10
A7: Control Technology | D7: LDGV | E7: LDGT | F7: HDGV | G7: LDDV | H7: LDDT | I7: HDDV | J7: HDDB | K7: MC | AO7: Control Technology | AR7: LDGV | AS7: LDGT | AT7: HDGV | AU7: LDDV | AV7: LDDT | AW7: HDDV | AX7: HDDB | AY7: MC
D8: 2 | E8: 3 | F8: 4 | G8: 5 | H8: 6 | I8: 7 | J8: 8 | K8: 9 | AR8: 2 | AS8: 3 | AT8: 4 | AU8: 5 | AV8: 6 | AW8: 7 | AY8: 8
A9: Three-way Catalyst (T3) | C9: T3 | AP9: Tier 3 | AQ9: T3 | AR9: 0.001481484432 | AS9: 0.001242479532 | AT9: 0.006331290323 | AZ9: 0
A10: Low Emission Vehicle 3 | C10: L3 | AP10: LEV 3 | AQ10: L3 | AR10: 0.001198982036 | AS10: 0.001202210884 | AT10: 0.01363855422
A11: Three-way Catalyst (T2) | C11: T2 | AO11: Three-way Catalyst (T2) | AQ11: T2 | AR11: 0.004815662651 | AS11: 0.002517391304 | AT11: 0.0015
A12: Low Emission Vehicle 2 | C12: L2 | AP12: LEV 2 | AQ12: L2 | AR12: 0.004336 | AS12: 0.00565 | AT12: 0.004875
A13: Three-way Catalyst (T1) | C13: T1 | AO13: Three-way Catalyst (T1) | AQ13: T1 | AR13: 0.04291618783 | AS13: 0.08708610602 | AT13: 0.1749727031
A14: Early 3-way Catalyst (T0) | C14: T0 | AO14: Early 3-way Catalyst (T0) | AQ14: T0 | AR14: 0.06472822372 | AS14: 0.1056154536 | AT14: 0.2134769357
A15: Oxidation Catalyst | C15: O | AO15: Oxidation Catalyst | AQ15: O | AR15: 0.05036295214 | AS15: 0.06393850077 | AT15: 0.131651176
A16: Non-Catalyst | C16: N | AO16: Non-Catalyst | AQ16: N | AR16: 0.01969592508 | AS16: 0.02177589829 | AT16: 0.0473472274 | AY16: 0.006850825356
A17: Low Emission Vehicle | C17: L | AO17: LEV | AQ17: L | AR17: 0.02054914563 | AS17: 0.02231229497 | AT17: 0.04661596648
A18: Aftertreatment | C18: AF | AP18: Aftertreatment | AQ18: AF | AU18: 0.01918 | AV18: 0.02141186441 | AW18: 0.0430915493 | AX18: 0.07411746479
A19: Advanced | C19: A | AO19: Advanced | AQ19: A | AU19: 0.001045379303 | AV19: 0.001449134225 | AW19: 0.004844510227 | AX19: 0.008332557591 | AY19: 0.01788596312
A20: Moderate | C20: M | AO20: Moderate | AQ20: M | AU20: 0.001045379303 | AV20: 0.001449134225 | AW20: 0.004844510227 | AX20: 0.008332557591
A21: Uncontrolled | C21: U | AO21: Uncontrolled | AQ21: U | AR21: 0.01969592508 | AS21: 0.02201527808 | AT21: 0.04968651729 | AU21: 0.00123924572 | AV21: 0.00167445409 | AW21: 0.004844510227 | AX21: 0.008332557591 | AY21: 0.008732215047
D22: Source: Default values from EPA, 2024. Inventory of U.S. Greenhouse Gas Emissions and Sinks: 1990-2022.
A23: CH4 Emission Factors (g/mile traveled) | AO23: CH4 Emission Factors (g/mile traveled)
A24: Control Technology | D24: LDGV | E24: LDGT | F24: HDGV | G24: LDDV | H24: LDDT | I24: HDDV | J24: HDDB | K24: MC | AO24: Control Technology | AR24: LDGV | AS24: LDGT | AT24: HDGV | AU24: LDDV | AV24: LDDT | AW24: HDDV | AX24: HDDB | AY24: MC
A25: Three-way Catalyst (T3) | C25: T3 | AP25: Tier 3 | AQ25: T3 | AR25: 0.005535525066 | AS25: 0.009231681818 | AT25: 0.02522786378 | AZ25: 0
A26: Low Emission Vehicle 3 | C26: L3 | AP26: LEV 3 | AQ26: L3 | AR26: 0.004522956522 | AS26: 0.006519101449 | AT26: 0.04111325301
A27: Three-way Catalyst (T2) | C27: T2 | AO27: Three-way Catalyst (T2) | AQ27: T2 | AR27: 0.007237242718 | AS27: 0.01001779923 | AT27: 0.02969852941
A28: Low Emission Vehicle 2 | C28: L2 | AP28: LEV 2 | AQ28: L2 | AR28: 0.00702 | AS28: 0.008421846154 | AT28: 0.03912790698
A29: Three-way Catalyst (T1) | C29: T1 | AO29: Three-way Catalyst (T1) | AQ29: T1 | AR29: 0.02709343323 | AS29: 0.04519960877 | AT29: 0.06552047974
A30: Early 3-way Catalyst (T0) | C30: T0 | AO30: Early 3-way Catalyst (T0) | AQ30: T0 | AR30: 0.07039956094 | AS30: 0.07759099817 | AT30: 0.2629672782
A31: Oxidation Catalyst | C31: O | AO31: Oxidation Catalyst | AQ31: O | AR31: 0.1354940918 | AS31: 0.1515777888 | AT31: 0.2356370049
A32: Non-Catalyst | C32: N | AO32: Non-Catalyst | AQ32: N | AR32: 0.1695757087 | AS32: 0.1908207837 | AT32: 0.4180759569 | AY32: 0.06720462876
A33: Low Emission Vehicle | C33: L | AO33: LEV | AQ33: L | AR33: 0.01 | AS33: 0.01481903938 | AT33: 0.03
A34: Aftertreatment | C34: AF | AP34: Aftertreatment | AQ34: AF | AU34: 0.03022878788 | AV34: 0.02897164179 | AW34: 0.00946835443 | AX34: 0.01287696203
A35: Advanced | C35: A | AO35: Advanced | AQ35: A | AU35: 0.0004756000153 | AV35: 0.0009311680102 | AW35: 0.00514480625 | AX35: 0.006996936499 | AY35: 0.06613969004
A36: Moderate | C36: M | AO36: Moderate | AQ36: M | AU36: 0.0004756000153 | AV36: 0.0009311680102 | AW36: 0.00514480625 | AX36: 0.006996936499
A37: Uncontrolled | C37: U | AO37: Uncontrolled | AQ37: U | AR37: 0.1779539552 | AS37: 0.2024499974 | AT37: 0.46040836 | AU37: 0.0005638004137 | AV37: 0.001075951458 | AW37: 0.00514480625 | AX37: 0.006996936499 | AY37: 0.08989276036
D38: Source: Default values from EPA, 2024. Inventory of U.S. Greenhouse Gas Emissions and Sinks: 1990-2022.
A40: 2. Enter state-specific data on vehicle miles traveled (VMT) by vehicle type.
A41: Enter custom data in the table below, or use the provided default data.*
B42: State Total Vehicle Miles Traveled (Millions)
D43: 1990 | E43: 1991 | F43: 1992 | G43: 1993 | H43: 1994 | I43: 1995 | J43: 1996 | K43: 1997 | L43: 1998 | M43: 1999 | N43: 2000 | O43: 2001 | P43: 2002 | Q43: 2003 | R43: 2004 | S43: 2005 | T43: 2006 | U43: 2007 | V43: 2008 | W43: 2009 | X43: 2010 | Y43: 2011 | Z43: 2012 | AA43: 2013 | AB43: 2014 | AC43: 2015 | AD43: 2016 | AE43: 2017 | AF43: 2018 | AG43: 2019 | AH43: 2020 | AI43: 2021 | AJ43: 2022 | AK43: 2023 | AL43: 2024 | AM43: 2025
B44: HDDB | C44: 2
B45: HDDV | C45: 2
B46: HDGV | C46: 3
B47: LDDT | C47: 4
B48: LDDV | C48: 5
B49: LDGT | C49: 6
B50: LDGV | C50: 7
B51: MC | C51: 8
B52: Total
B53: * Default data for this table is not complete for all years and vehicle types by state. Null values signify unavailable data.
B54: Values are derived from tables VM-1 and VM-2 of Federal Highway Administration's "Highway Statistics" series (https://www.fhwa.dot.gov/policyinformation/statistics.cfm). Please see these reports for specific notes on state-
B55: reported data.

Sheet Highway2
A1: 4b. Highway Vehicles - Allocating VMT by Model Year
A3: 3. Verify the Age Distribution and Annual Vehicle Mileage Accumulation. | DR3: Update These Tables! | EC3: 1999LDGV | ED3: 1999LDGT | EE3: 1999HDGV | EF3: 1999LDDV | EG3: 1999LDDT | EH3: 1999HDDV | EI3: 1999MC | EJ3: 1999HDDB | EM3: 2000LDGV | EN3: 2000LDGT | EO3: 2000HDGV | EP3: 2000LDDV | EQ3: 2000LDDT | ER3: 2000HDDV | ES3: 2000MC | ET3: 2000HDDB | EW3: 2001LDGV | EX3: 2001LDGT | EY3: 2001HDGV | EZ3: 2001LDDV | FA3: 2001LDDT | FB3: 2001HDDV | FC3: 2001MC | FD3: 2001HDDB | FG3: 2002LDGV | FH3: 2002LDGT | FI3: 2002HDGV | FJ3: 2002LDDV | FK3: 2002LDDT | FL3: 2002HDDV | FM3: 2002MC | FN3: 2002HDDB | FQ3: 2003LDGV | FR3: 2003LDGT | FS3: 2003HDGV | FT3: 2003LDDV | FU3: 2003LDDT | FV3: 2003HDDV | FW3: 2003MC | FX3: 2003HDDB | GA3: 2004LDGV | GB3: 2004LDGT | GC3: 2004HDGV | GD3: 2004LDDV | GE3: 2004LDDT | GF3: 2004HDDV | GG3: 2004MC | GH3: 2004HDDB | GK3: 2005LDGV | GL3: 2005LDGT | GM3: 2005HDGV | GN3: 2005LDDV | GO3: 2005LDDT | GP3: 2005HDDV | GQ3: 2005MC | GR3: 2005HDDB | GU3: 2006LDGV | GV3: 2006LDGT | GW3: 2006HDGV | GX3: 2006LDDV | GY3: 2006LDDT | GZ3: 2006HDDV | HA3: 2006MC | HB3: 2006HDDB | HE3: 2007LDGV | HF3: 2007LDGT | HG3: 2007HDGV | HH3: 2007LDDV | HI3: 2007LDDT | HJ3: 2007HDDV | HK3: 2007MC | HL3: 2007HDDB | HO3: 2008LDGV | HP3: 2008LDGT | HQ3: 2008HDGV | HR3: 2008LDDV | HS3: 2008LDDT | HT3: 2008HDDV | HU3: 2008MC | HV3: 2008HDDB | HY3: 2009LDGV | HZ3: 2009LDGT | IA3: 2009HDGV | IB3: 2009LDDV | IC3: 2009LDDT | ID3: 2009HDDV | IE3: 2009MC | IF3: 2009HDDB | II3: 2010LDGV | IJ3: 2010LDGT | IK3: 2010HDGV | IL3: 2010LDDV | IM3: 2010LDDT | IN3: 2010HDDV | IO3: 2010MC | IP3: 2010HDDB | IS3: 2011LDGV | IT3: 2011LDGT | IU3: 2011HDGV | IV3: 2011LDDV | IW3: 2011LDDT | IX3: 2011HDDV | IY3: 2011MC | IZ3: 2011HDDB | JC3: 2012LDGV | JD3: 2012LDGT | JE3: 2012HDGV | JF3: 2012LDDV | JG3: 2012LDDT | JH3: 2012HDDV | JI3: 2012MC | JJ3: 2012HDDB | JM3: 2013LDGV | JN3: 2013LDGT | JO3: 2013HDGV | JP3: 2013LDDV | JQ3: 2013LDDT | JR3: 2013HDDV | JS3: 2013MC | JT3: 2013HDDB
A4: • The data in these tables are used to calculate percentage of VMT allocated to each model year vehicle. Use the arrow buttons to select the year you would like to estimate. For that selected year, estimates will populate the yellow shaded cells in Table I and Table II. • In Table I below, review the values for annual vehicle mileage accumulation. If you wish to change any values, simply type your values in the yellow shaded cells. These values will remain constant for all inventory years. Next, review the values for vehicle age distribution in Table II. Again, you may type over any values in the yellow shaded cells you wish to change. These values in Table II may differ among inventory years. If you would like to restore the original values, click on the "Restore Default Data" button. If you would like to clear default data in Table I and Table II, click on the "Clear Age Distribution Entries" and "Clear Mileage Accumulation Entries" buttons. • Once you have finished entering data for a particular year, click on the "Save Data" button, and your entries for the selected year will be saved. • If you would like to use default data for all inventory years, you may bypass the above steps by clicking on the "Restore Default Data for All Years" button. Table I and II will not have values, however values will be populated and saved in the white tables below. | DR4: Table IIa: Age Distribution, 1998 and earlier Each column must add up to 100%. | EB4: Table IIb: Age Distribution, 1999. Each column must add up to 100%. | EL4: Table IIc: Age Distribution, 2000. Each column must add up to 100%. | EV4: Table IId: Age Distribution, 2001. Each column must add up to 100%. | FF4: Table IIe: Age Distribution, 2002. Each column must add up to 100%. | FP4: Table IIf: Age Distribution, 2003. Each column must add up to 100%. | FZ4: Table IIg: Age Distribution, 2004. Each column must add up to 100%. | GJ4: Table IIh: Age Distribution, 2005. Each column must add up to 100%. | GT4: Table IIi: Age Distribution, 2006. Each column must add up to 100%. | HD4: Table IIj: Age Distribution, 2007. Each column must add up to 100%. | HN4: Table IIk: Age Distribution, 2008. Each column must add up to 100%. | HX4: Table IIl: Age Distribution, 2009. Each column must add up to 100%. | IH4: Table IIm: Age Distribution, 2010. Each column must add up to 100%. | IR4: Table IIn: Age Distribution, 2011. Each column must add up to 100%. | JB4: Table IIo: Age Distribution, 2012. Each column must add up to 100%. | JL4: Table IIp: Age Distribution, 2013. Each column must add up to 100%.
DR5: MY | DS5: LDGV | DT5: LDGT | DU5: HDGV | DV5: LDDV | DW5: LDDT | DX5: HDDV | DY5: MC | DZ5: HDDB | EB5: MY | EC5: LDGV | ED5: LDGT | EE5: HDGV | EF5: LDDV | EG5: LDDT | EH5: HDDV | EI5: MC | EJ5: HDDB | EL5: MY | EM5: LDGV | EN5: LDGT | EO5: HDGV | EP5: LDDV | EQ5: LDDT | ER5: HDDV | ES5: MC | ET5: HDDB | EV5: MY | EW5: LDGV | EX5: LDGT | EY5: HDGV | EZ5: LDDV | FA5: LDDT | FB5: HDDV | FC5: MC | FD5: HDDB | FF5: MY | FG5: LDGV | FH5: LDGT | FI5: HDGV | FJ5: LDDV | FK5: LDDT | FL5: HDDV | FM5: MC | FN5: HDDB | FP5: MY | FQ5: LDGV | FR5: LDGT | FS5: HDGV | FT5: LDDV | FU5: LDDT | FV5: HDDV | FW5: MC | FX5: HDDB | FZ5: MY | GA5: LDGV | GB5: LDGT | GC5: HDGV | GD5: LDDV | GE5: LDDT | GF5: HDDV | GG5: MC | GH5: HDDB | GJ5: MY | GK5: LDGV | GL5: LDGT | GM5: HDGV | GN5: LDDV | GO5: LDDT | GP5: HDDV | GQ5: MC | GR5: HDDB | GT5: MY | GU5: LDGV | GV5: LDGT | GW5: HDGV | GX5: LDDV | GY5: LDDT | GZ5: HDDV | HA5: MC | HB5: HDDB | HD5: MY | HE5: LDGV | HF5: LDGT | HG5: HDGV | HH5: LDDV | HI5: LDDT | HJ5: HDDV | HK5: MC | HL5: HDDB | HN5: MY | HO5: LDGV | HP5: LDGT | HQ5: HDGV | HR5: LDDV | HS5: LDDT | HT5: HDDV | HU5: MC | HV5: HDDB | HX5: MY | HY5: LDGV | HZ5: LDGT | IA5: HDGV | IB5: LDDV | IC5: LDDT | ID5: HDDV | IE5: MC | IF5: HDDB | IH5: MY | II5: LDGV | IJ5: LDGT | IK5: HDGV | IL5: LDDV | IM5: LDDT | IN5: HDDV | IO5: MC | IP5: HDDB | IR5: MY | IS5: LDGV | IT5: LDGT | IU5: HDGV | IV5: LDDV | IW5: LDDT | IX5: HDDV | IY5: MC | IZ5: HDDB | JB5: MY | JC5: LDGV | JD5: LDGT | JE5: HDGV | JF5: LDDV | JG5: LDDT | JH5: HDDV | JI5: MC | JJ5: HDDB | JL5: MY | JM5: LDGV | JN5: LDGT | JO5: HDGV | JP5: LDDV | JQ5: LDDT | JR5: HDDV | JS5: MC | JT5: HDDB
F6: 2022 | DR6: 0 | DS6: 0.05298464138 | DT6: 0.0584797241 | DU6: 0.04868271471 | DV6: 0.05298464138 | DW6: 0.05941360611 | DX6: 0.04196141594 | DY6: 0.144 | DZ6: 0.04196141594 | EB6: 0 | EC6: 0.09657977161 | ED6: 0.1583621256 | EE6: 0.09077996757 | EF6: 0.01785791953 | EG6: 0.2393358547 | EH6: 0.1048394003 | EI6: 0.06143108086 | EJ6: 0.0902265764 | EL6: 0 | EM6: 0.09846251039 | EN6: 0.1535186712 | EO6: 0.096092815 | EP6: 0.02827637282 | EQ6: 0.149082069 | ER6: 0.1198999805 | ES6: 0.07564083121 | ET6: 0.08832926348 | EV6: 0 | EW6: 0.08669770226 | EX6: 0.1393616621 | EY6: 0.04898082968 | EZ6: 0.03163978946 | FA6: 0.2199040508 | FB6: 0.07985368951 | FC6: 0.08273284008 | FD6: 0.07816903952 | FF6: 0 | FG6: 0.0864849496 | FH6: 0.1341369192 | FI6: 0.06044409908 | FJ6: 0.05116773725 | FK6: 0.1453640155 | FL6: 0.06407525569 | FM6: 0.0920478844 | FN6: 0.08706747945 | FP6: 0 | FQ6: 0.07718190705 | FR6: 0.1200550286 | FS6: 0.05459875509 | FT6: 0.04562255408 | FU6: 0.1421555908 | FV6: 0.06826411394 | FW6: 0.1005928497 | FX6: 0.07441969566 | FZ6: 0 | GA6: 0.06944541834 | GB6: 0.1143648057 | GC6: 0.06088355985 | GD6: 0.03520050091 | GE6: 0.1329786335 | GF6: 0.07004885946 | GG6: 0.1071105299 | GH6: 0.07476162842 | GJ6: 0 | GK6: 0.06530322346 | GL6: 0.1010077272 | GM6: 0.04481011835 | GN6: 0.05412147599 | GO6: 0.1278044788 | GP6: 0.08726814498 | GQ6: 0.1133885444 | GR6: 0.07072802641 | GT6: 0 | GU6: 0.06072656727 | GV6: 0.06072656727 | GW6: 0.06072656727 | GX6: 0.06072656727 | GY6: 0.06072656727 | GZ6: 0.06072656727 | HA6: 0.06072656727 | HB6: 0.06072656727 | HD6: 0 | HE6: 0.06043262795 | HF6: 0.07737328756 | HG6: 0.03692191781 | HH6: 0.004041224006 | HI6: 0.08878581127 | HJ6: 0.09155896183 | HK6: 0.116678684 | HL6: 0.06183500753 | HN6: 0 | HO6: 0.05221311256 | HP6: 0.06796863563 | HQ6: 0.03722037528 | HR6: 0.005931495975 | HS6: 0.08926961466 | HT6: 0.04477343091 | HU6: 0.1147523735 | HV6: 0.0558654709 | HX6: 0 | HY6: 0.03998018462 | HZ6: 0.03774262933 | IA6: 0.0182884029 | IB6: 0.06501855285 | IC6: 0.03474648297 | ID6: 0.02742374785 | IE6: 0.06581609885 | IF6: 0.03883896229 | IH6: 0 | II6: 0.04510444106 | IJ6: 0.04739308941 | IK6: 0.02066716988 | IL6: 0.1038541657 | IM6: 0.03692388505 | IN6: 0.02269099874 | IO6: 0.06002387362 | IP6: 0.03422581557 | IR6: 0 | IS6: 0.04167778078 | IT6: 0.05053859864 | IU6: 0.03248318843 | IV6: 0.1126924151 | IW6: 0.05892224833 | IX6: 0.0354446678 | IY6: 0.05853690876 | IZ6: 0.04090206384 | JB6: 0 | JC6: 0.06724071972 | JD6: 0.07424043999 | JE6: 0.0552057452 | JF6: 0.1644406598 | JG6: 0.08312101312 | JH6: 0.05465488151 | JI6: 0.06760787877 | JJ6: 0.05135361463 | JL6: 0 | JM6: 0.06852644233 | JN6: 0.07580789581 | JO6: 0.05725741083 | JP6: 0.1540283241 | JQ6: 0.08381265273 | JR6: 0.05571206932 | JS6: 0.06899681509 | JT6: 0.0532020907
F7: =IF(ToggleYear=1998,"Values for years 1990-1998 are assumed to be equal.",0) -> 0 | CO7: Update this Table. | DR7: 1 | DS7: 0.07063997639 | DT7: 0.07642771043 | DU7: 0.08886491444 | DV7: 0.07063997639 | DW7: 0.07379885048 | DX7: 0.07779218962 | DY7: 0.168 | DZ7: 0.07779218962 | EB7: 1 | EC7: 0.08552417604 | ED7: 0.1265556989 | EE7: 0.03867928559 | EF7: 0.01858704611 | EG7: 0.09747954804 | EH7: 0.07135533069 | EI7: 0.05267581231 | EJ7: 0.07673804384 | EL7: 1 | EM7: 0.09202818722 | EN7: 0.1338280035 | EO7: 0.09303255545 | EP7: 0.01928248877 | EQ7: 0.2036767119 | ER7: 0.09796102275 | ES7: 0.05960258018 | ET7: 0.08537636972 | EV7: 1 | EW7: 0.09307539581 | EX7: 0.1316202998 | EY7: 0.09112537044 | EZ7: 0.02935236289 | FA7: 0.1151290372 | FB7: 0.1122281125 | FC7: 0.06938301247 | FD7: 0.08613877141 | FF7: 1 | FG7: 0.08510961872 | FH7: 0.1205389611 | FI7: 0.04921106688 | FJ7: 0.03476373235 | FK7: 0.1862395397 | FL7: 0.07843389598 | FM7: 0.08290341294 | FN7: 0.07457342665 | FP7: 1 | FQ7: 0.08470878142 | FR7: 0.1176762871 | FS7: 0.05888287018 | FT7: 0.05501354187 | FU7: 0.1252550921 | FV7: 0.06168475509 | FW7: 0.08746830989 | FX7: 0.08385113204 | FZ7: 1 | GA7: 0.07531450201 | GB7: 0.1060694621 | GC7: 0.05259753318 | GD7: 0.04821763933 | GE7: 0.1236766641 | GF7: 0.06523019964 | GG7: 0.09435634508 | GH7: 0.07102267118 | GJ7: 1 | GK7: 0.06837130112 | GL7: 0.1026223993 | GM7: 0.05873849351 | GN7: 0.0366825891 | GO7: 0.1162862408 | GP7: 0.06501976559 | GQ7: 0.1001632391 | GR7: 0.07260219604 | GT7: 1 | GU7: 0.06523038344 | GV7: 0.06523038344 | GW7: 0.06523038344 | GX7: 0.06523038344 | GY7: 0.06523038344 | GZ7: 0.06523038344 | HA7: 0.06523038344 | HB7: 0.06523038344 | HD7: 1 | HE7: 0.06001730956 | HF7: 0.08000535655 | HG7: 0.05299684328 | HH7: 0.08133107702 | HI7: 0.1155292121 | HJ7: 0.08192058123 | HK7: 0.1105951252 | HL7: 0.07263994857 | HN7: 1 | HO7: 0.05992472794 | HP7: 0.07312024487 | HQ7: 0.03623036396 | HR7: 0.004367114027 | HS7: 0.08220054784 | HT7: 0.09035659532 | HU7: 0.1073012147 | HV7: 0.06087802108 | HX7: 1 | HY7: 0.05284489024 | HZ7: 0.06581083499 | IA7: 0.03739418279 | IB7: 0.006180548146 | IC7: 0.08691071999 | ID7: 0.04444188812 | IE7: 0.1179401664 | IF7: 0.05644118368 | IH7: 1 | II7: 0.04123935822 | IJ7: 0.03608854434 | IK7: 0.01864556472 | IL7: 0.06891415481 | IM7: 0.03370357545 | IN7: 0.02790992084 | IO7: 0.06523690509 | IP7: 0.03905589912 | IR7: 1 | IS7: 0.04690859889 | IT7: 0.04502482559 | IU7: 0.02168707436 | IV7: 0.1091215351 | IW7: 0.034764697 | IX7: 0.02343785933 | IY7: 0.05651732345 | IZ7: 0.04185520886 | JB7: 1 | JC7: 0.04157819665 | JD7: 0.04983072944 | JE7: 0.03133448808 | JF7: 0.1016546394 | JG7: 0.05714527179 | JH7: 0.03422842863 | JI7: 0.05841618617 | JJ7: 0.03879116076 | JL7: 1 | JM7: 0.06621126757 | JN7: 0.07245342289 | JO7: 0.05264197661 | JP7: 0.1489322756 | JQ7: 0.08005628275 | JR7: 0.05208184812 | JS7: 0.06670599709 | JT7: 0.04910502288
B8: Table I: Annual Vehicle Mileage Accumulation (miles) | L8: ="Table II: Age Distibution,"&IF(ToggleYear<=1998," 1998 and earlier"," "&ToggleYear)&". Each column must add up to 100%." -> Table II: Age Distibution, 2022. Each column must add up to 100%. | CE8: Lookup % Distribution Table | CO8: Table I: Annual Vehicle Mileage Accumulation (miles) | DR8: 2 | DS8: 0.07060684236 | DT8: 0.07476075757 | DU8: 0.08111313434 | DV8: 0.07060684236 | DW8: 0.06875023513 | DX8: 0.07212174671 | DY8: 0.135 | DZ8: 0.07212174671 | EB8: 2 | EC8: 0.08434021498 | ED8: 0.1164373665 | EE8: 0.077895376 | EF8: 0.007524850761 | EG8: 0.1361659491 | EH8: 0.07761017869 | EI8: 0.05991142397 | EJ8: 0.09135877788 | EL8: 2 | EM8: 0.08147922066 | EN8: 0.1073284042 | EO8: 0.04017295255 | EP8: 0.02006617058 | EQ8: 0.08252868062 | ER8: 0.06729448555 | ES8: 0.05002724009 | ET8: 0.07265271658 | EV8: 2 | EW8: 0.08697006703 | EX8: 0.1150523682 | EY8: 0.08842159979 | EZ8: 0.02001096487 | FA8: 0.1591858181 | FB8: 0.09166309217 | FC8: 0.0546714914 | FD8: 0.08325880079 | FF8: 2 | FG8: 0.0914036677 | FH8: 0.1139661675 | FI8: 0.09145504067 | FJ8: 0.03226218468 | FK8: 0.09805070129 | FL8: 0.110187361 | FM8: 0.06639674482 | FN8: 0.08211504019 | FP8: 2 | FQ8: 0.08333036233 | FR8: 0.1058001858 | FS8: 0.04793778698 | FT8: 0.03736245293 | FU8: 0.1580750049 | FV8: 0.07554919014 | FW8: 0.07696737137 | FX8: 0.07176676543 | FZ8: 2 | GA8: 0.08266181293 | GB8: 0.1039714401 | GC8: 0.05672472817 | GD8: 0.05814427968 | GE8: 0.1089820636 | GF8: 0.05901084824 | GG8: 0.08030869913 | GH8: 0.08003287262 | GJ8: 2 | GK8: 0.07415761099 | GL8: 0.09518365737 | GM8: 0.05074430956 | GN8: 0.05025336863 | GO8: 0.108152145 | GP8: 0.06064367318 | GQ8: 0.0862216964 | GR8: 0.06895583014 | GT8: 2 | GU8: 0.0682893367 | GV8: 0.0682893367 | GW8: 0.0682893367 | GX8: 0.0682893367 | GY8: 0.0682893367 | GZ8: 0.0682893367 | HA8: 0.0682893367 | HB8: 0.0682893367 | HD8: 2 | HE8: 0.06448051987 | HF8: 0.08487749897 | HG8: 0.04089213949 | HH8: 0.06060815105 | HI8: 0.102173098 | HJ8: 0.07446628595 | HK8: 0.0963876679 | HL8: 0.06691211266 | HN8: 2 | HO8: 0.05949545514 | HP8: 0.07558688303 | HQ8: 0.0520041667 | HR8: 0.0878638389 | HS8: 0.1070090421 | HT8: 0.08072257068 | HU8: 0.1002009078 | HV8: 0.07154677667 | HX8: 2 | HY8: 0.06063317733 | HZ8: 0.07076219544 | IA8: 0.03639954094 | IB8: 0.004549232652 | IC8: 0.07997170886 | ID8: 0.08976737504 | IE8: 0.1058911638 | IF8: 0.06147388782 | IH8: 2 | II8: 0.05456916827 | IJ8: 0.06303345221 | IK8: 0.038124414 | IL8: 0.006558542125 | IM8: 0.08444124149 | IN8: 0.04517928075 | IO8: 0.1155994837 | IP8: 0.0566737338 | IR8: 2 | IS8: 0.04285494574 | IT8: 0.03427632868 | IU8: 0.0195658478 | IV8: 0.07235852575 | IW8: 0.03173636134 | IX8: 0.02883411805 | IY8: 0.06142325776 | IZ8: 0.04890789754 | JB8: 2 | JC8: 0.04680729017 | JD8: 0.04442364508 | JE8: 0.02092015612 | JF8: 0.09843331538 | JG8: 0.03371114119 | JH8: 0.02263361869 | JI8: 0.05500818486 | JJ8: 0.03969510868 | JL8: 2 | JM8: 0.04094368037 | JN8: 0.04862619672 | JO8: 0.02987920441 | JP8: 0.09206747954 | JQ8: 0.05503137355 | JR8: 0.03261696562 | JS8: 0.05639279747 | JT8: 0.03709261485
B9: MY | C9: LDGV | D9: LDGT | E9: HDGV | F9: LDDV | G9: LDDT | H9: HDDV | I9: MC | J9: HDDB | L9: MY | M9: LDGV | N9: LDGT | O9: HDGV | P9: LDDV | Q9: LDDT | R9: HDDV | S9: MC | T9: HDDB | CE9: MY | CF9: LDGV | CG9: LDGT | CH9: HDGV | CI9: LDDV | CJ9: LDDT | CK9: HDDV | CL9: MC | CM9: HDDB | CO9: MY | CP9: LDGV | CQ9: LDGT | CR9: HDGV | CS9: LDDV | CT9: LDDT | CU9: HDDV | CV9: MC | CW9: HDDB | DR9: 3 | DS9: 0.07050379095 | DT9: 0.07285607365 | DU9: 0.07404346028 | DV9: 0.07050379095 | DW9: 0.06404695399 | DX9: 0.06687569154 | DY9: 0.109 | DZ9: 0.06687569154 | EB9: 3 | EC9: 0.07613111584 | ED9: 0.08709083197 | EE9: 0.05272949446 | EF9: 0.009309602908 | EG9: 0.08348091912 | EH9: 0.07272514752 | EI9: 0.06100667652 | EJ9: 0.07487525845 | EL9: 3 | EM9: 0.07935715153 | EN9: 0.09847163323 | EO9: 0.07523293896 | EP9: 0.008023185183 | EQ9: 0.1144308477 | ER9: 0.0686268633 | ES9: 0.05658763049 | ET9: 0.08351769852 | EV9: 3 | EW9: 0.07631370446 | EX9: 0.09261988088 | EY9: 0.03828194215 | EZ9: 0.02063842455 | FA9: 0.06412626046 | FB9: 0.06246419662 | FC9: 0.0458884358 | FD9: 0.0667181226 | FF9: 3 | FG9: 0.08380849105 | FH9: 0.09979248201 | FI9: 0.08677760839 | FJ9: 0.02158280969 | FK9: 0.1369336217 | FL9: 0.08773099167 | FM9: 0.05149933066 | FN9: 0.07680642727 | FP9: 3 | FQ9: 0.08812834938 | FR9: 0.1001207228 | FS9: 0.08810822024 | FT9: 0.0341452202 | FU9: 0.08364101557 | FV9: 0.1042926275 | FW9: 0.0613250703 | FX9: 0.07682575871 | FZ9: 3 | GA9: 0.08010241563 | GB9: 0.09352035592 | GC9: 0.04538277017 | GD9: 0.03889897555 | GE9: 0.1356209828 | GF9: 0.07055739801 | GG9: 0.07045397975 | GH9: 0.06695197407 | GJ9: 3 | GK9: 0.07985244749 | GL9: 0.093303563 | GM9: 0.05426430184 | GN9: 0.0594527774 | GO9: 0.09530890386 | GP9: 0.05361558949 | GQ9: 0.07363318947 | GR9: 0.07500727344 | GT9: 3 | GU9: 0.07236512426 | GV9: 0.07236512426 | GW9: 0.07236512426 | GX9: 0.07236512426 | GY9: 0.07236512426 | GZ9: 0.07236512426 | HA9: 0.07236512426 | HB9: 0.07236512426 | HD9: 3 | HE9: 0.06604176604 | HF9: 0.08622167109 | HG9: 0.05360263696 | HH9: 0.04018578496 | HI9: 0.09289537186 | HJ9: 0.05449867281 | HK9: 0.08329181144 | HL9: 0.06621632882 | HN9: 3 | HO9: 0.06271362383 | HP9: 0.0794479483 | HQ9: 0.03979115718 | HR9: 0.06424068575 | HS9: 0.09384951684 | HT9: 0.07171805785 | HU9: 0.08764237835 | HV9: 0.06413796202 | HX9: 3 | HY9: 0.05860975159 | HZ9: 0.07273724713 | IA9: 0.05143881032 | IB9: 0.08911195803 | IC9: 0.1036195296 | ID9: 0.07859064329 | IE9: 0.09991676397 | IF9: 0.06938972095 | IH9: 3 | II9: 0.06015386935 | IJ9: 0.06732265648 | IK9: 0.03583873541 | IL9: 0.004637151308 | IM9: 0.07719796293 | IN9: 0.0879590398 | IO9: 0.1028521136 | IP9: 0.05974016711 | IR9: 3 | IS9: 0.05466527374 | IT9: 0.0598262384 | IU9: 0.03789971784 | IV9: 0.006638048831 | IW9: 0.07956625446 | IX9: 0.04347226789 | IY9: 0.1088406214 | IZ9: 0.05519554189 | JB9: 3 | JC9: 0.04276354846 | JD9: 0.03382254806 | JE9: 0.01887394232 | JF9: 0.06526571078 | JG9: 0.03076990907 | JH9: 0.02784471158 | JI9: 0.05697240642 | JJ9: 0.04638381232 | JL9: 3 | JM9: 0.0460924574 | JN9: 0.04335300446 | JO9: 0.01994855059 | JP9: 0.08914384836 | JQ9: 0.03245987713 | JR9: 0.02156803631 | JS9: 0.05092667307 | JT9: 0.03795698915
B10: 0 | L10: 0 | CD10: 4 | CE10: 0 | CF10: =IF(ToggleYear<=1998,VLOOKUP($CE10,$DR$6:$DY$36,2,FALSE),IF(AND(ToggleYear>=1999,ToggleYear<=2013),HLOOKUP(ToggleYear&"LDGV",$EC$3:$JS$36,$CD10,FALSE),HLOOKUP(ToggleYear&"LDGV",$DU$40:$JK$73,$CD10,FALSE))) -> 0.05781070667 | CG10: =IF(ToggleYear<=1998,VLOOKUP($CE10,$DR$6:$DY$36,2,FALSE),IF(AND(ToggleYear>=1999,ToggleYear<=2013),HLOOKUP(ToggleYear&"LDGT",$EC$3:$JS$36,$CD10,FALSE),HLOOKUP(ToggleYear&"LDGT",$DU$40:$JK$73,$CD10,FALSE))) -> 0.05584870017 | CH10: =IF(ToggleYear<=1998,VLOOKUP(CE10,$DR$6:$DY$36,2,FALSE),IF(AND(ToggleYear>=1999,ToggleYear<=2013),HLOOKUP(ToggleYear&"HDGV",$EC$3:$JS$36,$CD10,FALSE),HLOOKUP(ToggleYear&"HDGV",$DU$40:$JK$73,CD10,FALSE))) -> 0.05153254025 | CI10: =IF(ToggleYear<=1998,VLOOKUP(CE10,$DR$6:$DY$36,2,FALSE),IF(AND(ToggleYear>=1999,ToggleYear<=2013),HLOOKUP(ToggleYear&"LDDV",$EC$3:$JS$36,$CD10,FALSE),HLOOKUP(ToggleYear&"LDDV",$DU$40:$JK$73,CD10,FALSE))) -> 0.06378684926 | CJ10: =IF(ToggleYear<=1998,VLOOKUP(CE10,$DR$6:$DY$36,2,FALSE),IF(AND(ToggleYear>=1999,ToggleYear<=2013),HLOOKUP(ToggleYear&"LDDT",$EC$3:$JS$36,$CD10,FALSE),HLOOKUP(ToggleYear&"LDDT",$DU$40:$JK$73,CD10,FALSE))) -> 0.09206331148 | CK10: =IF(ToggleYear<=1998,VLOOKUP(CE10,$DR$6:$DY$36,2,FALSE),IF(AND(ToggleYear>=1999,ToggleYear<=2013),HLOOKUP(ToggleYear&"HDDV",$EC$3:$JS$36,$CD10,FALSE),HLOOKUP(ToggleYear&"HDDV",$DU$40:$JK$73,CD10,FALSE))) -> 0.05859016193 | CL10: =IF(ToggleYear<=1998,VLOOKUP(CE10,$DR$6:$DY$36,2,FALSE),IF(AND(ToggleYear>=1999,ToggleYear<=2013),HLOOKUP(ToggleYear&"MC",$EC$3:$JS$36,$CD10,FALSE),HLOOKUP(ToggleYear&"MC",$DU$40:$JK$73,CD10,FALSE))) -> 0.05784848529 | CM10: =IF(ToggleYear<=1998,VLOOKUP(CE10,$DR$6:$DZ$36,2,FALSE),IF(AND(ToggleYear>=1999,ToggleYear<=2013),HLOOKUP(ToggleYear&"HDDB",$EC$3:$JS$36,$CD10,FALSE),HLOOKUP(ToggleYear&"HDDB",$DU$40:$JK$73,CD10,FALSE))) -> 0.05687461889 | CO10: 0 | CP10: 14422.01733 | CQ10: 16300.86749 | CR10: 20030.06939 | CS10: 14422.01318 | CT10: 16300.87676 | CU10: 44970.13608 | CV10: 9417.9713 | CW10: 25011.93956 | DR10: 4 | DS10: 0.07026154343 | DT10: 0.07060646753 | DU10: 0.06759561352 | DV10: 0.07026154343 | DW10: 0.05966548966 | DX10: 0.06202149802 | DY10: 0.088 | DZ10: 0.06202149802 | EB10: 4 | EC10: 0.07564120092 | ED10: 0.0860684013 | EE10: 0.06965301281 | EF10: 0.007011231327 | EG10: 0.08485580499 | EH10: 0.08462012429 | EI10: 0.0402528222 | EJ10: 0.07592592339 | EL10: 4 | EM10: 0.0716085677 | EN10: 0.07372769017 | EO10: 0.0500271405 | EP10: 0.009922719891 | EQ10: 0.07237973917 | ER10: 0.06400004423 | ES10: 0.05765091704 | ET10: 0.06896523167 | EV10: 4 | EW10: 0.07434323611 | EX10: 0.08472387639 | EY10: 0.07169856554 | EZ10: 0.00825389595 | FA10: 0.08816302498 | FB10: 0.06364828295 | FC10: 0.05190620938 | FD10: 0.07742487169 | FF10: 4 | FG10: 0.07333312762 | FH10: 0.08055897497 | FI10: 0.03706039347 | FJ10: 0.02219708911 | FK10: 0.05486811925 | FL10: 0.0591706535 | FM10: 0.04323718535 | FN10: 0.06081761523 | FP10: 4 | FQ10: 0.08068312096 | FR10: 0.08783075248 | FS10: 0.08371281275 | FT10: 0.02280785245 | FU10: 0.1178637104 | FV10: 0.08314755855 | FW10: 0.04730975671 | FX10: 0.07194104542 | FZ10: 4 | GA10: 0.0848282434 | GB10: 0.08857081032 | GC10: 0.08415261067 | GD10: 0.03559722434 | GE10: 0.07209900606 | GF10: 0.0982747981 | GG10: 0.05609673427 | GH10: 0.07172766698 | GJ10: 4 | GK10: 0.07746932582 | GL10: 0.08395713838 | GM10: 0.0434966604 | GN10: 0.03982048098 | GO10: 0.1171432179 | GP10: 0.06469301017 | GQ10: 0.06413765728 | GR10: 0.06304097535 | GT10: 4 | GU10: 0.07780714973 | GV10: 0.07780714973 | GW10: 0.07780714973 | GX10: 0.07780714973 | GY10: 0.07780714973 | GZ10: 0.07780714973 | HA10: 0.07780714973 | HB10: 0.07780714973 | HD10: 4 | HE10: 0.07008775685 | HF10: 0.07997896945 | HG10: 0.04630748754 | HH10: 0.05386632864 | HI10: 0.0863981289 | HJ10: 0.04989416769 | HK10: 0.07103326289 | HL10: 0.06089095287 | HN10: 4 | HO10: 0.06415199939 | HP10: 0.08071011055 | HQ10: 0.05193905263 | HR10: 0.04254132858 | HS10: 0.0852667954 | HT10: 0.05225503004 | HU10: 0.07540873547 | HV10: 0.06313654209 | HX10: 4 | HY10: 0.06199257313 | HZ10: 0.07653820512 | IA10: 0.0395680092 | IB10: 0.06537731709 | IC10: 0.0909698848 | ID10: 0.07022740676 | IE10: 0.08746319651 | IF10: 0.06290979725 | IH10: 4 | II10: 0.05809032746 | IJ10: 0.06928002024 | IK10: 0.05098983526 | IL10: 0.09074421578 | IM10: 0.1001223962 | IN10: 0.07724963237 | IO10: 0.0974448554 | IP10: 0.06786199669 | IR10: 4 | IS10: 0.0599589245 | IT10: 0.06391296519 | IU10: 0.03517764353 | IV10: 0.004670545972 | IW10: 0.0727305048 | IX10: 0.08548857918 | IY10: 0.09683913307 | IZ10: 0.05729034727 | JB10: 4 | JC10: 0.05438243036 | JD10: 0.0585960484 | JE10: 0.0365594732 | JF10: 0.005969525765 | JG10: 0.0765148405 | JH10: 0.04198057173 | JI10: 0.1009537307 | JJ10: 0.05234694698 | JL10: 4 | JM10: 0.04200604717 | JN10: 0.03278115559 | JO10: 0.01799737015 | JP10: 0.05895820031 | JQ10: 0.02942296497 | JR10: 0.02653379226 | JS10: 0.05274523869 | JT10: 0.04435283183
B11: 1 | L11: 1 | CD11: 5 | CE11: 1 | CF11: =IF(ToggleYear<=1998,VLOOKUP($CE11,$DR$6:$DY$36,2,FALSE),IF(AND(ToggleYear>=1999,ToggleYear<=2013),HLOOKUP(ToggleYear&"LDGV",$EC$3:$JS$36,$CD11,FALSE),HLOOKUP(ToggleYear&"LDGV",$DU$40:$JK$73,$CD11,FALSE))) -> 0.05862630028 | CG11: 0.05702585511 | CH11: 0.04968728873 | CI11: 0.05439508143 | CJ11: 0.09110184225 | CK11: 0.05605027245 | CL11: 0.05892016496 | CM11: 0.05431269097 | CO11: 1 | CP11: 14148.3889 | CQ11: 15994.41228 | CR11: 19943.31879 | CS11: 14148.40426 | CT11: 15994.43796 | CU11: 44437.44296 | CV11: 5029.190667 | CW11: 24206.89858 | DR11: 5 | DS11: 0.06978219888 | DT11: 0.06792127718 | DU11: 0.06171436922 | DV11: 0.06978219888 | DW11: 0.05558375796 | DX11: 0.05752880783 | DY11: 0.07 | DZ11: 0.05752880783 | EB11: 5 | EC11: 0.06717126745 | ED11: 0.07356460355 | EE11: 0.05769836054 | EF11: 0.000990652563 | EG11: 0.03958918317 | EH11: 0.06890058666 | EI11: 0.04695961641 | EJ11: 0.05866262038 | EL11: 5 | EM11: 0.07029887304 | EN11: 0.07280662924 | EO11: 0.06635121152 | EP11: 0.007383774155 | EQ11: 0.07094536529 | ER11: 0.07452799301 | ES11: 0.03787733623 | ET11: 0.06931086316 | EV11: 5 | EW11: 0.06659601984 | EX11: 0.0635029393 | EY11: 0.04766846359 | EZ11: 0.01013373566 | FA11: 0.05774408103 | FB11: 0.05928095718 | FC11: 0.05288144594 | FD11: 0.06404998435 | FF11: 5 | FG11: 0.07029454268 | FH11: 0.07350473993 | FI11: 0.06910845515 | FJ11: 0.00873496097 | FK11: 0.07487949757 | FL11: 0.05968166588 | FM11: 0.04948796347 | FN11: 0.07041093853 | FP11: 5 | FQ11: 0.06935132443 | FR11: 0.07108258873 | FS11: 0.03539989956 | FT11: 0.02304260229 | FU11: 0.04702319087 | FV11: 0.05553597414 | FW11: 0.03973687297 | FX11: 0.05574120143 | FZ11: 5 | GA11: 0.07666432114 | GB11: 0.0778264163 | GC11: 0.07986355987 | GD11: 0.02347238689 | GE11: 0.1024497609 | GF11: 0.07821796911 | GG11: 0.04307935523 | GH11: 0.066877878 | GJ11: 5 | GK11: 0.08115306149 | GL11: 0.07956768643 | GM11: 0.08076758352 | GN11: 0.03604644508 | GO11: 0.06253834576 | GP11: 0.09035105652 | GQ11: 0.05104952092 | GR11: 0.0671199188 | GT11: 5 | GU11: 0.07431164403 | GV11: 0.07431164403 | GW11: 0.07431164403 | GX11: 0.07431164403 | GY11: 0.07431164403 | GZ11: 0.07431164403 | HA11: 0.07431164403 | HB11: 0.07431164403 | HD11: 5 | HE11: 0.0740195351 | HF11: 0.07840322086 | HG11: 0.04951959047 | HH11: 0.06250260643 | HI11: 0.07614797602 | HJ11: 0.0436976025 | HK11: 0.06160962943 | HL11: 0.06584079483 | HN11: 5 | HO11: 0.06721975588 | HP11: 0.07498776634 | HQ11: 0.04484006772 | HR11: 0.05630130583 | HS11: 0.07944082454 | HT11: 0.04723605994 | HU11: 0.06408196106 | HV11: 0.0575760944 | HX11: 5 | HY11: 0.06216922025 | HZ11: 0.07776249244 | IA11: 0.0511764333 | IB11: 0.04244386836 | IC11: 0.08262207759 | ID11: 0.05073168745 | IE11: 0.07435011577 | IF11: 0.06094172275 | IH11: 5 | II11: 0.06022471731 | IJ11: 0.07297885427 | IK11: 0.03943637755 | IL11: 0.06525157503 | IM11: 0.08799593132 | IN11: 0.06932112664 | IO11: 0.08533392485 | IP11: 0.06162134687 | IR11: 5 | IS11: 0.05604293484 | IT11: 0.06571615333 | IU11: 0.0500431182 | IV11: 0.08846446957 | IW11: 0.09437128756 | IX11: 0.07441938449 | IY11: 0.09174880849 | IZ11: 0.06495611575 | JB11: 5 | JC11: 0.05949954018 | JD11: 0.06211731464 | JE11: 0.0338280715 | JF11: 0.004188987899 | JG11: 0.06942019401 | JH11: 0.08208657078 | JI11: 0.08982188936 | JJ11: 0.05433367296 | JL11: 5 | JM11: 0.05329895084 | JN11: 0.05644305652 | JO11: 0.0347871806 | JP11: 0.005380569284 | JQ11: 0.07270285185 | JR11: 0.03992500535 | JS11: 0.09346321942 | JT11: 0.04993430253
B12: 2 | L12: 2 | CD12: 6 | CE12: 2 | CF12: 0.05872109857 | CG12: 0.05682179405 | CH12: 0.04997889237 | CI12: 0.04729819678 | CJ12: 0.08842752099 | CK12: 0.05710519073 | CL12: 0.05807142355 | CM12: 0.05578451636 | CO12: 2 | CP12: 13852.47168 | CQ12: 15648.80216 | CR12: 19887.3621 | CS12: 13852.47269 | CT12: 15648.88246 | CU12: 45207.8825 | CV12: 3804.848078 | CW12: 23426.95102 | DR12: 6 | DS12: 0.06893934206 | DT12: 0.06473502122 | DU12: 0.05634969057 | DV12: 0.06893934206 | DW12: 0.05178123818 | DX12: 0.05337032519 | DY12: 0.056 | DZ12: 0.05337032519 | EB12: 6 | EC12: 0.06029128935 | ED12: 0.05549133728 | EE12: 0.05170843628 | EF12: 0.004099834891 | EG12: 0.04227083689 | EH12: 0.05677037814 | EI12: 0.04093452166 | EJ12: 0.06309753586 | EL12: 6 | EM12: 0.06066640082 | EN12: 0.062473127 | EO12: 0.05484150346 | EP12: 0.00101387011 | EQ12: 0.03409256688 | ER12: 0.06030024159 | ES12: 0.04432918568 | ET12: 0.05285571277 | EV12: 6 | EW12: 0.06464719541 | EX12: 0.06265902114 | EY12: 0.06315547715 | EZ12: 0.007456524068 | FA12: 0.05433421888 | FB12: 0.06906236677 | FC12: 0.03474351749 | FD12: 0.06394087788 | FF12: 6 | FG12: 0.06129773342 | FH12: 0.05509515197 | FI12: 0.04536918058 | FJ12: 0.01043963413 | FK12: 0.05045507371 | FL12: 0.05528076225 | FM12: 0.05081605857 | FN12: 0.05884403479 | FP12: 6 | FQ12: 0.0650371816 | FR12: 0.06472867351 | FS12: 0.06610368164 | FT12: 0.008871224026 | FU12: 0.06375970187 | FV12: 0.05582419037 | FW12: 0.04597863605 | FX12: 0.0648916824 | FZ12: 6 | GA12: 0.06443063578 | GB12: 0.06312753493 | GC12: 0.0335301598 | GD12: 0.02318639908 | GE12: 0.0407105699 | GF12: 0.05198998072 | GG12: 0.03637049956 | GH12: 0.05110987977 | GJ12: 6 | GK12: 0.07173962148 | GL12: 0.07001292409 | GM12: 0.07671675536 | GN12: 0.02324896047 | GO12: 0.08951891282 | GP12: 0.07199797735 | GQ12: 0.03924430815 | GR12: 0.06251453194 | GT12: 6 | GU12: 0.07634487175 | GV12: 0.07634487175 | GW12: 0.07634487175 | GX12: 0.07634487175 | GY12: 0.07634487175 | GZ12: 0.07634487175 | HA12: 0.07634487175 | HB12: 0.07634487175 | HD12: 6 | HE12: 0.06942324742 | HF12: 0.07059600709 | HG12: 0.03964825674 | HH12: 0.04047120977 | HI12: 0.09151031867 | HJ12: 0.05363182189 | HK12: 0.05320325225 | HL12: 0.05560715424 | HN12: 6 | HO12: 0.06934901274 | HP12: 0.07343330449 | HQ12: 0.0476855882 | HR12: 0.06381723776 | HS12: 0.06993434338 | HT12: 0.04086417165 | HU12: 0.05602937834 | HV12: 0.06225853056 | HX12: 6 | HY12: 0.06377223458 | HZ12: 0.07230312324 | IA12: 0.04430399398 | IB12: 0.05499119634 | IC12: 0.07703713642 | ID12: 0.04574919609 | IE12: 0.06367255555 | IF12: 0.05536702397 | IH12: 6 | II12: 0.05752801912 | IJ12: 0.07416216362 | IK12: 0.0503335495 | IL12: 0.04034999229 | IM12: 0.07989532845 | IN12: 0.04954006721 | IO12: 0.07239567252 | IP12: 0.05927050075 | IR12: 6 | IS12: 0.05619954286 | IT12: 0.06923562101 | IU12: 0.03959397731 | IV12: 0.061531524 | IW12: 0.08291950758 | IX12: 0.06819779485 | IY12: 0.08034602958 | IZ12: 0.06049169464 | JB12: 6 | JC12: 0.05542940288 | JD12: 0.06340594702 | JE12: 0.04797292813 | JF12: 0.07907922636 | JG12: 0.08934435846 | JH12: 0.07110184239 | JI12: 0.08510033618 | JJ12: 0.06160380062 | JL12: 6 | JM12: 0.05815321111 | JN12: 0.0594197894 | JO12: 0.03211927951 | JP12: 0.003765135174 | JQ12: 0.06550777925 | JR12: 0.0779300925 | JS12: 0.0831573191 | JT12: 0.05170396035
B13: 3 | L13: 3 | CD13: 7 | CE13: 3 | CF13: 0.0586518794 | CG13: 0.0573111017 | CH13: 0.0507124572 | CI13: 0.02760974792 | CJ13: 0.07760858655 | CK13: 0.05892371766 | CL13: 0.0548432512 | CM13: 0.05807317603 | CO13: 3 | CP13: 13536.295 | CQ13: 15270.69349 | CR13: 19814.53349 | CS13: 13536.31079 | CT13: 15270.67694 | CU13: 46197.41989 | CV13: 3145.601929 | CW13: 22651.4905 | DR13: 7 | DS13: 0.06758222346 | DT13: 0.06101601598 | DU13: 0.05145594887 | DV13: 0.06758222346 | DW13: 0.0482388428 | DX13: 0.04952016014 | DY13: 0.045 | DZ13: 0.04952016014 | EB13: 7 | EC13: 0.05311479176 | ED13: 0.04145736076 | EE13: 0.04312144631 | EF13: 0.006087475404 | EG13: 0.04089115484 | EH13: 0.04361586296 | EI13: 0.03925378403 | EJ13: 0.06278220534 | EL13: 7 | EM13: 0.05377869589 | EN13: 0.04692323431 | EO13: 0.04727684897 | EP13: 0.004143981071 | EQ13: 0.03646195515 | ER13: 0.04862380766 | ES13: 0.03822784747 | ET13: 0.05702564526 | EV13: 7 | EW13: 0.05521247964 | EX13: 0.05398965211 | EY13: 0.05224873045 | EZ13: 0.0010132759 | FA13: 0.0269986431 | FB13: 0.05573823777 | FC13: 0.04066156026 | FD13: 0.04803961918 | FF13: 7 | FG13: 0.05944044898 | FH13: 0.0543178412 | FI13: 0.0611654525 | FJ13: 0.007673436665 | FK13: 0.04585513367 | FL13: 0.06522725868 | FM13: 0.03294344704 | FN13: 0.05851914573 | FP13: 7 | FQ13: 0.0564830393 | FR13: 0.04855260598 | FS13: 0.04316986095 | FT13: 0.01055947858 | FU13: 0.04406748037 | FV13: 0.05175574346 | FW13: 0.04727261003 | FX13: 0.05478752955 | FZ13: 7 | GA13: 0.06029937118 | GB13: 0.05738337533 | GC13: 0.06271281471 | GD13: 0.008908359791 | GE13: 0.05486847895 | GF13: 0.05209756693 | GG13: 0.04231384094 | GH13: 0.05985946481 | GJ13: 7 | GK13: 0.0597361141 | GL13: 0.05689769543 | GM13: 0.03214625859 | GN13: 0.02275411201 | GO13: 0.03544778541 | GP13: 0.04780698767 | GQ13: 0.03315194871 | GR13: 0.04695410881 | GT13: 7 | GU13: 0.0669949635 | GV13: 0.0669949635 | GW13: 0.0669949635 | GX13: 0.0669949635 | GY13: 0.0669949635 | GZ13: 0.0669949635 | HA13: 0.0669949635 | HB13: 0.0669949635 | HD13: 7 | HE13: 0.07147687987 | HF13: 0.06698380464 | HG13: 0.07324022209 | HH13: 0.03600736001 | HI13: 0.04923188117 | HJ13: 0.07585266281 | HK13: 0.04254606375 | HL13: 0.05905689018 | HN13: 7 | HO13: 0.06514276274 | HP13: 0.06600105018 | HQ13: 0.03835386217 | HR13: 0.04138621799 | HS13: 0.08323203697 | HT13: 0.05112127941 | HU13: 0.04821521634 | HV13: 0.05293759439 | HX13: 7 | HY13: 0.06524626154 | HZ13: 0.07072399626 | IA13: 0.04680190767 | IB13: 0.06181490162 | IC13: 0.06774185665 | ID13: 0.03925137262 | IE13: 0.05593716019 | IF13: 0.05997709449 | IH13: 7 | II13: 0.05935876399 | IJ13: 0.06894982302 | IK13: 0.04386408239 | IL13: 0.05259016698 | IM13: 0.07451087408 | IN13: 0.04458866558 | IO13: 0.06197258245 | IP13: 0.05376335019 | IR13: 7 | IS13: 0.05271319907 | IT13: 0.07035145599 | IU13: 0.04932684649 | IV13: 0.03736246474 | IW13: 0.07526631599 | IX13: 0.04787957288 | IY13: 0.06816356342 | IZ13: 0.05873108684 | JB13: 7 | JC13: 0.05537313443 | JD13: 0.06620583242 | JE13: 0.03795600987 | JF13: 0.0547920637 | JG13: 0.07781126663 | JH13: 0.06514582673 | JI13: 0.07452381278 | JJ13: 0.05736980001 | JL13: 7 | JM13: 0.05400064188 | JN13: 0.06021326449 | JO13: 0.04554983285 | JP13: 0.07084834138 | JQ13: 0.0836808396 | JR13: 0.06749641369 | JS13: 0.07878608799 | JT13: 0.0586223273
B14: 4 | L14: 4 | CD14: 8 | CE14: 4 | CF14: 0.05877286171 | CG14: 0.05657758603 | CH14: 0.04800897572 | CI14: 0.008899086122 | CJ14: 0.06406291373 | CK14: 0.05571691783 | CL14: 0.05211261313 | CM14: 0.0548896003 | CO14: 4 | CP14: 13202.86539 | CQ14: 14863.16648 | CR14: 18651.66729 | CS14: 13202.84552 | CT14: 14863.16132 | CU14: 43451.98049 | CV14: 2721.797058 | CW14: 21931.48247 | DR14: 8 | DS14: 0.06554581986 | DT14: 0.05677367455 | DU14: 0.04699132433 | DV14: 0.06554581986 | DW14: 0.04493878722 | DX14: 0.04595503045 | DY14: 0.036 | DZ14: 0.04595503045 | EB14: 8 | EC14: 0.04643720599 | ED14: 0.03575257499 | EE14: 0.03372348142 | EF14: 0.01291616885 | EG14: 0.02872378041 | EH14: 0.04319847365 | EI14: 0.03336203906 | EJ14: 0.06337891081 | EL14: 8 | EM14: 0.04702969269 | EN14: 0.03523427027 | EO14: 0.0397640942 | EP14: 0.006107860181 | EQ14: 0.03521250345 | ER14: 0.0371444273 | ES14: 0.03634301421 | ET14: 0.05656946845 | EV14: 8 | EW14: 0.04858914938 | EX14: 0.0403667622 | EY14: 0.04486713865 | EZ14: 0.004111525625 | FA14: 0.02892732475 | FB14: 0.04483734872 | FC14: 0.03506519023 | FD14: 0.05137295874 | FF14: 8 | FG14: 0.04968537102 | FH14: 0.04696569167 | FI14: 0.05005633778 | FJ14: 0.001020562292 | FK14: 0.0234418518 | FL14: 0.05189929284 | FM14: 0.03881554183 | FN14: 0.04301001021 | FP14: 8 | FQ14: 0.05488505879 | FR14: 0.04784163051 | FS14: 0.05847620461 | FT14: 0.007777577 | FU14: 0.03886394479 | FV14: 0.06116790781 | FW14: 0.03043601504 | FX14: 0.05401906558 | FZ14: 8 | GA14: 0.05228416275 | GB14: 0.04307066935 | GC14: 0.0406017025 | GD14: 0.01058662227 | GE14: 0.03881526842 | GF14: 0.04816928544 | GG14: 0.04358184843 | GH14: 0.05071840329 | GJ14: 8 | GK14: 0.05590670675 | GL14: 0.05164308822 | GM14: 0.06009285529 | GN14: 0.008742389841 | GO14: 0.0475210273 | GP14: 0.04770324593 | GQ14: 0.03879999655 | GR14: 0.05491178054 | GT14: 8 | GU14: 0.05525118129 | GV14: 0.05525118129 | GW14: 0.05525118129 | GX14: 0.05525118129 | GY14: 0.05525118129 | GZ14: 0.05525118129 | HA14: 0.05525118129 | HB14: 0.05525118129 | HD14: 8 | HE14: 0.06245174803 | HF14: 0.05908140936 | HG14: 0.06973726472 | HH14: 0.02295392276 | HI14: 0.07141162983 | HJ14: 0.06047595651 | HK14: 0.03243676738 | HL14: 0.05477056833 | HN14: 8 | HO14: 0.0673700956 | HP14: 0.0628131637 | HQ14: 0.0711075074 | HR14: 0.03698621539 | HS14: 0.04492374655 | HT14: 0.07317579229 | HU14: 0.03854050302 | HV14: 0.0558875676 | HX14: 8 | HY14: 0.06159803207 | HZ14: 0.06357111977 | IA14: 0.03772187651 | IB14: 0.04028984599 | IC14: 0.08000342802 | ID14: 0.04946182434 | IE14: 0.04766797439 | IF14: 0.05116099927 | IH14: 8 | II14: 0.06001065632 | IJ14: 0.06742029459 | IK14: 0.04535961455 | IL14: 0.05841301854 | IM14: 0.06549284136 | IN14: 0.0372110582 | IO14: 0.05458639133 | IP14: 0.05795722065 | IR14: 8 | IS14: 0.05509476174 | IT14: 0.06541901684 | IU14: 0.04318408424 | IV14: 0.04932374605 | IW14: 0.07019306364 | IX14: 0.04259366345 | IY14: 0.05834992973 | IZ14: 0.05128587966 | JB14: 8 | JC14: 0.05171623833 | JD14: 0.0666386285 | JE14: 0.04713824753 | JF14: 0.03312781913 | JG14: 0.06995815188 | JH14: 0.04552825491 | JI14: 0.06322428395 | JJ14: 0.05570002487 | JL14: 8 | JM14: 0.0537527797 | JN14: 0.0623653044 | JO14: 0.03596148215 | JP14: 0.0489129261 | JQ14: 0.07229360745 | JR14: 0.06172600158 | JS14: 0.06899438199 | JT14: 0.05446081855
B15: 5 | L15: 5 | CD15: 9 | CE15: 5 | CF15: 0.05071137816 | CG15: 0.07061642981 | CH15: 0.05113435035 | CI15: 0.001849420141 | CJ15: 0.06639549574 | CK15: 0.05909459857 | CL15: 0.03838981617 | CM15: 0.07870772075 | CO15: 5 | CP15: 12853.25027 | CQ15: 14429.4968 | CR15: 19945.06248 | CS15: 12853.2507 | CT15: 14429.54541 | CU15: 42486.33817 | CV15: 2420.412236 | CW15: 21092.21402 | DR15: 9 | DS15: 0.06266869095 | DT15: 0.05206257881 | DU15: 0.04291804874 | DV15: 0.06266869095 | DW15: 0.04186452457 | DX15: 0.04265323392 | DY15: 0.029 | DZ15: 0.04265323392 | EB15: 9 | EC15: 0.03890423481 | ED15: 0.03306974417 | EE15: 0.03998887214 | EF15: 0.004070935721 | EG15: 0.01775673066 | EH15: 0.04616387976 | EI15: 0.03285902347 | EJ15: 0.0592854161 | EL15: 9 | EM15: 0.04079125857 | EN15: 0.03035581605 | EO15: 0.03078143097 | EP15: 0.01285671458 | EQ15: 0.02417332324 | ER15: 0.03636288747 | ES15: 0.03075695747 | ET15: 0.05754998414 | EV15: 9 | EW15: 0.04233790572 | EX15: 0.03047480505 | EY15: 0.03790004487 | EZ15: 0.006038147346 | FA15: 0.02788435181 | FB15: 0.03408591265 | FC15: 0.03333625032 | FD15: 0.05132094104 | FF15: 9 | FG15: 0.04312404353 | FH15: 0.0349490418 | FI15: 0.0422885431 | FJ15: 0.004084179156 | FK15: 0.02513317941 | FL15: 0.04131702455 | FM15: 0.0326789094 | FN15: 0.04617690864 | FP15: 9 | FQ15: 0.0451022552 | FR15: 0.04148132542 | FS15: 0.04778178055 | FT15: 0.001016935197 | FU15: 0.02036970153 | FV15: 0.0484849376 | FW15: 0.03599924446 | FX15: 0.03919053572 | FZ15: 9 | GA15: 0.05100811621 | GB15: 0.04241945604 | GC15: 0.05546216295 | GD15: 0.00782875879 | GE15: 0.03329763346 | GF15: 0.05726556272 | GG15: 0.02790343715 | GH15: 0.04992668991 | GJ15: 9 | GK15: 0.04847270933 | GL15: 0.0387834406 | GM15: 0.03882344571 | GN15: 0.01038881599 | GO15: 0.03430622149 | GP15: 0.04427181377 | GQ15: 0.04007407573 | GR15: 0.04725468091 | GT15: 9 | GU15: 0.05184355924 | GV15: 0.05184355924 | GW15: 0.05184355924 | GX15: 0.05184355924 | GY15: 0.05184355924 | GZ15: 0.05184355924 | HA15: 0.05184355924 | HB15: 0.05184355924 | HD15: 9 | HE15: 0.0511599137 | HF15: 0.04817072293 | HG15: 0.02931410998 | HH15: 0.02210136072 | HI15: 0.02810040286 | HJ15: 0.04014886994 | HK15: 0.02750448962 | HL15: 0.03920260002 | HN15: 9 | HO15: 0.05872251765 | HP15: 0.05552481311 | HQ15: 0.06782836448 | HR15: 0.02352149477 | HS15: 0.06566171912 | HT15: 0.05844648365 | HU15: 0.02931551461 | HV15: 0.05194213366 | HX15: 9 | HY15: 0.06420058928 | HZ15: 0.06059807547 | IA15: 0.07042411573 | IB15: 0.0362869185 | IC15: 0.04330964216 | ID15: 0.07172499594 | IE15: 0.03806837814 | IF15: 0.05391978117 | IH15: 9 | II15: 0.05735461606 | IJ15: 0.0606212416 | IK15: 0.03705499724 | IL15: 0.03853756233 | IM15: 0.07673296543 | IN15: 0.04810510239 | IO15: 0.04626077689 | IP15: 0.04980547352 | IR15: 9 | IS15: 0.05497312215 | IT15: 0.0639686903 | IU15: 0.04324310451 | IV15: 0.05407163416 | IW15: 0.06170151903 | IX15: 0.03433998148 | IY15: 0.05139569842 | IZ15: 0.05356929669 | JB15: 9 | JC15: 0.05379848712 | JD15: 0.06134994867 | JE15: 0.04126805048 | JF15: 0.04353082669 | JG15: 0.06460606864 | JH15: 0.04048544141 | JI15: 0.05412160193 | JJ15: 0.04863908925 | JL15: 9 | JM15: 0.05000800891 | JN15: 0.06225765391 | JO15: 0.04466121826 | JP15: 0.029458315 | JQ15: 0.0644622874 | JR15: 0.04313401565 | JS15: 0.0585331111 | JT15: 0.05287580391
B16: 6 | L16: 6 | CD16: 10 | CE16: 6 | CF16: 0.05640178122 | CG16: 0.06640363331 | CH16: 0.04713940882 | CI16: 0.009612890588 | CJ16: 0.05548272987 | CK16: 0.05546297252 | CL16: 0.03613197796 | CM16: 0.07166343139 | CO16: 6 | CP16: 12490.44705 | CQ16: 13974.72659 | CR16: 18599.53862 | CS16: 12490.45131 | CT16: 13974.77669 | CU16: 40717.17511 | CV16: 2194.384201 | CW16: 20746.38347 | DR16: 10 | DS16: 0.05881971057 | DT16: 0.04698237745 | DU16: 0.03920145305 | DV16: 0.05881971057 | DW16: 0.03900055031 | DX16: 0.0395946159 | DY16: 0.023 | DZ16: 0.0395946159 | EB16: 10 | EC16: 0.03171004585 | ED16: 0.03379760619 | EE16: 0.04500970749 | EF16: 0.002839337904 | EG16: 0.0178312977 | EH16: 0.04105887051 | EI16: 0.03261547325 | EJ16: 0.03809049337 | EL16: 10 | EM16: 0.03404532433 | EN16: 0.02799770948 | EO16: 0.03793189736 | EP16: 0.00403692372 | EQ16: 0.01541852782 | ER16: 0.03990585926 | ES16: 0.02973791692 | ET16: 0.05394183454 | EV16: 10 | EW16: 0.03657045452 | EX16: 0.02622778895 | EY16: 0.02934001958 | EZ16: 0.01265760274 | FA16: 0.01865500274 | FB16: 0.03309584323 | FC16: 0.02821237546 | FD16: 0.05233857559 | FF16: 10 | FG16: 0.03737270659 | FH16: 0.02650271371 | FI16: 0.03557521063 | FJ16: 0.005965546859 | FK16: 0.02418467984 | FL16: 0.03098223833 | FM16: 0.03045767435 | FN16: 0.04587876895 | FP16: 10 | FQ16: 0.03875520165 | FR16: 0.03077376703 | FS16: 0.03986916373 | FT16: 0.004029003198 | FU16: 0.0218667171 | FV16: 0.03817770577 | FW16: 0.02988161477 | FX16: 0.04188908981 | FZ16: 10 | GA16: 0.04139182363 | GB16: 0.03687056423 | GC16: 0.04512655024 | GD16: 0.001010818973 | GE16: 0.01785957972 | GF16: 0.04506476278 | GG16: 0.03311849238 | GH16: 0.0356094244 | GJ16: 10 | GK16: 0.04761049635 | GL16: 0.03818141807 | GM16: 0.05313349306 | GN16: 0.007734594522 | GO16: 0.02872555044 | GP16: 0.05269590053 | GQ16: 0.02552114229 | GR16: 0.04609621057 | GT16: 10 | GU16: 0.04502236315 | GV16: 0.04502236315 | GW16: 0.04502236315 | GX16: 0.04502236315 | GY16: 0.04502236315 | GZ16: 0.04502236315 | HA16: 0.04502236315 | HB16: 0.04502236315 | HD16: 10 | HE16: 0.04818899795 | HF16: 0.04361032521 | HG16: 0.05480345596 | HH16: 0.008546352559 | HI16: 0.03730713634 | HJ16: 0.03973680878 | HK16: 0.03261352467 | HL16: 0.04620926105 | HN16: 10 | HO16: 0.04786210441 | HP16: 0.04528426878 | HQ16: 0.02833346879 | HR16: 0.02253344945 | HS16: 0.02570608579 | HT16: 0.03845052429 | HU16: 0.0249049873 | HV16: 0.03604507597 | HX16: 10 | HY16: 0.05587521915 | HZ16: 0.0536419325 | IA16: 0.0672656926 | IB16: 0.02304186035 | IC16: 0.06367110376 | ID16: 0.05722691041 | IE16: 0.02883944538 | IF16: 0.04990388306 | IH16: 10 | II16: 0.06065428053 | IJ16: 0.05788043699 | IK16: 0.07002867287 | IL16: 0.035217192 | IM16: 0.04167027942 | IN16: 0.07109566166 | IO16: 0.03692860207 | IP16: 0.05227420631 | IR16: 10 | IS16: 0.05344650978 | IT16: 0.0575202372 | IU16: 0.03592546476 | IV16: 0.03629227791 | IW16: 0.07160042971 | IX16: 0.04579280851 | IY16: 0.04355622908 | IZ16: 0.05014783099 | JB16: 10 | JC16: 0.05341764771 | JD16: 0.05940910194 | JE16: 0.04132443456 | JF16: 0.04748663925 | JG16: 0.0562397966 | JH16: 0.03265702469 | JI16: 0.04767150559 | JJ16: 0.05080463654 | JL16: 10 | JM16: 0.05180655057 | JN16: 0.0568459285 | JO16: 0.03909957216 | JP16: 0.03854983064 | JQ16: 0.05904463842 | JR16: 0.03835810844 | JS16: 0.05010602448 | JT16: 0.04617298568
B17: 7 | L17: 7 | CD17: 11 | CE17: 7 | CF17: 0.05928141951 | CG17: 0.06024214236 | CH17: 0.04555236633 | CI17: 0.2064496384 | CJ17: 0.04376349636 | CK17: 0.05786012171 | CL17: 0.03405680248 | CM17: 0.06522159613 | CO17: 7 | CP17: 12116.46922 | CQ17: 13502.0258 | CR17: 17232.22835 | CS17: 12116.50543 | CT17: 13502.06648 | CU17: 41902.46578 | CV17: 2015.441273 | CW17: 19518.88586 | DR17: 11 | DS17: 0.05393234524 | DT17: 0.04167187246 | DU17: 0.03581018954 | DV17: 0.05393234524 | DW17: 0.03633253254 | DX17: 0.03676105802 | DY17: 0.097 | DZ17: 0.03676105802 | EB17: 11 | EC17: 0.02933834351 | ED17: 0.0290565763 | EE17: 0.04079921839 | EF17: 0.00074952163 | EG17: 0.01899466598 | EH17: 0.03940655264 | EI17: 0.02563667445 | EJ17: 0.04045716495 | EL17: 11 | EM17: 0.02744310693 | EN17: 0.02859869353 | EO17: 0.04186160627 | EP17: 0.002784516034 | EQ17: 0.01526957372 | ER17: 0.03519795168 | ES17: 0.02972501184 | ET17: 0.03397966388 | EV17: 11 | EW17: 0.03049258012 | EX17: 0.02411699873 | EY17: 0.03614597011 | EZ17: 0.003970487039 | FA17: 0.01232068701 | FB17: 0.03662543931 | FC17: 0.02727760346 | FD17: 0.04971089066 | FF17: 11 | FG17: 0.03211588632 | FH17: 0.02277910354 | FI17: 0.02738073481 | FJ17: 0.01244119393 | FK17: 0.01581576516 | FL17: 0.02984106426 | FM17: 0.02545929472 | FN17: 0.04736114402 | FP17: 11 | FQ17: 0.03349683438 | FR17: 0.02342063103 | FS17: 0.03362507749 | FT17: 0.005869243087 | FU17: 0.02101466302 | FV17: 0.02848777515 | FW17: 0.02750366692 | FX17: 0.04169801627 | FZ17: 11 | GA17: 0.03534101106 | GB17: 0.0272793423 | GC17: 0.03735888853 | GD17: 0.003979329638 | GE17: 0.01919373937 | GF17: 0.03530266786 | GG17: 0.02712389739 | GH17: 0.03818811448 | GJ17: 11 | GK17: 0.0381845827 | GL17: 0.03325595265 | GM17: 0.04321451267 | GN17: 0.0009870229871 | GO17: 0.01572286067 | GP17: 0.0414116076 | GQ17: 0.0303929715 | GR17: 0.03234734453 | GT17: 11 | GU17: 0.04471925277 | GV17: 0.04471925277 | GW17: 0.04471925277 | GX17: 0.04471925277 | GY17: 0.04471925277 | GZ17: 0.04471925277 | HA17: 0.04471925277 | HB17: 0.04471925277 | HD17: 11 | HE17: 0.04195819842 | HF17: 0.03278151108 | HG17: 0.03540428536 | HH17: 0.01019888936 | HI17: 0.02792291695 | HJ17: 0.03726581318 | HK17: 0.03397291869 | HL17: 0.04101389059 | HN17: 11 | HO17: 0.04529712335 | HP17: 0.04092985204 | HQ17: 0.05304046572 | HR17: 0.008754883678 | HS17: 0.03396665319 | HT17: 0.03779762207 | HU17: 0.02965204084 | HV17: 0.04286128955 | HX17: 11 | HY17: 0.04532696654 | HZ17: 0.04378078591 | IA17: 0.02794190331 | IB17: 0.02197003823 | IC17: 0.02484477508 | ID17: 0.03747991974 | IE17: 0.02457387554 | IF17: 0.03367421338 | IH17: 11 | II17: 0.05278166038 | IJ17: 0.05131633087 | IK17: 0.0672058845 | IL17: 0.02235813879 | IM17: 0.06162510186 | IN17: 0.05687998187 | IO17: 0.02791204574 | IP17: 0.04849765587 | IR17: 11 | IS17: 0.05755968028 | IT17: 0.05494756902 | IU17: 0.07054126075 | IV17: 0.03377488824 | IW17: 0.03901708851 | IX17: 0.07066905671 | IY17: 0.03476950916 | IZ17: 0.05218757583 | JB17: 11 | JC17: 0.05168834119 | JD17: 0.05292488814 | JE17: 0.03422369186 | JF17: 0.03171795194 | JG17: 0.06464516373 | JH17: 0.04330392272 | JI17: 0.04039999898 | JJ17: 0.04755976484 | JL17: 11 | JM17: 0.05123148222 | JN17: 0.0546097099 | JO17: 0.03906906721 | JP17: 0.04188238397 | JQ17: 0.05098939578 | JR17: 0.03087934416 | JS17: 0.04413427952 | JT17: 0.04811167824
B18: 8 | L18: 8 | CD18: 12 | CE18: 8 | CF18: 0.06002874453 | CG18: 0.05179152256 | CH18: 0.04088614413 | CI18: 0.128409526 | CJ18: 0.02958980566 | CK18: 0.05113130005 | CL18: 0.03193719257 | CM18: 0.06037914397 | CO18: 8 | CP18: 11733.4222 | CQ18: 13016.27483 | CR18: 15971.96945 | CS18: 11733.35855 | CT18: 13016.29458 | CU18: 38079.93302 | CV18: 1864.751964 | CW18: 18963.85996 | DR18: 12 | DS18: 0.04580195009 | DT18: 0.03629781559 | DU18: 0.03271548688 | DV18: 0.04580195009 | DW18: 0.0338469862 | DX18: 0.03413526885 | DY18: 0 | DZ18: 0.03413526885 | EB18: 12 | EC18: 0.0278969503 | ED18: 0.02248228733 | EE18: 0.03292543032 | EF18: 0.03544066192 | EG18: 0.006323865044 | EH18: 0.03264972555 | EI18: 0.02719828949 | EJ18: 0.04008204837 | EL18: 12 | EM18: 0.0249888423 | EN18: 0.02457394701 | EO18: 0.03760110882 | EP18: 0.000723421217 | EQ18: 0.01583438975 | ER18: 0.03333022065 | ES18: 0.02273057285 | ET18: 0.03581284834 | EV18: 12 | EW18: 0.02439618491 | EX18: 0.0246206329 | EY18: 0.03974751104 | EZ18: 0.002718275703 | FA18: 0.01201755522 | FB18: 0.03216236633 | FC18: 0.0272657502 | FD18: 0.02985288517 | FF18: 12 | FG18: 0.02678464243 | FH18: 0.02091721406 | FI18: 0.03460528986 | FJ18: 0.00390352411 | FK18: 0.01077510171 | FL18: 0.03372991992 | FM18: 0.02341388408 | FN18: 0.04521926221 | FP18: 12 | FQ18: 0.02870995412 | FR18: 0.02011625464 | FS18: 0.02568855566 | FT18: 0.01220831726 | FU18: 0.01348456863 | FV18: 0.02706404851 | FW18: 0.02280153127 | FX18: 0.0432718322 | FZ18: 12 | GA18: 0.03049532109 | GB18: 0.02082754854 | GC18: 0.03144165358 | GD18: 0.005787278731 | GE18: 0.0184246911 | GF18: 0.02609860068 | GG18: 0.02466770646 | GH18: 0.03777123125 | GJ18: 12 | GK18: 0.03240768278 | GL18: 0.02454893511 | GM18: 0.03558088085 | GN18: 0.003862417854 | GO18: 0.01691380603 | GP18: 0.03225940126 | GQ18: 0.02451464707 | GR18: 0.03454484191 | GT18: 12 | GU18: 0.03544356064 | GV18: 0.03544356064 | GW18: 0.03544356064 | GX18: 0.03544356064 | GY18: 0.03544356064 | GZ18: 0.03544356064 | HA18: 0.03544356064 | HB18: 0.03544356064 | HD18: 12 | HE18: 0.04211796439 | HF18: 0.03225005739 | HG18: 0.04838816258 | HH18: 0.007760127875 | HI18: 0.0223887953 | HJ18: 0.04450214983 | HK18: 0.02141912719 | HL18: 0.03960159955 | HN18: 12 | HO18: 0.03954086658 | HP18: 0.0306217899 | HQ18: 0.03402795442 | HR18: 0.01047437563 | HS18: 0.02570829229 | HT18: 0.03539754596 | HU18: 0.03098727355 | HV18: 0.03857897801 | HX18: 12 | HY18: 0.04315065067 | HZ18: 0.03952628999 | IA18: 0.05226388972 | IB18: 0.008586296232 | IC18: 0.03270110019 | ID18: 0.03660988136 | IE18: 0.02964494729 | IF18: 0.0400473479 | IH18: 12 | II18: 0.04250923599 | IJ18: 0.04192463508 | IK18: 0.0274693016 | IL18: 0.02116270989 | IM18: 0.02396816243 | IN18: 0.03672779629 | IO18: 0.02382436513 | IP18: 0.03182521112 | IR18: 12 | IS18: 0.05010264455 | IT18: 0.04875342642 | IU18: 0.06796703271 | IV18: 0.02144951721 | IW18: 0.05802076438 | IX18: 0.05654661235 | IY18: 0.02628002589 | IZ18: 0.04836590601 | JB18: 12 | JC18: 0.05538609514 | JD18: 0.0500905778 | JE18: 0.06719954846 | JF18: 0.02936898525 | JG18: 0.03490160829 | JH18: 0.06684580112 | JI18: 0.03225001197 | JJ18: 0.0494942373 | JL18: 12 | JM18: 0.04936529923 | JN18: 0.04827409901 | JO18: 0.03235567789 | JP18: 0.0278566787 | JQ18: 0.05815529911 | JR18: 0.04094841535 | JS18: 0.03740236579 | JT18: 0.04503862964
B19: 9 | L19: 9 | CD19: 13 | CE19: 9 | CF19: 0.05507858039 | CG19: 0.0403350721 | CH19: 0.02531824894 | CI19: 0.106301257 | CJ19: 0.02164824815 | CK19: 0.0321593211 | CL19: 0.02697848518 | CM19: 0.03332071932 | CO19: 9 | CP19: 11343.23136 | CQ19: 12522.34612 | CR19: 13972.28016 | CS19: 11343.22392 | CT19: 12522.33332 | CU19: 38532.16453 | CV19: 1742.320611 | CW19: 18807.81453 | DR19: 13 | DS19: 0.03631484274 | DT19: 0.03103883997 | DU19: 0.02989112473 | DV19: 0.03631484274 | DW19: 0.03153146859 | DX19: 0.03170174517 | DY19: 0 | DZ19: 0.03170174517 | EB19: 13 | EC19: 0.02912846638 | ED19: 0.02192254304 | EE19: 0.04227013515 | EF19: 0.02564465277 | EG19: 0.02142397311 | EH19: 0.03013076533 | EI19: 0.03160269018 | EJ19: 0.03897460479 | EL19: 13 | EM19: 0.02641822614 | EN19: 0.01899852845 | EO19: 0.03429162238 | EP19: 0.03803169061 | EQ19: 0.005383978099 | ER19: 0.03091477437 | ES19: 0.02379743133 | ET19: 0.03794944276 | EV19: 13 | EW19: 0.02349600117 | EX19: 0.02114386468 | EY19: 0.03584331243 | EZ19: 0.0007469584676 | FA19: 0.01208541995 | FB19: 0.03124098597 | FC19: 0.0208500752 | FD19: 0.03492141484 | FF19: 13 | FG19: 0.02365745445 | FH19: 0.02131076115 | FI19: 0.0399058004 | FJ19: 0.002950270197 | FK19: 0.01035958663 | FL19: 0.03162369467 | FM19: 0.02016113246 | FN19: 0.02852040708 | FP19: 13 | FQ19: 0.02601644672 | FR19: 0.01843448768 | FS19: 0.0337103829 | FT19: 0.004161998648 | FU19: 0.009421473058 | FV19: 0.03260990628 | FW19: 0.01769503808 | FX19: 0.04352596704 | FZ19: 13 | GA19: 0.0278501723 | GB19: 0.01787807053 | GC19: 0.02474796494 | GD19: 0.0128266779 | GE19: 0.01161821743 | GF19: 0.02602048199 | GG19: 0.01716441978 | GH19: 0.04129785958 | GJ19: 13 | GK19: 0.0298799836 | GL19: 0.01879328666 | GM19: 0.03033634828 | GN19: 0.006002084837 | GO19: 0.01622007653 | GP19: 0.02462194262 | GQ19: 0.01811321529 | GR19: 0.03667362565 | GT19: 13 | GU19: 0.0322300762 | GV19: 0.0322300762 | GW19: 0.0322300762 | GX19: 0.0322300762 | GY19: 0.0322300762 | GZ19: 0.0322300762 | HA19: 0.0322300762 | HB19: 0.0322300762 | HD19: 13 | HE19: 0.03494268113 | HF19: 0.02818996109 | HG19: 0.03939389528 | HH19: 0.001024385198 | HI19: 0.01270997528 | HJ19: 0.0359231471 | HK19: 0.01954916265 | HL19: 0.02867616665 | HN19: 13 | HO19: 0.04170629484 | HP19: 0.03036704398 | HQ19: 0.04745106345 | HR19: 0.008374335826 | HS19: 0.0203131553 | HT19: 0.04411984613 | HU19: 0.01568012679 | HV19: 0.0389685753 | HX19: 13 | HY19: 0.03993952081 | HZ19: 0.02963128753 | IA19: 0.03417275261 | IB19: 0.0108924142 | IC19: 0.0251289661 | ID19: 0.03531810051 | IE19: 0.02058427048 | IF19: 0.0390069346 | IH19: 13 | II19: 0.04450837753 | IJ19: 0.03791914395 | IK19: 0.05326415026 | IL19: 0.009095483247 | IM19: 0.0314810005 | IN19: 0.03734681797 | IO19: 0.02278733295 | IP19: 0.0402420847 | IR19: 13 | IS19: 0.04417379991 | IT19: 0.03987330299 | IU19: 0.02881483814 | IV19: 0.02222742688 | IW19: 0.02250899179 | IX19: 0.03813516039 | IY19: 0.02242489253 | IZ19: 0.03927950428 | JB19: 13 | JC19: 0.04648572229 | JD19: 0.0440648715 | JE19: 0.06454325067 | JF19: 0.01798303296 | JG19: 0.05145098345 | JH19: 0.05320230828 | JI19: 0.02437562896 | JJ19: 0.04586980043 | JL19: 13 | JM19: 0.05131355682 | JN19: 0.04535684132 | JO19: 0.06339516693 | JP19: 0.02502149498 | JQ19: 0.03116962206 | JR19: 0.06308543312 | JS19: 0.02985721862 | JT19: 0.04675650787
B20: 10 | L20: 10 | CD20: 14 | CE20: 10 | CF20: 0.04851589485 | CG20: 0.03389435962 | CH20: 0.03217433549 | CI20: 0.08709895763 | CJ20: 0.02579118236 | CK20: 0.03826602552 | CL20: 0.02818456259 | CM20: 0.03208223781 | CO20: 10 | CP20: 10948.99924 | CQ20: 12021.91779 | CR20: 13505.23614 | CS20: 10949.00747 | CT20: 12021.89955 | CU20: 31703.20935 | CV20: 1638.724934 | CW20: 17970.61181 | DR20: 14 | DS20: 0.02879283655 | DT20: 0.02606695749 | DU20: 0.02731336489 | DV20: 0.02879283655 | DW20: 0.02937438387 | DX20: 0.02944591849 | DY20: 0 | DZ20: 0.02944591849 | EB20: 14 | EC20: 0.02492290966 | ED20: 0.01540664236 | EE20: 0.02613872021 | EF20: 0.08551658852 | EG20: 0.01570569316 | EH20: 0.02704150435 | EI20: 0.0366246474 | EJ20: 0.02554461263 | EL20: 14 | EM20: 0.02498846803 | EN20: 0.01854879006 | EO20: 0.0417578433 | EP20: 0.02492958071 | EQ20: 0.01833703695 | ER20: 0.02665481364 | ES20: 0.02872648115 | ET20: 0.03475717488 | EV20: 14 | EW20: 0.0233489242 | EX20: 0.01633256928 | EY20: 0.03269176371 | EZ20: 0.03691180028 | FA20: 0.004209955059 | FB20: 0.02822319336 | FC20: 0.02182858162 | FD20: 0.0337100104 | FF20: 14 | FG20: 0.02018731536 | FH20: 0.01830947821 | FI20: 0.03397154177 | FJ20: 0.000718293791 | FK20: 0.01015590001 | FL20: 0.02857168302 | FM20: 0.01735497084 | FN20: 0.03110150299 | FP20: 14 | FQ20: 0.02093586168 | FR20: 0.01877436141 | FS20: 0.03807710819 | FT20: 0.002865936502 | FU20: 0.008962398358 | FV20: 0.02923255648 | FW20: 0.01715669114 | FX20: 0.02580532566 | FZ20: 14 | GA20: 0.023490724 | GB20: 0.01635397011 | GC20: 0.03166355474 | GD20: 0.004070163738 | GE20: 0.008306750394 | GF20: 0.02998779666 | GG20: 0.01548529251 | GH20: 0.03993265144 | GJ20: 14 | GK20: 0.02534242366 | GL20: 0.01612372394 | GM20: 0.02357847344 | GN20: 0.01235424356 | GO20: 0.0100732682 | GP20: 0.02363493526 | GQ20: 0.01495985726 | GR20: 0.03763366289 | GT20: 14 | GU20: 0.02740051741 | GV20: 0.02740051741 | GW20: 0.02740051741 | GX20: 0.02740051741 | GY20: 0.02740051741 | GZ20: 0.02740051741 | HA20: 0.02740051741 | HB20: 0.02740051741 | HD20: 14 | HE20: 0.02994533335 | HF20: 0.02072805578 | HG20: 0.03227669322 | HH20: 0.00404770639 | HI20: 0.01369583703 | HJ20: 0.02742441963 | HK20: 0.01613180869 | HL20: 0.03071234325 | HN20: 14 | HO20: 0.0329814449 | HP20: 0.02635258054 | HQ20: 0.03799591919 | HR20: 0.001053714466 | HS20: 0.01164259233 | HT20: 0.03422394982 | HU20: 0.01776285448 | HV20: 0.02654380417 | HX20: 14 | HY20: 0.03999964204 | HZ20: 0.02926245806 | IA20: 0.04670443106 | IB20: 0.008268821021 | IC20: 0.01945392135 | ID20: 0.04297108369 | IE20: 0.01549993841 | IF20: 0.03761820381 | IH20: 14 | II20: 0.03756527666 | IJ20: 0.0283161356 | IK20: 0.03326915205 | IL20: 0.01052139575 | IM20: 0.02444524581 | IN20: 0.03436501465 | IO20: 0.01997092101 | IP20: 0.03720385705 | IR20: 14 | IS20: 0.04212337162 | IT20: 0.03602253511 | IU20: 0.05345250126 | IV20: 0.00870118808 | IW20: 0.02944249498 | IX20: 0.03670860867 | IY20: 0.02145493147 | IZ20: 0.03629653316 | JB20: 14 | JC20: 0.03889888585 | JD20: 0.0357190673 | JE20: 0.02736323533 | JF20: 0.01768521029 | JG20: 0.01977914938 | JH20: 0.03579809631 | JI20: 0.02079982275 | JJ20: 0.03725233066 | JL20: 14 | JM20: 0.04124498466 | JN20: 0.03959885272 | JO20: 0.06088920848 | JP20: 0.01467252164 | JQ20: 0.0456004559 | JR20: 0.05020972065 | JS20: 0.0225670831 | JT20: 0.04333263368
B21: 11 | L21: 11 | CD21: 15 | CE21: 11 | CF21: 0.03629538506 | CG21: 0.03315705627 | CH21: 0.02358263247 | CI21: 0.06082502817 | CJ21: 0.02258576701 | CK21: 0.02522812579 | CL21: =IF(ToggleYear<=1998,VLOOKUP(CE21,$DR$6:$DY$36,2,FALSE),IF(AND(ToggleYear>=1999,ToggleYear<=2013),HLOOKUP(ToggleYear&"MC",$EC$3:$JS$36,$CD21,FALSE),HLOOKUP(ToggleYear&"MC",$DU$40:$JK$73,CD21,FALSE))) -> 0.0194325119 | CM21: 0.02946638927 | CO21: 11 | CP21: 10552.77519 | CQ21: 11521.48673 | CR21: 11627.85856 | CS21: 10552.75429 | CT21: 11521.48179 | CU21: 24878.63051 | CV21: 1544.549325 | CW21: 16396.75105 | DR21: 15 | DS21: 0.02282888467 | DT21: 0.02152942829 | DU21: 0.02496045427 | DV21: 0.02282888467 | DW21: 0.02736491796 | DX21: 0.02735469399 | DY21: 0 | DZ21: 0.02735469399 | EB21: 15 | EC21: 0.02220138689 | ED21: 0.01434107901 | EE21: 0.02532660276 | EF21: 0.1012258239 | EG21: 0.01921612027 | EH21: 0.0288060156 | EI21: 0.03376449977 | EJ21: 0.01898200485 | EL21: 15 | EM21: 0.02131448148 | EN21: 0.01303146008 | EO21: 0.02579341158 | EP21: 0.08287453853 | EQ21: 0.01346735336 | ER21: 0.0238520738 | ES21: 0.03363732559 | ET21: 0.02322746317 | EV21: 15 | EW21: 0.02207672649 | EX21: 0.01596727849 | EY21: 0.03979807287 | EZ21: 0.0241860977 | FA21: 0.01442385593 | FB21: 0.02442808648 | FC21: 0.02634977991 | FD21: 0.03098223396 | FF21: 15 | FG21: 0.01983290318 | FH21: 0.01411777302 | FI21: 0.03074113657 | FJ21: 0.03509173002 | FK21: 0.003609411365 | FL21: 0.02560360845 | FM21: 0.01789624169 | FN21: 0.02987922278 | FP21: 15 | FQ21: 0.01771709863 | FR21: 0.01612390321 | FS21: 0.03224843795 | FT21: 0.0006919872895 | FU21: 0.008584157147 | FV21: 0.02630832495 | FW21: 0.01467764459 | FX21: 0.02812095688 | FZ21: 15 | GA21: 0.01891580132 | GB21: 0.01664992224 | GC21: 0.036055281 | GD21: 0.002804557787 | GE21: 0.00782670366 | GF21: 0.02708123356 | GG21: 0.01444922494 | GH21: 0.02347451573 | GJ21: 15 | GK21: 0.02136223845 | GL21: 0.01472677461 | GM21: 0.03026020725 | GN21: 0.003917818275 | GO21: 0.007347994161 | GP21: 0.02736572266 | GQ21: 0.01338680446 | GR21: 0.03669120567 | GT21: 15 | GU21: 0.02320458791 | GV21: 0.02320458791 | GW21: 0.02320458791 | GX21: 0.02320458791 | GY21: 0.02320458791 | GZ21: 0.02320458791 | HA21: 0.02320458791 | HB21: 0.02320458791 | HD21: 15 | HE21: 0.02538443548 | HF21: 0.01594151238 | HG21: 0.02767003145 | HH21: 0.005783043511 | HI21: 0.01311144034 | HJ21: 0.02054970562 | HK21: 0.0143786649 | HL21: 0.0303223726 | HN21: 15 | HO21: 0.02822522991 | HP21: 0.01932002321 | HQ21: 0.03105547667 | HR21: 0.004157796511 | HS21: 0.01255713246 | HT21: 0.0259833407 | HU21: 0.0146182337 | HV21: 0.02864236677 | HX21: 15 | HY21: 0.03162369721 | HZ21: 0.02542414701 | IA21: 0.03736262657 | IB21: 0.001040171989 | IC21: 0.01130066258 | ID21: 0.0332482962 | IE21: 0.01773605375 | IF21: 0.02504295277 | IH21: 15 | II21: 0.03829082357 | IJ21: 0.02794264624 | IK21: 0.04594779176 | IL21: 0.008129206666 | IM21: 0.01859604869 | IN21: 0.04218202569 | IO21: 0.01504316011 | IP21: 0.03665309373 | IR21: 15 | IS21: 0.03550794609 | IT21: 0.02690969401 | IU21: 0.03204895707 | IV21: 0.01005270066 | IW21: 0.02319975048 | IX21: 0.0331232537 | IY21: 0.01880333587 | IZ21: 0.03088636954 | JB21: 15 | JC21: 0.03630974682 | JD21: 0.03143403113 | JE21: 0.05075991704 | JF21: 0.006776164013 | JG21: 0.02519574148 | JH21: 0.03457814725 | JI21: 0.01990032271 | JJ21: 0.03442332032 | JL21: 15 | JM21: 0.03391155645 | JN21: 0.03139916858 | JO21: 0.02581421138 | JP21: 0.01417746639 | JQ21: 0.01714705523 | JR21: 0.03379245591 | JS21: 0.01925656607 | JT21: 0.035191899
B22: 12 | L22: 12 | CD22: 16 | CE22: 12 | CF22: 0.03651298039 | CG22: 0.025679058 | CH22: 0.01245307911 | CI22: 0.0550724611 | CJ22: 0.009489599972 | CK22: 0.01406394274 | CL22: 0.01500242102 | CM22: 0.03102433314 | CO22: 12 | CP22: 10156.51108 | CQ22: 11024.31378 | CR22: 12038.83197 | CS22: 10156.5087 | CT22: 11024.30195 | CU22: 27263.1064 | CV22: 1469.200018 | CW22: 17485.35226 | DR22: 16 | DS22: 0.01810026412 | DT22: 0.01753397547 | DU22: 0.02281255932 | DV22: 0.01810026412 | DW22: 0.02549284308 | DX22: 0.02541544794 | DY22: 0 | DZ22: 0.02541544794 | EB22: 16 | EC22: 0.01796377401 | ED22: 0.009242268899 | EE22: 0.02152204732 | EF22: 0.1478752195 | EG22: 0.01650078877 | EH22: 0.02070879822 | EI22: 0.04367530558 | EJ22: 0.01426109531 | EL22: 16 | EM22: 0.01883753652 | EN22: 0.01212057591 | EO22: 0.02464494293 | EP22: 0.09732653097 | EQ22: 0.01648956698 | ER22: 0.02491463648 | ES22: 0.03112037378 | ET22: 0.01707040763 | EV22: 16 | EW22: 0.01878830316 | EX22: 0.01121396785 | EY22: 0.02457901512 | EZ22: 0.08022161162 | FA22: 0.0106149167 | FB22: 0.02166070477 | FC22: 0.03085442453 | FD22: 0.0212198268 | FF22: 16 | FG22: 0.01861104805 | FH22: 0.01384453084 | FI22: 0.0389964952 | FJ22: 0.02282041537 | FK22: 0.01245118109 | FL22: 0.02275172741 | FM22: 0.02279589531 | FN22: 0.02728119545 | FP22: 16 | FQ22: 0.01713285195 | FR22: 0.01242537408 | FS22: 0.02896908914 | FT22: 0.03327603821 | FU22: 0.003107914246 | FV22: 0.0232124358 | FW22: 0.01495820472 | FX22: 0.02667827636 | FZ22: 16 | GA22: 0.01586293119 | GB22: 0.01429463219 | GC22: 0.03029243079 | GD22: 0.000671047161 | GE22: 0.0073357423 | GF22: 0.02414540164 | GG22: 0.01227281641 | GH22: 0.02537119912 | GJ22: 16 | GK22: 0.01721194489 | GL22: 0.01498905973 | GM22: 0.03450592489 | GN22: 0.002701156714 | GO22: 0.006866635818 | GP22: 0.02472615287 | GQ22: 0.0118527636 | GR22: 0.02112056107 | GT22: 16 | GU22: 0.01953588679 | GV22: 0.01953588679 | GW22: 0.01953588679 | GX22: 0.01953588679 | GY22: 0.01953588679 | GZ22: 0.01953588679 | HA22: 0.01953588679 | HB22: 0.01953588679 | HD22: 16 | HE22: 0.02145697128 | HF22: 0.01366501287 | HG22: 0.02150599008 | HH22: 0.0118632201 | HI22: 0.00792385829 | HJ22: 0.01953471736 | HK22: 0.01114245248 | HL22: 0.03115478426 | HN22: 16 | HO22: 0.02387074235 | HP22: 0.01479485561 | HQ22: 0.02629532472 | HR22: 0.005926544179 | HS22: 0.01191140921 | HT22: 0.01915421463 | HU22: 0.01282521787 | HV22: 0.02785991056 | HX22: 16 | HY22: 0.02705688813 | HZ22: 0.01860441163 | IA22: 0.03033213706 | IB22: 0.004103387862 | IC22: 0.01219698693 | ID22: 0.02505521571 | IE22: 0.01450278734 | IF22: 0.02708190263 | IH22: 16 | II22: 0.03027665919 | IJ22: 0.02430860758 | IK22: 0.03651287828 | IL22: 0.001022741992 | IM22: 0.01095377645 | IN22: 0.03231114055 | IO22: 0.01730872611 | IP22: 0.02382472178 | IR22: 16 | IS22: 0.03684495542 | IT22: 0.02654793916 | IU22: 0.0447648905 | IV22: 0.007906815376 | IW22: 0.01733700794 | IX22: 0.04082479826 | IY22: 0.01416369076 | IZ22: 0.03512150118 | JB22: 16 | JC22: 0.03006110374 | JD22: 0.02326124886 | JE22: 0.03033831327 | JF22: 0.007688956394 | JG22: 0.01966683203 | JH22: 0.03089626814 | JI22: 0.01744067157 | JJ22: 0.0292923528 | JL22: 16 | JM22: 0.03119201604 | JN22: 0.02741779191 | JO22: 0.04778290814 | JP22: 0.005352678847 | JQ22: 0.02167191174 | JR22: 0.03256506363 | JS22: 0.018423752 | JT22: 0.0324398124
B23: 13 | L23: 13 | CD23: 17 | CE23: 13 | CF23: 0.03143664897 | CG23: 0.01873575405 | CH23: 0.01764389059 | CI23: 0.0347273947 | CJ23: 0.009043700566 | CK23: 0.01754507369 | CL23: 0.03305144612 | CM23: 0.03505536922 | CO23: 13 | CP23: 9762.33084 | CQ23: 10535.27683 | CR23: 9870.407487 | CS23: 9762.28935 | CT23: 10535.27854 | CU23: 23970.92478 | CV23: 1393.856811 | CW23: 16164.79988 | DR23: 17 | DS23: 0.01435110054 | DT23: 0.01414010095 | DU23: 0.02085183165 | DV23: 0.01435110054 | DW23: 0.02374884347 | DX23: 0.02361703028 | DY23: 0 | DZ23: 0.02361703028 | EB23: 17 | EC23: 0.015248602 | ED23: 0.009355020524 | EE23: 0.01949770132 | EF23: 0.1789683797 | EG23: 0.03223284246 | EH23: 0.01964729913 | EI23: 0.03914695953 | EJ23: 0.01494709113 | EL23: 17 | EM23: 0.01501032684 | EN23: 0.007808821699 | EO23: 0.02042450823 | EP23: 0.1400178161 | EQ23: 0.01416085055 | ER23: 0.01764173211 | ES23: 0.04137069573 | ET23: 0.01280647088 | EV23: 17 | EW23: 0.01649382967 | EX23: 0.0104213137 | EY23: 0.02348193814 | EZ23: 0.0935809002 | FA23: 0.01300760311 | FB23: 0.02244346856 | FC23: 0.02854569709 | FD23: 0.01541956315 | FF23: 17 | FG23: 0.01570059223 | FH23: 0.009705198559 | FI23: 0.0241046927 | FJ23: 0.07503094999 | FK23: 0.009163345033 | FL23: 0.01994107966 | FM23: 0.02732868069 | FN23: 0.01926215948 | FP23: 17 | FQ23: 0.01584909803 | FR23: 0.01219596596 | FS23: 0.03758346746 | FT23: 0.02133240829 | FU23: 0.01076764262 | FV23: 0.02109149186 | FW23: 0.01979843645 | FX23: 0.02437958224 | FZ23: 17 | GA23: 0.01506626034 | GB23: 0.011009934 | GC23: 0.02711094675 | GD23: 0.03169355612 | GE23: 0.00270238281 | GF23: 0.02109245328 | GG23: 0.01233662369 | GH23: 0.02395299868 | GJ23: 17 | GK23: 0.01423855017 | GL23: 0.01286501506 | GM23: 0.02895268393 | GN23: 0.0006375507033 | GO23: 0.006313799402 | GP23: 0.02193550725 | GQ23: 0.009962501581 | GR23: 0.0226853878 | GT23: 17 | GU23: 0.01571801861 | GV23: 0.01571801861 | GW23: 0.01571801861 | GX23: 0.01571801861 | GY23: 0.01571801861 | GZ23: 0.01571801861 | HA23: 0.01571801861 | HB23: 0.01571801861 | HD23: 17 | HE23: 0.01802189335 | HF23: 0.01244866067 | HG23: 0.02759274532 | HH23: 0.003748574341 | HI23: 0.005989475881 | HJ23: 0.02280987963 | HK23: 0.009707652188 | HL23: 0.03079058117 | HN23: 17 | HO23: 0.02012892174 | HP23: 0.01273048517 | HQ23: 0.02058044757 | HR23: 0.01212835269 | HS23: 0.007126829547 | HT23: 0.01826782066 | HU23: 0.009702367047 | HV23: 0.0285656481 | HX23: 17 | HY23: 0.02281998067 | HZ23: 0.0142308133 | IA23: 0.02536232977 | IB23: 0.005832992302 | IC23: 0.01152060326 | ID23: 0.01827080825 | IE23: 0.01213246755 | IF23: 0.0260232286 | IH23: 17 | II23: 0.02594780283 | IJ23: 0.0177542895 | IK23: 0.0294961742 | IL23: 0.004041399655 | IM23: 0.01182993124 | IN23: 0.02420615672 | IO23: 0.01410633803 | IP23: 0.02603771822 | IR23: 17 | IS23: 0.02913414209 | IT23: 0.02312638001 | IU23: 0.03539504786 | IV23: 0.0009947890213 | IW23: 0.01036941486 | IX23: 0.03104358841 | IY23: 0.01629694614 | IZ23: 0.01785466976 | JB23: 17 | JC23: 0.03075118255 | JD23: 0.02274655501 | JE23: 0.04237371 | JF23: 0.005961990884 | JG23: 0.01456755071 | JH23: 0.03816746495 | JI23: 0.01313728022 | JJ23: 0.03330909359 | JL23: 17 | JM23: 0.02552520159 | JN23: 0.02014074772 | JO23: 0.02855898665 | JP23: 0.006003445863 | JQ23: 0.01679250605 | JR23: 0.0291115085 | JS23: 0.01614672154 | JT23: 0.0276045027
B24: 14 | L24: 14 | CD24: 18 | CE24: 14 | CF24: 0.03687290277 | CG24: 0.03095413288 | CH24: 0.03276647677 | CI24: 0.003584684991 | CJ24: 0.02666257095 | CK24: 0.02855584894 | CL24: 0.0407647599 | CM24: 0.03321267247 | CO24: 14 | CP24: 9373.152937 | CQ24: 10057.65422 | CR24: 8268.654203 | CS24: 9373.154044 | CT24: 10057.64715 | CU24: 12791.29564 | CV24: 1327.932451 | CW24: 15142.62518 | DR24: 18 | DS24: 0.01137850912 | DT24: 0.01205520188 | DU24: 0.01906161033 | DV24: 0.01137850912 | DW24: 0.0221241897 | DX24: 0.02194881219 | DY24: 0 | DZ24: 0.02194881219 | EB24: 18 | EC24: 0.01605363504 | ED24: 0.009400637158 | EE24: 0.02911077862 | EF24: 0.1304584747 | EG24: 0.01421416793 | EH24: 0.01585639799 | EI24: 0.04356414058 | EJ24: 0.01390571576 | EL24: 18 | EM24: 0.01275569389 | EN24: 0.007896563975 | EO24: 0.01925087453 | EP24: 0.1696469046 | EQ24: 0.02773341433 | ER24: 0.01721064654 | ES24: 0.03706108982 | ET24: 0.01353344074 | EV24: 18 | EW24: 0.01298729662 | EX24: 0.006711853459 | EY24: 0.01945259762 | EZ24: 0.1330361896 | FA24: 0.01117176695 | FB24: 0.01574306995 | FC24: 0.03794798294 | FD24: 0.01143868672 | FF24: 18 | FG24: 0.01349315677 | FH24: 0.009017623978 | FI24: 0.02287641904 | FJ24: 0.08568408919 | FK24: 0.01124497249 | FL24: 0.02020460293 | FM24: 0.02606646968 | FN24: 0.01381690376 | FP24: 18 | FQ24: 0.01325702286 | FR24: 0.00854759242 | FS24: 0.02323457283 | FT24: 0.0695428446 | FU24: 0.007935966543 | FV24: 0.01819517974 | FW24: 0.02431259868 | FX24: 0.01768881446 | FZ24: 18 | GA24: 0.013714323 | GB24: 0.01081536293 | GC24: 0.03587791913 | GD24: 0.01999276956 | GE24: 0.009399800336 | GF24: 0.01951506657 | GG24: 0.01721248735 | GH24: 0.02187967444 | GJ24: 18 | GK24: 0.01317799903 | GL24: 0.009904481313 | GM24: 0.02587627706 | GN24: 0.02934237876 | GO24: 0.002362006424 | GP24: 0.01891469936 | GQ24: 0.01004848544 | GR24: 0.02120771337 | GT24: 18 | GU24: 0.01273938042 | GV24: 0.01273938042 | GW24: 0.01273938042 | GX24: 0.01273938042 | GY24: 0.01273938042 | GZ24: 0.01273938042 | HA24: 0.01273938042 | HB24: 0.01273938042 | HD24: 18 | HE24: 0.01446763074 | HF24: 0.01266443483 | HG24: 0.03134028886 | HH24: 0.002575048615 | HI24: 0.005517321309 | HJ24: 0.02063775112 | HK24: 0.007617726092 | HL24: 0.01720086673 | HN24: 18 | HO24: 0.01684892095 | HP24: 0.01159536664 | HQ24: 0.02656832406 | HR24: 0.003819300361 | HS24: 0.005501745637 | HT24: 0.02150692881 | HU24: 0.008488698193 | HV24: 0.02848839757 | HX24: 18 | HY24: 0.01915003468 | HZ24: 0.01226818932 | IA24: 0.02002482636 | IB24: 0.01187927928 | IC24: 0.006832489717 | ID24: 0.01750070349 | IE24: 0.009617547717 | IF24: 0.0263702918 | IH24: 18 | II24: 0.02174448542 | IJ24: 0.01357153453 | IK24: 0.02392961822 | IL24: 0.005708070586 | IM24: 0.01113302221 | IN24: 0.01719483612 | IO24: 0.01180283092 | IP24: 0.02473230259 | IR24: 18 | IS24: 0.02504133694 | IT24: 0.01686578566 | IU24: 0.02826251543 | IV24: 0.003942384459 | IW24: 0.01120511623 | IX24: 0.02291338616 | IY24: 0.01328162985 | IZ24: 0.02073171344 | JB24: 18 | JC24: 0.02404093271 | JD24: 0.0196597156 | JE24: 0.03339952996 | JF24: 0.0007416271646 | JG24: 0.008644706439 | JH24: 0.02885378045 | JI24: 0.01511618029 | JJ24: 0.01693320635 | JL24: 18 | JM24: 0.02587081993 | JN24: 0.01956716421 | JO24: 0.03980246407 | JP24: 0.004612181871 | JQ24: 0.01235765594 | JR24: 0.03588481261 | JS24: 0.01216258445 | JT24: 0.03131296057
B25: 15 | L25: 15 | CD25: 19 | CE25: 15 | CF25: 0.03644877335 | CG25: 0.0311264448 | CH25: 0.02456336477 | CI25: 0.002403004098 | CJ25: 0.02371615067 | CK25: 0.04388053309 | CL25: 0.0502233837 | CM25: 0.03028720123 | CO25: 15 | CP25: 8990.073094 | CQ25: 9594.720871 | CR25: 6776.829968 | CS25: 8990.071495 | CT25: 9594.756841 | CU25: 16632.04098 | CV25: 1271.424338 | CW25: 15295.86884 | DR25: 19 | DS25: 0.009021646746 | DT25: 0.0114077563 | DU25: 0.01742705824 | DV25: 0.009021646746 | DW25: 0.02061067347 | DX25: 0.02040129894 | DY25: 0 | DZ25: 0.02040129894 | EB25: 19 | EC25: 0.01508953086 | ED25: 0.005376462549 | EE25: 0.01336556677 | EF25: 0.07256981968 | EG25: 0.01095450713 | EH25: 0.009949058073 | EI25: 0.0393150333 | EJ25: 0.007471621963 | EL25: 19 | EM25: 0.0136033239 | EN25: 0.007937402619 | EO25: 0.02714411847 | EP25: 0.1252682662 | EQ25: 0.01207230138 | ER25: 0.01380642796 | ES25: 0.04136793035 | ET25: 0.01255740522 | EV25: 19 | EW25: 0.01109679457 | EX25: 0.006780317666 | EY25: 0.01833867557 | EZ25: 0.1620669649 | FA25: 0.02194172124 | FB25: 0.01554066196 | FC25: 0.03399471893 | FD25: 0.01236575483 | FF25: 19 | FG25: 0.0104861633 | FH25: 0.005804517205 | FI25: 0.01885822143 | FJ25: 0.1202232592 | FK25: 0.009657332449 | FL25: 0.01394068316 | FM25: 0.03634598984 | FN25: 0.01020413991 | FP25: 19 | FQ25: 0.01123176185 | FR25: 0.007937426698 | FS25: 0.02199592266 | FT25: 0.07829188823 | FU25: 0.009744253927 | FV25: 0.01804802018 | FW25: 0.02351030495 | FX25: 0.01254754295 | FZ25: 19 | GA25: 0.01145680894 | GB25: 0.007578485845 | GC25: 0.02216944089 | GD25: 0.06509293981 | GE25: 0.006937073942 | GF25: 0.01663500126 | GG25: 0.02150366156 | GH25: 0.01627323686 | GJ25: 19 | GK25: 0.01188190763 | GL25: 0.009736106061 | GM25: 0.03448393726 | GN25: 0.01833438677 | GO25: 0.008244186169 | GP25: 0.01775574587 | GQ25: 0.01479086448 | GR25: 0.01932673238 | GT25: 19 | GU25: 0.01148498105 | GV25: 0.01148498105 | GW25: 0.01148498105 | GX25: 0.01148498105 | GY25: 0.01148498105 | GZ25: 0.01148498105 | HA25: 0.01148498105 | HB25: 0.01148498105 | HD25: 19 | HE25: 0.0115976198 | HF25: 0.01086438249 | HG25: 0.02641241506 | HH25: 0.0005889617335 | HI25: 0.004899776985 | HJ25: 0.01819860003 | HK25: 0.006417316519 | HL25: 0.01801749483 | HN25: 19 | HO25: 0.01358544738 | HP25: 0.01187264787 | HQ25: 0.03027555134 | HR25: 0.002635173169 | HS25: 0.005066394839 | HT25: 0.01961248169 | HU25: 0.006366037594 | HV25: 0.01563411626 | HX25: 19 | HY25: 0.01610534955 | HZ25: 0.01116632452 | IA25: 0.02600697934 | IB25: 0.0037585463 | IC25: 0.005355080304 | ID25: 0.0207361465 | IE25: 0.007811479577 | IF25: 0.02661429122 | IH25: 19 | II25: 0.01835834699 | IJ25: 0.01171767921 | IK25: 0.01918801157 | IL25: 0.0116954899 | IM25: 0.006540907359 | IN25: 0.01663851581 | IO25: 0.009344759924 | IP25: 0.02521258587 | IR25: 19 | IS25: 0.02101815289 | IT25: 0.01291495638 | IU25: 0.02215070761 | IV25: 0.005577071958 | IW25: 0.01053937933 | IX25: 0.01601442219 | IY25: 0.01111284963 | IZ25: 0.01870180877 | JB25: 19 | JC25: 0.02048961898 | JD25: 0.01423955599 | JE25: 0.02666657679 | JF25: 0.002914342598 | JG25: 0.009277527519 | JH25: 0.02130868045 | JI25: 0.01231927535 | JJ25: 0.01966178102 | JL25: 19 | JM25: 0.02008705697 | JN25: 0.01681584667 | JO25: 0.03137271263 | JP25: 0.0005697948295 | JQ25: 0.007291741898 | JR25: 0.02712895078 | JS25: 0.01399447416 | JT25: 0.01591849564
B26: 16 | L26: 16 | CD26: 20 | CE26: 16 | CF26: 0.03032300679 | CG26: 0.02969669347 | CH26: 0.03454724808 | CI26: 0.0298179401 | CJ26: 0.03581063996 | CK26: 0.04049194287 | CL26: 0.04875639081 | CM26: 0.02982273581 | CO26: 16 | CP26: 8616.114176 | CQ26: 9152.961355 | CR26: 5652.489311 | CS26: 8616.120691 | CT26: 9152.946607 | CU26: 11702.05131 | CV26: 1224.332757 | CW26: 15384.84216 | DR26: 20 | DS26: 0.007152961897 | DT26: 0.01079749949 | DU26: 0.0159344713 | DV26: 0.007152961897 | DW26: 0.01920067282 | DX26: 0.0189653679 | DY26: 0 | DZ26: 0.0189653679 | EB26: 20 | EC26: 0.013643677 | ED26: 0.005879895007 | EE26: 0.01221899738 | EF26: 0.0431168044 | EG26: 0.006230592298 | EH26: 0.01018342038 | EI26: 0.03815949604 | EJ26: 0.004509359031 | EL26: 20 | EM26: 0.01295704719 | EN26: 0.004528080036 | EO26: 0.0112042856 | EP26: 0.0706125222 | EQ26: 0.00916970341 | ER26: 0.008251450521 | ES26: 0.03736942909 | ET26: 0.006772318916 | EV26: 20 | EW26: 0.01191606781 | EX26: 0.006817551732 | EY26: 0.02581866994 | EZ26: 0.1204994263 | FA26: 0.009414117572 | FB26: 0.01257217661 | FC26: 0.03794553055 | FD26: 0.01143993622 | FF26: 20 | FG26: 0.009020760003 | FH26: 0.005883316808 | FI26: 0.01809849987 | FJ26: 0.1474552081 | FK26: 0.01909144763 | FL26: 0.01424639977 | FM26: 0.03280547093 | FN26: 0.01125604232 | FP26: 20 | FQ26: 0.008597245485 | FR26: 0.005108036315 | FS26: 0.01813870783 | FT26: 0.1081963664 | FU26: 0.008369025321 | FV26: 0.01232203872 | FW26: 0.03382700338 | FX26: 0.009220539094 | FZ26: 20 | GA26: 0.009563410061 | GB26: 0.007033894947 | GC26: 0.02099493729 | GD26: 0.07220128735 | GE26: 0.008522142552 | GF26: 0.01623486083 | GG26: 0.02115804597 | GH26: 0.01145949523 | GJ26: 20 | GK26: 0.009852424589 | GL26: 0.006821067786 | GM26: 0.02131431351 | GN26: 0.05925094454 | GO26: 0.006091252485 | GP26: 0.01493914297 | GQ26: 0.01899074275 | GR26: 0.01504577623 | GT26: 20 | GU26: 0.01018105529 | GV26: 0.01018105529 | GW26: 0.01018105529 | GX26: 0.01018105529 | GY26: 0.01018105529 | GZ26: 0.01018105529 | HA26: 0.01018105529 | HB26: 0.01018105529 | HD26: 20 | HE26: 0.01016711118 | HF26: 0.008357938808 | HG26: 0.02360971119 | HH26: 0.02567495352 | HI26: 0.001885246156 | HJ26: 0.01525612354 | HK26: 0.006439376495 | HL26: 0.01638822962 | HN26: 20 | HO26: 0.0107494344 | HP26: 0.01017542399 | HQ26: 0.02545003942 | HR26: 0.0005949066367 | HS26: 0.004418483925 | HT26: 0.0172423753 | HU26: 0.005364670615 | HV26: 0.01618864055 | HX26: 20 | HY26: 0.01299070515 | HZ26: 0.0114676274 | IA26: 0.02980780209 | IB26: 0.002594215064 | IC26: 0.00492000135 | ID26: 0.0190656383 | IE26: 0.005788892923 | IF26: 0.01442745124 | IH26: 20 | II26: 0.01542619688 | IJ26: 0.01066119921 | IK26: 0.02532273286 | IL26: 0.003697210347 | IM26: 0.005207187943 | IN26: 0.02003423198 | IO26: 0.007574571258 | IP26: 0.02533274214 | IR26: 20 | IS26: 0.01779805852 | IT26: 0.01114698082 | IU26: 0.0178823002 | IV26: 0.01146117856 | IW26: 0.006123280781 | IX26: 0.01550609308 | IY26: 0.008798439938 | IZ26: 0.02168951956 | JB26: 20 | JC26: 0.01707439271 | JD26: 0.01083270191 | JE26: 0.02083261956 | JF26: 0.004093177989 | JG26: 0.008669327365 | JH26: 0.01479668477 | JI26: 0.01030757758 | JJ26: 0.01773663564 | JL26: 20 | JM26: 0.01702010381 | JN26: 0.01211384404 | JO26: 0.0249943387 | JP26: 0.002226060715 | JQ26: 0.007783154636 | JR26: 0.01999492926 | JS26: 0.0114051616 | JT26: 0.01843816377
B27: 17 | L27: 17 | CD27: 21 | CE27: 17 | CF27: 0.02641614226 | CG27: 0.02970085163 | CH27: 0.02756966169 | CI27: 0.01831523428 | CJ27: 0.02857785395 | CK27: 0.03458836284 | CL27: 0.04393175283 | CM27: 0.02181841963 | CO27: 17 | CP27: 8253.30568 | CQ27: 8734.034127 | CR27: 5292.928131 | CS27: 8253.26324 | CT27: 8734.032613 | CU27: 11249.26719 | CV27: 1177.246535 | CW27: 13586.27166 | DR27: 21 | DS27: 0.005671343936 | DT27: 0.01022218162 | DU27: 0.01457145779 | DV27: 0.005671343936 | DW27: 0.01788715207 | DX27: 0.01763286511 | DY27: 0 | DZ27: 0.01763286511 | EB27: 21 | EC27: 0.01284431427 | ED27: 0.004985842911 | EE27: 0.01215762993 | EF27: 0.01928965765 | EG27: 0.005090622601 | EH27: 0.01179997621 | EI27: 0.03298996185 | EJ27: 0.004052612498 | EL27: 21 | EM27: 0.0116939108 | EN27: 0.004944950612 | EO27: 0.008503477316 | EP27: 0.04187652271 | EQ27: 0.005295743182 | ER27: 0.008435073521 | ES27: 0.03662393018 | ET27: 0.003996734265 | EV27: 21 | EW27: 0.01147854104 | EX27: 0.003878633583 | EY27: 0.01061420806 | EZ27: 0.06869427089 | FA27: 0.007032580259 | FB27: 0.007319878208 | FC27: 0.03427776642 | FD27: 0.006228159229 | FF27: 21 | FG27: 0.009960128629 | FH27: 0.005917165155 | FI27: 0.0251806726 | FJ27: 0.1127294724 | FK27: 0.008092561313 | FL27: 0.01171743692 | FM27: 0.03687826921 | FN27: 0.01044882084 | FP27: 21 | FQ27: 0.007517091569 | FR27: 0.005173811334 | FS27: 0.01755004595 | FT27: 0.1348811815 | FU27: 0.01657801538 | FV27: 0.01306399089 | FW27: 0.03065590848 | FX27: 0.01042468817 | FZ27: 21 | GA27: 0.007261625157 | GB27: 0.004525662972 | GC27: 0.01736682001 | GD27: 0.09898089094 | GE27: 0.007319805697 | GF27: 0.01105781543 | GG27: 0.03125673948 | GH27: 0.008424631464 | GJ27: 21 | GK27: 0.008142004115 | GL27: 0.00632813856 | GM27: 0.02019413196 | GN27: 0.06506478601 | GO27: 0.007486360167 | GP27: 0.01438729374 | GQ27: 0.01904011071 | GR27: 0.01054747225 | GT27: 21 | GU27: 0.008442120201 | GV27: 0.008442120201 | GW27: 0.008442120201 | GX27: 0.008442120201 | GY27: 0.008442120201 | GZ27: 0.008442120201 | HA27: 0.008442120201 | HB27: 0.008442120201 | HD27: 21 | HE27: 0.008925031338 | HF27: 0.008225486943 | HG27: 0.03145883752 | HH27: 0.01561911925 | HI27: 0.006620503625 | HJ27: 0.01478384666 | HK27: 0.01117451575 | HL27: 0.01522879371 | HN27: 21 | HO27: 0.00920442928 | HP27: 0.007801894673 | HQ27: 0.02269555839 | HR27: 0.02533129144 | HS27: 0.001719721321 | HT27: 0.01422676601 | HU27: 0.005415028036 | HV27: 0.01459021633 | HX27: 21 | HY27: 0.01016529856 | HZ27: 0.009826652515 | IA27: 0.02501423292 | IB27: 0.0005791942777 | IC27: 0.004231361812 | ID27: 0.01673186118 | IE27: 0.004891069158 | IF27: 0.01472617107 | IH27: 21 | II27: 0.01255253047 | IJ27: 0.01098118716 | IK27: 0.0294542805 | IL27: 0.002574353745 | IM27: 0.004772944004 | IN27: 0.01880432647 | IO27: 0.005614937175 | IP27: 0.01357467113 | IR27: 21 | IS27: 0.0150131355 | IT27: 0.01013203841 | IU27: 0.02459367806 | IV27: 0.003637127174 | IW27: 0.004944644155 | IX27: 0.01935044891 | IY27: 0.007131714299 | IZ27: 0.02435368763 | JB27: 21 | JC27: 0.01438630972 | JD27: 0.009301496873 | JE27: 0.01682046166 | JF27: 0.008369742642 | JG27: 0.005010780334 | JH27: 0.01434455049 | JI27: 0.008160884341 | JJ27: 0.02057015171 | JL27: 21 | JM27: 0.01412572576 | JN27: 0.009176245286 | JO27: 0.01952630595 | JP27: 0.003113822732 | JQ27: 0.007241894021 | JR27: 0.0138856977 | JS27: 0.009542777081 | JT27: 0.01663279739
B28: 18 | L28: 18 | CD28: 22 | CE28: 18 | CF28: 0.02125633305 | CG28: 0.02839483322 | CH28: 0.02365171156 | CI28: 0.01013125177 | CJ28: 0.03051102 | CK28: 0.02306208085 | CL28: 0.0357533003 | CM28: 0.02252176005 | CO28: 18 | CP28: 7903.66579 | CQ28: 8344.437359 | CR28: 4937.697557 | CS28: 7903.658208 | CT28: 8344.440729 | CU28: 9323.10094 | CV28: 1130.151831 | CW28: 12912.15357 | DR28: 22 | DS28: 0.004496624258 | DT28: 0.009679655334 | DU28: 0.0133264187 | DV28: 0.004496624258 | DW28: 0.01666346641 | DX28: 0.01639603386 | DY28: 0 | DZ28: 0.01639603386 | EB28: 22 | EC28: 0.01163457219 | ED28: 0.003277788617 | EE28: 0.01106283435 | EF28: 0.01497401852 | EG28: 0.003210705962 | EH28: 0.009706318531 | EI28: 0.02019031289 | EJ28: 0.003660923954 | EL28: 22 | EM28: 0.01125722116 | EN28: 0.004201985546 | EO28: 0.009517120123 | EP28: 0.0191576663 | EQ28: 0.004337302441 | ER28: 0.01036833979 | ES28: 0.03164579496 | ET28: 0.003585779878 | EV28: 22 | EW28: 0.01037375688 | EX28: 0.004229101557 | EY28: 0.008034369322 | EZ28: 0.04079455662 | FA28: 0.004133200742 | FB28: 0.007516513698 | FC28: 0.03359375201 | FD28: 0.003551259588 | FF28: 22 | FG28: 0.009988634418 | FH28: 0.003358929158 | FI28: 0.009878492653 | FJ28: 0.06690509166 | FK28: 0.005959123506 | FL28: 0.006469434514 | FM28: 0.03345570085 | FN28: 0.005717917247 | FP28: 22 | FQ28: 0.008619532624 | FR28: 0.00520468048 | FS28: 0.02429978679 | FT28: 0.1070872425 | FU28: 0.006954064571 | FV28: 0.0109010247 | FW28: 0.03460727043 | FX28: 0.009676516093 | FZ28: 22 | GA28: 0.006498166583 | GB28: 0.004581101343 | GC28: 0.0168811634 | GD28: 0.1262861323 | GE28: 0.01452607771 | GF28: 0.01204629952 | GG28: 0.028424631 | GH28: 0.009678315752 | GJ28: 22 | GK28: 0.006194132228 | GL28: 0.004070877275 | GM28: 0.01671974771 | GN28: 0.0893673718 | GO28: 0.006430484715 | GP28: 0.009680292699 | GQ28: 0.0288754295 | GR28: 0.007729839119 | GT28: 22 | GU28: 0.007014385788 | GV28: 0.007014385788 | GW28: 0.007014385788 | GX28: 0.007014385788 | GY28: 0.007014385788 | GZ28: 0.007014385788 | HA28: 0.007014385788 | HB28: 0.007014385788 | HD28: 22 | HE28: 0.007468784673 | HF28: 0.005761060189 | HG28: 0.01944022769 | HH28: 0.05094111704 | HI28: 0.004901573947 | HJ28: 0.01210780882 | HK28: 0.01509734841 | HL28: 0.01326421807 | HN28: 22 | HO28: 0.008054120267 | HP28: 0.007768007912 | HQ28: 0.03066455634 | HR28: 0.01536065695 | HS28: 0.006121249065 | HT28: 0.01421111498 | HU28: 0.00992143526 | HV28: 0.01364933404 | HX28: 22 | HY28: 0.008504422095 | HZ28: 0.007525444582 | IA28: 0.02218490673 | IB28: 0.02409580013 | IC28: 0.001664488913 | ID28: 0.01363658694 | IE28: 0.004903991715 | IF28: 0.01290606152 | IH28: 22 | II28: 0.009762227999 | IJ28: 0.009410147835 | IK28: 0.02449144107 | IL28: 0.000571238874 | IM28: 0.004047895918 | IN28: 0.01633127345 | IO28: 0.004752696693 | IP28: 0.01363400994 | IR28: 22 | IS28: 0.01244457466 | IT28: 0.01043421174 | IU28: 0.02939005661 | IV28: 0.002579830696 | IW28: 0.004507234852 | IX28: 0.01874470506 | IY28: 0.005286658442 | IZ28: 0.01325397351 | JB28: 22 | JC28: 0.01209178978 | JD28: 0.008409256605 | JE28: 0.02313322531 | JF28: 0.002646562019 | JG28: 0.004024597796 | JH28: 0.0179184646 | JI28: 0.006614942048 | JJ28: 0.02309681096 | JL28: 22 | JM28: 0.01186742589 | JN28: 0.007844325554 | JO28: 0.01576551439 | JP28: 0.00634870057 | JQ28: 0.004167227629 | JR28: 0.01345973159 | JS28: 0.007555366176 | JT28: 0.01928999018
B29: 19 | L29: 19 | CD29: 23 | CE29: 19 | CF29: 0.01867500258 | CG29: 0.02467869046 | CH29: 0.02015147927 | CI29: 0.0109594058 | CJ29: 0.0249566659 | CK29: 0.02039668805 | CL29: 0.0384049195 | CM29: 0.01988496048 | CO29: 19 | CP29: 7569.248424 | CQ29: 7987.452045 | CR29: 4770.132229 | CS29: 7569.233564 | CT29: 7987.444573 | CU29: 8769.119409 | CV29: 1092.48293 | CW29: 14294.99485 | DR29: 23 | DS29: 0.003565222012 | DT29: 0.009167977643 | DU29: 0.01218938844 | DV29: 0.003565222012 | DW29: 0.01552355737 | DX29: 0.01524806096 | DY29: 0 | DZ29: 0.01524806096 | EB29: 23 | EC29: 0.01001550921 | ED29: 0.0002336358029 | EE29: 0.005616222219 | EF29: 0.01651567896 | EG29: 0.0002127254917 | EH29: 0.006742449666 | EI29: 0.02134310117 | EJ29: 0.003051533307 | EL29: 23 | EM29: 0.01047546138 | EN29: 0.002768777908 | EO29: 0.0095988128 | EP29: 0.01527758726 | EQ29: 0.00274324463 | ER29: 0.008824714429 | ES29: 0.01939071469 | ET29: 0.003293736104 | EV29: 23 | EW29: 0.01016370917 | EX29: 0.003601964285 | EY29: 0.009017007084 | EZ29: 0.01899408421 | FA29: 0.003394377482 | FB29: 0.00952259344 | FC29: 0.0290275931 | FD29: 0.003278350431 | FF29: 23 | FG29: 0.009217949537 | FH29: 0.003657818169 | FI29: 0.007172547595 | FJ29: 0.04057179409 | FK29: 0.003555558786 | FL29: 0.006853450989 | FM29: 0.03328127823 | FN29: 0.00325104225 | FP29: 23 | FQ29: 0.009077264855 | FR29: 0.002949015703 | FS29: 0.009431847229 | FT29: 0.06674098099 | FU29: 0.00505618069 | FV29: 0.005890264468 | FW29: 0.03149124223 | FX29: 0.005332475429 | FZ29: 23 | GA29: 0.007762409512 | GB29: 0.0046093244 | GC29: 0.02337493099 | GD29: 0.1044514919 | GE29: 0.00603548203 | GF29: 0.01029242525 | GG29: 0.03221514743 | GH29: 0.009040341867 | GJ29: 23 | GK29: 0.00576382084 | GL29: 0.004118605253 | GM29: 0.01628418263 | GN29: 0.1185649383 | GO29: 0.01278133984 | GP29: 0.0109434685 | GQ29: 0.02635251795 | GR29: 0.009157982816 | GT29: 23 | GU29: 0.005477538984 | GV29: 0.005477538984 | GW29: 0.005477538984 | GX29: 0.005477538984 | GY29: 0.005477538984 | GZ29: 0.005477538984 | HA29: 0.005477538984 | HB29: 0.005477538984 | HD29: 23 | HE29: 0.006343337644 | HF29: 0.005340744208 | HG29: 0.01841708815 | HH29: 0.05749075247 | HI29: 0.006028914864 | HJ29: 0.01146297351 | HK29: 0.01572029994 | HL29: 0.009286693288 | HN29: 23 | HO29: 0.006856592695 | HP29: 0.005421765489 | HQ29: 0.01897847404 | HR29: 0.05096508981 | HS29: 0.00452023022 | HT29: 0.0116648724 | HU29: 0.01358230595 | HV29: 0.01277815565 | HX29: 23 | HY29: 0.007485276054 | HZ29: 0.007532729217 | IA29: 0.03059260969 | IB29: 0.01469735876 | IC29: 0.005966729946 | ID29: 0.01399149233 | IE29: 0.009862025491 | IF29: 0.01248081698 | IH29: 23 | II29: 0.007997400562 | IJ29: 0.007201199213 | IK29: 0.0216236187 | IL29: 0.02327092487 | IM29: 0.001610463099 | IN29: 0.01315307744 | IO29: 0.004710915642 | IP29: 0.01182177671 | IR29: 23 | IS29: 0.009730614644 | IT29: 0.008939763587 | IU29: 0.02423006731 | IV29: 0.0005755436431 | IW29: 0.003766442131 | IX29: 0.01616387999 | IY29: 0.004474847043 | IZ29: 0.01439600629 | JB29: 23 | JC29: 0.009987017794 | JD29: 0.00862894284 | JE29: 0.02755056551 | JF29: 0.001870469269 | JG29: 0.003655403411 | JH29: 0.01724968124 | JI29: 0.004903566903 | JJ29: 0.01256997622 | JL29: 23 | JM29: 0.009945616291 | JN29: 0.007070838978 | JO29: 0.02163536725 | JP29: 0.002001669478 | JQ29: 0.003337137824 | JR29: 0.0167786809 | JS29: 0.006124126303 | JT29: 0.02160613155
B30: 20 | L30: 20 | CD30: 24 | CE30: 20 | CF30: 0.01535628492 | CG30: 0.0226689702 | CH30: 0.01940275844 | CI30: 0.01006773908 | CJ30: 0.02068952479 | CK30: 0.01710154945 | CL30: 0.03089046622 | CM30: 0.01969436857 | CO30: 20 | CP30: 7253.097883 | CQ30: 7666.309601 | CR30: 4426.014011 | CS30: 7253.055377 | CT30: 7666.325077 | CU30: 7166.602259 | CV30: 1054.809954 | CW30: 12963.20024 | DR30: 24 | DS30: 0.01025668778 | DT30: 0.04576905904 | DU30: 0.05420391187 | DV30: 0.01025668778 | DW30: 0.07321547607 | DX30: 0.07158168304 | DY30: 0 | DZ30: 0.07158168304 | EB30: 24 | EC30: 0.009258257994 | ED30: 0.0002766530581 | EE30: 0.01084292568 | EF30: 0.01669036631 | EG30: 0.0002677530241 | EH30: 0.005305316469 | EI30: 0.01789414074 | EJ30: 0.003615022598 | EL30: 24 | EM30: 0.009076916772 | EN30: 0.0001981028533 | EO30: 0.005863429367 | EP30: 0.01696127409 | EQ30: 0.0001827035528 | ER30: 0.006495962816 | ES30: 0.01777649639 | ET30: 0.002906636652 | EV30: 24 | EW30: 0.009622756412 | EX30: 0.002379232046 | EY30: 0.009142352408 | EZ30: 0.01541134008 | FA30: 0.00215361021 | FB30: 0.008329622359 | FC30: 0.01778645908 | FD30: 0.00320477509 | FF30: 24 | FG30: 0.009288038515 | FH30: 0.002982110345 | FI30: 0.009064834459 | FJ30: 0.01942735334 | FK30: 0.002801498496 | FL30: 0.009369338534 | FM30: 0.02353323641 | FN30: 0.003122532137 | FP30: 24 | FQ30: 0.008419978141 | FR30: 0.00320799957 | FS30: 0.007008222793 | FT30: 0.04067999289 | FU30: 0.003057294021 | FV30: 0.006641776398 | FW30: 0.02799702717 | FX30: 0.003095720768 | FZ30: 24 | GA30: 0.008429284437 | GB30: 0.002607363484 | GC30: 0.009105954608 | GD30: 0.06712574637 | GE30: 0.004336547069 | GF30: 0.005679484323 | GG30: 0.02583372618 | GH30: 0.005068968968 | GJ30: 24 | GK30: 0.007192913327 | GL30: 0.004144639024 | GM30: 0.02258983299 | GN30: 0.1024480755 | GO30: 0.005266700767 | GP30: 0.009629989456 | GQ30: 0.0258945377 | GR30: 0.008755325122 | GT30: 24 | GU30: 0.005293277263 | GV30: 0.005293277263 | GW30: 0.005293277263 | GX30: 0.005293277263 | GY30: 0.005293277263 | GZ30: 0.005293277263 | HA30: 0.005293277263 | HB30: 0.005293277263 | HD30: 24 | HE30: 0.00507260961 | HF30: 0.003434650137 | HG30: 0.01525104764 | HH30: 0.08300364639 | HI30: 0.005179019062 | HJ30: 0.008038955343 | HK30: 0.01934659934 | HL30: 0.007130928644 | HN30: 24 | HO30: 0.006010558502 | HP30: 0.004593078305 | HQ30: 0.01807091319 | HR30: 0.05936648311 | HS30: 0.005056218534 | HT30: 0.01136303557 | HU30: 0.01094276869 | HV30: 0.009159202154 | HX30: 24 | HY30: 0.006650800587 | HZ30: 0.005081723197 | IA30: 0.01906138123 | IB30: 0.0508953446 | IC30: 0.004249881575 | ID30: 0.01163463972 | IE30: 0.003331255174 | IF30: 0.0129400932 | IH30: 24 | II30: 0.007312117143 | IJ30: 0.007092706299 | IK30: 0.03118237036 | IL30: 0.01474485766 | IM30: 0.005679217625 | IN30: 0.01431471741 | IO30: 0.003905902688 | IP30: 0.01248393774 | IR30: 24 | IS30: 0.007949040637 | IT30: 0.00683924999 | IU30: 0.0226911823 | IV30: 0.02338019817 | IW30: 0.001516705786 | IX30: 0.01372383994 | IY30: 0.004422024586 | IZ30: 0.01418443851 | JB30: 24 | JC30: 0.007788051477 | JD30: 0.007357051632 | JE30: 0.0227154924 | JF30: 0.0004161722672 | JG30: 0.003039731447 | JH30: 0.01486174636 | JI30: 0.004150593779 | JJ30: 0.01365303718 | JL30: 24 | JM30: 0.00819661586 | JN30: 0.007226406085 | JO30: 0.02576728795 | JP30: 0.001411614281 | JQ30: 0.00301883254 | JR30: 0.01615372431 | JS30: 0.004539728817 | JT30: 0.01175871433
B31: 21 | L31: 21 | CD31: 25 | CE31: 21 | CF31: 0.01247569606 | CG31: 0.01894687443 | CH31: 0.02192003101 | CI31: 0.005898302655 | CJ31: 0.02029075566 | CK31: 0.02153668231 | CL31: 0.02565727224 | CM31: 0.02192456221 | CO31: 21 | CP31: 6958.190181 | CQ31: 7385.929029 | CR31: 4045.31073 | CS31: 6958.148841 | CT31: 7385.936761 | CU31: 7470.799441 | CV31: 1026.557808 | CW31: 12621.27777 | DR31: 25 | DS31: 0 | DT31: 0 | DU31: 0 | DV31: 0 | DW31: 0 | DX31: 0 | DY31: 0 | DZ31: 0 | EB31: 25 | EC31: 0.007846274798 | ED31: 0.0002540434297 | EE31: 0.01370389094 | EF31: 0.005337433871 | EG31: 0.0002376113213 | EH31: 0.005974128813 | EI31: 0.01850523476 | EJ31: 0.002977133701 | EL31: 25 | EM31: 0.008297552266 | EN31: 0.0002338429184 | EO31: 0.011213763 | EP31: 0.0169504417 | EQ31: 0.0002289606902 | ER31: 0.004632916509 | ES31: 0.01736152888 | ET31: 0.002838672683 | EV31: 25 | EW31: 0.007842580249 | EX31: 0.000170919151 | EY31: 0.005473735274 | EZ31: 0.01609287121 | FA31: 0.0001442640383 | FB31: 0.005424647784 | FC31: 0.0163057835 | FD31: 0.002304978759 | FF31: 25 | FG31: 0.007984633322 | FH31: 0.002065774702 | FI31: 0.006841217998 | FJ31: 0.01431257997 | FK31: 0.001861800985 | FL31: 0.007087491077 | FM31: 0.0155815874 | FN31: 0.002617323249 | FP31: 25 | FQ31: 0.00799262409 | FR31: 0.002619297618 | FS31: 0.00766348577 | FT31: 0.01835091963 | FU31: 0.002413475389 | FV31: 0.008069672542 | FW31: 0.02128262385 | FX31: 0.002647472932 | FZ31: 25 | GA31: 0.00733971453 | GB31: 0.002833654773 | GC31: 0.006431644015 | GD31: 0.03840731891 | GE31: 0.00265497872 | GF31: 0.005598007937 | GG31: 0.02475030096 | GH31: 0.002621785978 | GJ31: 25 | GK31: 0.007147118292 | GL31: 0.002341211515 | GM31: 0.008721636312 | GN31: 0.06024365577 | GO31: 0.003744609072 | GP31: 0.004774182022 | GQ31: 0.02271279711 | GR31: 0.004493714235 | GT31: 25 | GU31: 0.006167432915 | GV31: 0.006167432915 | GW31: 0.006167432915 | GX31: 0.006167432915 | GY31: 0.006167432915 | GZ31: 0.006167432915 | HA31: 0.006167432915 | HB31: 0.006167432915 | HD31: 25 | HE31: 0.004495053818 | HF31: 0.0034718136 | HG31: 0.01484092864 | HH31: 0.1048691283 | HI31: 0.01032241524 | HJ31: 0.00820574156 | HK31: 0.01784818585 | HL31: 0.007952195599 | HN31: 25 | HO31: 0.004283819196 | HP31: 0.003107972074 | HQ31: 0.01454479131 | HR31: 0.07639125211 | HS31: 0.004593350557 | HT31: 0.007151055376 | HU31: 0.01594873382 | HV31: 0.006181063222 | HX31: 25 | HY31: 0.005046037272 | HZ31: 0.004399973351 | IA31: 0.01766907862 | IB31: 0.05131174741 | IC31: 0.004872418798 | ID31: 0.0106277579 | IE31: 0.008583417867 | IF31: 0.00856402944 | IH31: 25 | II31: 0.00551399723 | IJ31: 0.004887293456 | IK31: 0.01806292009 | IL31: 0.04333463895 | IM31: 0.004144138614 | IN31: 0.01072884856 | IO31: 0.003297370915 | IP31: 0.008970731393 | IR31: 25 | IS31: 0.006486247606 | IT31: 0.00673954843 | IU31: 0.02292351947 | IV31: 0.01322094561 | IW31: 0.005362350572 | IX31: 0.0102725417 | IY31: 0.003674108475 | IZ31: 0.01143555128 | JB31: 25 | JC31: 0.006361503996 | JD31: 0.005612109051 | JE31: 0.02127289992 | JF31: 0.01690444072 | JG31: 0.001220525015 | JH31: 0.01262093915 | JI31: 0.00410159099 | JJ31: 0.0134523896 | JL31: 25 | JM31: 0.006391310066 | JN31: 0.006146525326 | JO31: 0.02124493614 | JP31: 0.0003140519127 | JQ31: 0.002504376464 | JR31: 0.01391870308 | JS31: 0.003842623584 | JT31: 0.01277188348
B32: 22 | L32: 22 | CD32: 26 | CE32: 22 | CF32: 0.01137337436 | CG32: 0.01748745923 | CH32: 0.02288338658 | CI32: =IF(ToggleYear<=1998,VLOOKUP(CE32,$DR$6:$DY$36,2,FALSE),IF(AND(ToggleYear>=1999,ToggleYear<=2013),HLOOKUP(ToggleYear&"LDDV",$EC$3:$JS$36,$CD32,FALSE),HLOOKUP(ToggleYear&"LDDV",$DU$40:$JK$73,CD32,FALSE))) -> 0.004955289127 | CJ32: 0.01375280942 | CK32: 0.02462507904 | CL32: 0.02037077884 | CM32: 0.02093564108 | CO32: 22 | CP32: 6684.527247 | CQ32: 7149.572765 | CR32: 3789.795414 | CS32: 6684.520674 | CT32: 7149.58614 | CU32: 7890.284237 | CV32: 998.3076254 | CW32: 13131.02226 | DR32: 26 | DS32: 0 | DT32: 0 | DU32: 0 | DV32: 0 | DW32: 0 | DX32: 0 | DY32: 0 | DZ32: 0 | EB32: 26 | EC32: 0.007390411985 | ED32: 0.0003018881986 | EE32: 0.02602543446 | EF32: 0.005027334114 | EG32: 0.0002906191095 | EH32: 0.00624671333 | EI32: 0.009977432468 | EJ32: 0.002953146051 | EL32: 26 | EM32: 0.006840083752 | EN32: 0.0002151144096 | EO32: 0.009648486534 | EP32: 0.005272616195 | EQ32: 0.0002036773719 | ER32: 0.005076042405 | ES32: 0.01496802801 | ET32: 0.002623081117 | EV32: 26 | EW32: 0.007438826708 | EX32: 0.0002010794182 | EY32: 0.01065845815 | EZ32: 0.01668756838 | FA32: 0.0001799136402 | FB32: 0.004128822949 | FC32: 0.01592515104 | FD32: 0.002434319065 | FF32: 26 | FG32: 0.006799534503 | FH32: 0 | FI32: 0.003753830128 | FJ32: 0.01561622747 | FK32: 0 | FL32: 0.00474169454 | FM32: 0.01167634298 | FN32: 0.002000615504 | FP32: 26 | FQ32: 0.006979736143 | FR32: 0.001817593856 | FS32: 0.005384363758 | FT32: 0.01373347316 | FU32: 0.001607756871 | FV32: 0.006247786661 | FW32: 0.01200713393 | FX32: 0.002295646548 | FZ32: 26 | GA32: 0.007100391892 | GB32: 0.002316718626 | GC32: 0.006217792695 | GD32: 0.01765698464 | GE32: 0.002099535486 | GF32: 0.007181555643 | GG32: 0.01701296188 | GH32: 0.002365184907 | GJ32: 26 | GK32: 0.006548872325 | GL32: 0.002542340745 | GM32: 0.005944300769 | GN32: 0.03627276917 | GO32: 0.002317978146 | GP32: 0.004868057149 | GQ32: 0.01945949711 | GR32: 0.002307395969 | GT32: 26 | GU32: 0.006354677977 | GV32: 0.006354677977 | GW32: 0.006354677977 | GX32: 0.006354677977 | GY32: 0.006354677977 | GZ32: 0.006354677977 | HA32: 0.006354677977 | HB32: 0.006354677977 | HD32: 26 | HE32: 0.005560893884 | HF32: 0.003494737429 | HG32: 0.02052431522 | HH32: 0.08982771226 | HI32: 0.004191435854 | HJ32: 0.007122431361 | HK32: 0.01653887769 | HL32: 0.007486332586 | HN32: 26 | HO32: 0.004060005842 | HP32: 0.00266862011 | HQ32: 0.01426786326 | HR32: 0.1032253597 | HS32: 0.007749947625 | HT32: 0.007641721981 | HU32: 0.01339018797 | HV32: 0.007495327973 | HX32: 26 | HY32: 0.003900418012 | HZ32: 0.002763582984 | IA32: 0.01418119566 | IB32: 0.07160819122 | IC32: 0.004092343062 | ID32: 0.006741271892 | IE32: 0.007088104083 | IF32: 0.005874355252 | IH32: 26 | II32: 0.004623102994 | IJ32: 0.004020812496 | IK32: 0.01724367104 | IL32: 0.04827969341 | IM32: 0.004500535951 | IN32: 0.0101199072 | IO32: 0.002947131008 | IP32: 0.008207214688 | IR32: 26 | IS32: 0.005140239633 | IT32: 0.004643617968 | IU32: 0.01762058964 | IV32: 0.04083406394 | IW32: 0.003916302904 | IX32: 0.009953823506 | IY32: 0.003092567221 | IZ32: 0.007883042751 | JB32: 26 | JC32: 0.005176365556 | JD32: 0.005517218917 | JE32: 0.02142110587 | JF32: 0.009532339065 | JG32: 0.004304979141 | JH32: 0.009424539917 | JI32: 0.003407872138 | JJ32: 0.01084537736 | JL32: 26 | JM32: 0.005208835044 | JN32: 0.004679559409 | JO32: 0.01985240885 | JP32: 0.01272766492 | JQ32: 0.001003607911 | JR32: 0.01179684257 | JS32: 0.003797263719 | JT32: 0.01255318125
B33: 23 | L33: 23 | CD33: 27 | CE33: 23 | CF33: 0.008610881521 | CG33: 0.01472589555 | CH33: 0.03470058857 | CI33: 0.002277860662 | CJ33: 0.01532203276 | CK33: 0.01754774567 | CL33: 0.01530656704 | CM33: 0.0119600365 | CO33: 23 | CP33: 6435.23081 | CQ33: 6963.71338 | CR33: 3455.990397 | CS33: 6435.226643 | CT33: 6963.723344 | CU33: 7547.505092 | CV33: 941.7905432 | CW33: 13189.36377 | DR33: 27 | DS33: 0 | DT33: 0 | DU33: 0 | DV33: 0 | DW33: 0 | DX33: 0 | DY33: 0 | DZ33: 0 | EB33: 27 | EC33: 0.005859223718 | ED33: 0.0002998130791 | EE33: 0.01918459301 | EF33: 0.003985738501 | EG33: 0.000263690477 | EH33: 0.004197237579 | EI33: 0.00957432069 | EJ33: 0.002371409463 | EL33: 27 | EM33: 0.00616244383 | EN33: 0.0002552420755 | EO33: 0.01466004834 | EP33: 0.004750261648 | EQ33: 0.0002486053278 | ER33: 0.004658665298 | ES33: 0.007718344935 | ET33: 0.002346554253 | EV33: 27 | EW33: 0.005949274654 | EX33: 0.0001853286737 | EY33: 0.009115380839 | EZ33: 0.005035996492 | FA33: 0.0001604776549 | FB33: 0.004229218465 | FC33: 0.01372966304 | FD33: 0.001951879161 | FF33: 27 | FG33: 0.006093303564 | FH33: 0 | FI33: 0.005810596484 | FJ33: 0.01529898547 | FK33: 0 | FL33: 0.003019108446 | FM33: 0.01062081577 | FN33: 0.001876135458 | FP33: 27 | FQ33: 0.005648348063 | FR33: 0 | FS33: 0.002196787792 | FT33: 0.01423975952 | FU33: 0 | FV33: 0.003711837139 | FW33: 0.008744254987 | FX33: 0.001578813325 | FZ33: 27 | GA33: 0.005922565143 | GB33: 0.001610120452 | GC33: 0.003110289587 | GD33: 0.01262160314 | GE33: 0.001401688082 | GF33: 0.005077682277 | GG33: 0.008997156377 | GH33: 0.001893768241 | GJ33: 27 | GK33: 0.005976069665 | GL33: 0.002080908124 | GM33: 0.00513751038 | GN33: 0.01573002694 | GO33: 0.001835837372 | GP33: 0.005724455258 | GQ33: 0.01297605342 | GR33: 0.001888658021 | GT33: 27 | GU33: 0.005472850877 | GV33: 0.005472850877 | GW33: 0.005472850877 | GX33: 0.005472850877 | GY33: 0.005472850877 | GZ33: 0.005472850877 | HA33: 0.005472850877 | HB33: 0.005472850877 | HD33: 27 | HE33: 0.005460815313 | HF33: 0.001969320136 | HG33: 0.00788676659 | HH33: 0.05220418249 | HI33: 0.002923628567 | HJ33: 0.003225758625 | HK33: 0.01207034504 | HL33: 0.003735564991 | HN33: 27 | HO33: 0.004912063772 | HP33: 0.002541927295 | HQ33: 0.01941724293 | HR33: 0.08647239959 | HS33: 0.002911025951 | HT33: 0.006223924871 | HU33: 0.01264028833 | HV33: 0.006815318208 | HX33: 27 | HY33: 0.003518549784 | HZ33: 0.002273331944 | IA33: 0.01361751382 | IB33: 0.09210070199 | IC33: 0.006625355119 | ID33: 0.007052299741 | IE33: 0.005853443162 | IF33: 0.006816836281 | IH33: 27 | II33: 0.003200067698 | IJ33: 0.002378405841 | IK33: 0.01292682921 | IL33: 0.06033604786 | IM33: 0.00354885631 | IN33: 0.005617103114 | IO33: 0.00215609049 | IP33: 0.005295962944 | IR33: 27 | IS33: 0.004031527529 | IT33: 0.003820087985 | IU33: 0.01527180505 | IV33: 0.04255702704 | IW33: 0.004255830317 | IX33: 0.008397351385 | IY33: 0.002763430004 | IZ33: 0.004856750223 | JB33: 27 | JC33: 0.004101329933 | JD33: 0.003787563384 | JE33: 0.01646554131 | JF33: 0.02943540263 | JG33: 0.003132614517 | JH33: 0.009122778046 | JI33: 0.00286847743 | JJ33: 0.007476210138 | JL33: 27 | JM33: 0.004237733332 | JN33: 0.004586647581 | JO33: 0.01999085084 | JP33: 0.007175876069 | JQ33: 0.003529264247 | JR33: 0.008806236106 | JS33: 0.003155019012 | JT33: 0.01012042527
B34: 24 | L34: 24 | CD34: 28 | CE34: 24 | CF34: 0.006817059491 | CG34: 0.01159030764 | CH34: 0.0167318811 | CI34: 0.00211929141 | CJ34: 0.003988478579 | CK34: 0.01084264002 | CL34: 0.01126084493 | CM34: 0.009811423898 | CO34: 24 | CP34: 6212.943643 | CQ34: 6830.075438 | CR34: 3132.588094 | CS34: 6212.961478 | CT34: 6830.096308 | CU34: 7398.65665 | CV34: 885.286371 | CW34: 12210.70875 | DR34: 28 | DS34: 0 | DT34: 0 | DU34: 0 | DV34: 0 | DW34: 0 | DX34: 0 | DY34: 0 | DZ34: 0 | EB34: 28 | EC34: 0.00423231303 | ED34: 0.0002592715197 | EE34: 0.01843996548 | EF34: 0.002879028772 | EG34: 0.0002479962147 | EH34: 0.002674325398 | EI34: 0.005992975052 | EJ34: 0.001961271991 | EL34: 28 | EM34: 0.004570944383 | EN34: 0.0002546454217 | EO34: 0.009692752607 | EP34: 0.0035234684 | EQ34: 0.0002270636509 | ER34: 0.003060633861 | ES34: 0.006993033261 | ET34: 0.001862128977 | EV34: 28 | EW34: 0.005157295995 | EX34: 0.0002195491957 | EY34: 0.01387819031 | EZ34: 0.004365599292 | FA34: 0.0001954321377 | FB34: 0.00383781676 | FC34: 0.007079784119 | FD34: 0.001661820562 | FF34: 28 | FG34: 0.004416457832 | FH34: 0 | FI34: 0.005338464676 | FJ34: 0.004184237042 | FK34: 0 | FL34: 0.003122835586 | FM34: 0.008277564987 | FN34: 0.001455817957 | FP34: 28 | FQ34: 0.004708522213 | FR34: 0 | FS34: 0.003626169179 | FT34: 0.01297708156 | FU34: 0 | FV34: 0.002201971503 | FW34: 0.007371918309 | FX34: 0.001421738733 | FZ34: 28 | GA34: 0.004521338946 | GB34: 0 | GC34: 0.0009491855495 | GD34: 0.01234547698 | GE34: 0 | GF34: 0.002904715233 | GG34: 0.006289389853 | GH34: 0.001268131528 | GJ34: 28 | GK34: 0.004635102348 | GL34: 0.001448138458 | GM34: 0.002243025311 | GN34: 0.01045555773 | GO34: 0.00122797455 | GP34: 0.003984463408 | GQ34: 0.006158547873 | GR34: 0.001453089743 | GT34: 28 | GU34: 0.00448213183 | GV34: 0.00448213183 | GW34: 0.00448213183 | GX34: 0.00448213183 | GY34: 0.00448213183 | GZ34: 0.00448213183 | HA34: 0.00448213183 | HB34: 0.00448213183 | HD34: 28 | HE34: 0.004369098279 | HF34: 0.002135505141 | HG34: 0.005299321091 | HH34: 0.02744561536 | HI34: 0.001846414891 | HJ34: 0.002964455126 | HK34: 0.01028459688 | HL34: 0.001461565892 | HN34: 28 | HO34: 0.004561027068 | HP34: 0.0009358163121 | HQ34: 0.007006661618 | HR34: 0.0475179609 | HS34: 0.001346346205 | HT34: 0.002501425965 | HU34: 0.008853760718 | HV34: 0.003344556205 | HX34: 28 | HY34: 0.004140021178 | HZ34: 0.002089050953 | IA34: 0.01865246724 | IB34: 0.0750334556 | IC34: 0.002357382202 | ID34: 0.005763256234 | IE34: 0.006218477263 | IF34: 0.006269472634 | IH34: 28 | II34: 0.002617536589 | IJ34: 0.001848875708 | IK34: 0.01262102006 | IL34: 0.07036508871 | IM34: 0.005436136929 | IN34: 0.006271505132 | IO34: 0.001670622677 | IP34: 0.006254002553 | IR34: 28 | IS34: 0.002327720767 | IT34: 0.00225961742 | IU34: 0.0106805248 | IV34: 0.04436275413 | IW34: 0.003356441462 | IX34: 0.004025829967 | IY34: 0.002020020688 | IZ34: 0.002104884538 | JB34: 28 | JC34: 0.003213703024 | JD34: 0.003112426956 | JE34: 0.01427076077 | JF34: 0.0306487783 | JG34: 0.003400464732 | JH34: 0.007701696833 | JI34: 0.002563175845 | JJ34: 0.004606099458 | JL34: 28 | JM34: 0.003355103674 | JN34: 0.003145881921 | JO34: 0.01536614501 | JP34: 0.02214208754 | JQ34: 0.002565822071 | JR34: 0.008525154655 | JS34: 0.002655643397 | JT34: 0.006976485017
B35: 25 | L35: 25 | CD35: 29 | CE35: 25 | CF35: 0.005645872933 | CG35: 0.009972499016 | CH35: 0.01877807146 | CI35: 0.0007204434913 | CJ35: 0.01162820966 | CK35: 0.01045986868 | CL35: 0.009116982133 | CM35: 0.008259444429 | CO35: 25 | CP35: 6019.772338 | CQ35: 6751.807797 | CR35: 3119.131762 | CS35: 6019.771878 | CT35: 6751.844065 | CU35: 5534.792526 | CV35: 828.7792429 | CW35: 11829.98038 | DR35: 29 | DS35: 0 | DT35: 0 | DU35: 0 | DV35: 0 | DW35: 0 | DX35: 0 | DY35: 0 | DZ35: 0 | EB35: 29 | EC35: 0.002226323109 | ED35: 0 | EE35: 0.009991148124 | EF35: 0.001514454665 | EG35: 0 | EH35: 0.00130496824 | EI35: 0.001940376626 | EJ35: 0.001248584479 | EL35: 29 | EM35: 0.0028843448 | EN35: 0.0002192862742 | EO35: 0.00573956868 | EP35: 0.002223373196 | EQ35: 0.0002122404175 | ER35: 0.001542215522 | ES35: 0.003834330186 | ET35: 0.001301342116 | EV35: 29 | EW35: 0.00359273105 | EX35: 0.0002200985375 | EY35: 0.009118819105 | EZ35: 0.00304121278 | FA35: 0.0001798027749 | FB35: 0.002188254748 | FC35: 0.006414469241 | FD35: 0.001024893176 | FF35: 29 | FG35: 0.003299052917 | FH35: 0 | FI35: 0.006151403573 | FJ35: 0.003125587616 | FK35: 0 | FL35: 0.002219355116 | FM35: 0.003541500158 | FN35: 0.0009434641035 | FP35: 29 | FQ35: 0.002911288794 | FR35: 0 | FS35: 0.002797057341 | FT35: 0.00302767638 | FU35: 0 | FV35: 0.001842650608 | FW35: 0.005068693171 | FX35: 0.0008811230436 | FZ35: 29 | GA35: 0.003414699086 | GB35: 0 | GC35: 0.001035019196 | GD35: 0.01019311873 | GE35: 0 | GF35: 0.001273304066 | GG35: 0.004689567162 | GH35: 0.0009608291777 | GJ35: 29 | GK35: 0.003184811968 | GL35: 0 | GM35: 0.0002438740262 | GN35: 0.009204658688 | GO35: 0 | GP35: 0.0018576093 | GQ35: 0.003976468177 | GR35: 0.000775976827 | GT35: 29 | GU35: 0.002961656661 | GV35: 0.002961656661 | GW35: 0.002961656661 | GX35: 0.002961656661 | GY35: 0.002961656661 | GZ35: 0.002961656661 | HA35: 0.002961656661 | HB35: 0.002961656661 | HD35: 29 | HE35: 0.003039106943 | HF35: 0.001751334525 | HG35: 0.004475501657 | HH35: 0.009072510841 | HI35: 0.001466335374 | HJ35: 0.002691511232 | HK35: 0.005964615279 | HL35: 0.0009642446552 | HN35: 29 | HO35: 0.003293048597 | HP35: 0.0009945982083 | HQ35: 0.003922882735 | HR35: 0.02254378498 | HS35: 0.0008420631186 | HT35: 0.001677852833 | HU35: 0.007524846661 | HV35: 0.0009365317772 | HX35: 29 | HY35: 0.003495579828 | HZ35: 0.0004650420639 | IA35: 0.00577215209 | IB35: 0.03749317741 | IC35: 0.0006665207077 | ID35: 0.001941605882 | IE35: 0.003149588786 | IF35: 0.002817451956 | IH35: 29 | II35: 0.002893995374 | IJ35: 0.001616593456 | IK35: 0.01674852492 | IL35: 0.05386615591 | IM35: 0.001792145903 | IN35: 0.004806130513 | IO35: 0.002627239034 | IP35: 0.0055760483 | IR35: 29 | IS35: 0.001566569519 | IT35: 0.001756577225 | IU35: 0.009760822905 | IV35: 0.04256815799 | IW35: 0.005149350144 | IX35: 0.004462429237 | IY35: 0.001564457878 | IZ35: 0.00139047338 | JB35: 29 | JC35: 0.001853602894 | JD35: 0.001835647898 | JE35: 0.009947372694 | JF35: 0.03191606735 | JG35: 0.002673990006 | JH35: 0.003681886278 | JI35: 0.001873649179 | JJ35: 0.001996252855 | JL35: 29 | JM35: 0.00262677739 | JN35: 0.002578908763 | JO35: 0.01328889795 | JP35: 0.02303555441 | JQ35: 0.002778507463 | JR35: 0.007182391307 | JS35: 0.002372998722 | JT35: 0.004287601789
B36: 26 | L36: 26 | CD36: 30 | CE36: 26 | CF36: 0.004147748958 | CG36: 0.006983194711 | CH36: 0.01287544526 | CI36: 0.0007254106185 | CJ36: 0.007696822947 | CK36: 0.009121282407 | CL36: 0.008233262289 | CM36: 0.006551997897 | CO36: 26 | CP36: 5857.867597 | CQ36: 6737.156362 | CR36: 2739.210648 | CS36: 5857.874766 | CT36: 6737.162072 | CU36: 5417.733859 | CV36: 762.8536259 | CW36: 11400.58274 | DR36: 30 | DS36: 0 | DT36: 0 | DU36: 0 | DV36: 0 | DW36: 0 | DX36: 0 | DY36: 0 | DZ36: 0 | EB36: 30 | EC36: 0.001360209471 | ED36: 0 | EE36: 0.00881271696 | EF36: 0.0009252859228 | EG36: 0 | EH36: 0.0008107953215 | EI36: 0.001642133713 | EJ36: 0.0005512813662 | EL36: 30 | EM36: 0.0008781848113 | EN36: 0 | EO36: 8.28301813e-05 | EP36: 0.0006769402616 | EQ36: 0 | ER36: 0.0004830955108 | ES36: 0 | ET36: 0.0006839092678 | EV36: 30 | EW36: 0.001934508939 | EX36: 0.0001886889775 | EY36: 0.005361771013 | EZ36: 0.001637539232 | FA36: 0.0001669284201 | FB36: 0.0009044382462 | FC36: 0.003517105204 | FD36: 0.0005257993827 | FF36: 30 | FG36: 0.001707643739 | FH36: 0 | FI36: 0.002757719955 | FJ36: 0.001617863843 | FK36: 0 | FL36: 0.0009589906127 | FM36: 0.002241520943 | FN36: 0.0004445556151 | FP36: 30 | FQ36: 0.001534855684 | FR36: 0 | FS36: 0.002729875021 | FT36: 0.001596221574 | FU36: 0 | FV36: 0.000972543058 | FW36: 0.001564455973 | FX36: 0.0003854500593 | FZ36: 30 | GA36: 0.001562218422 | GB36: 0 | GC36: 0.0007760302011 | GD36: 0.00175966266 | GE36: 0 | GF36: 0.0008479148152 | GG36: 0.002462441793 | GH36: 0.0004785118731 | GJ36: 30 | GK36: 0.00190279901 | GL36: 0 | GM36: 8.392359224e-05 | GN36: 0.006012145081 | GO36: 0 | GP36: 0.0005181655331 | GQ36: 0.002155868046 | GR36: 0.0004281614441 | GT36: 30 | GU36: 0.001489466058 | GV36: 0.001489466058 | GW36: 0.001489466058 | GX36: 0.001489466058 | GY36: 0.001489466058 | GZ36: 0.001489466058 | HA36: 0.001489466058 | HB36: 0.001489466058 | HD36: 30 | HE36: 0.001425127033 | HF36: 0.001221546587 | HG36: 0.00182782238 | HH36: 0.003645927072 | HI36: 0.0009841480143 | HJ36: 0.001411818798 | HK36: 0.001278131449 | HL36: 0.0004295142351 | HN36: 30 | HO36: 0.001664740484 | HP36: 0.0005280616973 | HQ36: 0.002356515127 | HR36: 0.005415953828 | HS36: 0.000432885457 | HT36: 0.0009121082099 | HU36: 0.003939953386 | HV36: 0.0005067982567 | HX36: 30 | HY36: 0.002008027417 | HZ36: 0.0004882828459 | IA36: 0.002491818181 | IB36: 0.0141526662 | IC36: 0.0004153602071 | ID36: 0.001026386521 | IE36: 0.00266334785 | IF36: 0.0003738370326 | IH36: 30 | II36: 0.001829940816 | IJ36: 0 | IK36: 0.003696615388 | IL36: 0.02015741631 | IM36: 0 | IN36: 0.00111603886 | IO36: 6.86099848e-06 | IP36: 0.002369960941 | IR36: 30 | IS36: 0.001470647112 | IT36: 0.001536586457 | IU36: 0.01342763484 | IV36: 0.02766920395 | IW36: 0.001689218946 | IX36: 0.003519472495 | IY36: 0.002466416937 | IZ36: 0.001693126379 | JB36: 30 | JC36: 0.001847667837 | JD36: 0.001424888433 | JE36: 0.01632063463 | JF36: 0.04535917208 | JG36: 0.004096311321 | JH36: 0.0069753896 | JI36: 0.001886660224 | JJ36: 0.003179503938 | JL36: 30 | JM36: 0.002482741143 | JN36: 0.001683922336 | JO36: 0.02362446545 | JP36: 0.03930900477 | JQ36: 0.00241937639 | JR36: 0.008809854952 | JS36: 0.002256580862 | JT36: 0.004377758503
B37: 27 | L37: 27 | CD37: 31 | CE37: 27 | CF37: 0.003825590343 | CG37: 0.006652172765 | CH37: 0.01734062238 | CI37: 0.0005071496348 | CJ37: 0.006813281719 | CK37: 0.01021601039 | CL37: 0.006770778509 | CM37: 0.006081069616 | CO37: 27 | CP37: 5729.452558 | CQ37: 6737.156221 | CR37: 2478.627465 | CS37: 5729.453957 | CT37: 6737.154214 | CU37: 4184.940675 | CV37: 706.3460761 | CW37: 10762.36075 | DS37: =SUM(DS6:DS36) -> 1 | DT37: 1 | DU37: 1 | DV37: 1 | DW37: 1 | DX37: 1 | DY37: 1 | DZ37: 1 | EC37: =SUM(EC6:EC36) -> 1 | ED37: 1 | EE37: 1 | EF37: 1 | EG37: 1 | EH37: 1 | EI37: 1 | EJ37: 1 | EM37: =SUM(EM6:EM36) -> 1 | EN37: 1 | EO37: 1 | EP37: 1 | EQ37: 1 | ER37: 1 | ES37: 1 | ET37: 1 | EW37: =SUM(EW6:EW36) -> 1 | EX37: 1 | EY37: 1 | EZ37: 1 | FA37: 1 | FB37: 1 | FC37: 1 | FD37: 1 | FG37: =SUM(FG6:FG36) -> 1 | FH37: 1 | FI37: 1 | FJ37: 1 | FK37: 1 | FL37: 1 | FM37: 1 | FN37: 1 | FQ37: =SUM(FQ6:FQ36) -> 1 | FR37: 1 | FS37: 1 | FT37: 1 | FU37: 1 | FV37: 1 | FW37: 1 | FX37: 1 | GA37: =SUM(GA6:GA36) -> 1 | GB37: 1 | GC37: 1 | GD37: 1 | GE37: 1 | GF37: 1 | GG37: 1 | GH37: 1 | GK37: =SUM(GK6:GK36) -> 1 | GL37: 1 | GM37: 1 | GN37: 1 | GO37: 1 | GP37: 1 | GQ37: 1 | GR37: 1 | GU37: =SUM(GU6:GU36) -> 1 | GV37: 1 | GW37: 1 | GX37: 1 | GY37: 1 | GZ37: 1 | HA37: 1 | HB37: 1 | HE37: =SUM(HE6:HE36) -> 1 | HF37: 1 | HG37: 1 | HH37: 1 | HI37: 1 | HJ37: 1 | HK37: 1 | HL37: 1 | HO37: =SUM(HO6:HO36) -> 1 | HP37: 1 | HQ37: 1 | HR37: 1 | HS37: 1 | HT37: 1 | HU37: 1 | HV37: 1 | HY37: =SUM(HY6:HY36) -> 1 | HZ37: 1 | IA37: 1 | IB37: 1 | IC37: 1 | ID37: 1 | IE37: 1 | IF37: 1 | II37: =SUM(II6:II36) -> 1 | IJ37: 1 | IK37: 1 | IL37: 1 | IM37: 1 | IN37: 1 | IO37: 1 | IP37: 1 | IS37: =SUM(IS6:IS36) -> 1 | IT37: 1 | IU37: 1 | IV37: 1 | IW37: 1 | IX37: 1 | IY37: 1 | IZ37: 1 | JC37: =SUM(JC6:JC36) -> 1 | JD37: 1 | JE37: 1 | JF37: 1 | JG37: 1 | JH37: 1 | JI37: 1 | JJ37: 1 | JM37: =SUM(JM6:JM36) -> 1 | JN37: 1 | JO37: 1 | JP37: 1 | JQ37: 1 | JR37: 1 | JS37: 1 | JT37: 1
B38: 28 | L38: 28 | CD38: 32 | CE38: 28 | CF38: 0.002775697194 | CG38: 0.005599434327 | CH38: 0.01018014314 | CI38: 5.854835739e-05 | CJ38: 0.004901943657 | CK38: 0.007449855455 | CL38: 0.005610941359 | CM38: 0.003810598995 | CO38: 28 | CP38: 5636.764404 | CQ38: 6737.168972 | CR38: 2489.924623 | CS38: 5636.762178 | CT38: 6737.167385 | CU38: 3700.62113 | CV38: 668.6750866 | CW38: 11835.12938 | DR38: Source: US Inventory 1990-2022. mobile6 info.xls. | EC38: Distributions are generated from MOVES2014b and were updated on 11/13/18 by Emily Peterson using Seth Hartley's MOVES2014b runs.
B39: 29 | L39: 29 | CD39: 33 | CE39: 29 | CF39: 0.002166309286 | CG39: 0.003815432092 | CH39: 0.008480397328 | CI39: 0.0002106858415 | CJ39: 0.004221945798 | CK39: 0.005551688263 | CL39: 0.004979819217 | CM39: 0.003616380317 | CO39: 29 | CP39: 5582.007627 | CQ39: 6737.145905 | CR39: 1990.874193 | CS39: 5582.028999 | CT39: 6737.138847 | CU39: 2990.143233 | CV39: 621.5855071 | CW39: 10550.89207 | DR39: From (or estimated from) Office of Transportation and Air Quality data received on 8/14/00.
B40: 30 | L40: 30 | CD40: 34 | CE40: 30 | CF40: 0.02996766445 | CG40: 0.02256604843 | CH40: 0.1076521221 | CI40: 0.004912222884 | CJ40: 0.02340509289 | CK40: 0.03737439936 | CL40: 0.05900662605 | CM40: 0.01295118328 | CO40: 30 | CP40: 5582.033773 | CQ40: 6737.166473 | CR40: 846.8519357 | CS40: 5582.038569 | CT40: 6737.160545 | CU40: 1235.465477 | CV40: 574.4963804 | CW40: 10644.33167 | EC40: 2014LDGV | ED40: 2014LDGT | EE40: 2014HDGV | EF40: 2014LDDV | EG40: 2014LDDT | EH40: 2014HDDV | EI40: 2014MC | EJ40: 2014HDDB | EM40: 2015LDGV | EN40: 2015LDGT | EO40: 2015HDGV | EP40: 2015LDDV | EQ40: 2015LDDT | ER40: 2015HDDV | ES40: 2015MC | ET40: 2015HDDB | EW40: 2016LDGV | EX40: 2016LDGT | EY40: 2016HDGV | EZ40: 2016LDDV | FA40: 2016LDDT | FB40: 2016HDDV | FC40: 2016MC | FD40: 2016HDDB | FG40: 2017LDGV | FH40: 2017LDGT | FI40: 2017HDGV | FJ40: 2017LDDV | FK40: 2017LDDT | FL40: 2017HDDV | FM40: 2017MC | FN40: 2017HDDB | FQ40: 2018LDGV | FR40: 2018LDGT | FS40: 2018HDGV | FT40: 2018LDDV | FU40: 2018LDDT | FV40: 2018HDDV | FW40: 2018MC | FX40: 2018HDDB | GA40: 2019LDGV | GB40: 2019LDGT | GC40: 2019HDGV | GD40: 2019LDDV | GE40: 2019LDDT | GF40: 2019HDDV | GG40: 2019MC | GH40: 2019HDDB | GK40: 2020LDGV | GL40: 2020LDGT | GM40: 2020HDGV | GN40: 2020LDDV | GO40: 2020LDDT | GP40: 2020HDDV | GQ40: 2020MC | GR40: 2020HDDB | GU40: 2021LDGV | GV40: 2021LDGT | GW40: 2021HDGV | GX40: 2021LDDV | GY40: 2021LDDT | GZ40: 2021HDDV | HA40: 2021MC | HB40: 2021HDDB | HE40: 2022LDGV | HF40: 2022LDGT | HG40: 2022HDGV | HH40: 2022LDDV | HI40: 2022LDDT | HJ40: 2022HDDV | HK40: 2022MC | HL40: 2022HDDB | HO40: 2023LDGV | HP40: 2023LDGT | HQ40: 2023HDGV | HR40: 2023LDDV | HS40: 2023LDDT | HT40: 2023HDDV | HU40: 2023MC | HV40: 2023HDDB | HY40: 2024LDGV | HZ40: 2024LDGT | IA40: 2024HDGV | IB40: 2024LDDV | IC40: 2024LDDT | ID40: 2024HDDV | IE40: 2024MC | IF40: 2024HDDB | II40: 2025LDGV | IJ40: 2025LDGT | IK40: 2025HDGV | IL40: 2025LDDV | IM40: 2025LDDT | IN40: 2025HDDV | IO40: 2025MC | IP40: 2025HDDB
C41: =SUM(C10:C40) -> 0 | D41: =SUM(D10:D40) -> 0 | E41: 0 | F41: 0 | G41: 0 | H41: 0 | I41: 0 | J41: 0 | M41: =SUM(M10:M40) -> 0 | N41: =SUM(N10:N40) -> 0 | O41: 0 | P41: 0 | Q41: 0 | R41: 0 | S41: 0 | T41: 0 | CF41: =SUM(CF10:CF40) -> 1 | CG41: 1 | CH41: 1 | CI41: 1 | CJ41: 1 | CK41: 1 | CL41: 1 | CM41: =SUM(CM10:CM40) -> 1 | CP41: =SUM(CP10:CP40) -> 289776.9229 | CQ41: =SUM(CQ10:CQ40) -> 320930.2691 | CR41: 299303.4149 | CS41: 289776.7408 | CT41: 320930.577 | CU41: 664803.2296 | CV41: 56696.10947 | CW41: 502131.041 | EB41: Table IIq: Age Distribution, 2014. Each column must add up to 100%. | EL41: Table IIr: Age Distribution, 2015. Each column must add up to 100%. | EV41: Table IIs: Age Distribution, 2016. Each column must add up to 100%. | FF41: Table IIt: Age Distribution, 2017. Each column must add up to 100%. | FP41: Table IIu: Age Distribution, 2018. Each column must add up to 100%. | FZ41: Table IIv: Age Distribution, 2019. Each column must add up to 100%. | GJ41: Table IIw: Age Distribution, 2020. Each column must add up to 100%. | GT41: Table IIx: Age Distribution, 2021. Each column must add up to 100%. | HD41: Table IIy: Age Distribution, 2022. Each column must add up to 100%. | HN41: Table IIz: Age Distribution, 2023. Each column must add up to 100%. | HX41: Table IIaa: Age Distribution, 2024. Each column must add up to 100%. | IH41: Table IIab: Age Distribution, 2025. Each column must add up to 100%.
L42: =IF(M41>1,1,0) -> 0 | M42: 0 | N42: 0 | O42: 0 | P42: 0 | Q42: 0 | R42: 0 | S42: =SUM(L42:R42) -> 0 | CO42: Source: US Inventory 1990-2022. Data generated by EPA's MOVES 2014 model. | EB42: MY | EC42: LDGV | ED42: LDGT | EE42: HDGV | EF42: LDDV | EG42: LDDT | EH42: HDDV | EI42: MC | EJ42: HDDB | EL42: MY | EM42: LDGV | EN42: LDGT | EO42: HDGV | EP42: LDDV | EQ42: LDDT | ER42: HDDV | ES42: MC | ET42: HDDB | EV42: MY | EW42: LDGV | EX42: LDGT | EY42: HDGV | EZ42: LDDV | FA42: LDDT | FB42: HDDV | FC42: MC | FD42: HDDB | FF42: MY | FG42: LDGV | FH42: LDGT | FI42: HDGV | FJ42: LDDV | FK42: LDDT | FL42: HDDV | FM42: MC | FN42: HDDB | FP42: MY | FQ42: LDGV | FR42: LDGT | FS42: HDGV | FT42: LDDV | FU42: LDDT | FV42: HDDV | FW42: MC | FX42: HDDB | FZ42: MY | GA42: LDGV | GB42: LDGT | GC42: HDGV | GD42: LDDV | GE42: LDDT | GF42: HDDV | GG42: MC | GH42: HDDB | GJ42: MY | GK42: LDGV | GL42: LDGT | GM42: HDGV | GN42: LDDV | GO42: LDDT | GP42: HDDV | GQ42: MC | GR42: HDDB | GT42: MY | GU42: LDGV | GV42: LDGT | GW42: HDGV | GX42: LDDV | GY42: LDDT | GZ42: HDDV | HA42: MC | HB42: HDDB | HD42: MY | HE42: LDGV | HF42: LDGT | HG42: HDGV | HH42: LDDV | HI42: LDDT | HJ42: HDDV | HK42: MC | HL42: HDDB | HN42: MY | HO42: LDGV | HP42: LDGT | HQ42: HDGV | HR42: LDDV | HS42: LDDT | HT42: HDDV | HU42: MC | HV42: HDDB | HX42: MY | HY42: LDGV | HZ42: LDGT | IA42: HDGV | IB42: LDDV | IC42: LDDT | ID42: HDDV | IE42: MC | IF42: HDDB | IH42: MY | II42: LDGV | IJ42: LDGT | IK42: HDGV | IL42: LDDV | IM42: LDDT | IN42: HDDV | IO42: MC | IP42: HDDB
B43: Source: All default data from EPA, 2024. Inventory of U.S. Greenhouse Gas Emissions and Sinks: 1990-2022. Data generated by EPA's MOVES 2014 model. | CO43: Updated data for MY0-MY30 with new data from MOVES2014b and MOVES3, year 2020 data | EB43: 0 | EC43: 0.07136888007 | ED43: 0.07904680198 | EE43: 0.06188778221 | EF43: 0.1471915614 | EG43: 0.08615199626 | EH43: 0.05981125298 | EI43: 0.07182200866 | EJ43: 0.05726662691 | EL43: 0 | EM43: 0.07214346728 | EN43: 0.08178678816 | EO43: 0.06453385839 | EP43: 0.1358240176 | EQ43: 0.08792202352 | ER43: 0.0621789674 | ES43: 0.07255484632 | ET43: 0.05953163405 | EV43: 0 | EW43: 0.07305692179 | EX43: 0.08327877898 | EY43: 0.06482782648 | EZ43: 0.1268790913 | FA43: 0.08856033753 | FB43: 0.06201334404 | FC43: 0.0734418212 | FD43: 0.05909431552 | FF43: 0 | FG43: 0.07254378069 | FH43: 0.08161233683 | FI43: 0.06455222854 | FJ43: 0.1159137465 | FK43: 0.08602175609 | FL43: 0.06076439961 | FM43: 0.07289484723 | FN43: 0.05788807861 | FP43: 0 | FQ43: 0.07080270054 | FR43: 0.0798178263 | FS43: 0.06561478921 | FT43: 0.1055004599 | FU43: 0.08341075671 | FV43: 0.06150772491 | FW43: 0.0711140385 | FX43: 0.05886177617 | FZ43: 0 | GA43: 0.06103440202 | GB43: 0.05947800196 | GC43: 0.05154556761 | GD43: 0.03014135259 | GE43: 0.09229155607 | GF43: 0.06184072242 | GG43: 0.06082199828 | GH43: 0.0596330443 | GJ43: 0 | GK43: 0.06023700784 | GL43: 0.05821932475 | GM43: 0.05120905024 | GN43: 0.0504250679 | GO43: 0.09909569702 | GP43: 0.05887743569 | GQ43: 0.06016570202 | GR43: 0.05679812284 | GT43: 0 | GU43: 0.05933799115 | GV43: 0.0576767841 | GW43: 0.05076712811 | GX43: 0.0559541151 | GY43: 0.09632866285 | GZ43: 0.05688086844 | HA43: 0.05931001069 | HB43: 0.05488363983 | HD43: 0 | HE43: 0.05781070667 | HF43: 0.05584870017 | HG43: 0.05153254025 | HH43: 0.06378684926 | HI43: 0.09206331148 | HJ43: 0.05859016193 | HK43: 0.05784848529 | HL43: 0.05687461889 | HN43: 0 | HO43: =HE43 -> 0.05781070667 | HP43: =HF43 -> 0.05584870017 | HQ43: =HG43 -> 0.05153254025 | HR43: =HH43 -> 0.06378684926 | HS43: =HI43 -> 0.09206331148 | HT43: =HJ43 -> 0.05859016193 | HU43: =HK43 -> 0.05784848529 | HV43: =HL43 -> 0.05687461889 | HX43: 0 | HY43: =HO43 -> 0.05781070667 | HZ43: =HP43 -> 0.05584870017 | IA43: =HQ43 -> 0.05153254025 | IB43: =HR43 -> 0.06378684926 | IC43: =HS43 -> 0.09206331148 | ID43: =HT43 -> 0.05859016193 | IE43: =HU43 -> 0.05784848529 | IF43: =HV43 -> 0.05687461889 | IH43: 0 | II43: =HY43 -> 0.05781070667 | IJ43: =HZ43 -> 0.05584870017 | IK43: =IA43 -> 0.05153254025 | IL43: =IB43 -> 0.06378684926 | IM43: =IC43 -> 0.09206331148 | IN43: =ID43 -> 0.05859016193 | IO43: =IE43 -> 0.05784848529 | IP43: =IF43 -> 0.05687461889
EB44: 1 | EC44: 0.06821446303 | ED44: 0.0746689013 | EE44: 0.05575517668 | EF44: 0.1406873117 | EG44: 0.08128425021 | EH44: 0.05366786976 | EI44: 0.06884313363 | EJ44: 0.05138759892 | EL44: 1 | EM44: 0.07087778153 | EN44: 0.07767816816 | EO44: 0.05953817911 | EP44: 0.1334412047 | EQ44: 0.08340317068 | ER44: 0.0571206296 | ES44: 0.07148546052 | ET44: 0.05463878681 | EV44: 1 | EW44: 0.07118785915 | EX44: 0.07981225373 | EY44: 0.06223626092 | EZ44: 0.1236330501 | FA44: 0.08478227093 | FB44: 0.05958882756 | FC44: 0.07175817182 | FD44: 0.0568459629 | FF44: 1 | FG44: 0.07208591794 | FH44: 0.08123841063 | FI44: 0.06393322715 | FJ44: 0.1151813741 | FK44: 0.08555181236 | FL44: 0.06015405272 | FM44: 0.07263598249 | FN44: 0.05726933545 | FP44: 1 | FQ44: 0.07176123395 | FR44: 0.0798238685 | FS44: 0.06415794193 | FT44: 0.1069234512 | FU44: 0.08334053309 | FV44: 0.05958068204 | FW44: 0.07228208364 | FX44: 0.05664254079 | FZ44: 1 | GA44: 0.06130903244 | GB44: 0.05904456698 | GC44: 0.04879772938 | GD44: 0.009738703816 | GE44: 0.07660844425 | GF44: 0.05847609898 | GG44: 0.06134088089 | GH44: 0.05636409095 | GJ44: 1 | GK44: 0.06016997102 | GL44: 0.0587322258 | GM44: 0.05196074202 | GN44: 0.02943700494 | GO44: 0.0869885965 | GP44: 0.0607423214 | GQ44: 0.06028692774 | GR44: 0.05912823397 | GT44: 1 | GU44: 0.059434 | GV44: 0.05747605805 | GW44: 0.05106499838 | GX44: 0.04865374377 | GY44: 0.09351021532 | GZ44: 0.05794761955 | HA44: 0.05965379566 | HB44: 0.05637097925 | HD44: 1 | HE44: 0.05862630028 | HF44: 0.05702585511 | HG44: 0.04968728873 | HH44: 0.05439508143 | HI44: 0.09110184225 | HJ44: 0.05605027245 | HK44: 0.05892016496 | HL44: 0.05431269097 | HN44: 1 | HO44: =HE44 -> 0.05862630028 | HP44: 0.05702585511 | HQ44: 0.04968728873 | HR44: 0.05439508143 | HS44: 0.09110184225 | HT44: 0.05605027245 | HU44: 0.05892016496 | HV44: 0.05431269097 | HX44: 1 | HY44: =HO44 -> 0.05862630028 | HZ44: 0.05702585511 | IA44: 0.04968728873 | IB44: 0.05439508143 | IC44: 0.09110184225 | ID44: 0.05605027245 | IE44: 0.05892016496 | IF44: 0.05431269097 | IH44: 1 | II44: =HY44 -> 0.05862630028 | IJ44: 0.05702585511 | IK44: 0.04968728873 | IL44: 0.05439508143 | IM44: 0.09110184225 | IN44: 0.05605027245 | IO44: 0.05892016496 | IP44: 0.05431269097
EB45: 2 | EC45: 0.06590753271 | ED45: 0.07135014057 | EE45: 0.05126083531 | EF45: 0.1360315814 | EG45: 0.07762925451 | EH45: 0.05017083673 | EI45: 0.06477527216 | EJ45: 0.04743026727 | EL45: 2 | EM45: 0.06774505419 | EN45: 0.07336614297 | EO45: 0.05363840126 | EP45: 0.1275424845 | EQ45: 0.07867824028 | ER45: 0.05125361958 | ES45: 0.06672224082 | ET45: 0.04902952087 | EV45: 2 | EW45: 0.06993900188 | EX45: 0.07578095741 | EY45: 0.05741844269 | EZ45: 0.1214637937 | FA45: 0.08041247406 | FB45: 0.05474120092 | FC45: 0.06897989431 | FD45: 0.05217397366 | FF45: 2 | FG45: 0.07024183728 | FH45: 0.07783945328 | FI45: 0.0613774242 | FJ45: 0.1122355641 | FK45: 0.08188976424 | FL45: 0.05780224045 | FM45: 0.06926410045 | FN45: 0.05509041901 | FP45: 2 | FQ45: 0.07130856799 | FR45: 0.07944632715 | FS45: 0.06354272141 | FT45: 0.1062478134 | FU45: 0.08287230677 | FV45: 0.05898221326 | FW45: 0.07028337159 | FX45: 0.05603696178 | FZ45: 2 | GA45: 0.0531404563 | GB45: 0.07446950991 | GC45: 0.05249973921 | GD45: 0.002033123592 | GE45: 0.08023160861 | GF45: 0.06272560125 | GG45: 0.04699934606 | GH45: 0.08191227991 | GJ45: 2 | GK45: 0.06044065957 | GL45: 0.05829837265 | GM45: 0.04919076252 | GN45: 0.009511121733 | GO45: 0.07219946389 | GP45: 0.05743717733 | GQ45: 0.05956501303 | GR45: 0.05588687424 | GT45: 2 | GU45: 0.05936781999 | GV45: 0.05797661682 | GW45: 0.05181457314 | GX45: 0.02840299947 | GY45: 0.08207754795 | GZ45: 0.05978773533 | HA45: 0.05856692407 | HB45: 0.05868366589 | HD45: 2 | HE45: 0.05872109857 | HF45: 0.05682179405 | HG45: 0.04997889237 | HH45: 0.04729819678 | HI45: 0.08842752099 | HJ45: 0.05710519073 | HK45: 0.05807142355 | HL45: 0.05578451636 | HN45: 2 | HO45: 0.05872109857 | HP45: 0.05682179405 | HQ45: 0.04997889237 | HR45: 0.04729819678 | HS45: 0.08842752099 | HT45: 0.05710519073 | HU45: 0.05807142355 | HV45: 0.05578451636 | HX45: 2 | HY45: 0.05872109857 | HZ45: 0.05682179405 | IA45: 0.04997889237 | IB45: 0.04729819678 | IC45: 0.08842752099 | ID45: 0.05710519073 | IE45: 0.05807142355 | IF45: 0.05578451636 | IH45: 2 | II45: 0.05872109857 | IJ45: 0.05682179405 | IK45: 0.04997889237 | IL45: 0.04729819678 | IM45: 0.08842752099 | IN45: 0.05710519073 | IO45: 0.05807142355 | IP45: 0.05578451636
B46: Table IIa: Age Distribution, 1998 and earlier Each column must add up to 100%. | L46: Table IIb: Age Distribution, 1999. Each column must add up to 100%. | V46: Table IIc: Age Distribution, 2000. Each column must add up to 100%. | AF46: Table IId: Age Distribution, 2001. Each column must add up to 100%. | AP46: Table IIe: Age Distribution, 2002. Each column must add up to 100%. | AZ46: Table IIf: Age Distribution, 2003. Each column must add up to 100%. | BJ46: Table IIg: Age Distribution, 2004. Each column must add up to 100%. | BT46: Table IIh: Age Distribution, 2005. Each column must add up to 100%. | EB46: 3 | EC46: 0.04075296511 | ED46: 0.04787840627 | EE46: 0.02909527861 | EF46: 0.0840853517 | EG46: 0.05335451252 | EH46: 0.03142017011 | EI46: 0.05196245646 | EJ46: 0.03582758311 | EL46: 3 | EM46: 0.0654606155 | EN46: 0.07011476592 | EO46: 0.04931468999 | EP46: 0.1233121016 | EQ46: 0.07512852777 | ER46: 0.04791388637 | ES46: 0.05963718596 | ET46: 0.04525378221 | EV46: 3 | EW46: 0.06684212149 | EX46: 0.07155882659 | EY46: 0.0517287145 | EZ46: 0.1160854719 | FA46: 0.07584562486 | FB46: 0.04911858827 | FC46: 0.06140102547 | FD46: 0.04681763666 | FF46: 3 | FG46: 0.06900413185 | FH46: 0.07387577114 | FI46: 0.05662609004 | FJ46: 0.1102567305 | FK46: 0.07765739571 | FL46: 0.05309995591 | FM46: 0.06353576143 | FN46: 0.05056257535 | FP46: 3 | FQ46: 0.06947833142 | FR46: 0.0761058697 | FS46: 0.06100252937 | FT46: 0.1035197844 | FU46: 0.07931258879 | FV46: 0.0566762158 | FW46: 0.06393590675 | FX46: 0.05390492455 | FZ46: 3 | GA46: 0.05952685066 | GB46: 0.07114482097 | GC46: 0.04938067019 | GD46: 0.01064344453 | GE46: 0.0681151409 | GF46: 0.06017784939 | GG46: 0.04423521864 | GH46: 0.07665400814 | GJ46: 3 | GK46: 0.05238432354 | GL46: 0.07352088796 | GM46: 0.05292259945 | GN46: 0.001985486649 | GO46: 0.07560650023 | GP46: 0.06160436275 | GQ46: 0.04387971464 | GR46: 0.08121803799 | GT46: 3 | GU46: 0.05963097468 | GV46: 0.05754251206 | GW46: 0.0490523841 | GX46: 0.009176403348 | GY46: 0.06811640282 | GZ46: 0.0565343973 | HA46: 0.05565075519 | HB46: 0.05546653607 | HD46: 3 | HE46: 0.0586518794 | HF46: 0.0573111017 | HG46: 0.0507124572 | HH46: 0.02760974792 | HI46: 0.07760858655 | HJ46: 0.05892371766 | HK46: 0.0548432512 | HL46: 0.05807317603 | HN46: 3 | HO46: 0.0586518794 | HP46: 0.0573111017 | HQ46: 0.0507124572 | HR46: 0.02760974792 | HS46: 0.07760858655 | HT46: 0.05892371766 | HU46: 0.0548432512 | HV46: 0.05807317603 | HX46: 3 | HY46: 0.0586518794 | HZ46: 0.0573111017 | IA46: 0.0507124572 | IB46: 0.02760974792 | IC46: 0.07760858655 | ID46: 0.05892371766 | IE46: 0.0548432512 | IF46: 0.05807317603 | IH46: 3 | II46: 0.0586518794 | IJ46: 0.0573111017 | IK46: 0.0507124572 | IL46: 0.02760974792 | IM46: 0.07760858655 | IN46: 0.05892371766 | IO46: 0.0548432512 | IP46: 0.05807317603
B47: MY | C47: LDGV | D47: LDGT | E47: HDGV | F47: LDDV | G47: LDDT | H47: HDDV | I47: MC | J47: HDDB | L47: MY | M47: LDGV | N47: LDGT | O47: HDGV | P47: LDDV | Q47: LDDT | R47: HDDV | S47: MC | T47: HDDB | V47: MY | W47: LDGV | X47: LDGT | Y47: HDGV | Z47: LDDV | AA47: LDDT | AB47: HDDV | AC47: MC | AD47: HDDB | AF47: MY | AG47: LDGV | AH47: LDGT | AI47: HDGV | AJ47: LDDV | AK47: LDDT | AL47: HDDV | AM47: MC | AN47: HDDB | AP47: MY | AQ47: LDGV | AR47: LDGT | AS47: HDGV | AT47: LDDV | AU47: LDDT | AV47: HDDV | AW47: MC | AX47: HDDB | AZ47: MY | BA47: LDGV | BB47: LDGT | BC47: HDGV | BD47: LDDV | BE47: LDDT | BF47: HDDV | BG47: MC | BH47: HDDB | BJ47: MY | BK47: LDGV | BL47: LDGT | BM47: HDGV | BN47: LDDV | BO47: LDDT | BP47: HDDV | BQ47: MC | BR47: HDDB | BT47: MY | BU47: LDGV | BV47: LDGT | BW47: HDGV | BX47: LDDV | BY47: LDDT | BZ47: HDDV | CA47: MC | CB47: HDDB | EB47: 4 | EC47: 0.04573600938 | ED47: 0.04233029907 | EE47: 0.01942517041 | EF47: 0.08116242265 | EG47: 0.03120655949 | EH47: 0.02077665189 | EI47: 0.04692583635 | EJ47: 0.03666244815 | EL47: 4 | EM47: 0.04034706809 | EN47: 0.04664657159 | EO47: 0.02799066064 | EP47: 0.07598533736 | EQ47: 0.05119547462 | ER47: 0.03000673054 | ES47: 0.04784068927 | ET47: 0.03418349972 | EV47: 4 | EW47: 0.06436099285 | EX47: 0.06776794854 | EY47: 0.0475587775 | EZ47: 0.1119004654 | FA47: 0.07182894578 | FB47: 0.045917901 | FC47: 0.05488093822 | FD47: 0.0432122343 | FF47: 4 | FG47: 0.06574788925 | FH47: 0.06918114409 | FI47: 0.05101487793 | FJ47: 0.1050546423 | FK47: 0.07264932552 | FL47: 0.04764590903 | FM47: 0.05655496728 | FN47: 0.04537178452 | FP47: 4 | FQ47: 0.06803818862 | FR47: 0.07160353992 | FS47: 0.05628021648 | FT47: 0.1013730303 | FU47: 0.07457896595 | FV47: 0.05206553477 | FW47: 0.05864811979 | FX47: 0.04947465128 | FZ47: 4 | GA47: 0.06305684123 | GB47: 0.06559867181 | GC47: 0.04867827979 | GD47: 0.230375783 | GE47: 0.05460622812 | GF47: 0.0641836394 | GG47: 0.04169465293 | GH47: 0.0717170929 | GJ47: 4 | GK47: 0.05853970567 | GL47: 0.06985015384 | GM47: 0.04977839651 | GN47: 0.01036919561 | GO47: 0.06383344816 | GP47: 0.05910702891 | GQ47: 0.04129900554 | GR47: 0.07600162138 | GT47: 4 | GU47: 0.05156031773 | GV47: 0.07217319581 | GW47: 0.05277373405 | GX47: 0.001911075979 | GY47: 0.07094292185 | GZ47: 0.06063051968 | HA47: 0.04099621898 | HB47: 0.0806081736 | HD47: 4 | HE47: 0.05877286171 | HF47: 0.05657758603 | HG47: 0.04800897572 | HH47: 0.008899086122 | HI47: 0.06406291373 | HJ47: 0.05571691783 | HK47: 0.05211261313 | HL47: 0.0548896003 | HN47: 4 | HO47: 0.05877286171 | HP47: 0.05657758603 | HQ47: 0.04800897572 | HR47: 0.008899086122 | HS47: 0.06406291373 | HT47: 0.05571691783 | HU47: 0.05211261313 | HV47: 0.0548896003 | HX47: 4 | HY47: 0.05877286171 | HZ47: 0.05657758603 | IA47: 0.04800897572 | IB47: 0.008899086122 | IC47: 0.06406291373 | ID47: 0.05571691783 | IE47: 0.05211261313 | IF47: 0.0548896003 | IH47: 4 | II47: 0.05877286171 | IJ47: 0.05657758603 | IK47: 0.04800897572 | IL47: 0.008899086122 | IM47: 0.06406291373 | IN47: 0.05571691783 | IO47: 0.05211261313 | IP47: 0.0548896003
B48: 0 | L48: 0 | V48: 0 | AF48: 0 | AP48: 0 | AZ48: 0 | BJ48: 0 | BT48: 0 | EB48: 5 | EC48: 0.04156610372 | ED48: 0.0317624081 | EE48: 0.01742935838 | EF48: 0.05353077137 | EG48: 0.0280694131 | EH48: 0.02542835343 | EI48: 0.04860151135 | EJ48: 0.04259725852 | EL48: 5 | EM48: 0.0451504696 | EN48: 0.04090600178 | EO48: 0.01860557879 | EP48: 0.07314007953 | EQ48: 0.02970997298 | ER48: 0.01977359842 | ES48: 0.04320357747 | ET48: 0.03485928863 | EV48: 5 | EW48: 0.03957343354 | EX48: 0.04475131194 | EY48: 0.02685831346 | EZ48: 0.06877058298 | FA48: 0.04857934924 | FB48: 0.02864324567 | FC48: 0.04402524047 | FD48: 0.03252852364 | FF48: 5 | FG48: 0.06306454571 | FH48: 0.06491047504 | FI48: 0.04655902275 | FJ48: 0.1009927294 | FK48: 0.06828884789 | FL48: 0.04425545206 | FM48: 0.050549643 | FN48: 0.04165131603 | FP48: 5 | FQ48: 0.06464425186 | FR48: 0.06652767773 | FS48: 0.05021772849 | FT48: 0.09631801423 | FU48: 0.06923088642 | FV48: 0.04632152688 | FW48: 0.05220434089 | FX48: 0.04408396044 | FZ48: 5 | GA48: 0.0644357369 | GB48: 0.05739394001 | GC48: 0.04458555452 | GD48: 0.144600919 | GE48: 0.0375808163 | GF48: 0.0580198267 | GG48: 0.03909956817 | GH48: 0.06828703606 | GJ48: 5 | GK48: 0.06187927848 | GL48: 0.0640798978 | GM48: 0.04858777713 | GN48: 0.2239624128 | GO48: 0.05091537469 | GP48: 0.0623610326 | GQ48: 0.03892711107 | GR48: 0.07012631678 | GT48: 5 | GU48: 0.05749747368 | GV48: 0.06822955207 | GW48: 0.04914746247 | GX48: 0.009959602505 | GY48: 0.05959911339 | GZ48: 0.05754203383 | HA48: 0.03858509786 | HB48: 0.07440057936 | HD48: 5 | HE48: 0.05071137816 | HF48: 0.07061642981 | HG48: 0.05113435035 | HH48: 0.001849420141 | HI48: 0.06639549574 | HJ48: 0.05909459857 | HK48: 0.03838981617 | HL48: 0.07870772075 | HN48: 5 | HO48: 0.05071137816 | HP48: 0.07061642981 | HQ48: 0.05113435035 | HR48: 0.001849420141 | HS48: 0.06639549574 | HT48: 0.05909459857 | HU48: 0.03838981617 | HV48: 0.07870772075 | HX48: 5 | HY48: 0.05071137816 | HZ48: 0.07061642981 | IA48: 0.05113435035 | IB48: 0.001849420141 | IC48: 0.06639549574 | ID48: 0.05909459857 | IE48: 0.03838981617 | IF48: 0.07870772075 | IH48: 5 | II48: 0.05071137816 | IJ48: 0.07061642981 | IK48: 0.05113435035 | IL48: 0.001849420141 | IM48: 0.06639549574 | IN48: 0.05909459857 | IO48: 0.03838981617 | IP48: 0.07870772075
B49: 1 | L49: 1 | V49: 1 | AF49: 1 | AP49: 1 | AZ49: 1 | BJ49: 1 | BT49: 1 | EB49: 6 | EC49: 0.05255741674 | ED49: 0.05423376021 | EE49: 0.03350454758 | EF49: 0.004868303271 | EG49: 0.06877722713 | EH49: 0.03805276086 | EI49: 0.08612067815 | EJ49: 0.0476844748 | EL49: 6 | EM49: 0.04088909491 | EN49: 0.03042928223 | EO49: 0.01662028285 | EP49: 0.04807143933 | EQ49: 0.02649587458 | ER49: 0.02412021896 | ES49: 0.04474632815 | ET49: 0.04036162941 | EV49: 6 | EW49: 0.04414899349 | EX49: 0.03895919821 | EY49: 0.01776255133 | EZ49: 0.06597508822 | FA49: 0.02796097468 | FB49: 0.01880751197 | FC49: 0.03975790909 | FD49: 0.03305666538 | FF49: 6 | FG49: 0.03866368685 | FH49: 0.04252525462 | FI49: 0.02609970081 | FJ49: 0.06185619541 | FK49: 0.04580955706 | FL49: 0.02744156467 | FM49: 0.0405507111 | FN49: 0.03118322654 | FP49: 6 | FQ49: 0.06172595442 | FR49: 0.06179821067 | FS49: 0.0453885126 | FT49: 0.09226579179 | FU49: 0.06452803804 | FV49: 0.04266163723 | FW49: 0.04666098127 | FX49: 0.04018334849 | FZ49: 6 | GA49: 0.0597240756 | GB49: 0.04565198592 | GC49: 0.02789048774 | GD49: 0.1209243631 | GE49: 0.02812823118 | GF49: 0.03691526075 | GG49: 0.0330288095 | GH49: 0.03824928854 | GJ49: 6 | GK49: 0.06306385852 | GL49: 0.05575778085 | GM49: 0.04406059387 | GN49: 0.1402010744 | GO49: 0.0348464398 | GP49: 0.05574243364 | GQ49: 0.03650437285 | GR49: 0.06582882348 | GT49: 6 | GU49: 0.0606172395 | GV49: 0.06225572209 | GW49: 0.04749274546 | GX49: 0.2145480635 | GY49: 0.0472814501 | GZ49: 0.06003209334 | HA49: 0.03636905625 | HB49: 0.0677086401 | HD49: 6 | HE49: 0.05640178122 | HF49: 0.06640363331 | HG49: 0.04713940882 | HH49: 0.009612890588 | HI49: 0.05548272987 | HJ49: 0.05546297252 | HK49: 0.03613197796 | HL49: 0.07166343139 | HN49: 6 | HO49: 0.05640178122 | HP49: 0.06640363331 | HQ49: 0.04713940882 | HR49: 0.009612890588 | HS49: 0.05548272987 | HT49: 0.05546297252 | HU49: 0.03613197796 | HV49: 0.07166343139 | HX49: 6 | HY49: 0.05640178122 | HZ49: 0.06640363331 | IA49: 0.04713940882 | IB49: 0.009612890588 | IC49: 0.05548272987 | ID49: 0.05546297252 | IE49: 0.03613197796 | IF49: 0.07166343139 | IH49: 6 | II49: 0.05640178122 | IJ49: 0.06640363331 | IK49: 0.04713940882 | IL49: 0.009612890588 | IM49: 0.05548272987 | IN49: 0.05546297252 | IO49: 0.03613197796 | IP49: 0.07166343139
B50: 2 | L50: 2 | V50: 2 | AF50: 2 | AP50: 2 | AZ50: 2 | BJ50: 2 | BT50: 2 | EB50: 7 | EC50: 0.05711504308 | ED50: 0.05657411308 | EE50: 0.03093505589 | EF50: 0.003393025485 | EG50: 0.06140747096 | EH50: 0.07429420993 | EI50: 0.07662441577 | EJ50: 0.04937435078 | EL50: 7 | EM50: 0.05149471942 | EN50: 0.05146289532 | EO50: 0.0319490626 | EP50: 0.004354213064 | EQ50: 0.06432231063 | ER50: 0.03606133189 | ES50: 0.07928942248 | ET50: 0.04518177825 | EV50: 7 | EW50: 0.03983374012 | EX50: 0.02873269561 | EY50: 0.01586729698 | EZ50: 0.04319576681 | FA50: 0.02471473443 | FB50: 0.02294608731 | FC50: 0.04117765965 | FD50: 0.03827452732 | FF50: 7 | FG50: 0.04298896062 | FH50: 0.03676730137 | FI50: 0.0172608232 | FJ50: 0.05910939081 | FK50: 0.0261342919 | FL50: 0.01802600705 | FM50: 0.03662013142 | FN50: 0.03168935409 | FP50: 7 | FQ50: 0.03770458121 | FR50: 0.04012455466 | FS50: 0.0254434694 | FT50: 0.05628024857 | FU50: 0.04289155514 | FV50: 0.02646997998 | FW50: 0.03743123729 | FX50: 0.03008415683 | FZ50: 7 | GA50: 0.05318817201 | GB50: 0.03907040864 | GC50: 0.03580227261 | GD50: 0.1001734807 | GE50: 0.03418207283 | GF50: 0.04440438667 | GG50: 0.03450541397 | GH50: 0.03739312347 | GJ50: 7 | GK50: 0.05827287284 | GL50: 0.04405021614 | GM50: 0.02756215511 | GN50: 0.116884047 | GO50: 0.02589060887 | GP50: 0.03547002871 | GQ50: 0.03083651531 | GR50: 0.03686218076 | GT50: 7 | GU50: 0.06158967696 | GV50: 0.05385503111 | GW50: 0.04306764356 | GX50: 0.1338985064 | GY50: 0.03216900614 | GZ50: 0.05366216795 | HA50: 0.03410553905 | HB50: 0.06355519511 | HD50: 7 | HE50: 0.05928141951 | HF50: 0.06024214236 | HG50: 0.04555236633 | HH50: 0.2064496384 | HI50: 0.04376349636 | HJ50: 0.05786012171 | HK50: 0.03405680248 | HL50: 0.06522159613 | HN50: 7 | HO50: 0.05928141951 | HP50: 0.06024214236 | HQ50: 0.04555236633 | HR50: 0.2064496384 | HS50: 0.04376349636 | HT50: 0.05786012171 | HU50: 0.03405680248 | HV50: 0.06522159613 | HX50: 7 | HY50: 0.05928141951 | HZ50: 0.06024214236 | IA50: 0.04555236633 | IB50: 0.2064496384 | IC50: 0.04376349636 | ID50: 0.05786012171 | IE50: 0.03405680248 | IF50: 0.06522159613 | IH50: 7 | II50: 0.05928141951 | IJ50: 0.06024214236 | IK50: 0.04555236633 | IL50: 0.2064496384 | IM50: 0.04376349636 | IN50: 0.05786012171 | IO50: 0.03405680248 | IP50: 0.06522159613
B51: 3 | L51: 3 | V51: 3 | AF51: 3 | AP51: 3 | AZ51: 3 | BJ51: 3 | BT51: 3 | EB51: 8 | EC51: 0.05280026791 | ED51: 0.05677045609 | EE51: 0.0436280844 | EF51: 0.06356152069 | EG51: 0.07767309697 | EH51: 0.06400268232 | EI51: 0.07259655316 | EJ51: 0.0556600448 | EL51: 8 | EM51: 0.0557060716 | EN51: 0.05315349052 | EO51: 0.02936816552 | EP51: 0.003021139124 | EQ51: 0.05685741792 | ER51: 0.07021960013 | ES51: 0.07054643992 | ET51: 0.04662011287 | EV51: 8 | EW51: 0.04994745685 | EX51: 0.04816801792 | EY51: 0.03034651881 | EZ51: 0.003895876978 | FA51: 0.05942321117 | FB51: 0.0341143545 | FC51: 0.07296591571 | FD51: 0.04269654698 | FF51: 8 | FG51: 0.03862815646 | FH51: 0.02687533318 | FI51: 0.01530443128 | FJ51: 0.03853186771 | FK51: 0.0228802015 | FL51: 0.02186634995 | FM51: 0.03792784854 | FN51: 0.03649099339 | FP51: 8 | FQ51: 0.04175197418 | FR51: 0.03440901308 | FS51: 0.01666260095 | FT51: 0.05353646095 | FU51: 0.02422842299 | FV51: 0.01725796511 | FW51: 0.03380311009 | FX51: 0.03035502997 | FZ51: 8 | GA51: 0.0402476714 | GB51: 0.03892326785 | GC51: 0.02651538199 | GD51: 0.07075862973 | GE51: 0.03051023624 | GF51: 0.0295815702 | GG51: 0.0237906839 | GH51: 0.03479652399 | GJ51: 8 | GK51: 0.05171842447 | GL51: 0.03746869976 | GM51: 0.03502589152 | GN51: 0.09649572341 | GO51: 0.03125362472 | GP51: 0.04218548266 | GQ51: 0.03221518036 | GR51: 0.03550735246 | GT51: 8 | GU51: 0.05671809749 | GV51: 0.04224405293 | GW51: 0.0266690853 | GX51: 0.1112523045 | GY51: 0.02371780972 | GZ51: 0.03375400321 | HA51: 0.02881008303 | HB51: 0.03508038362 | HD51: 8 | HE51: 0.06002874453 | HF51: 0.05179152256 | HG51: 0.04088614413 | HH51: 0.128409526 | HI51: 0.02958980566 | HJ51: 0.05113130005 | HK51: 0.03193719257 | HL51: 0.06037914397 | HN51: 8 | HO51: 0.06002874453 | HP51: 0.05179152256 | HQ51: 0.04088614413 | HR51: 0.128409526 | HS51: 0.02958980566 | HT51: 0.05113130005 | HU51: 0.03193719257 | HV51: 0.06037914397 | HX51: 8 | HY51: 0.06002874453 | HZ51: 0.05179152256 | IA51: 0.04088614413 | IB51: 0.128409526 | IC51: 0.02958980566 | ID51: 0.05113130005 | IE51: 0.03193719257 | IF51: 0.06037914397 | IH51: 8 | II51: 0.06002874453 | IJ51: 0.05179152256 | IK51: 0.04088614413 | IL51: 0.128409526 | IM51: 0.02958980566 | IN51: 0.05113130005 | IO51: 0.03193719257 | IP51: 0.06037914397
B52: 4 | L52: 4 | V52: 4 | AF52: 4 | AP52: 4 | AZ52: 4 | BJ52: 4 | BT52: 4 | EB52: 9 | EC52: 0.05230428451 | ED52: 0.05820668992 | EE52: 0.03444436917 | EF52: 0.04367029108 | EG52: 0.06642752564 | EH52: 0.05853283481 | EI52: 0.06357403456 | EJ52: 0.05170886684 | EL52: 9 | EM52: 0.05124739884 | EN52: 0.05277397609 | EO52: 0.04141815901 | EP52: 0.05632044047 | EQ52: 0.07118166026 | ER52: 0.0604673481 | ES52: 0.06683810821 | ET52: 0.05255537176 | EV52: 9 | EW52: 0.05379208515 | EX52: 0.04924753682 | EY52: 0.02789505766 | EZ52: 0.00269061749 | FA52: 0.05201020962 | FB52: 0.06653896783 | FC52: 0.06492013146 | FD52: 0.04405578661 | FF52: 9 | FG52: 0.04819922267 | FH52: 0.04469275113 | FI52: 0.02927019232 | FJ52: 0.00345880728 | FK52: 0.05447515264 | FL52: 0.03244329864 | FM52: 0.06720713872 | FN52: 0.04070689096 | FP52: 9 | FQ52: 0.0373402569 | FR52: 0.02491102103 | FS52: 0.014773977 | FT52: 0.03472702634 | FU52: 0.02099703486 | FV52: 0.0209427395 | FW52: 0.03501021654 | FX52: 0.03495434689 | FZ52: 9 | GA52: 0.04096649974 | GB52: 0.03069217976 | GC52: 0.01414585674 | GD52: 0.06482249389 | GE52: 0.01304966741 | GF52: 0.01671802421 | GG52: 0.01836698921 | GH52: 0.03724040688 | GJ52: 9 | GK52: 0.03899071748 | GL52: 0.03709379314 | GM52: 0.02594033217 | GN52: 0.06790861583 | GO52: 0.02771288921 | GP52: 0.02811268095 | GQ52: 0.02221150507 | GR52: 0.0330555157 | GT52: 9 | GU52: 0.0501540142 | GV52: 0.03571175118 | GW52: 0.03389101009 | GX52: 0.09150983433 | GY52: 0.02844032535 | GZ52: 0.04015560466 | HA52: 0.0300980925 | HB52: 0.03378343122 | HD52: 9 | HE52: 0.05507858039 | HF52: 0.0403350721 | HG52: 0.02531824894 | HH52: 0.106301257 | HI52: 0.02164824815 | HJ52: 0.0321593211 | HK52: 0.02697848518 | HL52: 0.03332071932 | HN52: 9 | HO52: 0.05507858039 | HP52: 0.0403350721 | HQ52: 0.02531824894 | HR52: 0.106301257 | HS52: 0.02164824815 | HT52: 0.0321593211 | HU52: 0.02697848518 | HV52: 0.03332071932 | HX52: 9 | HY52: 0.05507858039 | HZ52: 0.0403350721 | IA52: 0.02531824894 | IB52: 0.106301257 | IC52: 0.02164824815 | ID52: 0.0321593211 | IE52: 0.02697848518 | IF52: 0.03332071932 | IH52: 9 | II52: 0.05507858039 | IJ52: 0.0403350721 | IK52: 0.02531824894 | IL52: 0.106301257 | IM52: 0.02164824815 | IN52: 0.0321593211 | IO52: 0.02697848518 | IP52: 0.03332071932
B53: 5 | L53: 5 | V53: 5 | AF53: 5 | AP53: 5 | AZ53: 5 | BJ53: 5 | BT53: 5 | EB53: 10 | EC53: 0.04841126657 | ED53: 0.05752484125 | EE53: 0.04277710766 | EF53: 0.02616633848 | EG53: 0.0586386311 | EH53: 0.04089839153 | EI53: 0.05393477045 | EJ53: 0.05020381222 | EL53: 10 | EM53: 0.05050411868 | EN53: 0.0535610184 | EO53: 0.03269961669 | EP53: 0.03849636169 | EQ53: 0.06025635898 | ER53: 0.05530513602 | ES53: 0.05853132552 | ET53: 0.04882442187 | EV53: 10 | EW53: 0.04924524339 | EX53: 0.04846582282 | EY53: 0.03934066091 | EZ53: 0.04991284245 | FA53: 0.06447681549 | FB53: 0.05726576248 | FC53: 0.0615076547 | FD53: 0.0496644146 | FF53: 10 | FG53: 0.05166925629 | FH53: 0.0452247393 | FI53: 0.02690559818 | FJ53: 0.002376813723 | FK53: 0.04721665359 | FL53: 0.06339264578 | FM53: 0.05979640401 | FN53: 0.04200277333 | FP53: 10 | FQ53: 0.0463425663 | FR53: 0.04107200309 | FS53: 0.02825572376 | FT53: 0.003100998063 | FU53: 0.04948885782 | FV53: 0.03099315622 | FW53: 0.06203719169 | FX53: 0.03899265738 | FZ53: 10 | GA53: 0.03657904018 | GB53: 0.02279668597 | GC53: 0.02046090905 | GD53: 0.04239120193 | GE53: 0.01266716693 | GF53: 0.02134132455 | GG53: 0.04046377605 | GH53: 0.04326049114 | GJ53: 10 | GK53: 0.03953174405 | GL53: 0.02906659635 | GM53: 0.01383910368 | GN53: 0.06196803548 | GO53: 0.01177946994 | GP53: 0.0158782415 | GQ53: 0.01714788893 | GR53: 0.03535080538 | GT53: 10 | GU53: 0.03766486302 | GV53: 0.03513929326 | GW53: 0.02509989095 | GX53: 0.06415020629 | GY53: 0.02505770674 | GZ53: 0.02676867754 | HA53: 0.02075201027 | HB53: 0.03146157803 | HD53: 10 | HE53: 0.04851589485 | HF53: 0.03389435962 | HG53: 0.03217433549 | HH53: 0.08709895763 | HI53: 0.02579118236 | HJ53: 0.03826602552 | HK53: 0.02818456259 | HL53: 0.03208223781 | HN53: 10 | HO53: 0.04851589485 | HP53: 0.03389435962 | HQ53: 0.03217433549 | HR53: 0.08709895763 | HS53: 0.02579118236 | HT53: 0.03826602552 | HU53: 0.02818456259 | HV53: 0.03208223781 | HX53: 10 | HY53: 0.04851589485 | HZ53: 0.03389435962 | IA53: 0.03217433549 | IB53: 0.08709895763 | IC53: 0.02579118236 | ID53: 0.03826602552 | IE53: 0.02818456259 | IF53: 0.03208223781 | IH53: 10 | II53: 0.04851589485 | IJ53: 0.03389435962 | IK53: 0.03217433549 | IL53: 0.08709895763 | IM53: 0.02579118236 | IN53: 0.03826602552 | IO53: 0.02818456259 | IP53: 0.03208223781
B54: 6 | L54: 6 | V54: 6 | AF54: 6 | AP54: 6 | AZ54: 6 | BJ54: 6 | BT54: 6 | EB54: 11 | EC54: 0.04989859367 | ED54: 0.05200997148 | EE54: 0.03724208571 | EF54: 0.0340686575 | EG54: 0.05318508554 | EH54: 0.0361785287 | EI54: 0.04616955722 | EJ54: 0.04358694881 | EL54: 11 | EM54: 0.04650759184 | EN54: 0.05240565209 | EO54: 0.04042947598 | EP54: 0.02294902931 | EQ54: 0.05266236981 | ER54: 0.03848702648 | ES54: 0.04965659702 | ET54: 0.04723800327 | EV54: 11 | EW54: 0.0482984646 | EX54: 0.04871260316 | EY54: 0.03090083437 | EZ54: 0.03395144021 | FA54: 0.05405969727 | FB54: 0.05217837137 | FC54: 0.05386335169 | FD54: 0.04597771698 | FF54: 11 | FG54: 0.04707054305 | FH54: 0.04417636462 | FI54: 0.03766115357 | FJ54: 0.04387359633 | FK54: 0.05797932575 | FL54: 0.05418363814 | FM54: 0.05665311078 | FN54: 0.04708981238 | FP54: 11 | FQ54: 0.04943890731 | FR54: 0.04113193366 | FS54: 0.02571700707 | FT54: 0.002119936167 | FU54: 0.04247327709 | FV54: 0.06020923446 | FW54: 0.05519643816 | FX54: 0.03994587954 | FZ54: 11 | GA54: 0.04616132678 | GB54: 0.03833746568 | GC54: 0.03839307768 | GD54: 0.004707933869 | GE54: 0.03803463554 | GF54: 0.03489225198 | GG54: 0.04990699183 | GH54: 0.04154959799 | GJ54: 11 | GK54: 0.03516155681 | GL54: 0.02145365907 | GM54: 0.01981433666 | GN54: 0.04036794917 | GO54: 0.01136001945 | GP54: 0.02003885601 | GQ54: 0.03777790899 | GR54: 0.04048423285 | GT54: 11 | GU54: 0.03804150643 | GV54: 0.02737055543 | GW54: 0.01325421385 | GX54: 0.05831467778 | GY54: 0.01058787808 | GZ54: 0.01493523638 | HA54: 0.01602108419 | HB54: 0.03314047715 | HD54: 11 | HE54: 0.03629538506 | HF54: 0.03315705627 | HG54: 0.02358263247 | HH54: 0.06082502817 | HI54: 0.02258576701 | HJ54: 0.02522812579 | HK54: 0.0194325119 | HL54: 0.02946638927 | HN54: 11 | HO54: 0.03629538506 | HP54: 0.03315705627 | HQ54: 0.02358263247 | HR54: 0.06082502817 | HS54: 0.02258576701 | HT54: 0.02522812579 | HU54: 0.0194325119 | HV54: 0.02946638927 | HX54: 11 | HY54: 0.03629538506 | HZ54: 0.03315705627 | IA54: 0.02358263247 | IB54: 0.06082502817 | IC54: 0.02258576701 | ID54: 0.02522812579 | IE54: 0.0194325119 | IF54: 0.02946638927 | IH54: 11 | II54: 0.03629538506 | IJ54: 0.03315705627 | IK54: 0.02358263247 | IL54: 0.06082502817 | IM54: 0.02258576701 | IN54: 0.02522812579 | IO54: 0.0194325119 | IP54: 0.02946638927
B55: 7 | L55: 7 | V55: 7 | AF55: 7 | AP55: 7 | AZ55: 7 | BJ55: 7 | BT55: 7 | EB55: 12 | EC55: 0.0490852214 | ED55: 0.04948712766 | EE55: 0.0372129842 | EF55: 0.03681902207 | EG55: 0.04549079054 | EH55: 0.02912253628 | EI55: 0.04066705437 | EJ55: 0.04541701139 | EL55: 12 | EM55: 0.04768447794 | EN55: 0.04692536944 | EO55: 0.03519808907 | EP55: 0.02972181588 | EQ55: 0.04730119926 | ER55: 0.03405230188 | ES55: 0.04250722253 | ET55: 0.04101197567 | EV55: 12 | EW55: 0.04425296255 | EX55: 0.04722228899 | EY55: 0.03820529623 | EZ55: 0.02013766906 | FA55: 0.04680652308 | FB55: 0.03628862884 | FC55: 0.04569625821 | FD55: 0.04448368752 | FF55: 12 | FG55: 0.04593319006 | FH55: 0.04397879014 | FI55: 0.02958155857 | FJ55: 0.0296900517 | FK55: 0.04816260643 | FL55: 0.04938030376 | FM55: 0.04961221499 | FN55: 0.04359433735 | FP55: 12 | FQ55: 0.04479904336 | FR55: 0.03986472531 | FS55: 0.03599747786 | FT55: 0.03892192535 | FU55: 0.05165494672 | FV55: 0.05141063681 | FW55: 0.05229507476 | FX55: 0.04478374343 | FZ55: 12 | GA55: 0.0497278994 | GB55: 0.03963683091 | GC55: 0.02907901404 | GD55: 0.00343938228 | GE55: 0.03475954274 | GF55: 0.05459208798 | GG55: 0.0614868621 | GH55: 0.03837897955 | GJ55: 12 | GK55: 0.04419443966 | GL55: 0.03585574693 | GM55: 0.03717977802 | GN55: 0.00446523685 | GO55: 0.03389149706 | GP55: 0.03282821174 | GQ55: 0.04659441591 | GR55: 0.03889825464 | GT55: 12 | GU55: 0.03370154119 | GV55: 0.02008068263 | GW55: 0.01897691294 | GX55: 0.03783693004 | GY55: 0.010147815 | GZ55: 0.01885172087 | HA55: 0.03529540293 | HB55: 0.03797208532 | HD55: 12 | HE55: 0.03651298039 | HF55: 0.025679058 | HG55: 0.01245307911 | HH55: 0.0550724611 | HI55: 0.009489599972 | HJ55: 0.01406394274 | HK55: 0.01500242102 | HL55: 0.03102433314 | HN55: 12 | HO55: 0.03651298039 | HP55: 0.025679058 | HQ55: 0.01245307911 | HR55: 0.0550724611 | HS55: 0.009489599972 | HT55: 0.01406394274 | HU55: 0.01500242102 | HV55: 0.03102433314 | HX55: 12 | HY55: 0.03651298039 | HZ55: 0.025679058 | IA55: 0.01245307911 | IB55: 0.0550724611 | IC55: 0.009489599972 | ID55: 0.01406394274 | IE55: 0.01500242102 | IF55: 0.03102433314 | IH55: 12 | II55: 0.03651298039 | IJ55: 0.025679058 | IK55: 0.01245307911 | IL55: 0.0550724611 | IM55: 0.009489599972 | IN55: 0.01406394274 | IO55: 0.01500242102 | IP55: 0.03102433314
B56: 8 | L56: 8 | V56: 8 | AF56: 8 | AP56: 8 | AZ56: 8 | BJ56: 8 | BT56: 8 | EB56: 13 | EC56: 0.0455299208 | ED56: 0.04335451415 | EE56: 0.03064645564 | EF56: 0.02357368543 | EG56: 0.05141909047 | EH56: 0.0384142892 | EI56: 0.03446410896 | EJ56: 0.04226957861 | EL56: 13 | EM56: 0.04514573879 | EN56: 0.04424215827 | EO56: 0.03501324966 | EP56: 0.03091543204 | EQ56: 0.040089585 | ER56: 0.02730196828 | ES56: 0.03744127482 | ET56: 0.04258406846 | EV56: 13 | EW56: 0.04374617099 | EX56: 0.04190515222 | EY56: 0.03309112526 | EZ56: 0.02514791189 | FA56: 0.041674062 | FB56: 0.03198667901 | FC56: 0.03911722332 | FD56: 0.03848544584 | FF56: 13 | FG56: 0.04054908015 | FH56: 0.04227146366 | FI56: 0.03629837527 | FJ56: 0.01696676385 | FK56: 0.04133871068 | FL56: 0.03409983531 | FM56: 0.04208971824 | FN56: 0.04194466104 | FP56: 13 | FQ56: 0.0420531973 | FR56: 0.03931982964 | FS56: 0.02799335089 | FT56: 0.02533462338 | FU56: 0.04252270902 | FV56: 0.04647710842 | FW56: 0.04579571719 | FX56: 0.04116022577 | FZ56: 13 | GA56: 0.04442933486 | GB56: 0.03892333255 | GC56: 0.04133381788 | GD56: 0.04583355377 | GE56: 0.05402667691 | GF56: 0.05082519728 | GG56: 0.05969086776 | GH56: 0.03826166257 | GJ56: 13 | GK56: 0.04625295199 | GL56: 0.03686603192 | GM56: 0.02787188255 | GN56: 0.003169162575 | GO56: 0.03081145637 | GP56: 0.05067975247 | GQ56: 0.05740570762 | GR56: 0.03542861281 | GT56: 13 | GU56: 0.0411650987 | GV56: 0.03337041426 | GW56: 0.03524182297 | GX56: 0.00406728588 | GY56: 0.0300975879 | GZ56: 0.03060712797 | HA56: 0.04353258314 | HB56: 0.03596700251 | HD56: 13 | HE56: 0.03143664897 | HF56: 0.01873575405 | HG56: 0.01764389059 | HH56: 0.0347273947 | HI56: 0.009043700566 | HJ56: 0.01754507369 | HK56: 0.03305144612 | HL56: 0.03505536922 | HN56: 13 | HO56: 0.03143664897 | HP56: 0.01873575405 | HQ56: 0.01764389059 | HR56: 0.0347273947 | HS56: 0.009043700566 | HT56: 0.01754507369 | HU56: 0.03305144612 | HV56: 0.03505536922 | HX56: 13 | HY56: 0.03143664897 | HZ56: 0.01873575405 | IA56: 0.01764389059 | IB56: 0.0347273947 | IC56: 0.009043700566 | ID56: 0.01754507369 | IE56: 0.03305144612 | IF56: 0.03505536922 | IH56: 13 | II56: 0.03143664897 | IJ56: 0.01873575405 | IK56: 0.01764389059 | IL56: 0.0347273947 | IM56: 0.009043700566 | IN56: 0.01754507369 | IO56: 0.03305144612 | IP56: 0.03505536922
B57: 9 | L57: 9 | V57: 9 | AF57: 9 | AP57: 9 | AZ57: 9 | BJ57: 9 | BT57: 9 | EB57: 14 | EC57: 0.04480635205 | ED57: 0.04035235791 | EE57: 0.0600462633 | EF57: 0.02004678069 | EG57: 0.02730061899 | EH57: 0.05917915426 | EI57: 0.02751147384 | EJ57: 0.04388174418 | EL57: 14 | EM57: 0.03963341367 | EN57: 0.03838692174 | EO57: 0.02883500079 | EP57: 0.01873485101 | EQ57: 0.04488174091 | ER57: 0.03602034344 | ES57: 0.03173028981 | ET57: 0.03963298501 | EV57: 14 | EW57: 0.03931074658 | EX57: 0.03914827575 | EY57: 0.03291720635 | EZ57: 0.02482666921 | FA57: 0.03499721216 | FB57: 0.02563502708 | FC57: 0.0344552386 | FD57: 0.03996076673 | FF57: 14 | FG57: 0.03799355473 | FH57: 0.0371537415 | FI57: 0.03143932501 | FJ57: 0.02008607877 | FK57: 0.03647147635 | FL57: 0.03006880282 | FM57: 0.03602991981 | FN57: 0.03628876297 | FP57: 14 | FQ57: 0.03510541706 | FR57: 0.03744358842 | FS57: 0.03434941707 | FT57: 0.01369044053 | FU57: 0.03615401177 | FV57: 0.03206145908 | FW57: 0.03885184177 | FX57: 0.03960268647 | FZ57: 14 | GA57: 0.0403393916 | GB57: 0.04003636263 | GC57: 0.03333231437 | GD57: 0.02934126301 | GE57: 0.04434108995 | GF57: 0.04394916157 | GG57: 0.05378422602 | GH57: 0.02842896698 | GJ57: 14 | GK57: 0.03966266301 | GL57: 0.03598665576 | GM57: 0.03961785623 | GN57: 0.04053416668 | GO57: 0.04760544172 | GP57: 0.04722753329 | GQ57: 0.05572875181 | GR57: 0.03534673734 | GT57: 14 | GU57: 0.0413679 | GV57: 0.03411568429 | GW57: 0.02641904166 | GX57: 0.002771838787 | GY57: 0.02721474522 | GZ57: 0.04713425276 | HA57: 0.05363331797 | HB57: 0.03277980818 | HD57: 14 | HE57: 0.03687290277 | HF57: 0.03095413288 | HG57: 0.03276647677 | HH57: 0.003584684991 | HI57: 0.02666257095 | HJ57: 0.02855584894 | HK57: 0.0407647599 | HL57: 0.03321267247 | HN57: 14 | HO57: 0.03687290277 | HP57: 0.03095413288 | HQ57: 0.03276647677 | HR57: 0.003584684991 | HS57: 0.02666257095 | HT57: 0.02855584894 | HU57: 0.0407647599 | HV57: 0.03321267247 | HX57: 14 | HY57: 0.03687290277 | HZ57: 0.03095413288 | IA57: 0.03276647677 | IB57: 0.003584684991 | IC57: 0.02666257095 | ID57: 0.02855584894 | IE57: 0.0407647599 | IF57: 0.03321267247 | IH57: 14 | II57: 0.03687290277 | IJ57: 0.03095413288 | IK57: 0.03276647677 | IL57: 0.003584684991 | IM57: 0.02666257095 | IN57: 0.02855584894 | IO57: 0.0407647599 | IP57: 0.03321267247
B58: 10 | L58: 10 | V58: 10 | AF58: 10 | AP58: 10 | AZ58: 10 | BJ58: 10 | BT58: 10 | EB58: 15 | EC58: 0.03521435401 | ED58: 0.03427755268 | EE58: 0.05767267007 | EF58: 0.01149409072 | EG58: 0.03886050298 | EH58: 0.04710102096 | EI58: 0.02079420776 | EJ58: 0.040668437 | EL58: 15 | EM58: 0.03813227314 | EN58: 0.0347464854 | EO58: 0.0564968403 | EP58: 0.01557605871 | EQ58: 0.02317442807 | ER58: 0.0554842837 | ES58: 0.02532927826 | ET58: 0.04114451642 | EV58: 15 | EW58: 0.03378426137 | EX58: 0.03307902877 | EY58: 0.02710888183 | EZ58: 0.01472629307 | FA58: 0.03814786411 | FB58: 0.03383042548 | FC58: 0.02919979451 | FD58: 0.03719157894 | FF58: 15 | FG58: 0.03340366703 | FH58: 0.03380260489 | FI58: 0.0312741087 | FJ58: 0.01939970912 | FK58: 0.02982687724 | FL58: 0.0240869861 | FM58: 0.03173591655 | FN58: 0.03767981121 | FP58: 15 | FQ58: 0.03214079505 | FR58: 0.03200359784 | FS58: 0.02975124911 | FT58: 0.01583908187 | FU58: 0.03103099206 | FV58: 0.02828509367 | FW58: 0.03325826045 | FX58: 0.03426263716 | FZ58: 15 | GA58: 0.03356482109 | GB58: 0.03890077402 | GC58: 0.02920514551 | GD58: 0.01678286537 | GE58: 0.048094017 | GF58: 0.02991420587 | GG58: 0.04377152677 | GH58: 0.03022976569 | GJ58: 15 | GK58: 0.03541533279 | GL58: 0.0363911525 | GM58: 0.0319486392 | GN58: 0.02551918541 | GO58: 0.03840658107 | GP58: 0.04083034686 | GQ58: 0.05021431364 | GR58: 0.02625526414 | GT58: 15 | GU58: 0.03489269446 | GV58: 0.03274134314 | GW58: 0.03755279723 | GX58: 0.03487172852 | GY58: 0.04133467257 | GZ58: 0.04396533389 | HA58: 0.05206662348 | HB58: 0.03272204052 | HD58: 15 | HE58: 0.03644877335 | HF58: 0.0311264448 | HG58: 0.02456336477 | HH58: 0.002403004098 | HI58: 0.02371615067 | HJ58: 0.04388053309 | HK58: 0.0502233837 | HL58: 0.03028720123 | HN58: 15 | HO58: 0.03644877335 | HP58: 0.0311264448 | HQ58: 0.02456336477 | HR58: 0.002403004098 | HS58: 0.02371615067 | HT58: 0.04388053309 | HU58: 0.0502233837 | HV58: 0.03028720123 | HX58: 15 | HY58: 0.03644877335 | HZ58: 0.0311264448 | IA58: 0.02456336477 | IB58: 0.002403004098 | IC58: 0.02371615067 | ID58: 0.04388053309 | IE58: 0.0502233837 | IF58: 0.03028720123 | IH58: 15 | II58: 0.03644877335 | IJ58: 0.0311264448 | IK58: 0.02456336477 | IL58: 0.002403004098 | IM58: 0.02371615067 | IN58: 0.04388053309 | IO58: 0.0502233837 | IP58: 0.03028720123
B59: 11 | L59: 11 | V59: 11 | AF59: 11 | AP59: 11 | AZ59: 11 | BJ59: 11 | BT59: 11 | EB59: 16 | EC59: 0.02841171738 | ED59: 0.02691562452 | EE59: 0.02431323494 | EF59: 0.01089850021 | EG59: 0.0144703989 | EH59: 0.03153938689 | EI59: 0.01774377407 | EJ59: 0.0328355571 | EL59: 16 | EM59: 0.0294049356 | EN59: 0.02922176849 | EO59: 0.05401967435 | EP59: 0.008762822027 | EQ59: 0.03266049455 | ER59: 0.04399703197 | ES59: 0.01914469824 | ET59: 0.03799763879 | EV59: 16 | EW59: 0.03192610242 | EX59: 0.02965789381 | EY59: 0.05284074254 | EZ59: 0.01202525508 | FA59: 0.01951065737 | FB59: 0.05188841262 | FC59: 0.02330912698 | FD59: 0.03847426555 | FF59: 16 | FG59: 0.02819203549 | FH59: 0.02830622409 | FI59: 0.0255599196 | FJ59: 0.01129740566 | FK59: 0.03220599019 | FL59: 0.0315932075 | FM59: 0.02689514594 | FN59: 0.03487370597 | FP59: 16 | FQ59: 0.02771887578 | FR59: 0.02883315273 | FS59: 0.0292973997 | FT59: 0.01500510329 | FU59: 0.02512935074 | FV59: 0.0224505634 | FW59: 0.0292946523 | FX59: 0.03531726296 | FZ59: 16 | GA59: 0.03026748879 | GB59: 0.03431434657 | GC59: 0.02514750539 | GD59: 0.01863415516 | GE59: 0.03991551859 | GF59: 0.02676887346 | GG59: 0.04701781761 | GH59: 0.02705062361 | GJ59: 16 | GK59: 0.02905945361 | GL59: 0.03514861212 | GM59: 0.02770324325 | GN59: 0.01439438473 | GO59: 0.04141506926 | GP59: 0.0274961753 | GQ59: 0.04086616755 | GR59: 0.02750292505 | GT59: 16 | GU59: 0.03072935418 | GV59: 0.03291932963 | GW59: 0.02996820143 | GX59: 0.02165349646 | GY59: 0.03315845809 | GZ59: 0.03756419564 | HA59: 0.0469145856 | HB59: 0.02394850713 | HD59: 16 | HE59: 0.03032300679 | HF59: 0.02969669347 | HG59: 0.03454724808 | HH59: 0.0298179401 | HI59: 0.03581063996 | HJ59: 0.04049194287 | HK59: 0.04875639081 | HL59: 0.02982273581 | HN59: 16 | HO59: 0.03032300679 | HP59: 0.02969669347 | HQ59: 0.03454724808 | HR59: 0.0298179401 | HS59: 0.03581063996 | HT59: 0.04049194287 | HU59: 0.04875639081 | HV59: 0.02982273581 | HX59: 16 | HY59: 0.03032300679 | HZ59: 0.02969669347 | IA59: 0.03454724808 | IB59: 0.0298179401 | IC59: 0.03581063996 | ID59: 0.04049194287 | IE59: 0.04875639081 | IF59: 0.02982273581 | IH59: 16 | II59: 0.03032300679 | IJ59: 0.02969669347 | IK59: 0.03454724808 | IL59: 0.0298179401 | IM59: 0.03581063996 | IN59: 0.04049194287 | IO59: 0.04875639081 | IP59: 0.02982273581
B60: 12 | L60: 12 | V60: 12 | AF60: 12 | AP60: 12 | AZ60: 12 | BJ60: 12 | BT60: 12 | EB60: 17 | EC60: 0.02574502774 | ED60: 0.02328892373 | EE60: 0.04500479914 | EF60: 0.004053563972 | EG60: 0.01812223629 | EH60: 0.03037981088 | EI60: 0.01697628139 | EJ60: 0.0302677504 | EL60: 17 | EM60: 0.02336927423 | EN60: 0.02273100261 | EO60: 0.02277320113 | EP60: 0.00818463696 | EQ60: 0.01204890992 | ER60: 0.02949072724 | ES60: 0.01633626607 | ET60: 0.03067910275 | EV60: 17 | EW60: 0.02427262837 | EX60: 0.02472457237 | EY60: 0.05052376248 | EZ60: 0.006669555924 | FA60: 0.0272527829 | FB60: 0.04114742387 | FC60: 0.01761783449 | FD60: 0.03553152929 | FF60: 17 | FG60: 0.02625650401 | FH60: 0.02515472475 | FI60: 0.04982146425 | FJ60: 0.009091699844 | FK60: 0.01632654793 | FL60: 0.04844721424 | FM60: 0.02146956612 | FN60: 0.03607657731 | FP60: 17 | FQ60: 0.02304394723 | FR60: 0.02393325432 | FS60: 0.02394436008 | FT60: 0.008605266085 | FU60: 0.02688529927 | FV60: 0.02946093893 | FW60: 0.02482626026 | FX60: 0.03268724218 | FZ60: 17 | GA60: 0.02540702517 | GB60: 0.03193590746 | GC60: 0.02473501283 | GD60: 0.01747459184 | GE60: 0.03354903231 | GF60: 0.02289515786 | GG60: 0.03781820238 | GH60: 0.02759891332 | GJ60: 17 | GK60: 0.02591766133 | GL60: 0.03082947579 | GM60: 0.02385424754 | GN60: 0.01580716954 | GO60: 0.03418104066 | GP60: 0.02460430658 | GQ60: 0.04389714362 | GR60: 0.02462081569 | GT60: 17 | GU60: 0.02494134242 | GV60: 0.03162207736 | GW60: 0.02598596035 | GX60: 0.01208167496 | GY60: 0.03556560368 | GZ60: 0.02531876234 | HA60: 0.0381807292 | HB60: 0.02508436221 | HD60: 17 | HE60: 0.02641614226 | HF60: 0.02970085163 | HG60: 0.02756966169 | HH60: 0.01831523428 | HI60: 0.02857785395 | HJ60: 0.03458836284 | HK60: 0.04393175283 | HL60: 0.02181841963 | HN60: 17 | HO60: 0.02641614226 | HP60: 0.02970085163 | HQ60: 0.02756966169 | HR60: 0.01831523428 | HS60: 0.02857785395 | HT60: 0.03458836284 | HU60: 0.04393175283 | HV60: 0.02181841963 | HX60: 17 | HY60: 0.02641614226 | HZ60: 0.02970085163 | IA60: 0.02756966169 | IB60: 0.01831523428 | IC60: 0.02857785395 | ID60: 0.03458836284 | IE60: 0.04393175283 | IF60: 0.02181841963 | IH60: 17 | II60: 0.02641614226 | IJ60: 0.02970085163 | IK60: 0.02756966169 | IL60: 0.01831523428 | IM60: 0.02857785395 | IN60: 0.03458836284 | IO60: 0.04393175283 | IP60: 0.02181841963
B61: 13 | L61: 13 | V61: 13 | AF61: 13 | AP61: 13 | AZ61: 13 | BJ61: 13 | BT61: 13 | EB61: 18 | EC61: 0.02081790622 | ED61: 0.0169689177 | EE61: 0.02674673045 | EF61: 0.004492442167 | EG61: 0.01392809425 | EH61: 0.02702710611 | EI61: 0.01487819062 | EJ61: 0.02560517406 | EL61: 18 | EM61: 0.020922592 | EN61: 0.01950374288 | EO61: 0.04196379933 | EP61: 0.003007880814 | EQ61: 0.01496500088 | ER61: 0.02825476613 | ES61: 0.01562978568 | ET61: 0.02818005737 | EV61: 18 | EW61: 0.01907486659 | EX61: 0.01908517788 | EY61: 0.02118901106 | EZ61: 0.006159242831 | FA61: 0.009974484922 | FB61: 0.02751107415 | FC61: 0.01503346969 | FD61: 0.02858683535 | FF61: 18 | FG61: 0.0197342042 | FH61: 0.02081277996 | FI61: 0.04727212077 | FJ61: 0.00498426356 | FK61: 0.02262636387 | FL61: 0.03817164146 | FM61: 0.01622744261 | FN61: 0.03313105606 | FP61: 18 | FQ61: 0.02120177056 | FR61: 0.02109490201 | FS61: 0.04619819245 | FT61: 0.00684109661 | FU61: 0.01351810216 | FV61: 0.04477621199 | FW61: 0.01981792915 | FX61: 0.03356709449 | FZ61: 18 | GA61: 0.02096822705 | GB61: 0.02701160413 | GC61: 0.02824440618 | GD61: 0.01039996619 | GE61: 0.03327870794 | GF61: 0.02926592789 | GG61: 0.03141148542 | GH61: 0.03113901638 | GJ61: 18 | GK61: 0.0215663145 | GL61: 0.02855130389 | GM61: 0.02321781563 | GN61: 0.01469444635 | GO61: 0.02858056857 | GP61: 0.02082640712 | GQ61: 0.03530799043 | GR61: 0.02474632827 | GT61: 18 | GU61: 0.02205342405 | GV61: 0.02759981506 | GW61: 0.02214028954 | GX61: 0.01315328523 | GY61: 0.02921154476 | GZ61: 0.02239435843 | HA61: 0.04101241135 | HB61: 0.02213452506 | HD61: 18 | HE61: 0.02125633305 | HF61: 0.02839483322 | HG61: 0.02365171156 | HH61: 0.01013125177 | HI61: 0.03051102 | HJ61: 0.02306208085 | HK61: 0.0357533003 | HL61: 0.02252176005 | HN61: 18 | HO61: 0.02125633305 | HP61: 0.02839483322 | HQ61: 0.02365171156 | HR61: 0.01013125177 | HS61: 0.03051102 | HT61: 0.02306208085 | HU61: 0.0357533003 | HV61: 0.02252176005 | HX61: 18 | HY61: 0.02125633305 | HZ61: 0.02839483322 | IA61: 0.02365171156 | IB61: 0.01013125177 | IC61: 0.03051102 | ID61: 0.02306208085 | IE61: 0.0357533003 | IF61: 0.02252176005 | IH61: 18 | II61: 0.02125633305 | IJ61: 0.02839483322 | IK61: 0.02365171156 | IL61: 0.01013125177 | IM61: 0.03051102 | IN61: 0.02306208085 | IO61: 0.0357533003 | IP61: 0.02252176005
B62: 14 | L62: 14 | V62: 14 | AF62: 14 | AP62: 14 | AZ62: 14 | BJ62: 14 | BT62: 14 | EB62: 19 | EC62: 0.02091316183 | ED62: 0.01636876378 | EE62: 0.03727690366 | EF62: 0.00342082754 | EG62: 0.01017702265 | EH62: 0.03330547044 | EI62: 0.01120705778 | EJ62: 0.0290447815 | EL62: 19 | EM62: 0.01676800955 | EN62: 0.01410827148 | EO62: 0.02493947214 | EP62: 0.003303921684 | EQ62: 0.01141846809 | ER62: 0.02518758136 | ES62: 0.01369801054 | ET62: 0.02383903605 | EV62: 19 | EW62: 0.01693628298 | EX62: 0.01626701084 | EY62: 0.03904455777 | EZ62: 0.002244530522 | FA62: 0.01230294853 | FB62: 0.02629469266 | FC62: 0.01438322484 | FD62: 0.0262584114 | FF62: 19 | FG62: 0.01537804106 | FH62: 0.01596341856 | FI62: 0.01982518151 | FJ62: 0.004563271817 | FK62: 0.0082244536 | FL62: 0.02556615623 | FM62: 0.01384701252 | FN62: 0.0266556475 | FP62: 19 | FQ62: 0.01579260118 | FR62: 0.01733420071 | FS62: 0.04383420123 | FT62: 0.003716470098 | FU62: 0.01860073296 | FV62: 0.0352825997 | FW62: 0.01497912418 | FX62: 0.03082649895 | FZ62: 19 | GA62: 0.01934651143 | GB62: 0.0251973829 | GC62: 0.02980034868 | GD62: 0.008842806676 | GE62: 0.02282807475 | GF62: 0.03402593063 | GG62: 0.02493939037 | GH62: 0.03007237309 | GJ62: 19 | GK62: 0.01768334912 | GL62: 0.02404116119 | GM62: 0.02651178405 | GN62: 0.008688812131 | GO62: 0.02822908926 | GP62: 0.02659377915 | GQ62: 0.0293265224 | GR62: 0.02793714696 | GT62: 19 | GU62: 0.01823341978 | GV62: 0.0254527176 | GW62: 0.02154962057 | GX62: 0.01214911784 | GY62: 0.02431740131 | GZ62: 0.01897652268 | HA62: 0.03298782486 | HB62: 0.02224782898 | HD62: 19 | HE62: 0.01867500258 | HF62: 0.02467869046 | HG62: 0.02015147927 | HH62: 0.0109594058 | HI62: 0.0249566659 | HJ62: 0.02039668805 | HK62: 0.0384049195 | HL62: 0.01988496048 | HN62: 19 | HO62: 0.01867500258 | HP62: 0.02467869046 | HQ62: 0.02015147927 | HR62: 0.0109594058 | HS62: 0.0249566659 | HT62: 0.02039668805 | HU62: 0.0384049195 | HV62: 0.01988496048 | HX62: 19 | HY62: 0.01867500258 | HZ62: 0.02467869046 | IA62: 0.02015147927 | IB62: 0.0109594058 | IC62: 0.0249566659 | ID62: 0.02039668805 | IE62: 0.0384049195 | IF62: 0.01988496048 | IH62: 19 | II62: 0.01867500258 | IJ62: 0.02467869046 | IK62: 0.02015147927 | IL62: 0.0109594058 | IM62: 0.0249566659 | IN62: 0.02039668805 | IO62: 0.0384049195 | IP62: 0.01988496048
B63: 15 | L63: 15 | V63: 15 | AF63: 15 | AP63: 15 | AZ63: 15 | BJ63: 15 | BT63: 15 | EB63: 20 | EC63: 0.01611533247 | ED63: 0.01397184823 | EE63: 0.02921502681 | EF63: 0.0004194262086 | EG63: 0.005964338209 | EH63: 0.02504348015 | EI63: 0.0128951255 | EJ63: 0.01467827187 | EL63: 20 | EM63: 0.01671697884 | EN63: 0.0135154646 | EO63: 0.03460109687 | EP63: 0.002496736145 | EQ63: 0.008285759144 | ER63: 0.030893927 | ES63: 0.01031808866 | ET63: 0.02694570673 | EV63: 20 | EW63: 0.0134760484 | EX63: 0.01168943352 | EY63: 0.02308343988 | EZ63: 0.002447775059 | FA63: 0.009325398096 | FB63: 0.02341403839 | FC63: 0.01260557787 | FD63: 0.02213474107 | FF63: 20 | FG63: 0.01355693723 | FH63: 0.0135251016 | FI63: 0.03624962612 | FJ63: 0.001650714405 | FK63: 0.01007804926 | FL63: 0.02420992673 | FM63: 0.01324802202 | FN63: 0.02434678728 | FP63: 20 | FQ63: 0.01221366837 | FR63: 0.01321043661 | FS63: 0.01819469677 | FT63: 0.003376282708 | FU63: 0.006715164761 | FV63: 0.0234864918 | FW63: 0.01278175741 | FX63: 0.02461838834 | FZ63: 20 | GA63: 0.0147835641 | GB63: 0.02140358222 | GC63: 0.04568645622 | GD63: 0.004102676462 | GE63: 0.02564904202 | GF63: 0.02460413263 | GG63: 0.01873933086 | GH63: 0.01743116605 | GJ63: 20 | GK63: 0.01622588979 | GL63: 0.02233344333 | GM63: 0.02767682402 | GN63: 0.00734718479 | GO63: 0.01927368544 | GP63: 0.03050670125 | GQ63: 0.02328399746 | GR63: 0.02661499947 | GT63: 20 | GU63: 0.01486910967 | GV63: 0.0213426126 | GW63: 0.02434548502 | GX63: 0.007144623128 | GY63: 0.02392215536 | GZ63: 0.02392511835 | HA63: 0.02739936403 | HB63: 0.0247562625 | HD63: 20 | HE63: 0.01535628492 | HF63: 0.0226689702 | HG63: 0.01940275844 | HH63: 0.01006773908 | HI63: 0.02068952479 | HJ63: 0.01710154945 | HK63: 0.03089046622 | HL63: 0.01969436857 | HN63: 20 | HO63: 0.01535628492 | HP63: 0.0226689702 | HQ63: 0.01940275844 | HR63: 0.01006773908 | HS63: 0.02068952479 | HT63: 0.01710154945 | HU63: 0.03089046622 | HV63: 0.01969436857 | HX63: 20 | HY63: 0.01535628492 | HZ63: 0.0226689702 | IA63: 0.01940275844 | IB63: 0.01006773908 | IC63: 0.02068952479 | ID63: 0.01710154945 | IE63: 0.03089046622 | IF63: 0.01969436857 | IH63: 20 | II63: 0.01535628492 | IJ63: 0.0226689702 | IK63: 0.01940275844 | IL63: 0.01006773908 | IM63: 0.02068952479 | IN63: 0.01710154945 | IO63: 0.03089046622 | IP63: 0.01969436857
B64: 16 | L64: 16 | V64: 16 | AF64: 16 | AP64: 16 | AZ64: 16 | BJ64: 16 | BT64: 16 | EB64: 21 | EC64: 0.01358307551 | ED64: 0.01001129128 | EE64: 0.02327559281 | EF64: 0.001630005203 | EG64: 0.006332267241 | EH64: 0.01845657902 | EI64: 0.0105091585 | EJ64: 0.01700171559 | EL64: 21 | EM64: 0.01281382734 | EN64: 0.01147356229 | EO64: 0.02711749702 | EP64: 0.0003045077739 | EQ64: 0.004829502194 | ER64: 0.02323302042 | ES64: 0.01187220745 | ET64: 0.01361749541 | EV64: 21 | EW64: 0.01336808644 | EX64: 0.01113988062 | EY64: 0.03202707742 | EZ64: 0.001840540127 | FA64: 0.006731694878 | FB64: 0.02867524571 | FC64: 0.009495190709 | FD64: 0.0250192658 | FF64: 21 | FG64: 0.01073208077 | FH64: 0.009668882372 | FI64: 0.02143110349 | FJ64: 0.001791007585 | FK64: 0.007599506266 | FL64: 0.02163210093 | FM64: 0.01161064627 | FN64: 0.02052341882 | FP64: 21 | FQ64: 0.01071170909 | FR64: 0.01113809412 | FS64: 0.0332683012 | FT64: 0.001214770284 | FU64: 0.008184342745 | FV64: 0.02215536826 | FW64: 0.0122289839 | FX64: 0.02248602454 | FZ64: 21 | GA64: 0.01179178907 | GB64: 0.01698879232 | GC64: 0.0222680913 | GD64: 0.00384575693 | GE64: 0.006748668786 | GF64: 0.01546025929 | GG64: 0.01378626886 | GH64: 0.01449416487 | GJ64: 21 | GK64: 0.01235151213 | GL64: 0.01890962301 | GM64: 0.04243104149 | GN64: 0.003395737891 | GO64: 0.02158720905 | GP64: 0.02204162759 | GQ64: 0.01749546927 | GR64: 0.0154268614 | GT64: 21 | GU64: 0.01359203544 | GV64: 0.01976322855 | GW64: 0.0254152925 | GX64: 0.006018609025 | GY64: 0.01627366568 | GZ64: 0.02739833939 | HA64: 0.02175384437 | HB64: 0.02361333586 | HD64: 21 | HE64: 0.01247569606 | HF64: 0.01894687443 | HG64: 0.02192003101 | HH64: 0.005898302655 | HI64: 0.02029075566 | HJ64: 0.02153668231 | HK64: 0.02565727224 | HL64: 0.02192456221 | HN64: 21 | HO64: 0.01247569606 | HP64: 0.01894687443 | HQ64: 0.02192003101 | HR64: 0.005898302655 | HS64: 0.02029075566 | HT64: 0.02153668231 | HU64: 0.02565727224 | HV64: 0.02192456221 | HX64: 21 | HY64: 0.01247569606 | HZ64: 0.01894687443 | IA64: 0.02192003101 | IB64: 0.005898302655 | IC64: 0.02029075566 | ID64: 0.02153668231 | IE64: 0.02565727224 | IF64: 0.02192456221 | IH64: 21 | II64: 0.01247569606 | IJ64: 0.01894687443 | IK64: 0.02192003101 | IL64: 0.005898302655 | IM64: 0.02029075566 | IN64: 0.02153668231 | IO64: 0.02565727224 | IP64: 0.02192456221
B65: 17 | L65: 17 | V65: 17 | AF65: 17 | AP65: 17 | AZ65: 17 | BJ65: 17 | BT65: 17 | EB65: 22 | EC65: 0.01123081505 | ED65: 0.007541381234 | EE65: 0.0181836172 | EF65: 0.002271491383 | EG65: 0.005859148084 | EH65: 0.01281868454 | EI65: 0.008793091581 | EJ65: 0.01533703593 | EL65: 22 | EM65: 0.01075956974 | EN65: 0.008174598645 | EO65: 0.02160536671 | EP65: 0.001178927675 | EQ65: 0.005098387379 | ER65: 0.0171185054 | ES65: 0.009675548188 | ET65: 0.01577301069 | EV65: 22 | EW65: 0.01021031428 | EX65: 0.009405728029 | EY65: 0.02509944511 | EZ65: 0.000223676557 | FA65: 0.003902465029 | FB65: 0.0215680336 | FC65: 0.01092538798 | FD65: 0.01264390414 | FF65: 22 | FG65: 0.01060715378 | FH65: 0.009164868906 | FI65: 0.02973536354 | FJ65: 0.001341771564 | FK65: 0.005456374916 | FL65: 0.02644933361 | FM65: 0.008745801467 | FN65: 0.02319794238 | FP65: 22 | FQ65: 0.008446867852 | FR65: 0.007917937919 | FS65: 0.01966853003 | FT65: 0.00131291705 | FU65: 0.006137052241 | FV65: 0.0198840947 | FW65: 0.01071752278 | FX65: 0.01895489333 | FZ65: 22 | GA65: 0.009813354344 | GB65: 0.01472335913 | GC65: 0.02526110385 | GD65: 0.001313694198 | GE65: 0.01976005935 | GF65: 0.01498298876 | GG65: 0.01116161842 | GH65: 0.01235889132 | GJ65: 22 | GK65: 0.009824881249 | GL65: 0.01495924404 | GM65: 0.02068149446 | GN65: 0.003174370467 | GO65: 0.00565601312 | GP65: 0.01383068336 | GQ65: 0.01287124087 | GR65: 0.01283546017 | GT65: 22 | GU65: 0.01031869024 | GV65: 0.01667825783 | GW65: 0.03896399522 | GX65: 0.002774185813 | GY65: 0.01816826916 | GZ65: 0.01978026838 | HA65: 0.01634570267 | HB65: 0.01368704069 | HD65: 22 | HE65: 0.01137337436 | HF65: 0.01748745923 | HG65: 0.02288338658 | HH65: 0.004955289127 | HI65: 0.01375280942 | HJ65: 0.02462507904 | HK65: 0.02037077884 | HL65: 0.02093564108 | HN65: 22 | HO65: 0.01137337436 | HP65: 0.01748745923 | HQ65: 0.02288338658 | HR65: 0.004955289127 | HS65: 0.01375280942 | HT65: 0.02462507904 | HU65: 0.02037077884 | HV65: 0.02093564108 | HX65: 22 | HY65: 0.01137337436 | HZ65: 0.01748745923 | IA65: 0.02288338658 | IB65: 0.004955289127 | IC65: 0.01375280942 | ID65: 0.02462507904 | IE65: 0.02037077884 | IF65: 0.02093564108 | IH65: 22 | II65: 0.01137337436 | IJ65: 0.01748745923 | IK65: 0.02288338658 | IL65: 0.004955289127 | IM65: 0.01375280942 | IN65: 0.02462507904 | IO65: 0.02037077884 | IP65: 0.02093564108
B66: 18 | L66: 18 | V66: 18 | AF66: 18 | AP66: 18 | AZ66: 18 | BJ66: 18 | BT66: 18 | EB66: 23 | EC66: 0.009399617548 | ED66: 0.006422712192 | EE66: 0.01459738667 | EF66: 0.004613763909 | EG66: 0.003358969786 | EH66: 0.01235599231 | EI66: 0.006961802494 | EJ66: 0.01768146027 | EL66: 23 | EM66: 0.008862359537 | EN66: 0.00613444178 | EO66: 0.01680209828 | EP66: 0.001636627852 | EQ66: 0.004699543136 | ER66: 0.01184962335 | ES66: 0.008095609488 | ET66: 0.01417803904 | EV66: 23 | EW66: 0.008542586098 | EX66: 0.006677018167 | EY66: 0.01989382303 | EZ66: 0.000862867684 | FA66: 0.004104778309 | FB66: 0.01582197502 | FC66: 0.008903904884 | FD66: 0.01459328395 | FF66: 23 | FG66: 0.008071714059 | FH66: 0.007710313316 | FI66: 0.02312142025 | FJ66: 0.0001624622362 | FK66: 0.003151756679 | FL66: 0.01976934965 | FM66: 0.01006310785 | FN66: 0.01165722447 | FP66: 23 | FQ66: 0.008316282411 | FR66: 0.007477082731 | FS66: 0.02700830254 | FT66: 0.0009797974343 | FU66: 0.004389837599 | FV66: 0.02405177848 | FW66: 0.008073015477 | FX66: 0.02126578447 | FZ66: 23 | GA66: 0.007240010747 | GB66: 0.01037451546 | GC66: 0.01751313394 | GD66: 0.001328372709 | GE66: 0.0131567346 | GF66: 0.01329800001 | GG66: 0.01007970059 | GH66: 0.009966015143 | GJ66: 23 | GK66: 0.00815411339 | GL66: 0.01293423776 | GM66: 0.02321069572 | GN66: 0.001081382424 | GO66: 0.0165407941 | GP66: 0.0132743098 | GQ66: 0.0104207606 | GR66: 0.01079099894 | GT66: 23 | GU66: 0.00818558928 | GV66: 0.01316540331 | GW66: 0.01878757689 | GX66: 0.002586287061 | GY66: 0.00474633685 | GZ66: 0.01224029346 | HA66: 0.01202542392 | HB66: 0.01122488993 | HD66: 23 | HE66: 0.008610881521 | HF66: 0.01472589555 | HG66: 0.03470058857 | HH66: 0.002277860662 | HI66: 0.01532203276 | HJ66: 0.01754774567 | HK66: 0.01530656704 | HL66: 0.0119600365 | HN66: 23 | HO66: 0.008610881521 | HP66: 0.01472589555 | HQ66: 0.03470058857 | HR66: 0.002277860662 | HS66: 0.01532203276 | HT66: 0.01754774567 | HU66: 0.01530656704 | HV66: 0.0119600365 | HX66: 23 | HY66: 0.008610881521 | HZ66: 0.01472589555 | IA66: 0.03470058857 | IB66: 0.002277860662 | IC66: 0.01532203276 | ID66: 0.01754774567 | IE66: 0.01530656704 | IF66: 0.0119600365 | IH66: 23 | II66: 0.008610881521 | IJ66: 0.01472589555 | IK66: 0.03470058857 | IL66: 0.002277860662 | IM66: 0.01532203276 | IN66: 0.01754774567 | IO66: 0.01530656704 | IP66: 0.0119600365
B67: 19 | L67: 19 | V67: 19 | AF67: 19 | AP67: 19 | AZ67: 19 | BJ67: 19 | BT67: 19 | EB67: 24 | EC67: 0.007855277278 | ED67: 0.005760148119 | EE67: 0.02003229367 | EF67: 0.001450567848 | EG67: 0.002676292734 | EH67: 0.01540085819 | EI67: 0.005643007538 | EJ67: 0.01980468914 | EL67: 24 | EM67: 0.007396366609 | EN67: 0.005197594824 | EO67: 0.0134875891 | EP67: 0.003314872066 | EQ67: 0.002680321217 | ER67: 0.0114162038 | ES67: 0.006409583667 | ET67: 0.0163453456 | EV67: 24 | EW67: 0.007017550461 | EX67: 0.004985978983 | EY67: 0.0154713844 | EZ67: 0.001194670917 | FA67: 0.00376506294 | FB67: 0.01095790543 | FC67: 0.007449957861 | FD67: 0.01311761252 | FF67: 24 | FG67: 0.00673482025 | FH67: 0.005446770403 | FI67: 0.01832743565 | FJ67: 0.0006250054034 | FK67: 0.00329899064 | FL67: 0.01449739881 | FM67: 0.008201172567 | FN67: 0.0134544527 | FP67: 24 | FQ67: 0.006310140906 | FR67: 0.00625844781 | FS67: 0.02099982867 | FT67: 0.0001182903961 | FU67: 0.002522817672 | FV67: 0.01798253653 | FW67: 0.009288994432 | FX67: 0.01068629374 | FZ67: 24 | GA67: 0.006693321251 | GB67: 0.009939232716 | GC67: 0.02384650045 | GD67: 0.0009308663811 | GE67: 0.01172157112 | GF67: 0.01502351597 | GG67: 0.008289236521 | GH67: 0.009366212724 | GJ67: 24 | GK67: 0.006003528398 | GL67: 0.009086043513 | GM67: 0.01609168425 | GN67: 0.001091218559 | GO67: 0.01098096908 | GP67: 0.01176141814 | GQ67: 0.009410657271 | GR67: 0.008695745164 | GT67: 24 | GU67: 0.00677980753 | GV67: 0.01134824706 | GW67: 0.02108519117 | GX67: 0.0008792620984 | GY67: 0.01385111553 | GZ67: 0.01177954624 | HA67: 0.009735976895 | HB67: 0.009443845618 | HD67: 24 | HE67: 0.006817059491 | HF67: 0.01159030764 | HG67: 0.0167318811 | HH67: 0.00211929141 | HI67: 0.003988478579 | HJ67: 0.01084264002 | HK67: 0.01126084493 | HL67: 0.009811423898 | HN67: 24 | HO67: 0.006817059491 | HP67: 0.01159030764 | HQ67: 0.0167318811 | HR67: 0.00211929141 | HS67: 0.003988478579 | HT67: 0.01084264002 | HU67: 0.01126084493 | HV67: 0.009811423898 | HX67: 24 | HY67: 0.006817059491 | HZ67: 0.01159030764 | IA67: 0.0167318811 | IB67: 0.00211929141 | IC67: 0.003988478579 | ID67: 0.01084264002 | IE67: 0.01126084493 | IF67: 0.009811423898 | IH67: 24 | II67: 0.006817059491 | IJ67: 0.01159030764 | IK67: 0.0167318811 | IL67: 0.00211929141 | IM67: 0.003988478579 | IN67: 0.01084264002 | IO67: 0.01126084493 | IP67: 0.009811423898
B68: 20 | L68: 20 | V68: 20 | AF68: 20 | AP68: 20 | AZ68: 20 | BJ68: 20 | BT68: 20 | EB68: 25 | EC68: 0.006473144142 | ED68: 0.005869173775 | EE68: 0.02385868953 | EF68: 0.001022853684 | EG68: 0.002413734279 | EH68: 0.01482853708 | EI68: 0.004183095199 | EJ68: 0.01077828347 | EL68: 25 | EM68: 0.006180462948 | EN68: 0.004647117427 | EO68: 0.0185093196 | EP68: 0.001042073683 | EQ68: 0.002129021978 | ER68: 0.01422377325 | ES68: 0.005195392399 | ET68: 0.01830812464 | EV68: 25 | EW68: 0.005856099377 | EX68: 0.004212163528 | EY68: 0.01241839185 | EZ68: 0.002419460436 | FA68: 0.002141071843 | FB68: 0.01054991133 | FC68: 0.005898405832 | FD68: 0.01512285674 | FF68: 25 | FG68: 0.005531899609 | FH68: 0.004055493016 | FI68: 0.01425336311 | FJ68: 0.0008652500792 | FK68: 0.003017169548 | FL68: 0.01004619487 | FM68: 0.00686198649 | FN68: 0.01209398166 | FP68: 25 | FQ68: 0.005264429623 | FR68: 0.004407771063 | FS68: 0.01664716976 | FT68: 0.0004550241074 | FU68: 0.002632687002 | FV68: 0.01318103462 | FW68: 0.007570285101 | FX68: 0.01233391405 | FZ68: 25 | GA68: 0.004870961079 | GB68: 0.008402525629 | GC68: 0.01415174534 | GD68: 0.0001077867699 | GE68: 0.008468444422 | GF68: 0.01112017953 | GG68: 0.006869300533 | GH68: 0.005942197369 | GJ68: 25 | GK68: 0.005549763613 | GL68: 0.008688265304 | GM68: 0.02191064478 | GN68: 0.0007646197157 | GO68: 0.009761736748 | GP68: 0.01330571007 | GQ68: 0.007739030063 | GR68: 0.008180979231 | GT68: 25 | GU68: 0.00499129485 | GV68: 0.007957858369 | GW68: 0.01461807453 | GX68: 0.0008871910756 | GY68: 0.009180256428 | GZ68: 0.01041914121 | HA68: 0.008792259086 | HB68: 0.007606214736 | HD68: 25 | HE68: 0.005645872933 | HF68: 0.009972499016 | HG68: 0.01877807146 | HH68: 0.0007204434913 | HI68: 0.01162820966 | HJ68: 0.01045986868 | HK68: 0.009116982133 | HL68: 0.008259444429 | HN68: 25 | HO68: 0.005645872933 | HP68: 0.009972499016 | HQ68: 0.01877807146 | HR68: 0.0007204434913 | HS68: 0.01162820966 | HT68: 0.01045986868 | HU68: 0.009116982133 | HV68: 0.008259444429 | HX68: 25 | HY68: 0.005645872933 | HZ68: 0.009972499016 | IA68: 0.01877807146 | IB68: 0.0007204434913 | IC68: 0.01162820966 | ID68: 0.01045986868 | IE68: 0.009116982133 | IF68: 0.008259444429 | IH68: 25 | II68: 0.005645872933 | IJ68: 0.009972499016 | IK68: 0.01877807146 | IL68: 0.0007204434913 | IM68: 0.01162820966 | IN68: 0.01045986868 | IO68: 0.009116982133 | IP68: 0.008259444429
B69: 21 | L69: 21 | V69: 21 | AF69: 21 | AP69: 21 | AZ69: 21 | BJ69: 21 | BT69: 21 | EB69: 26 | EC69: 0.005032627031 | ED69: 0.004979872247 | EE69: 0.01955818937 | EF69: 0.0002268939373 | EG69: 0.001997494822 | EH69: 0.01270809586 | EI69: 0.00354074348 | EJ69: 0.01163700496 | EL69: 26 | EM69: 0.005077997923 | EN69: 0.004723252314 | EO69: 0.02194579929 | EP69: 0.0007326443757 | EQ69: 0.001915356116 | ER69: 0.01364770213 | ES69: 0.003851273174 | ET69: 0.009928246314 | EV69: 26 | EW69: 0.004879773108 | EX69: 0.003757077461 | EY69: 0.01695218966 | EZ69: 0.0007584710979 | FA69: 0.001696635875 | FB69: 0.01308237353 | FC69: 0.004781052125 | FD69: 0.01687841058 | FF69: 26 | FG69: 0.004603148828 | FH69: 0.003417988496 | FI69: 0.01135003804 | FJ69: 0.001747299843 | FK69: 0.001711708347 | FL69: 0.009601821805 | FM69: 0.005432873053 | FN69: 0.01386350377 | FP69: 26 | FQ69: 0.004311133234 | FR69: 0.003273802794 | FS69: 0.01281148329 | FT69: 0.0006280355008 | FU69: 0.002401856451 | FV69: 0.009061812271 | FW69: 0.006334117022 | FX69: 0.01100366669 | FZ69: 26 | GA69: 0.003807810874 | GB69: 0.005752911992 | GC69: 0.01192239162 | GD69: 0.0003885077627 | GE69: 0.007327048547 | GF69: 0.008397502207 | GG69: 0.006096630026 | GH69: 0.00572874495 | GJ69: 26 | GK69: 0.004030148447 | GL69: 0.007334292522 | GM69: 0.01286276102 | GN69: 8.834812264e-05 | GO69: 0.007042757841 | GP69: 0.009718278823 | GQ69: 0.006413351312 | GR69: 0.005116989452 | GT69: 26 | GU69: 0.004604328747 | GV69: 0.007597859731 | GW69: 0.01968790257 | GX69: 0.0006203490171 | GY69: 0.008146576404 | GZ69: 0.01165579657 | HA69: 0.007230477382 | HB69: 0.007055075596 | HD69: 26 | HE69: 0.004147748958 | HF69: 0.006983194711 | HG69: 0.01287544526 | HH69: 0.0007254106185 | HI69: 0.007696822947 | HJ69: 0.009121282407 | HK69: 0.008233262289 | HL69: 0.006551997897 | HN69: 26 | HO69: 0.004147748958 | HP69: 0.006983194711 | HQ69: 0.01287544526 | HR69: 0.0007254106185 | HS69: 0.007696822947 | HT69: 0.009121282407 | HU69: 0.008233262289 | HV69: 0.006551997897 | HX69: 26 | HY69: 0.004147748958 | HZ69: 0.006983194711 | IA69: 0.01287544526 | IB69: 0.0007254106185 | IC69: 0.007696822947 | ID69: 0.009121282407 | IE69: 0.008233262289 | IF69: 0.006551997897 | IH69: 26 | II69: 0.004147748958 | IJ69: 0.006983194711 | IK69: 0.01287544526 | IL69: 0.0007254106185 | IM69: 0.007696822947 | IN69: 0.009121282407 | IO69: 0.008233262289 | IP69: 0.006551997897
B70: 22 | L70: 22 | V70: 22 | AF70: 22 | AP70: 22 | AZ70: 22 | BJ70: 22 | BT70: 22 | EB70: 27 | EC70: 0.004100625311 | ED70: 0.003777009922 | EE70: 0.0182762002 | EF70: 0.009193338987 | EG70: 0.0007974512957 | EH70: 0.01077052743 | EI70: 0.003498941198 | EJ70: 0.01143771019 | EL70: 27 | EM70: 0.003947078235 | EN70: 0.003992140863 | EO70: 0.01798945103 | EP70: 0.0001624818136 | EQ70: 0.001578953483 | ER70: 0.01170027417 | ES70: 0.00325988925 | ET70: 0.0107192427 | EV70: 27 | EW70: 0.004008490909 | EX70: 0.003804580164 | EY70: 0.02010200176 | EZ70: 0.0005331418274 | FA70: 0.001520744986 | FB70: 0.01255813793 | FC70: 0.003544130294 | FD70: 0.0091529309 | FF70: 27 | FG70: 0.003834901082 | FH70: 0.003037581649 | FI70: 0.01549378513 | FJ70: 0.0005476432109 | FK70: 0.001351449249 | FL70: 0.01189903275 | FM70: 0.004403705637 | FN70: 0.01547282943 | FP70: 27 | FQ70: 0.003586535178 | FR70: 0.002748678328 | FS70: 0.01020056242 | FT70: 0.001267981476 | FU70: 0.00135744635 | FV70: 0.008652024279 | FW70: 0.005014938054 | FX70: 0.0126136871 | FZ70: 27 | GA70: 0.003054954166 | GB70: 0.004258391065 | GC70: 0.0107973448 | GD70: 0.0005253370156 | GE70: 0.004809641062 | GF70: 0.005874359966 | GG70: 0.004423309161 | GH70: 0.004657581406 | GJ70: 27 | GK70: 0.003150020726 | GL70: 0.005009934993 | GM70: 0.01083622275 | GN70: 0.0003183916138 | GO70: 0.006079906398 | GP70: 0.007337383127 | GQ70: 0.00569195836 | GR70: 0.00493211728 | GT70: 27 | GU70: 0.003343073362 | GV70: 0.006399528735 | GW70: 0.01155799627 | GX70: 7.166714985e-05 | GY70: 0.005864641864 | GZ70: 0.008505990155 | HA70: 0.005991893196 | HB70: 0.004416555471 | HD70: 27 | HE70: 0.003825590343 | HF70: 0.006652172765 | HG70: 0.01734062238 | HH70: 0.0005071496348 | HI70: 0.006813281719 | HJ70: 0.01021601039 | HK70: 0.006770778509 | HL70: 0.006081069616 | HN70: 27 | HO70: 0.003825590343 | HP70: 0.006652172765 | HQ70: 0.01734062238 | HR70: 0.0005071496348 | HS70: 0.006813281719 | HT70: 0.01021601039 | HU70: 0.006770778509 | HV70: 0.006081069616 | HX70: 27 | HY70: 0.003825590343 | HZ70: 0.006652172765 | IA70: 0.01734062238 | IB70: 0.0005071496348 | IC70: 0.006813281719 | ID70: 0.01021601039 | IE70: 0.006770778509 | IF70: 0.006081069616 | IH70: 27 | II70: 0.003825590343 | IJ70: 0.006652172765 | IK70: 0.01734062238 | IL70: 0.0005071496348 | IM70: 0.006813281719 | IN70: 0.01021601039 | IO70: 0.006770778509 | IP70: 0.006081069616
B71: 23 | L71: 23 | V71: 23 | AF71: 23 | AP71: 23 | AZ71: 23 | BJ71: 23 | BT71: 23 | EB71: 28 | EC71: 0.003332855783 | ED71: 0.003697797083 | EE71: 0.01840362394 | EF71: 0.005178136181 | EG71: 0.002801094527 | EH71: 0.008037174119 | EI71: 0.002907154518 | EJ71: 0.009221160478 | EL71: 28 | EM71: 0.003212933968 | EN71: 0.003024348872 | EO71: 0.01681025976 | EP71: 0.006577005522 | EQ71: 0.0006296276355 | ER71: 0.009915551381 | ES71: 0.003221401026 | ET71: 0.01053566608 | EV71: 28 | EW71: 0.003112859679 | EX71: 0.003212105502 | EY71: 0.01647740777 | EZ71: 0.0001181269932 | FA71: 0.001252261531 | FB71: 0.01077146796 | FC71: 0.002999900165 | FD71: 0.009882171077 | FF71: 28 | FG71: 0.003147178749 | FH71: 0.003072603537 | FI71: 0.01837522461 | FJ71: 0.0003845812045 | FK71: 0.001210015362 | FL71: 0.01142783008 | FM71: 0.003264408158 | FN71: 0.008390718055 | FP71: 28 | FQ71: 0.002984950421 | FR71: 0.002439975356 | FS71: 0.01392468408 | FT71: 0.0003970145658 | FU71: 0.001070521619 | FV71: 0.01071307595 | FW71: 0.004064944381 | FX71: 0.01407788753 | FZ71: 28 | GA71: 0.002518170098 | GB71: 0.003605111731 | GC71: 0.01011733088 | GD71: 0.001050908471 | GE71: 0.003710690488 | GF71: 0.006226335817 | GG71: 0.003619595255 | GH71: 0.004801580783 | GJ71: 28 | GK71: 0.002525421589 | GL71: 0.003705424317 | GM71: 0.009813673673 | GN71: 0.0004302218297 | GO71: 0.003988376027 | GP71: 0.005135048229 | GQ71: 0.004129711833 | GR71: 0.004004366144 | GT71: 28 | GU71: 0.002611145027 | GV71: 0.004368418249 | GW71: 0.009736748397 | GX71: 0.0002580947264 | GY71: 0.005059808522 | GZ71: 0.006421043558 | HA71: 0.005317927067 | HB71: 0.004255893049 | HD71: 28 | HE71: 0.002775697194 | HF71: 0.005599434327 | HG71: 0.01018014314 | HH71: 5.854835739e-05 | HI71: 0.004901943657 | HJ71: 0.007449855455 | HK71: 0.005610941359 | HL71: 0.003810598995 | HN71: 28 | HO71: 0.002775697194 | HP71: 0.005599434327 | HQ71: 0.01018014314 | HR71: 5.854835739e-05 | HS71: 0.004901943657 | HT71: 0.007449855455 | HU71: 0.005610941359 | HV71: 0.003810598995 | HX71: 28 | HY71: 0.002775697194 | HZ71: 0.005599434327 | IA71: 0.01018014314 | IB71: 5.854835739e-05 | IC71: 0.004901943657 | ID71: 0.007449855455 | IE71: 0.005610941359 | IF71: 0.003810598995 | IH71: 28 | II71: 0.002775697194 | IJ71: 0.005599434327 | IK71: 0.01018014314 | IL71: 5.854835739e-05 | IM71: 0.004901943657 | IN71: 0.007449855455 | IO71: 0.005610941359 | IP71: 0.003810598995
B72: 24 | L72: 24 | V72: 24 | AF72: 24 | AP72: 24 | AZ72: 24 | BJ72: 24 | BT72: 24 | EB72: 29 | EC72: 0.002635807506 | ED72: 0.002528536188 | EE72: 0.01406443899 | EF72: 0.01596032415 | EG72: 0.002030249211 | EH72: 0.007738437664 | EI72: 0.002447005723 | EJ72: 0.006318373038 | EL72: 29 | EM72: 0.002608506979 | EN72: 0.00295174689 | EO72: 0.01684987449 | EP72: 0.003700418803 | EQ72: 0.002204758469 | ER72: 0.007361843564 | ES72: 0.002676548157 | ET72: 0.008463520716 | EV72: 29 | EW72: 0.002531262609 | EX72: 0.002426218234 | EY72: 0.01531577147 | EZ72: 0.004776655594 | FA72: 0.0004978775659 | FB72: 0.009089844386 | FC72: 0.002964486059 | FD72: 0.009678181541 | FF72: 29 | FG72: 0.002441402108 | FH72: 0.002586508507 | FI72: 0.01494228855 | FJ72: 8.51206481e-05 | FK72: 0.0009934650511 | FL72: 0.009743056405 | FM72: 0.002763144729 | FN72: 0.00900745089 | FP72: 29 | FQ72: 0.002446905154 | FR72: 0.002460560377 | FS72: 0.0163427295 | FT72: 0.0002784892063 | FU72: 0.0009555603527 | FV72: 0.01020440264 | FW72: 0.003013290827 | FX72: 0.007576666438 | FZ72: 29 | GA72: 0.002040412132 | GB72: 0.003251610602 | GC72: 0.01223386955 | GD72: 0.0003203510195 | GE72: 0.003030923848 | GF72: 0.007049607388 | GG72: 0.003753665119 | GH72: 0.00529349678 | GJ72: 29 | GK72: 0.002080042979 | GL72: 0.003131036526 | GM72: 0.009095533335 | GN72: 0.0008599548596 | GO72: 0.003069521979 | GP72: 0.005384680766 | GQ72: 0.0033793446 | GR72: 0.004061558594 | GT72: 29 | GU72: 0.002091766719 | GV72: 0.003224763004 | GW72: 0.008721133851 | GX72: 0.0003484738898 | GY72: 0.003313271551 | GZ72: 0.004439283744 | HA72: 0.003858333542 | HB72: 0.003399017138 | HD72: 29 | HE72: 0.002166309286 | HF72: 0.003815432092 | HG72: 0.008480397328 | HH72: 0.0002106858415 | HI72: 0.004221945798 | HJ72: 0.005551688263 | HK72: 0.004979819217 | HL72: 0.003616380317 | HN72: 29 | HO72: 0.002166309286 | HP72: 0.003815432092 | HQ72: 0.008480397328 | HR72: 0.0002106858415 | HS72: 0.004221945798 | HT72: 0.005551688263 | HU72: 0.004979819217 | HV72: 0.003616380317 | HX72: 29 | HY72: 0.002166309286 | HZ72: 0.003815432092 | IA72: 0.008480397328 | IB72: 0.0002106858415 | IC72: 0.004221945798 | ID72: 0.005551688263 | IE72: 0.004979819217 | IF72: 0.003616380317 | IH72: 29 | II72: 0.002166309286 | IJ72: 0.003815432092 | IK72: 0.008480397328 | IL72: 0.0002106858415 | IM72: 0.004221945798 | IN72: 0.005551688263 | IO72: 0.004979819217 | IP72: 0.003616380317
B73: 25 | L73: 25 | V73: 25 | AF73: 25 | AP73: 25 | AZ73: 25 | BJ73: 25 | BT73: 25 | EB73: 30 | EC73: 0.003084334453 | ED73: 0.002069658269 | EE73: 0.02423004741 | EF73: 0.02481714889 | EG73: 0.002195181317 | EH73: 0.01253831557 | EI73: 0.002428497578 | EJ73: 0.006723979703 | EL73: 30 | EM73: 0.003289751476 | EN73: 0.002015257949 | EO73: 0.02893619028 | EP73: 0.01818843678 | EQ73: 0.001595540544 | ER73: 0.01594247804 | ES73: 0.002555410932 | ET73: 0.01183839183 | EV73: 30 | EW73: 0.003466592511 | EX73: 0.00236446344 | EY73: 0.0354972285 | EZ73: 0.004533398584 | FA73: 0.001740828804 | FB73: 0.01705454007 | FC73: 0.002940121792 | FD73: 0.0184058165 | FF73: 30 | FG73: 0.003390558138 | FH73: 0.001950805426 | FI73: 0.02908352784 | FJ73: 0.00587844133 | FK73: 0.0003944041356 | FL73: 0.01823429294 | FM73: 0.00330754853 | FN73: 0.02075057149 | FP73: 30 | FQ73: 0.003214215531 | FR73: 0.00206811643 | FS73: 0.02251084566 | FT73: 0.0001043747115 | FU73: 0.000783344839 | FV73: 0.0167541583 | FW73: 0.003186254361 | FX73: 0.01865516825 | FZ73: 30 | GA73: 0.02996484748 | GB73: 0.02274192049 | GC73: 0.1066289407 | GD73: 0.004025728242 | GE73: 0.01881871119 | GF73: 0.03645001937 | GG73: 0.05900663679 | GH73: 0.01174266312 | GJ73: 30 | GK73: 0.02996239138 | GL73: 0.02264670649 | GM73: 0.09759243716 | GN73: 0.004660270508 | GO73: 0.02141615375 | GP73: 0.03906056418 | GQ73: 0.05900661982 | GR73: 0.01235572144 | GT73: 30 | GU73: 0.0299144095 | GV73: 0.02260063369 | GW73: 0.09515108743 | GX73: 0.01209436629 | GY73: 0.02259703382 | GZ73: 0.03999194716 | HA73: 0.05900665158 | HB73: 0.01254243028 | HD73: 30 | HE73: 0.02996766445 | HF73: 0.02256604843 | HG73: 0.1076521221 | HH73: 0.004912222884 | HI73: 0.02340509289 | HJ73: 0.03737439936 | HK73: 0.05900662605 | HL73: 0.01295118328 | HN73: 30 | HO73: 0.02996766445 | HP73: 0.02256604843 | HQ73: 0.1076521221 | HR73: 0.004912222884 | HS73: 0.02340509289 | HT73: 0.03737439936 | HU73: 0.05900662605 | HV73: 0.01295118328 | HX73: 30 | HY73: 0.02996766445 | HZ73: 0.02256604843 | IA73: 0.1076521221 | IB73: 0.004912222884 | IC73: 0.02340509289 | ID73: 0.03737439936 | IE73: 0.05900662605 | IF73: 0.01295118328 | IH73: 30 | II73: 0.02996766445 | IJ73: 0.02256604843 | IK73: 0.1076521221 | IL73: 0.004912222884 | IM73: 0.02340509289 | IN73: 0.03737439936 | IO73: 0.05900662605 | IP73: 0.01295118328
B74: 26 | L74: 26 | V74: 26 | AF74: 26 | AP74: 26 | AZ74: 26 | BJ74: 26 | BT74: 26 | EC74: 1 | ED74: 1 | EE74: 1 | EF74: 1 | EG74: 1 | EH74: 1 | EI74: 1 | EJ74: 1 | EM74: 1 | EN74: 1 | EO74: 1 | EP74: 1 | EQ74: 1 | ER74: 1 | ES74: 1 | ET74: 1 | EW74: 1 | EX74: 1 | EY74: 1 | EZ74: 1 | FA74: 1 | FB74: 1 | FC74: 1 | FD74: 1 | FG74: 1 | FH74: 1 | FI74: 1 | FJ74: 1 | FK74: 1 | FL74: 1 | FM74: 1 | FN74: 1 | FQ74: 1 | FR74: 1 | FS74: 1 | FT74: 1 | FU74: 1 | FV74: 1 | FW74: 1 | FX74: 1 | GA74: 1 | GB74: 1 | GC74: 1 | GD74: 1 | GE74: 1 | GF74: 1 | GG74: 1 | GH74: 1 | GK74: 1 | GL74: 1 | GM74: 1 | GN74: 1 | GO74: 1 | GP74: 1 | GQ74: 1 | GR74: 1 | GU74: 1 | GV74: 1 | GW74: 1 | GX74: 1 | GY74: 1 | GZ74: 1 | HA74: 1 | HB74: 1 | HE74: 1 | HF74: 1 | HG74: 1 | HH74: 1 | HI74: 1 | HJ74: 1 | HK74: 1 | HL74: 1 | HO74: 1 | HP74: 1 | HQ74: 1 | HR74: 1 | HS74: 1 | HT74: 1 | HU74: 1 | HV74: 1 | HY74: 1 | HZ74: 1 | IA74: 1 | IB74: 1 | IC74: 1 | ID74: 1 | IE74: 1 | IF74: 1 | II74: 1 | IJ74: 1 | IK74: 1 | IL74: 1 | IM74: 1 | IN74: 1 | IO74: 1 | IP74: 1
B75: 27 | L75: 27 | V75: 27 | AF75: 27 | AP75: 27 | AZ75: 27 | BJ75: 27 | BT75: 27
B76: 28 | L76: 28 | V76: 28 | AF76: 28 | AP76: 28 | AZ76: 28 | BJ76: 28 | BT76: 28
B77: 29 | L77: 29 | V77: 29 | AF77: 29 | AP77: 29 | AZ77: 29 | BJ77: 29 | BT77: 29
B78: 30 | L78: 30 | V78: 30 | AF78: 30 | AP78: 30 | AZ78: 30 | BJ78: 30 | BT78: 30
C79: =SUM(C48:C78) -> 0 | D79: 0 | E79: 0 | F79: 0 | G79: 0 | H79: 0 | I79: 0 | J79: =SUM(J48:J78) -> 0 | M79: =SUM(M48:M78) -> 0 | N79: 0 | O79: 0 | P79: 0 | Q79: 0 | R79: 0 | S79: 0 | T79: =SUM(T48:T78) -> 0 | W79: =SUM(W48:W78) -> 0 | X79: 0 | Y79: 0 | Z79: 0 | AA79: 0 | AB79: 0 | AC79: 0 | AD79: =SUM(AD48:AD78) -> 0 | AG79: =SUM(AG48:AG78) -> 0 | AH79: 0 | AI79: 0 | AJ79: 0 | AK79: 0 | AL79: 0 | AM79: 0 | AN79: =SUM(AN48:AN78) -> 0 | AQ79: =SUM(AQ48:AQ78) -> 0 | AR79: 0 | AS79: 0 | AT79: 0 | AU79: 0 | AV79: 0 | AW79: 0 | AX79: =SUM(AX48:AX78) -> 0 | BA79: =SUM(BA48:BA78) -> 0 | BB79: 0 | BC79: 0 | BD79: 0 | BE79: 0 | BF79: 0 | BG79: 0 | BH79: =SUM(BH48:BH78) -> 0 | BK79: =SUM(BK48:BK78) -> 0 | BL79: 0 | BM79: 0 | BN79: 0 | BO79: 0 | BP79: 0 | BQ79: 0 | BR79: =SUM(BR48:BR78) -> 0 | BU79: =SUM(BU48:BU78) -> 0 | BV79: 0 | BW79: 0 | BX79: 0 | BY79: 0 | BZ79: 0 | CA79: 0 | CB79: =SUM(CB48:CB78) -> 0
B80: Source: All default data from EPA, 2024. Inventory of U.S. Greenhouse Gas Emissions and Sinks: 1990-2022. Data generated by EPA's MOVES 2014 model.
